Workbook

Sheet Summary
C3: State (select from drop-down): | F3: From Plan | I3: For Model
C4: United States | F4: Target: | G4: =VLOOKUP($C$4,'Attainment Goals'!$B$10:$AE$61,26,0) -> 0.6 | I4: Target: | J4: =G4 -> 0.6
F5: Year: | G5: =VLOOKUP($C$4,'Attainment Goals'!$B$10:$AE$61,27,0) -> 2025 | I5: Year: | J5: =G5 -> 2025
C6: Notes: cells in blue are assumptions | F6: Age Group: | G6: =VLOOKUP($C$4,'Attainment Goals'!$B$10:$AE$61,28,0) -> 25-64 | I6: Age Group: | J6: =G6 -> 25-64
C7: that can be adjusted | F7: BA or AA+: | G7: =VLOOKUP($C$4,'Attainment Goals'!$B$10:$AE$61,29,0) -> AA+ | I7: BA or AA+: | J7: =G7 -> AA+
F8: Include Certs: | G8: =VLOOKUP($C$4,'Attainment Goals'!$B$10:$AE$61,30,0) -> Yes | I8: Include Certs: | J8: =G8 -> Yes
C10: Current Attainment & Assumptions
C12: Current Attainment (AA+) | G12: Assumptions: Traditional Age Students | M12: Assumptions: Adult Learners - Gains Above Historic Increases (AA+)
C13: Source: 2018 ACS (AA+) & Lumina (certificates) | G13: Note: baseline rate projects forward past gains | M13: Shows attainment gain from when the cohort was 5 years younger
D15: Attain. | I15: Annual | J15: Assumed | P15: 5-Year | Q15: Average | R15: Incr. | S15: Assumed
C16: Attainment | D16: Rate | E16: Pop. | H16: Current | I16: PP Gain | J16: Annual PP | M16: 2018 | N16: Attainment In: | P16: Gain | Q16: 5-Year Gain | R16: 5-Year | S16: 5-Year
C17: Asian | D17: ='Summary (Detail)'!AM284 -> 0.6596732162 | E17: ='Summary (Detail)'!O284 -> 10669316 | H17: Rate | I17: (13-18) | J17: Gain (19+) | K17: Cap | M17: Cohort | N17: 2013 | O17: 2018 | P17: (1 cohort) | Q17: (3 Cohorts) | R17: Gain | S17: Gain
C18: Black | D18: ='Summary (Detail)'!AM285 -> 0.3232916469 | E18: ='Summary (Detail)'!O285 -> 21458547 | G18: HS Grad Rate | H18: ='Summary (Detail)'!O11 -> 0.846 | I18: ='Impact of Higher Rates'!O9 -> 0.0064 | J18: =MAX(I18,0) -> 0.0064 | K18: 1 | M18: 30-34 | N18: ='Survival Rates'!BN10 -> 0.4043921282 | O18: ='Survival Rates'!BO10 -> 0.4705107478 | P18: ='Survival Rates'!BP10 -> 0.06611861955 | Q18: ='Survival Rates'!BM11 -> 0.06298514923 | R18: 0 | S18: =Q18+R18 -> 0.06298514923
C19: Latino | D19: ='Summary (Detail)'!AM286 -> 0.2457940536 | E19: ='Summary (Detail)'!O286 -> 29827532 | G19: Col. Going Rate | H19: ='Summary (Detail)'!O19 -> 0.796 | I19: ='Impact of Higher Rates'!O10 -> 0.0046 | J19: 0.0046 | K19: 1 | M19: 35-39 | N19: ='Survival Rates'!BN11 -> 0.42610028 | O19: ='Survival Rates'!BO11 -> 0.4675913766 | P19: ='Survival Rates'!BP11 -> 0.04149109666 | Q19: ='Survival Rates'!BM12 -> 0.03868346743 | R19: 0 | S19: =Q19+R19 -> 0.03868346743
C20: White | D20: ='Summary (Detail)'!AM288 -> 0.4854020874 | E20: ='Summary (Detail)'!O288 -> 103880674 | G20: Col. Grad Rate | H20: ='Summary (Detail)'!O27 -> 0.48 | I20: ='Impact of Higher Rates'!O11 -> 0.0154 | J20: 0.0154 | K20: 1 | M20: 40-44 | N20: ='Survival Rates'!BN12 -> 0.4231790952 | O20: ='Survival Rates'!BO12 -> 0.4557316861 | P20: ='Survival Rates'!BP12 -> 0.03255259087 | Q20: ='Survival Rates'!BM13 -> 0.02991913374 | R20: 0 | S20: 0.02991913374
C21: Other | D21: ='Summary (Detail)'!AM292 -> 0.4061102272 | E21: ='Summary (Detail)'!O292 -> 5002760 | G21: Certificate Rate | H21: ='Summary (Detail)'!O35 -> 0.0524 | I21: NA | J21: 0 | K21: 1 | M21: 45-49 | N21: ='Survival Rates'!BN13 -> 0.4184539131 | O21: ='Survival Rates'!BO13 -> 0.4449102258 | P21: ='Survival Rates'!BP13 -> 0.02645631273 | Q21: ='Survival Rates'!BM14 -> 0.02288199459 | R21: 0 | S21: 0.02288199459
C22: Overall | D22: ='Summary (Detail)'!AM290 -> 0.4317673531 | E22: ='Summary (Detail)'!O290 -> 170838829 | M22: 50-54 | N22: ='Survival Rates'!BN14 -> 0.3946159085 | O22: ='Survival Rates'!BO14 -> 0.4081572244 | P22: ='Survival Rates'!BP14 -> 0.01354131583 | Q22: ='Survival Rates'!BM15 -> 0.01493897045 | R22: 0 | S22: 0.01493897045
C23: Certificates | D23: ='Summary (Detail)'!O35 -> 0.0524 | M23: 55-59 | N23: ='Survival Rates'!BN15 -> 0.3700214433 | O23: ='Survival Rates'!BO15 -> 0.384585356 | P23: ='Survival Rates'!BP15 -> 0.01456391267 | Q23: ='Survival Rates'!BM16 -> 0.01323274078 | R23: 0 | S23: 0.01323274078
C24: Attainment | D24: =D22+D23 -> 0.4841673531 | M24: 60-64 | N24: ='Survival Rates'!BN16 -> 0.3711225597 | O24: ='Survival Rates'!BO16 -> 0.3845180257 | P24: ='Survival Rates'!BP16 -> 0.01339546596 | Q24: ='Survival Rates'!BM17 -> 0.01253251397 | R24: 0 | S24: 0.01253251397
C26: Projections
D28: Actual | E28: Projected --> | S28: Year
D29: 2018 | E29: 2019 | F29: 2020 | G29: 2021 | H29: 2022 | I29: 2023 | J29: 2024 | K29: 2025 | L29: 2026 | M29: 2027 | N29: 2028 | O29: 2029 | P29: 2030 | Q29: 2031 | R29: 2032 | S29: Target Met
C30: Attainment Rate | D30: ='Summary (Detail)'!O245 -> 0.4841673531 | E30: ='Summary (Detail)'!P245 -> 0.4911903192 | F30: ='Summary (Detail)'!Q245 -> 0.4985477791 | G30: ='Summary (Detail)'!R245 -> 0.5062892618 | H30: ='Summary (Detail)'!S245 -> 0.5143502832 | I30: ='Summary (Detail)'!T245 -> 0.5228327286 | J30: ='Summary (Detail)'!U245 -> 0.5313991931 | K30: ='Summary (Detail)'!V245 -> 0.5399886069 | L30: ='Summary (Detail)'!W245 -> 0.5485380263 | M30: ='Summary (Detail)'!X245 -> 0.5573621889 | N30: ='Summary (Detail)'!Y245 -> 0.5663779174 | O30: ='Summary (Detail)'!Z245 -> 0.5757988095 | P30: ='Summary (Detail)'!AA245 -> 0.5854489001 | Q30: ='Summary (Detail)'!AB245 -> 0.5954619109 | R30: ='Summary (Detail)'!AC245 -> 0.6058432274 | S30: ='Summary (Detail)'!D256 -> 2032
C31: Attainment Goal | D31: =$J$4 -> 0.6 | E31: 0.6 | F31: 0.6 | G31: 0.6 | H31: 0.6 | I31: 0.6 | J31: 0.6 | K31: 0.6 | L31: 0.6 | M31: 0.6 | N31: 0.6 | O31: 0.6 | P31: 0.6 | Q31: 0.6 | R31: 0.6
C32: Remaining Gap (%) | D32: =(IFERROR(D31-D30,"")) -> 0.1158326469 | E32: =(IFERROR(E31-E30,"")) -> 0.1088096808 | F32: 0.1014522209 | G32: 0.09371073824 | H32: 0.08564971681 | I32: 0.07716727141 | J32: 0.06860080693 | K32: 0.06001139308 | L32: 0.05146197366 | M32: 0.04263781105 | N32: 0.03362208256 | O32: =(IFERROR(O31-O30,"")) -> 0.02420119048 | P32: 0.01455109985 | Q32: =(IFERROR(Q31-Q30,"")) -> 0.00453808914 | R32: =(IFERROR(R31-R30,"")) -> -0.005843227396
C33: Remaining Gap (#) | D33: =IFERROR(D32*Model!AZ16,"") -> 19788713.76 | E33: =IFERROR(E32*Model!BA16,"") -> 18616379.64 | F33: =IFERROR(F32*Model!BB16,"") -> 17383187.29 | G33: =IFERROR(G32*Model!BC16,"") -> 16080384.45 | H33: =IFERROR(H32*Model!BD16,"") -> 14718761.83 | I33: =IFERROR(I32*Model!BE16,"") -> 13280543 | J33: =IFERROR(J32*Model!BF16,"") -> 11819496.7 | K33: =IFERROR(K32*Model!BG16,"") -> 10351183.17 | L33: =IFERROR(L32*Model!BH16,"") -> 8886458.248 | M33: =IFERROR(M32*Model!BI16,"") -> 7370935.407 | N33: =IFERROR(N32*Model!BJ16,"") -> 5818850.657 | O33: =IFERROR(O32*Model!BK16,"") -> 4200546.721 | P33: =IFERROR(P32*Model!BL16,"") -> 2532898.43 | Q33: =IFERROR(Q32*Model!BM16,"") -> 792217.1435 | R33: =IFERROR(R32*Model!BN16,"") -> -1022985.973
C35: Graphs
C63: Copyright 2020 ITHAKA. This work is licensed under a Creative Commons Attribution-NonCommercial 4.0 International License. To view a copy of the license, please see http://creative-commons.org/licenses/by-nc/4.0/.

Sheet Technical Guide
A1: Ithaka S+R State Attainment Rate Projection Tool Technical Guide
A2: This technical guide is intended to aid in the use of the tool for projecting attainment rates under various scenarios. The attainment tool was created to help policymakers, policy advocates, and those interested in increasing educational attainment evaluate each state’s progress toward its attainment goal, project the effects of new policies on future attainment, and reset or design new attainment goals and strategies. As discussed in the report, the majority of states are not projected to reach their attainment goals if past trends continue forward. However, the vast majority of states have devised explicit strategies to improve opportunity for a broad range of students We believe there are three primary ways to use the tool: monitor progress towards a goal, estimate how new initiatives and policies may impact the attainment trajectory and likelihood of meeting the goal, and reset or set new attainment goals.
A3: First, the tool allows the user to examine the progress a given state is making towards the attainment goal. A year-by-year graph and table show the projected attainment rate in relation to the goal, showing both the percentage point shortfall and the estimated number of additional adults who would need a credential to meet the goal. It also indicates the expected year of meeting the goal. The projection is also broken down by the source of growth in attainment, as described in Figure 2 (e.g., adult learning or increased college-going rate). The default projection is to carry recent trends forward, however, the user can modify these estimates. This can be particularly useful if the user has access to more refined state data that indicate a particular growth in one area (e.g., certificates). As modifications are made, the projections are updated continuously.
A4: Second, the flexibility of the tool allows users to incorporate projected policy and intervention effects. Because the tool is built on trends in factors that contribute to attainment rates, the baseline estimates do not incorporate changes beyond the trends. For example, if a state recently passed or is planning to implement an adult promise program that is expected to increase the number of residents over the age of 40 returning to college, these additional adult learning gains would not be reflected in historical trends. By allowing for the adjustment of contributing factors, users can increase the future growth of adult learning in the tool. The tool will automatically adjust for this new growth and provide new projections. This is useful for estimating the effects of new policies as well as providing insight into potential policies. Policymakers can use this feature to estimate the effects of various policies on long-term attainment in order to help in the decision-making process of which to pursue. Moreover, the user can adjust various contributing factors to the point that the goal is met by the target year, and then devise policy solutions to meet the new growth levels of input factors.
A5: Third, the tool can help policymakers set new goals or reset current attainment goals. As discussed in our report, some states are on track to meet their attainment goals in 2020. If state policymakers expect continued economic growth and a continued need for credentialed workers, the tool’s projections can help state leaders set new goals. While some states may meet their goals, we project many states will not meet their targets. However, these states are still projected to increase attainment. We believe it is prudent for higher education advocates and policymakers to build on the momentum and continue progress even if the goal is not met. One way to do this is by resetting and creating a new goal. Finally, some states do not currently have an attainment goal. This tool, and the findings from the accompanying report, can be helpful for these states to set initial attainment goals. The details of the goal—target age, degrees included, and the goal year—can be adjusted to facilitate the planning process.
A6: In order to facilitate the use of the tool, we have created a step-by-step guide. Below, we provide an explanation of each component of the tool and how to use the projections. For a methodological overview of the projection tool, we advise users to reference the body of the report, “Raising the Bar: What States Need to Do to Hit Their Ambitious Higher Education Attainment Goals.” This report explains our methodological approach to building the projections from a series of underlying trends. In addition to serving as the basis for the projections, these underlying data elements are what enable the tool to be fully customizable for the user.
A7: Step-by-Step Guide to Using the Attainment Tool
A8: Figure B1 shows a summary of the attainment tool. The tool contains four sections: the goal description, current attainment and assumptions, projections, and graphical representations of the projections. Each item in blue font is customizable by the user. When these items are changed, the graphs and projections automatically update. The tool is based in Excel and utilizes macros to call underlying data gathered from Census, the Department of Education, Lumina Foundation, and state policy documents. If prompted, the user must click “enable macros” at the top of the screen for the tool to automatically update when the user makes adjustments.
A9: Figure B1: Attainment Tool
A32: The goal description sections allows the user to select any state, or the United States as a whole, in Box 1 in Figure B2. The tool then automatically loads the recorded goal information in Box 2. As shown below, these data include the target attainment rate, goal year, age group, if the goal is for associate’s or bachelor’s degrees and higher, and if the goal includes certificates. The goal information is derived from Lumina Foundation’s attainment goal data which has been augmented by Ithaka S+R to include recently declared goals.¹ Box 3 allows the user to adjust the pre-loaded goals. For example, the user may want to extend the year of the goal, the target attainment rate, or the age group. This can aid policymakers seeking to adjust current goals or set new goals.
A33: Figure B2: Goal Description Section
A39: The current attainment and assumptions sections provides detailed information on the attainment of sub-groups as well as shows the data for each of the underlying levers on which the projections are built. Figure B3 shows the data elements included. The current attainment by race/ethnicity, collected from the American Community Survey, and the current certificate attainment rate, collected from Lumina Foundation, are shown in Box 4. These data are provided for descriptive context.
A40: Box 5 provides the current high school and college graduation rates (collected from the Department of Education), the college-going rate (collected from National Student Clearinghouse), and the attainment rate for certificate holders (collected from Lumina Foundation). The current rates are provided as well as the average annual gain from 2013 through 2018 for the graduation and college going rates. The model assumes these five-year averages persist moving forward and autofill the average into “Assumed Annual PP Gain” column. As explained in the methodological overview in the report, we assume no growth in certificate attainment. Each of these projected rate changes can be adjusted by the user to see the impacted on attainment growth.² For example, if a state recently enacted a program to streamline the college application and enrollment process for graduating high school seniors, the user can increase the projected change in the college-going rate to reflect the expected policy impacts. The final column in Box 5 is a maximum allowed rate for each data element. The default is set to a maximum of 100 percent so that as the rates grow over the 30-year projection period, they reach an upper bound. The projections in the report use a 100 percent maximum; however, this value may be unrealistic and is likely a generous assumption. The tool allows the user to lower this maximum if, for example, they think a 100 percent high school graduation rate is an unrealistic assumption.
A41: Box 6 captures adult learning. For each five-year age band, from 30 to 64, the cohort’s change in attainment from 2013 through 2018 is calculated. For example, 30-to-34-year-old residents in 2018, and thus 25-to-29-year-old residents in 2013, had a growth in attainment from 40.4 percent in 2013 to 47.1 percent in 2018. The five-year increase is shown for the single cohort, as well as a three-year rolling average to reduce noisiness of the data. The model uses this rolling average in the baseline assumption. For example, each cohort of 25-to-29-year-olds is expected to increase attainment by 6.3 percentage points as it ages into the 30-to-34-year-old age band over the next 30 years. The user is able to adjust the rate, up or down, and project the impacts on overall attainment. For instance, a state may implement a comprehensive adult promise program that explicitly targets residents aged 40 and older and expects the attainment growth of these individuals to increase. This estimated policy effects can be incorporated into the model to project the impacts on long-run attainment rates by adjusting the figures in blue. While 40-to-44-year-olds have an annual attainment growth rate of three percentage points, the user can adjust the blue value to increase this by an additional one percentage point for a total annual growth of four percentage points. The sum of the baseline average and the user-adjusted rate is automatically updated and shown in the right-most column of Box 6. The user can also input a negative value to decrease the projected change in adult attainment.
A42: Figure B3: Current Attainment and Assumptions Section
A50: Figure B4 presents the third section of the attainment tool, the attainment projections. This section includes the projected attainment rate, the goal, and the remaining gaps between the current rate and the goal rate as well as the gap represented in the number of individuals needing a credential. This projection displays years 2019 through 2032, with the target year highlighted in white. The final column shows the year when the goal is projected to be met.
A51: Figure B4: Projections Section
A56: Figure B5 includes graphical representations of the projections and underlying data. The first row of graphs shows the current attainment and assumptions data shown in Figure B3. The first two graphs correspond to Boxes 4 and 5, respectively. The last two graphs represent the changes in adult attainment by cohort and the comparison between the historical gains and any user adjustments. In the second row of graphs, the first is a visualization of the projected attainment rate over time, and the second is a breakdown of the sources of gains in the attainment rate. As described in the methodological summary in the report, the gains can come from changes in traditional-aged and adult learners. The chart shows how these growth rates are broken down between these two groups as well as the changes aligned with past growth and any adjustments the user has made to the assumptions.
A57: Figure B5: Projection Graphs
A63: Endnotes
A64: [1] Lumina Foundation has explicit criteria to be considered an official attainment goal, which includes a mention of equity in the goal. Ithaka S+R has included goals that may not have an explicit focus on equity in the goal and thus has a larger number of state goals. As the purpose of the tool is to assist policymakers in improving attainment, we believe this broader definition of an attainment goal is most appropriate in this context.
A65: [2] The user should note that increasing the certificate attainment rate applies to the full 25-to-64-year-old age group while the high school graduation, college-going, and college graduation rates apply to “traditional” aged students.

Sheet Summary (Detail) (hidden)
C2: State:
C3: =Summary!C4 -> United States
C6: 1. Assumptions
O8: Tgt Gain: | P8: =Summary!J18 -> 0.0064
O9: Cap: | P9: =Summary!K18 -> 1
C10: HS Grad Rate | D10: 2007 | E10: 2008 | F10: 2009 | G10: 2010 | H10: 2011 | I10: 2012 | J10: 2013 | K10: 2014 | L10: 2015 | M10: 2016 | N10: 2017 | O10: 2018 | P10: 2019 | Q10: 2020 | R10: 2021 | S10: 2022 | T10: 2023 | U10: 2024 | V10: 2025 | W10: 2026 | X10: 2027 | Y10: 2028 | Z10: 2029 | AA10: 2030 | AB10: 2031 | AC10: 2032 | AD10: 2033 | AE10: 2034 | AF10: 2035 | AG10: 2036 | AH10: 2037 | AI10: 2038 | AJ10: 2039 | AK10: 2040 | AL10: 2041 | AM10: 2042 | AN10: 2043 | AO10: 2044 | AP10: 2045 | AQ10: 2046 | AR10: 2047 | AS10: 2048
C11: Historical | D11: ='Impact of Higher Rates'!C19 -> 0.79 | E11: ='Impact of Higher Rates'!D19 -> 0.79 | F11: ='Impact of Higher Rates'!E19 -> 0.79 | G11: ='Impact of Higher Rates'!F19 -> 0.79 | H11: ='Impact of Higher Rates'!G19 -> 0.79 | I11: ='Impact of Higher Rates'!H19 -> 0.8 | J11: ='Impact of Higher Rates'!I19 -> 0.814 | K11: ='Impact of Higher Rates'!J19 -> 0.823 | L11: ='Impact of Higher Rates'!K19 -> 0.832 | M11: ='Impact of Higher Rates'!L19 -> 0.841 | N11: ='Impact of Higher Rates'!M19 -> 0.846 | O11: ='Impact of Higher Rates'!N19 -> 0.846 | P11: =O11 -> 0.846 | Q11: =P11 -> 0.846 | R11: 0.846 | S11: 0.846 | T11: 0.846 | U11: 0.846 | V11: 0.846 | W11: 0.846 | X11: 0.846 | Y11: 0.846 | Z11: 0.846 | AA11: 0.846 | AB11: 0.846 | AC11: 0.846 | AD11: 0.846 | AE11: 0.846 | AF11: 0.846 | AG11: 0.846 | AH11: 0.846 | AI11: 0.846 | AJ11: 0.846 | AK11: 0.846 | AL11: 0.846 | AM11: 0.846 | AN11: 0.846 | AO11: 0.846 | AP11: 0.846 | AQ11: 0.846 | AR11: 0.846 | AS11: 0.846
C12: Incremental | D12: NA | E12: NA | F12: NA | G12: NA | H12: NA | I12: NA | J12: NA | K12: NA | L12: NA | M12: NA | N12: NA | O12: NA | P12: =P13-P11 -> 0.0064 | Q12: =Q13-Q11 -> 0.0128 | R12: 0.0192 | S12: 0.0256 | T12: 0.032 | U12: 0.0384 | V12: 0.0448 | W12: 0.0512 | X12: 0.0576 | Y12: 0.064 | Z12: 0.0704 | AA12: 0.0768 | AB12: 0.0832 | AC12: 0.0896 | AD12: 0.096 | AE12: 0.1024 | AF12: 0.1088 | AG12: 0.1152 | AH12: 0.1216 | AI12: 0.128 | AJ12: 0.1344 | AK12: 0.1408 | AL12: 0.1472 | AM12: 0.1536 | AN12: 0.154 | AO12: 0.154 | AP12: 0.154 | AQ12: 0.154 | AR12: 0.154 | AS12: 0.154
C13: Total | D13: =SUM(D11:D12) -> 0.79 | E13: 0.79 | F13: 0.79 | G13: 0.79 | H13: 0.79 | I13: 0.8 | J13: 0.814 | K13: =SUM(K11:K12) -> 0.823 | L13: =SUM(L11:L12) -> 0.832 | M13: 0.841 | N13: 0.846 | O13: 0.846 | P13: =MIN(P11+(P10-$O10)*$P8,$P9) -> 0.8524 | Q13: =MIN(Q11+(Q10-$O10)*$P8,$P9) -> 0.8588 | R13: 0.8652 | S13: 0.8716 | T13: 0.878 | U13: 0.8844 | V13: 0.8908 | W13: 0.8972 | X13: 0.9036 | Y13: 0.91 | Z13: 0.9164 | AA13: 0.9228 | AB13: 0.9292 | AC13: 0.9356 | AD13: 0.942 | AE13: 0.9484 | AF13: 0.9548 | AG13: 0.9612 | AH13: 0.9676 | AI13: 0.974 | AJ13: 0.9804 | AK13: 0.9868 | AL13: 0.9932 | AM13: 0.9996 | AN13: 1 | AO13: 1 | AP13: 1 | AQ13: 1 | AR13: 1 | AS13: 1
C14: PP Change: | E14: =NA() ->  | F14: =NA() ->  | G14: =NA() ->  | H14: =NA() ->  | I14: =NA() ->  | J14: =J13-I13 -> 0.014 | K14: 0.009 | L14: 0.009 | M14: 0.009 | N14: 0.005 | O14: 0
O16: Tgt Gain: | P16: =Summary!J19 -> 0.0046
O17: Cap: | P17: =Summary!K19 -> 1
C18: College Going Rate | D18: 2007 | E18: 2008 | F18: 2009 | G18: 2010 | H18: 2011 | I18: 2012 | J18: 2013 | K18: 2014 | L18: 2015 | M18: 2016 | N18: 2017 | O18: 2018 | P18: 2019 | Q18: 2020 | R18: 2021 | S18: 2022 | T18: 2023 | U18: 2024 | V18: 2025 | W18: 2026 | X18: 2027 | Y18: 2028 | Z18: 2029 | AA18: 2030 | AB18: 2031 | AC18: 2032 | AD18: 2033 | AE18: 2034 | AF18: 2035 | AG18: 2036 | AH18: 2037 | AI18: 2038 | AJ18: 2039 | AK18: 2040 | AL18: 2041 | AM18: 2042 | AN18: 2043 | AO18: 2044 | AP18: 2045 | AQ18: 2046 | AR18: 2047 | AS18: 2048
C19: Historical | D19: ='Impact of Higher Rates'!C35 -> 0.747 | E19: ='Impact of Higher Rates'!D35 -> 0.774 | F19: ='Impact of Higher Rates'!E35 -> 0.794 | G19: ='Impact of Higher Rates'!F35 -> 0.805 | H19: ='Impact of Higher Rates'!G35 -> 0.798 | I19: ='Impact of Higher Rates'!H35 -> 0.777 | J19: ='Impact of Higher Rates'!I35 -> 0.773 | K19: ='Impact of Higher Rates'!J35 -> 0.774 | L19: ='Impact of Higher Rates'!K35 -> 0.774 | M19: ='Impact of Higher Rates'!L35 -> 0.781 | N19: ='Impact of Higher Rates'!M35 -> 0.785 | O19: ='Impact of Higher Rates'!N35 -> 0.796 | P19: =O19 -> 0.796 | Q19: =P19 -> 0.796 | R19: 0.796 | S19: 0.796 | T19: 0.796 | U19: 0.796 | V19: 0.796 | W19: 0.796 | X19: 0.796 | Y19: 0.796 | Z19: 0.796 | AA19: 0.796 | AB19: 0.796 | AC19: 0.796 | AD19: 0.796 | AE19: 0.796 | AF19: 0.796 | AG19: 0.796 | AH19: 0.796 | AI19: 0.796 | AJ19: 0.796 | AK19: 0.796 | AL19: 0.796 | AM19: 0.796 | AN19: 0.796 | AO19: 0.796 | AP19: 0.796 | AQ19: 0.796 | AR19: 0.796 | AS19: 0.796
C20: Incremental | D20: NA | E20: NA | F20: NA | G20: NA | H20: NA | I20: NA | J20: NA | K20: NA | L20: NA | M20: NA | N20: NA | O20: NA | P20: =P21-P19 -> 0.0046 | Q20: =Q21-Q19 -> 0.0092 | R20: =R21-R19 -> 0.0138 | S20: =S21-S19 -> 0.0184 | T20: =T21-T19 -> 0.023 | U20: =U21-U19 -> 0.0276 | V20: =V21-V19 -> 0.0322 | W20: =W21-W19 -> 0.0368 | X20: =X21-X19 -> 0.0414 | Y20: =Y21-Y19 -> 0.046 | Z20: =Z21-Z19 -> 0.0506 | AA20: =AA21-AA19 -> 0.0552 | AB20: =AB21-AB19 -> 0.0598 | AC20: =AC21-AC19 -> 0.0644 | AD20: =AD21-AD19 -> 0.069 | AE20: =AE21-AE19 -> 0.0736 | AF20: =AF21-AF19 -> 0.0782 | AG20: =AG21-AG19 -> 0.0828 | AH20: =AH21-AH19 -> 0.0874 | AI20: =AI21-AI19 -> 0.092 | AJ20: =AJ21-AJ19 -> 0.0966 | AK20: =AK21-AK19 -> 0.1012 | AL20: =AL21-AL19 -> 0.1058 | AM20: =AM21-AM19 -> 0.1104 | AN20: =AN21-AN19 -> 0.115 | AO20: =AO21-AO19 -> 0.1196 | AP20: =AP21-AP19 -> 0.1242 | AQ20: =AQ21-AQ19 -> 0.1288 | AR20: =AR21-AR19 -> 0.1334 | AS20: =AS21-AS19 -> 0.138
C21: Total | D21: =SUM(D19:D20) -> 0.747 | E21: 0.774 | F21: 0.794 | G21: 0.805 | H21: 0.798 | I21: 0.777 | J21: 0.773 | K21: =SUM(K19:K20) -> 0.774 | L21: =SUM(L19:L20) -> 0.774 | M21: =SUM(M19:M20) -> 0.781 | N21: =SUM(N19:N20) -> 0.785 | O21: =SUM(O19:O20) -> 0.796 | P21: =MIN(P19+(P18-$O18)*$P16,$P17) -> 0.8006 | Q21: =MIN(Q19+(Q18-$O18)*$P16,$P17) -> 0.8052 | R21: 0.8098 | S21: 0.8144 | T21: 0.819 | U21: 0.8236 | V21: 0.8282 | W21: 0.8328 | X21: 0.8374 | Y21: 0.842 | Z21: 0.8466 | AA21: 0.8512 | AB21: 0.8558 | AC21: 0.8604 | AD21: 0.865 | AE21: 0.8696 | AF21: 0.8742 | AG21: 0.8788 | AH21: 0.8834 | AI21: 0.888 | AJ21: 0.8926 | AK21: 0.8972 | AL21: 0.9018 | AM21: 0.9064 | AN21: 0.911 | AO21: 0.9156 | AP21: 0.9202 | AQ21: 0.9248 | AR21: 0.9294 | AS21: 0.934
C22: PP Change: | D22: =NA() ->  | E22: =E21-D21 -> 0.027 | F22: =F21-E21 -> 0.02 | G22: =G21-F21 -> 0.011 | H22: =H21-G21 -> -0.007 | I22: =I21-H21 -> -0.021 | J22: =J21-I21 -> -0.004 | K22: =K21-J21 -> 0.001 | L22: =L21-K21 -> 0 | M22: =M21-L21 -> 0.007 | N22: =N21-M21 -> 0.004 | O22: =O21-N21 -> 0.011
O24: Tgt Gain: | P24: =Summary!$J$20 -> 0.0154
O25: Cap: | P25: =Summary!K20 -> 1
C26: College Grad Rate | D26: 2007 | E26: 2008 | F26: 2009 | G26: 2010 | H26: 2011 | I26: 2012 | J26: 2013 | K26: 2014 | L26: 2015 | M26: 2016 | N26: 2017 | O26: 2018 | P26: 2019 | Q26: 2020 | R26: 2021 | S26: 2022 | T26: 2023 | U26: 2024 | V26: 2025 | W26: 2026 | X26: 2027 | Y26: 2028 | Z26: 2029 | AA26: 2030 | AB26: 2031 | AC26: 2032 | AD26: 2033 | AE26: 2034 | AF26: 2035 | AG26: 2036 | AH26: 2037 | AI26: 2038 | AJ26: 2039 | AK26: 2040 | AL26: 2041 | AM26: 2042 | AN26: 2043 | AO26: 2044 | AP26: 2045 | AQ26: 2046 | AR26: 2047 | AS26: 2048
C27: Historical | D27: ='Impact of Higher Rates'!C48 -> 0.407 | E27: ='Impact of Higher Rates'!D48 -> 0.407 | F27: ='Impact of Higher Rates'!E48 -> 0.407 | G27: ='Impact of Higher Rates'!F48 -> 0.405 | H27: ='Impact of Higher Rates'!G48 -> 0.402 | I27: ='Impact of Higher Rates'!H48 -> 0.397 | J27: ='Impact of Higher Rates'!I48 -> 0.403 | K27: ='Impact of Higher Rates'!J48 -> 0.418 | L27: ='Impact of Higher Rates'!K48 -> 0.431 | M27: ='Impact of Higher Rates'!L48 -> 0.444 | N27: ='Impact of Higher Rates'!M48 -> 0.461 | O27: ='Impact of Higher Rates'!N48 -> 0.48 | P27: =O27 -> 0.48 | Q27: =P27 -> 0.48 | R27: 0.48 | S27: 0.48 | T27: 0.48 | U27: 0.48 | V27: 0.48 | W27: 0.48 | X27: 0.48 | Y27: 0.48 | Z27: 0.48 | AA27: 0.48 | AB27: 0.48 | AC27: 0.48 | AD27: 0.48 | AE27: 0.48 | AF27: 0.48 | AG27: 0.48 | AH27: 0.48 | AI27: 0.48 | AJ27: 0.48 | AK27: 0.48 | AL27: 0.48 | AM27: 0.48 | AN27: 0.48 | AO27: 0.48 | AP27: 0.48 | AQ27: 0.48 | AR27: 0.48 | AS27: 0.48
C28: Incremental | D28: NA | E28: NA | F28: NA | G28: NA | H28: NA | I28: NA | J28: NA | K28: NA | L28: NA | M28: NA | N28: NA | O28: NA | P28: =P29-P27 -> 0.0154 | Q28: =Q29-Q27 -> 0.0308 | R28: =R29-R27 -> 0.0462 | S28: =S29-S27 -> 0.0616 | T28: =T29-T27 -> 0.077 | U28: =U29-U27 -> 0.0924 | V28: =V29-V27 -> 0.1078 | W28: =W29-W27 -> 0.1232 | X28: =X29-X27 -> 0.1386 | Y28: =Y29-Y27 -> 0.154 | Z28: =Z29-Z27 -> 0.1694 | AA28: =AA29-AA27 -> 0.1848 | AB28: =AB29-AB27 -> 0.2002 | AC28: =AC29-AC27 -> 0.2156 | AD28: =AD29-AD27 -> 0.231 | AE28: =AE29-AE27 -> 0.2464 | AF28: =AF29-AF27 -> 0.2618 | AG28: =AG29-AG27 -> 0.2772 | AH28: =AH29-AH27 -> 0.2926 | AI28: =AI29-AI27 -> 0.308 | AJ28: =AJ29-AJ27 -> 0.3234 | AK28: =AK29-AK27 -> 0.3388 | AL28: =AL29-AL27 -> 0.3542 | AM28: =AM29-AM27 -> 0.3696 | AN28: =AN29-AN27 -> 0.385 | AO28: =AO29-AO27 -> 0.4004 | AP28: =AP29-AP27 -> 0.4158 | AQ28: =AQ29-AQ27 -> 0.4312 | AR28: =AR29-AR27 -> 0.4466 | AS28: =AS29-AS27 -> 0.462
C29: Total | D29: =SUM(D27:D28) -> 0.407 | E29: 0.407 | F29: 0.407 | G29: 0.405 | H29: 0.402 | I29: 0.397 | J29: 0.403 | K29: =SUM(K27:K28) -> 0.418 | L29: =SUM(L27:L28) -> 0.431 | M29: =SUM(M27:M28) -> 0.444 | N29: =SUM(N27:N28) -> 0.461 | O29: =SUM(O27:O28) -> 0.48 | P29: =MIN(P27+(P26-$O26)*$P24,$P25) -> 0.4954 | Q29: =MIN(Q27+(Q26-$O26)*$P24,$P25) -> 0.5108 | R29: 0.5262 | S29: 0.5416 | T29: 0.557 | U29: 0.5724 | V29: 0.5878 | W29: 0.6032 | X29: 0.6186 | Y29: 0.634 | Z29: 0.6494 | AA29: 0.6648 | AB29: 0.6802 | AC29: 0.6956 | AD29: 0.711 | AE29: 0.7264 | AF29: 0.7418 | AG29: 0.7572 | AH29: 0.7726 | AI29: 0.788 | AJ29: 0.8034 | AK29: 0.8188 | AL29: 0.8342 | AM29: 0.8496 | AN29: 0.865 | AO29: 0.8804 | AP29: 0.8958 | AQ29: 0.9112 | AR29: 0.9266 | AS29: 0.942
C30: PP Change: | D30: =NA() ->  | E30: =NA() ->  | F30: =NA() ->  | G30: =NA() ->  | H30: =H29-G29 -> -0.003 | I30: =I29-H29 -> -0.005 | J30: =J29-I29 -> 0.006 | K30: =K29-J29 -> 0.015 | L30: =L29-K29 -> 0.013 | M30: =M29-L29 -> 0.013 | N30: =N29-M29 -> 0.017 | O30: =O29-N29 -> 0.019
O32: Tgt Gain: | P32: =IF(Summary!J21="NA",0,Summary!J21) -> 0
O33: Cap: | P33: =Summary!K21 -> 1
C34: Certificate Attainment | D34: 2007 | E34: 2008 | F34: 2009 | G34: 2010 | H34: 2011 | I34: 2012 | J34: 2013 | K34: 2014 | L34: 2015 | M34: 2016 | N34: 2017 | O34: 2018 | P34: 2019 | Q34: 2020 | R34: 2021 | S34: 2022 | T34: 2023 | U34: 2024 | V34: 2025 | W34: 2026 | X34: 2027 | Y34: 2028 | Z34: 2029 | AA34: 2030 | AB34: 2031 | AC34: 2032 | AD34: 2033 | AE34: 2034 | AF34: 2035 | AG34: 2036 | AH34: 2037 | AI34: 2038 | AJ34: 2039 | AK34: 2040 | AL34: 2041 | AM34: 2042 | AN34: 2043 | AO34: 2044 | AP34: 2045 | AQ34: 2046 | AR34: 2047 | AS34: 2048
C35: Historical | D35: ='Impact of Higher Rates'!C12 -> 0.049 | E35: ='Impact of Higher Rates'!D12 -> 0.049 | F35: ='Impact of Higher Rates'!E12 -> 0.049 | G35: ='Impact of Higher Rates'!F12 -> 0.049 | H35: ='Impact of Higher Rates'!G12 -> 0.049 | I35: ='Impact of Higher Rates'!H12 -> 0.049 | J35: ='Impact of Higher Rates'!I12 -> 0.049 | K35: ='Impact of Higher Rates'!J12 -> 0.049 | L35: ='Impact of Higher Rates'!K12 -> 0.049 | M35: ='Impact of Higher Rates'!L12 -> 0.0524 | N35: ='Impact of Higher Rates'!M12 -> 0.0524 | O35: ='Impact of Higher Rates'!N12 -> 0.0524 | P35: =O35 -> 0.0524 | Q35: =P35 -> 0.0524 | R35: 0.0524 | S35: 0.0524 | T35: 0.0524 | U35: 0.0524 | V35: 0.0524 | W35: 0.0524 | X35: 0.0524 | Y35: 0.0524 | Z35: 0.0524 | AA35: 0.0524 | AB35: 0.0524 | AC35: 0.0524 | AD35: 0.0524 | AE35: 0.0524 | AF35: 0.0524 | AG35: 0.0524 | AH35: 0.0524 | AI35: 0.0524 | AJ35: 0.0524 | AK35: 0.0524 | AL35: 0.0524 | AM35: 0.0524 | AN35: 0.0524 | AO35: 0.0524 | AP35: 0.0524 | AQ35: 0.0524 | AR35: 0.0524 | AS35: 0.0524
C36: Incremental | D36: NA | E36: NA | F36: NA | G36: NA | H36: NA | I36: NA | J36: NA | K36: NA | L36: NA | M36: NA | N36: NA | O36: NA | P36: =P37-P35 -> 0 | Q36: =Q37-Q35 -> 0 | R36: 0 | S36: 0 | T36: 0 | U36: 0 | V36: 0 | W36: 0 | X36: 0 | Y36: 0 | Z36: 0 | AA36: 0 | AB36: 0 | AC36: 0 | AD36: 0 | AE36: 0 | AF36: 0 | AG36: 0 | AH36: 0 | AI36: 0 | AJ36: 0 | AK36: 0 | AL36: 0 | AM36: 0 | AN36: 0 | AO36: 0 | AP36: 0 | AQ36: 0 | AR36: 0 | AS36: 0
C37: Total | D37: =SUM(D35:D36) -> 0.049 | E37: 0.049 | F37: 0.049 | G37: 0.049 | H37: 0.049 | I37: 0.049 | J37: 0.049 | K37: =SUM(K35:K36) -> 0.049 | L37: =SUM(L35:L36) -> 0.049 | M37: 0.0524 | N37: 0.0524 | O37: 0.0524 | P37: =MIN(P35+(P34-$O34)*$P32,$P33) -> 0.0524 | Q37: =MIN(Q35+(Q34-$O34)*$P32,$P33) -> 0.0524 | R37: 0.0524 | S37: 0.0524 | T37: 0.0524 | U37: 0.0524 | V37: 0.0524 | W37: 0.0524 | X37: 0.0524 | Y37: 0.0524 | Z37: 0.0524 | AA37: 0.0524 | AB37: 0.0524 | AC37: 0.0524 | AD37: 0.0524 | AE37: 0.0524 | AF37: 0.0524 | AG37: 0.0524 | AH37: 0.0524 | AI37: 0.0524 | AJ37: 0.0524 | AK37: 0.0524 | AL37: 0.0524 | AM37: 0.0524 | AN37: 0.0524 | AO37: 0.0524 | AP37: 0.0524 | AQ37: 0.0524 | AR37: 0.0524 | AS37: 0.0524
C40: 2. Attainment Projections
C42: Attainment Projection (25-64) | D42: 2007 | E42: 2008 | F42: 2009 | G42: 2010 | H42: 2011 | I42: 2012 | J42: 2013 | K42: 2014 | L42: 2015 | M42: 2016 | N42: 2017 | O42: 2018 | P42: 2019 | Q42: 2020 | R42: 2021 | S42: 2022 | T42: 2023 | U42: 2024 | V42: 2025 | W42: 2026 | X42: 2027 | Y42: 2028 | Z42: 2029 | AA42: 2030 | AB42: 2031 | AC42: 2032 | AD42: 2033 | AE42: 2034 | AF42: 2035 | AG42: 2036 | AH42: 2037 | AI42: 2038 | AJ42: 2039 | AK42: 2040 | AL42: 2041 | AM42: 2042 | AN42: 2043 | AO42: 2044 | AP42: 2045 | AQ42: 2046 | AR42: 2047 | AS42: 2048
C43: Associate or above | D43: =Model!AFI16 -> 0.3772455723 | E43: =Model!AFJ16 -> 0.3790622689 | F43: =Model!AFK16 -> 0.3812587416 | G43: =Model!AFL16 -> 0.3836410733 | H43: =Model!AFM16 -> 0.3879738214 | I43: =Model!AFN16 -> 0.394953944 | J43: =Model!AFO16 -> 0.3993709241 | K43: =Model!AFP16 -> 0.4042023554 | L43: =Model!AFQ16 -> 0.4098902779 | M43: =Model!AFR16 -> 0.4174486187 | N43: =Model!AFS16 -> 0.424907385 | O43: =Model!AFT16 -> 0.4317673531 | P43: =Model!AFU16 -> 0.4387903192 | Q43: =Model!AFV16 -> 0.4461477791 | R43: =Model!AFW16 -> 0.4538892618 | S43: =Model!AFX16 -> 0.4619502832 | T43: =Model!AFY16 -> 0.4704327286 | U43: =Model!AFZ16 -> 0.4789991931 | V43: =Model!AGA16 -> 0.4875886069 | W43: =Model!AGB16 -> 0.4961380263 | X43: =Model!AGC16 -> 0.5049621889 | Y43: =Model!AGD16 -> 0.5139779174 | Z43: =Model!AGE16 -> 0.5233988095 | AA43: =Model!AGF16 -> 0.5330489001 | AB43: =Model!AGG16 -> 0.5430619109 | AC43: =Model!AGH16 -> 0.5534432274 | AD43: =Model!AGI16 -> 0.5641982567 | AE43: =Model!AGJ16 -> 0.5742780508 | AF43: =Model!AGK16 -> 0.5847395372 | AG43: =Model!AGL16 -> 0.595587719 | AH43: =Model!AGM16 -> 0.6068276171 | AI43: =Model!AGN16 -> 0.6184642697 | AJ43: =Model!AGO16 -> 0.6296557932 | AK43: =Model!AGP16 -> 0.6412364604 | AL43: =Model!AGQ16 -> 0.6532103551 | AM43: =Model!AGR16 -> 0.665581575 | AN43: =Model!AGS16 -> 0.6783542309 | AO43: =Model!AGT16 -> 0.6908904704 | AP43: =Model!AGU16 -> 0.7038889037 | AQ43: =Model!AGV16 -> 0.7173555774 | AR43: =Model!AGW16 -> 0.731296564 | AS43: =Model!AGX16 -> 0.7457179623
C44: Including Certificates | D44: =D43+D37 -> 0.4262455723 | E44: 0.4280622689 | F44: 0.4302587416 | G44: 0.4326410733 | H44: 0.4369738214 | I44: 0.443953944 | J44: 0.4483709241 | K44: 0.4532023554 | L44: 0.4588902779 | M44: 0.4698486187 | N44: 0.477307385 | O44: 0.4841673531 | P44: 0.4911903192 | Q44: 0.4985477791 | R44: 0.5062892618 | S44: 0.5143502832 | T44: 0.5228327286 | U44: 0.5313991931 | V44: 0.5399886069 | W44: 0.5485380263 | X44: 0.5573621889 | Y44: 0.5663779174 | Z44: =Z43+Z37 -> 0.5757988095 | AA44: 0.5854489001 | AB44: 0.5954619109 | AC44: 0.6058432274 | AD44: 0.6165982567 | AE44: 0.6266780508 | AF44: 0.6371395372 | AG44: 0.647987719 | AH44: 0.6592276171 | AI44: 0.6708642697 | AJ44: 0.6820557932 | AK44: 0.6936364604 | AL44: 0.7056103551 | AM44: 0.717981575 | AN44: 0.7307542309 | AO44: 0.7432904704 | AP44: 0.7562889037 | AQ44: 0.7697555774 | AR44: 0.783696564 | AS44: 0.7981179623
C47: Projection by Cohort (AA+) | D47: 2007 | E47: 2008 | F47: 2009 | G47: 2010 | H47: 2011 | I47: 2012 | J47: 2013 | K47: 2014 | L47: 2015 | M47: 2016 | N47: 2017 | O47: 2018 | P47: 2019 | Q47: 2020 | R47: 2021 | S47: 2022 | T47: 2023 | U47: 2024 | V47: 2025 | W47: 2026 | X47: 2027 | Y47: 2028 | Z47: 2029 | AA47: 2030 | AB47: 2031 | AC47: 2032 | AD47: 2033 | AE47: 2034 | AF47: 2035 | AG47: 2036 | AH47: 2037 | AI47: 2038 | AJ47: 2039 | AK47: 2040 | AL47: 2041 | AM47: 2042 | AN47: 2043 | AO47: 2044 | AP47: 2045 | AQ47: 2046 | AR47: 2047 | AS47: 2048
C48: 25-29 | D48: =Model!AFI8 -> 0.3553603406 | E48: =Model!AFJ8 -> 0.3608658096 | F48: =Model!AFK8 -> 0.378449473 | G48: =Model!AFL8 -> 0.384455723 | H48: =Model!AFM8 -> 0.394049046 | I48: =Model!AFN8 -> 0.4021284087 | J48: =Model!AFO8 -> 0.4043921282 | K48: =Model!AFP8 -> 0.4099538805 | L48: =Model!AFQ8 -> 0.4184589366 | M48: =Model!AFR8 -> 0.4243443317 | N48: =Model!AFS8 -> 0.4315733545 | O48: =Model!AFT8 -> 0.4363729318 | P48: =Model!AFU8 -> 0.4410731051 | Q48: =Model!AFV8 -> 0.4485207152 | R48: =Model!AFW8 -> 0.4591767284 | S48: =Model!AFX8 -> 0.4726480995 | T48: =Model!AFY8 -> 0.4898119709 | U48: =Model!AFZ8 -> 0.5045224185 | V48: =Model!AGA8 -> 0.5195314445 | W48: =Model!AGB8 -> 0.5343513977 | X48: =Model!AGC8 -> 0.5495297255 | Y48: =Model!AGD8 -> 0.5643338213 | Z48: =Model!AGE8 -> 0.5794916778 | AA48: =Model!AGF8 -> 0.594792635 | AB48: =Model!AGG8 -> 0.6103962428 | AC48: =Model!AGH8 -> 0.6263051198 | AD48: =Model!AGI8 -> 0.6425218851 | AE48: =Model!AGJ8 -> 0.6590486718 | AF48: =Model!AGK8 -> 0.6758885146 | AG48: =Model!AGL8 -> 0.6930440331 | AH48: =Model!AGM8 -> 0.7105178478 | AI48: =Model!AGN8 -> 0.7283125799 | AJ48: =Model!AGO8 -> 0.7464301732 | AK48: =Model!AGP8 -> 0.7648738492 | AL48: =Model!AGQ8 -> 0.7836462293 | AM48: =Model!AGR8 -> 0.8027499361 | AN48: =Model!AGS8 -> 0.8221875929 | AO48: =Model!AGT8 -> 0.8419609369 | AP48: =Model!AGU8 -> 0.8620733934 | AQ48: =Model!AGV8 -> 0.882527586 | AR48: =Model!AGW8 -> 0.9033261396 | AS48: =Model!AGX8 -> 0.9244716795
C49: 30-34 | D49: =Model!AFI9 -> 0.3973245843 | E49: =Model!AFJ9 -> 0.3957382435 | F49: =Model!AFK9 -> 0.4021673502 | G49: =Model!AFL9 -> 0.4053463268 | H49: =Model!AFM9 -> 0.4107381986 | I49: =Model!AFN9 -> 0.41909426 | J49: =Model!AFO9 -> 0.42610028 | K49: =Model!AFP9 -> 0.436125783 | L49: =Model!AFQ9 -> 0.441822756 | M49: =Model!AFR9 -> 0.4550651213 | N49: =Model!AFS9 -> 0.4639491614 | O49: =Model!AFT9 -> 0.4705107478 | P49: =Model!AFU9 -> 0.4766824848 | Q49: =Model!AFV9 -> 0.4826427489 | R49: =Model!AFW9 -> 0.4884022261 | S49: =Model!AFX9 -> 0.4939708943 | T49: =Model!AFY9 -> 0.4993580811 | U49: =Model!AFZ9 -> 0.5040582543 | V49: =Model!AGA9 -> 0.5088426263 | W49: =Model!AGB9 -> 0.5137134799 | X49: =Model!AGC9 -> 0.5204970816 | Y49: =Model!AGD9 -> 0.529338294 | Z49: =Model!AGE9 -> 0.5438964591 | AA49: =Model!AGF9 -> 0.5604176465 | AB49: =Model!AGG9 -> 0.5797714905 | AC49: =Model!AGH9 -> 0.6001778343 | AD49: =Model!AGI9 -> 0.621604268 | AE49: =Model!AGJ9 -> 0.6363460136 | AF49: =Model!AGK9 -> 0.6521901725 | AG49: =Model!AGL9 -> 0.6683266848 | AH49: =Model!AGM9 -> 0.6847580941 | AI49: =Model!AGN9 -> 0.7014869449 | AJ49: =Model!AGO9 -> 0.7175251077 | AK49: =Model!AGP9 -> 0.7338670384 | AL49: =Model!AGQ9 -> 0.7505152793 | AM49: =Model!AGR9 -> 0.7674723733 | AN49: =Model!AGS9 -> 0.7847408643 | AO49: =Model!AGT9 -> 0.8023227946 | AP49: =Model!AGU9 -> 0.8202211342 | AQ49: =Model!AGV9 -> 0.8384384271 | AR49: =Model!AGW9 -> 0.8569772185 | AS49: =Model!AGX9 -> 0.875840054
C50: 35-39 | D50: =Model!AFI10 -> 0.4041988278 | E50: =Model!AFJ10 -> 0.4064451573 | F50: =Model!AFK10 -> 0.406704397 | G50: =Model!AFL10 -> 0.406561411 | H50: =Model!AFM10 -> 0.4106664999 | I50: =Model!AFN10 -> 0.4198405329 | J50: =Model!AFO10 -> 0.4231790952 | K50: =Model!AFP10 -> 0.4297960116 | L50: =Model!AFQ10 -> 0.4387502185 | M50: =Model!AFR10 -> 0.4465249307 | N50: =Model!AFS10 -> 0.4578668336 | O50: =Model!AFT10 -> 0.4675913766 | P50: =Model!AFU10 -> 0.476195216 | Q50: =Model!AFV10 -> 0.4846538336 | R50: =Model!AFW10 -> 0.4929708754 | S50: =Model!AFX10 -> 0.5011498663 | T50: =Model!AFY10 -> 0.5091942152 | U50: =Model!AFZ10 -> 0.5153659523 | V50: =Model!AGA10 -> 0.5213262164 | W50: =Model!AGB10 -> 0.5270856935 | X50: =Model!AGC10 -> 0.5326543617 | Y50: =Model!AGD10 -> 0.5380415485 | Z50: =Model!AGE10 -> 0.5427417217 | AA50: =Model!AGF10 -> 0.5475260937 | AB50: =Model!AGG10 -> 0.5523969473 | AC50: =Model!AGH10 -> 0.5591348952 | AD50: =Model!AGI10 -> 0.5678812353 | AE50: =Model!AGJ10 -> 0.5822963305 | AF50: =Model!AGK10 -> 0.5986248964 | AG50: =Model!AGL10 -> 0.6177148006 | AH50: =Model!AGM10 -> 0.6378304466 | AI50: =Model!AGN10 -> 0.6589402366 | AJ50: =Model!AGO10 -> 0.6733379373 | AK50: =Model!AGP10 -> 0.6888104239 | AL50: =Model!AGQ10 -> 0.7045679131 | AM50: =Model!AGR10 -> 0.7206128849 | AN50: =Model!AGS10 -> 0.7369478201 | AO50: =Model!AGT10 -> 0.7525845335 | AP50: =Model!AGU10 -> 0.7685174113 | AQ50: =Model!AGV10 -> 0.784748932 | AR50: =Model!AGW10 -> 0.801281575 | AS50: =Model!AGX10 -> 0.8181178205
C51: 40-44 | D51: =Model!AFI11 -> 0.3792931447 | E51: =Model!AFJ11 -> 0.3836407974 | F51: =Model!AFK11 -> 0.3831123097 | G51: =Model!AFL11 -> 0.3924762668 | H51: =Model!AFM11 -> 0.4037925889 | I51: =Model!AFN11 -> 0.4136998303 | J51: =Model!AFO11 -> 0.4184539131 | K51: =Model!AFP11 -> 0.4254258989 | L51: =Model!AFQ11 -> 0.4302016779 | M51: =Model!AFR11 -> 0.4411718948 | N51: =Model!AFS11 -> 0.4465399484 | O51: =Model!AFT11 -> 0.4557316861 | P51: =Model!AFU11 -> 0.4646843365 | Q51: =Model!AFV11 -> 0.4733228355 | R51: =Model!AFW11 -> 0.4816634333 | S51: =Model!AFX11 -> 0.4897212788 | T51: =Model!AFY11 -> 0.4975105104 | U51: =Model!AFZ11 -> 0.5061143497 | V51: =Model!AGA11 -> 0.5145729673 | W51: =Model!AGB11 -> 0.5228900091 | X51: =Model!AGC11 -> 0.531069 | Y51: =Model!AGD11 -> 0.5391133489 | Z51: =Model!AGE11 -> 0.545285086 | AA51: =Model!AGF11 -> 0.5512453501 | AB51: =Model!AGG11 -> 0.5570048273 | AC51: =Model!AGH11 -> 0.5625734954 | AD51: =Model!AGI11 -> 0.5679606822 | AE51: =Model!AGJ11 -> 0.5726608555 | AF51: =Model!AGK11 -> 0.5774452274 | AG51: =Model!AGL11 -> 0.5823160811 | AH51: =Model!AGM11 -> 0.5890374224 | AI51: =Model!AGN11 -> 0.5977492527 | AJ51: =Model!AGO11 -> 0.6121123063 | AK51: =Model!AGP11 -> 0.628370806 | AL51: =Model!AGQ11 -> 0.6473647022 | AM51: =Model!AGR11 -> 0.6673746068 | AN51: =Model!AGS11 -> 0.6883692178 | AO51: =Model!AGT11 -> 0.7026417721 | AP51: =Model!AGU11 -> 0.717979063 | AQ51: =Model!AGV11 -> 0.7335986826 | AR51: =Model!AGW11 -> 0.7495030878 | AS51: =Model!AGX11 -> 0.7656947362
C52: 45-49 | D52: =Model!AFI12 -> 0.3651134451 | E52: =Model!AFJ12 -> 0.368401391 | F52: =Model!AFK12 -> 0.3677365709 | G52: =Model!AFL12 -> 0.3678415486 | H52: =Model!AFM12 -> 0.3736631181 | I52: =Model!AFN12 -> 0.3832541699 | J52: =Model!AFO12 -> 0.3946159085 | K52: =Model!AFP12 -> 0.4000488169 | L52: =Model!AFQ12 -> 0.4108250115 | M52: =Model!AFR12 -> 0.423510742 | N52: =Model!AFS12 -> 0.4361713483 | O52: =Model!AFT12 -> 0.4449102258 | P52: =Model!AFU12 -> 0.451397293 | Q52: =Model!AFV12 -> 0.4580075595 | R52: =Model!AFW12 -> 0.4647445687 | S52: =Model!AFX12 -> 0.471612001 | T52: =Model!AFY12 -> 0.4786136807 | U52: =Model!AFZ12 -> 0.4875663311 | V52: =Model!AGA12 -> 0.49620483 | W52: =Model!AGB12 -> 0.5045454279 | X52: =Model!AGC12 -> 0.5126032734 | Y52: =Model!AGD12 -> 0.5203925049 | Z52: =Model!AGE12 -> 0.5289963443 | AA52: =Model!AGF12 -> 0.5374549619 | AB52: =Model!AGG12 -> 0.5457720037 | AC52: =Model!AGH12 -> 0.5539509946 | AD52: =Model!AGI12 -> 0.5619953435 | AE52: =Model!AGJ12 -> 0.5681670806 | AF52: =Model!AGK12 -> 0.5741273447 | AG52: =Model!AGL12 -> 0.5798868218 | AH52: =Model!AGM12 -> 0.58545549 | AI52: =Model!AGN12 -> 0.5908426768 | AJ52: =Model!AGO12 -> 0.5955428501 | AK52: =Model!AGP12 -> 0.600327222 | AL52: =Model!AGQ12 -> 0.6051980757 | AM52: =Model!AGR12 -> 0.6119422815 | AN52: =Model!AGS12 -> 0.6207016262 | AO52: =Model!AGT12 -> 0.6351363327 | AP52: =Model!AGU12 -> 0.6514913021 | AQ52: =Model!AGV12 -> 0.6706173858 | AR52: =Model!AGW12 -> 0.6907728791 | AS52: =Model!AGX12 -> 0.711926073
C53: 50-54 | D53: =Model!AFI13 -> 0.3761980665 | E53: =Model!AFJ13 -> 0.3705018142 | F53: =Model!AFK13 -> 0.3649344171 | G53: =Model!AFL13 -> 0.3612271731 | H53: =Model!AFM13 -> 0.3604414513 | I53: =Model!AFN13 -> 0.3650962844 | J53: =Model!AFO13 -> 0.3700214433 | K53: =Model!AFP13 -> 0.3751139448 | L53: =Model!AFQ13 -> 0.3829562738 | M53: =Model!AFR13 -> 0.3902637498 | N53: =Model!AFS13 -> 0.3979291337 | O53: =Model!AFT13 -> 0.4081572244 | P53: =Model!AFU13 -> 0.4183290485 | Q53: =Model!AFV13 -> 0.4285831473 | R53: =Model!AFW13 -> 0.438920523 | S53: =Model!AFX13 -> 0.4493421942 | T53: =Model!AFY13 -> 0.4598491963 | U53: =Model!AFZ13 -> 0.4663362634 | V53: =Model!AGA13 -> 0.47294653 | W53: =Model!AGB13 -> 0.4796835392 | X53: =Model!AGC13 -> 0.4865509714 | Y53: =Model!AGD13 -> 0.4935526511 | Z53: =Model!AGE13 -> 0.5025053015 | AA53: =Model!AGF13 -> 0.5111438005 | AB53: =Model!AGG13 -> 0.5194843984 | AC53: =Model!AGH13 -> 0.5275422438 | AD53: =Model!AGI13 -> 0.5353314754 | AE53: =Model!AGJ13 -> 0.5439353148 | AF53: =Model!AGK13 -> 0.5523939324 | AG53: =Model!AGL13 -> 0.5607109742 | AH53: =Model!AGM13 -> 0.5688899651 | AI53: =Model!AGN13 -> 0.576934314 | AJ53: =Model!AGO13 -> 0.583106051 | AK53: =Model!AGP13 -> 0.5890663151 | AL53: =Model!AGQ13 -> 0.5948257923 | AM53: =Model!AGR13 -> 0.6003944605 | AN53: =Model!AGS13 -> 0.6057816473 | AO53: =Model!AGT13 -> 0.6104818205 | AP53: =Model!AGU13 -> 0.6152661925 | AQ53: =Model!AGV13 -> 0.6201370461 | AR53: =Model!AGW13 -> 0.6269088111 | AS53: =Model!AGX13 -> 0.6357254257
C54: 55-59 | D54: =Model!AFI14 -> 0.3876538799 | E54: =Model!AFJ14 -> 0.3859695086 | F54: =Model!AFK14 -> 0.3807876314 | G54: =Model!AFL14 -> 0.3798038459 | H54: =Model!AFM14 -> 0.3744233954 | I54: =Model!AFN14 -> 0.3738676415 | J54: =Model!AFO14 -> 0.3711225597 | K54: =Model!AFP14 -> 0.3701906425 | L54: =Model!AFQ14 -> 0.3700353042 | M54: =Model!AFR14 -> 0.3735527604 | N54: =Model!AFS14 -> 0.3771192849 | O54: =Model!AFT14 -> 0.384585356 | P54: =Model!AFU14 -> 0.3915320123 | Q54: =Model!AFV14 -> 0.3986769337 | R54: =Model!AFW14 -> 0.4060287311 | S54: =Model!AFX14 -> 0.4135965214 | T54: =Model!AFY14 -> 0.4213899651 | U54: =Model!AFZ14 -> 0.4315617893 | V54: =Model!AGA14 -> 0.4418158881 | W54: =Model!AGB14 -> 0.4521532638 | X54: =Model!AGC14 -> 0.462574935 | Y54: =Model!AGD14 -> 0.4730819371 | Z54: =Model!AGE14 -> 0.4795690042 | AA54: =Model!AGF14 -> 0.4861792708 | AB54: =Model!AGG14 -> 0.4929162799 | AC54: =Model!AGH14 -> 0.4997837122 | AD54: =Model!AGI14 -> 0.5067853919 | AE54: =Model!AGJ14 -> 0.5157380423 | AF54: =Model!AGK14 -> 0.5243765413 | AG54: =Model!AGL14 -> 0.5327171392 | AH54: =Model!AGM14 -> 0.5407749846 | AI54: =Model!AGN14 -> 0.5485642162 | AJ54: =Model!AGO14 -> 0.5571680556 | AK54: =Model!AGP14 -> 0.5656266732 | AL54: =Model!AGQ14 -> 0.5739437149 | AM54: =Model!AGR14 -> 0.5821227059 | AN54: =Model!AGS14 -> 0.5901670548 | AO54: =Model!AGT14 -> 0.5963387918 | AP54: =Model!AGU14 -> 0.6022990559 | AQ54: =Model!AGV14 -> 0.6080585331 | AR54: =Model!AGW14 -> 0.6136272012 | AS54: =Model!AGX14 -> 0.6190143881
C55: 60-64 | D55: =Model!AFI15 -> 0.3467396312 | E55: =Model!AFJ15 -> 0.3582989049 | F55: =Model!AFK15 -> 0.3660965019 | G55: =Model!AFL15 -> 0.3737660624 | H55: =Model!AFM15 -> 0.3786197917 | I55: =Model!AFN15 -> 0.3848341598 | J55: =Model!AFO15 -> 0.3889259937 | K55: =Model!AFP15 -> 0.3881581955 | L55: =Model!AFQ15 -> 0.3867082151 | M55: =Model!AFR15 -> 0.3852588669 | N55: =Model!AFS15 -> 0.3872342459 | O55: =Model!AFT15 -> 0.3845180257 | P55: =Model!AFU15 -> 0.3870827986 | Q55: =Model!AFV15 -> 0.389624872 | R55: =Model!AFW15 -> 0.3921445461 | S55: =Model!AFX15 -> 0.3946421155 | T55: =Model!AFY15 -> 0.39711787 | U55: =Model!AFZ15 -> 0.4040645263 | V55: =Model!AGA15 -> 0.4112094477 | W55: =Model!AGB15 -> 0.4185612451 | X55: =Model!AGC15 -> 0.4261290353 | Y55: =Model!AGD15 -> 0.4339224791 | Z55: =Model!AGE15 -> 0.4440943033 | AA55: =Model!AGF15 -> 0.4543484021 | AB55: =Model!AGG15 -> 0.4646857778 | AC55: =Model!AGH15 -> 0.475107449 | AD55: =Model!AGI15 -> 0.485614451 | AE55: =Model!AGJ15 -> 0.4921015182 | AF55: =Model!AGK15 -> 0.4987117847 | AG55: =Model!AGL15 -> 0.5054487939 | AH55: =Model!AGM15 -> 0.5123162262 | AI55: =Model!AGN15 -> 0.5193179059 | AJ55: =Model!AGO15 -> 0.5282705563 | AK55: =Model!AGP15 -> 0.5369090552 | AL55: =Model!AGQ15 -> 0.5452496531 | AM55: =Model!AGR15 -> 0.5533074986 | AN55: =Model!AGS15 -> 0.5610967301 | AO55: =Model!AGT15 -> 0.5697005695 | AP55: =Model!AGU15 -> 0.5781591871 | AQ55: =Model!AGV15 -> 0.5864762289 | AR55: =Model!AGW15 -> 0.5946552198 | AS55: =Model!AGX15 -> 0.6026995687
C57: Projection by Grouped Cohorts (AA+) | D57: 2007 | E57: 2008 | F57: 2009 | G57: 2010 | H57: 2011 | I57: 2012 | J57: 2013 | K57: 2014 | L57: 2015 | M57: 2016 | N57: 2017 | O57: 2018 | P57: 2019 | Q57: 2020 | R57: 2021 | S57: 2022 | T57: 2023 | U57: 2024 | V57: 2025 | W57: 2026 | X57: 2027 | Y57: 2028 | Z57: 2029 | AA57: 2030 | AB57: 2031 | AC57: 2032 | AD57: 2033 | AE57: 2034 | AF57: 2035 | AG57: 2036 | AH57: 2037 | AI57: 2038 | AJ57: 2039 | AK57: 2040 | AL57: 2041 | AM57: 2042 | AN57: 2043 | AO57: 2044 | AP57: 2045 | AQ57: 2046 | AR57: 2047 | AS57: 2048
C58: 25-29 | D58: =Model!AFI18 -> 0.3553603406 | E58: =Model!AFJ18 -> 0.3608658096 | F58: =Model!AFK18 -> 0.378449473 | G58: =Model!AFL18 -> 0.384455723 | H58: =Model!AFM18 -> 0.394049046 | I58: =Model!AFN18 -> 0.4021284087 | J58: =Model!AFO18 -> 0.4043921282 | K58: =Model!AFP18 -> 0.4099538805 | L58: =Model!AFQ18 -> 0.4184589366 | M58: =Model!AFR18 -> 0.4243443317 | N58: =Model!AFS18 -> 0.4315733545 | O58: =Model!AFT18 -> 0.4363729318 | P58: =Model!AFU18 -> 0.4410731051 | Q58: =Model!AFV18 -> 0.4485207152 | R58: =Model!AFW18 -> 0.4591767284 | S58: =Model!AFX18 -> 0.4726480995 | T58: =Model!AFY18 -> 0.4898119709 | U58: =Model!AFZ18 -> 0.5045224185 | V58: =Model!AGA18 -> 0.5195314445 | W58: =Model!AGB18 -> 0.5343513977 | X58: =Model!AGC18 -> 0.5495297255 | Y58: =Model!AGD18 -> 0.5643338213 | Z58: =Model!AGE18 -> 0.5794916778 | AA58: =Model!AGF18 -> 0.594792635 | AB58: =Model!AGG18 -> 0.6103962428 | AC58: =Model!AGH18 -> 0.6263051198 | AD58: =Model!AGI18 -> 0.6425218851 | AE58: =Model!AGJ18 -> 0.6590486718 | AF58: =Model!AGK18 -> 0.6758885146 | AG58: =Model!AGL18 -> 0.6930440331 | AH58: =Model!AGM18 -> 0.7105178478 | AI58: =Model!AGN18 -> 0.7283125799 | AJ58: =Model!AGO18 -> 0.7464301732 | AK58: =Model!AGP18 -> 0.7648738492 | AL58: =Model!AGQ18 -> 0.7836462293 | AM58: =Model!AGR18 -> 0.8027499361 | AN58: =Model!AGS18 -> 0.8221875929 | AO58: =Model!AGT18 -> 0.8419609369 | AP58: =Model!AGU18 -> 0.8620733934 | AQ58: =Model!AGV18 -> 0.882527586 | AR58: =Model!AGW18 -> 0.9033261396 | AS58: =Model!AGX18 -> 0.9244716795
C59: 25-34 | D59: =Model!AFI19 -> 0.3756373973 | E59: =Model!AFJ19 -> 0.3776183601 | F59: =Model!AFK19 -> 0.3898399334 | G59: =Model!AFL19 -> 0.3946654247 | H59: =Model!AFM19 -> 0.402269236 | I59: =Model!AFN19 -> 0.4105387224 | J59: =Model!AFO19 -> 0.4151941204 | K59: =Model!AFP19 -> 0.4229169575 | L59: =Model!AFQ19 -> 0.4299664288 | M59: =Model!AFR19 -> 0.439374043 | N59: =Model!AFS19 -> 0.4473334116 | O59: =Model!AFT19 -> 0.4529728184 | P59: =Model!AFU19 -> 0.4586236765 | Q59: =Model!AFV19 -> 0.4655616929 | R59: =Model!AFW19 -> 0.4739621589 | S59: =Model!AFX19 -> 0.4835728758 | T59: =Model!AFY19 -> 0.4947639539 | U59: =Model!AFZ19 -> 0.5042827696 | V59: =Model!AGA19 -> 0.5140390999 | W59: =Model!AGB19 -> 0.5237980349 | X59: =Model!AGC19 -> 0.5347563229 | Y59: =Model!AGD19 -> 0.5466145072 | Z59: =Model!AGE19 -> 0.5614662529 | AA59: =Model!AGF19 -> 0.5773827549 | AB59: =Model!AGG19 -> 0.5948836256 | AC59: =Model!AGH19 -> 0.6130688397 | AD59: =Model!AGI19 -> 0.631923421 | AE59: =Model!AGJ19 -> 0.6475457693 | AF59: =Model!AGK19 -> 0.6638811225 | AG59: =Model!AGL19 -> 0.6805203346 | AH59: =Model!AGM19 -> 0.697465987 | AI59: =Model!AGN19 -> 0.7147206621 | AJ59: =Model!AGO19 -> 0.731784657 | AK59: =Model!AGP19 -> 0.7491634281 | AL59: =Model!AGQ19 -> 0.7668595569 | AM59: =Model!AGR19 -> 0.7848756255 | AN59: =Model!AGS19 -> 0.8032142171 | AO59: =Model!AGT19 -> 0.8218772234 | AP59: =Model!AGU19 -> 0.8408678389 | AQ59: =Model!AGV19 -> 0.8601886471 | AR59: =Model!AGW19 -> 0.8798422324 | AS59: =Model!AGX19 -> 0.8998311797
C60: 25-39 | D60: =Model!AFI20 -> 0.3855960058 | E60: =Model!AFJ20 -> 0.3875119289 | F60: =Model!AFK20 -> 0.3954370538 | G60: =Model!AFL20 -> 0.3986073058 | H60: =Model!AFM20 -> 0.4049809396 | I60: =Model!AFN20 -> 0.4135037348 | J60: =Model!AFO20 -> 0.4177329513 | K60: =Model!AFP20 -> 0.4250990731 | L60: =Model!AFQ20 -> 0.4327712649 | M60: =Model!AFR20 -> 0.4416664732 | N60: =Model!AFS20 -> 0.4507412711 | O60: =Model!AFT20 -> 0.4577020732 | P60: =Model!AFU20 -> 0.4643253782 | Q60: =Model!AFV20 -> 0.4717752116 | R60: =Model!AFW20 -> 0.4801666512 | S60: =Model!AFX20 -> 0.4893266259 | T60: =Model!AFY20 -> 0.4995010981 | U60: =Model!AFZ20 -> 0.5079743833 | V60: =Model!AGA20 -> 0.5165011047 | W60: =Model!AGB20 -> 0.5249243965 | X60: =Model!AGC20 -> 0.5340262697 | Y60: =Model!AGD20 -> 0.5435967515 | Z60: =Model!AGE20 -> 0.554916175 | AA60: =Model!AGF20 -> 0.567004422 | AB60: =Model!AGG20 -> 0.5802093035 | AC60: =Model!AGH20 -> 0.5945610813 | AD60: =Model!AGI20 -> 0.6100905441 | AE60: =Model!AGJ20 -> 0.6252972553 | AF60: =Model!AGK20 -> 0.6416262321 | AG60: =Model!AGL20 -> 0.6590973212 | AH60: =Model!AGM20 -> 0.6771205598 | AI60: =Model!AGN20 -> 0.6956870002 | AJ60: =Model!AGO20 -> 0.7118411895 | AK60: =Model!AGP20 -> 0.7285694891 | AL60: =Model!AGQ20 -> 0.7456041061 | AM60: =Model!AGR20 -> 0.7629475877 | AN60: =Model!AGS20 -> 0.7806024821 | AO60: =Model!AGT20 -> 0.7982328424 | AP60: =Model!AGU20 -> 0.8161800821 | AQ60: =Model!AGV20 -> 0.8344467489 | AR60: =Model!AGW20 -> 0.8530353915 | AS60: =Model!AGX20 -> 0.8719485589
C61: 25-44 | D61: =Model!AFI21 -> 0.3839166866 | E61: =Model!AFJ21 -> 0.3864992503 | F61: =Model!AFK21 -> 0.39227613 | G61: =Model!AFL21 -> 0.3970355519 | H61: =Model!AFM21 -> 0.404675409 | I61: =Model!AFN21 -> 0.4135540056 | J61: =Model!AFO21 -> 0.4179145652 | K61: =Model!AFP21 -> 0.4251797955 | L61: =Model!AFQ21 -> 0.4321520458 | M61: =Model!AFR21 -> 0.4415507347 | N61: =Model!AFS21 -> 0.4497730579 | O61: =Model!AFT21 -> 0.4572481328 | P61: =Model!AFU21 -> 0.4644088725 | Q61: =Model!AFV21 -> 0.4721385705 | R61: =Model!AFW21 -> 0.4805212873 | S61: =Model!AFX21 -> 0.4894209655 | T61: =Model!AFY21 -> 0.4990211229 | U61: =Model!AFZ21 -> 0.5075240162 | V61: =Model!AGA21 -> 0.5160323246 | W61: =Model!AGB21 -> 0.5244277729 | X61: =Model!AGC21 -> 0.5333014584 | Y61: =Model!AGD21 -> 0.5424935363 | Z61: =Model!AGE21 -> 0.5525100728 | AA61: =Model!AGF21 -> 0.5630084169 | AB61: =Model!AGG21 -> 0.5742389654 | AC61: =Model!AGH21 -> 0.586212366 | AD61: =Model!AGI21 -> 0.5989393192 | AE61: =Model!AGJ21 -> 0.6114631642 | AF61: =Model!AGK21 -> 0.6248779595 | AG61: =Model!AGL21 -> 0.6392050571 | AH61: =Model!AGM21 -> 0.6544661184 | AI61: =Model!AGN21 -> 0.6706831184 | AJ61: =Model!AGO21 -> 0.6863747629 | AK61: =Model!AGP21 -> 0.7029778182 | AL61: =Model!AGQ21 -> 0.7205076861 | AM61: =Model!AGR21 -> 0.7385273175 | AN61: =Model!AGS21 -> 0.7570307205 | AO61: =Model!AGT21 -> 0.773802937 | AP61: =Model!AGU21 -> 0.7910831604 | AQ61: =Model!AGV21 -> 0.8086733298 | AR61: =Model!AGW21 -> 0.8265759703 | AS61: =Model!AGX21 -> 0.8447936078
C62: 25-49 | D62: =Model!AFI22 -> 0.379870154 | E62: =Model!AFJ22 -> 0.3825829914 | F62: =Model!AFK22 -> 0.3869850854 | G62: =Model!AFL22 -> 0.3907322642 | H62: =Model!AFM22 -> 0.3981089894 | I62: =Model!AFN22 -> 0.4072711773 | J62: =Model!AFO22 -> 0.4131986656 | K62: =Model!AFP22 -> 0.4201901152 | L62: =Model!AFQ22 -> 0.4279486593 | M62: =Model!AFR22 -> 0.4379857377 | N62: =Model!AFS22 -> 0.4471156941 | O62: =Model!AFT22 -> 0.4548718462 | P62: =Model!AFU22 -> 0.4619386371 | Q62: =Model!AFV22 -> 0.4694943051 | R62: =Model!AFW22 -> 0.4776116181 | S62: =Model!AFX22 -> 0.4861840489 | T62: =Model!AFY22 -> 0.4953658716 | U62: =Model!AFZ22 -> 0.5039091328 | V62: =Model!AGA22 -> 0.5124016353 | W62: =Model!AGB22 -> 0.520748075 | X62: =Model!AGC22 -> 0.5294307483 | Y62: =Model!AGD22 -> 0.5383183167 | Z62: =Model!AGE22 -> 0.5480458522 | AA62: =Model!AGF22 -> 0.5581330732 | AB62: =Model!AGG22 -> 0.5687813522 | AC62: =Model!AGH22 -> 0.5799975891 | AD62: =Model!AGI22 -> 0.5917887116 | AE62: =Model!AGJ22 -> 0.6029514857 | AF62: =Model!AGK22 -> 0.6147471316 | AG62: =Model!AGL22 -> 0.627185094 | AH62: =Model!AGM22 -> 0.6402748681 | AI62: =Model!AGN22 -> 0.6540259985 | AJ62: =Model!AGO22 -> 0.667567633 | AK62: =Model!AGP22 -> 0.681885754 | AL62: =Model!AGQ22 -> 0.6969971518 | AM62: =Model!AGR22 -> 0.712918828 | AN62: =Model!AGS22 -> 0.7296679979 | AO62: =Model!AGT22 -> 0.7459648784 | AP62: =Model!AGU22 -> 0.7630531475 | AQ62: =Model!AGV22 -> 0.7809456006 | AR62: =Model!AGW22 -> 0.7992946944 | AS62: =Model!AGX22 -> 0.8180961709
C63: 25-54 | D63: =Model!AFI23 -> 0.3792641709 | E63: =Model!AFJ23 -> 0.3805459365 | F63: =Model!AFK23 -> 0.3832311532 | G63: =Model!AFL23 -> 0.3855619622 | H63: =Model!AFM23 -> 0.3914401035 | I63: =Model!AFN23 -> 0.3998058223 | J63: =Model!AFO23 -> 0.4055544816 | K63: =Model!AFP23 -> 0.4122393158 | L63: =Model!AFQ23 -> 0.4201006515 | M63: =Model!AFR23 -> 0.4298546187 | N63: =Model!AFS23 -> 0.4389366893 | O63: =Model!AFT23 -> 0.4472963261 | P63: =Model!AFU23 -> 0.4549200843 | Q63: =Model!AFV23 -> 0.4629598141 | R63: =Model!AFW23 -> 0.4714784653 | S63: =Model!AFX23 -> 0.4803882237 | T63: =Model!AFY23 -> 0.4898208238 | U63: =Model!AFZ23 -> 0.4981228199 | V63: =Model!AGA23 -> 0.5064084875 | W63: =Model!AGB23 -> 0.5145961392 | X63: =Model!AGC23 -> 0.5230955746 | Y63: =Model!AGD23 -> 0.5317963378 | Z63: =Model!AGE23 -> 0.5413287115 | AA63: =Model!AGF23 -> 0.5511183232 | AB63: =Model!AGG23 -> 0.5613350439 | AC63: =Model!AGH23 -> 0.5719826045 | AD63: =Model!AGI23 -> 0.5830647585 | AE63: =Model!AGJ23 -> 0.5937815393 | AF63: =Model!AGK23 -> 0.6050055594 | AG63: =Model!AGL23 -> 0.6167434128 | AH63: =Model!AGM23 -> 0.62900172 | AI63: =Model!AGN23 -> 0.6417871283 | AJ63: =Model!AGO23 -> 0.653944842 | AK63: =Model!AGP23 -> 0.6666806893 | AL63: =Model!AGQ23 -> 0.6800031834 | AM63: =Model!AGR23 -> 0.6939208837 | AN63: =Model!AGS23 -> 0.7084423953 | AO63: =Model!AGT23 -> 0.7229356432 | AP63: =Model!AGU23 -> 0.7381327642 | AQ63: =Model!AGV23 -> 0.7540477624 | AR63: =Model!AGW23 -> 0.7706948004 | AS63: =Model!AGX23 -> 0.7880881998
C64: 25-59 | D64: =Model!AFI24 -> 0.380309474 | E64: =Model!AFJ24 -> 0.3812316325 | F64: =Model!AFK24 -> 0.3829179105 | G64: =Model!AFL24 -> 0.3847915214 | H64: =Model!AFM24 -> 0.3891098313 | I64: =Model!AFN24 -> 0.3961835739 | J64: =Model!AFO24 -> 0.4006594125 | K64: =Model!AFP24 -> 0.4062306108 | L64: =Model!AFQ24 -> 0.4128786857 | M64: =Model!AFR24 -> 0.4216982621 | N64: =Model!AFS24 -> 0.4299915818 | O64: =Model!AFT24 -> 0.4382873089 | P64: =Model!AFU24 -> 0.4459496947 | Q64: =Model!AFV24 -> 0.4540003202 | R64: =Model!AFW24 -> 0.462496064 | S64: =Model!AFX24 -> 0.4713639354 | T64: =Model!AFY24 -> 0.4807205371 | U64: =Model!AFZ24 -> 0.4893350575 | V64: =Model!AGA24 -> 0.4979421875 | W64: =Model!AGB24 -> 0.5064707574 | X64: =Model!AGC24 -> 0.5152772868 | Y64: =Model!AGD24 -> 0.5242662988 | Z64: =Model!AGE24 -> 0.533511517 | AA64: =Model!AGF24 -> 0.543006612 | AB64: =Model!AGG24 -> 0.5529015105 | AC64: =Model!AGH24 -> 0.5632013036 | AD64: =Model!AGI24 -> 0.5739110996 | AE64: =Model!AGJ24 -> 0.584291826 | AF64: =Model!AGK24 -> 0.5950742156 | AG64: =Model!AGL24 -> 0.6062622782 | AH64: =Model!AGM24 -> 0.6178600396 | AI64: =Model!AGN24 -> 0.6298715412 | AJ64: =Model!AGO24 -> 0.6415015775 | AK64: =Model!AGP24 -> 0.6536112004 | AL64: =Model!AGQ24 -> 0.6662066998 | AM64: =Model!AGR24 -> 0.6792943919 | AN64: =Model!AGS24 -> 0.692880619 | AO64: =Model!AGT24 -> 0.7060095902 | AP64: =Model!AGU24 -> 0.7196835771 | AQ64: =Model!AGV24 -> 0.7339104776 | AR64: =Model!AGW24 -> 0.7486982331 | AS64: =Model!AGX24 -> 0.7640548286
C65: 25-64 | D65: =Model!AFI25 -> 0.3772455723 | E65: =Model!AFJ25 -> 0.3790622689 | F65: =Model!AFK25 -> 0.3812587416 | G65: =Model!AFL25 -> 0.3836410733 | H65: =Model!AFM25 -> 0.3879738214 | I65: =Model!AFN25 -> 0.394953944 | J65: =Model!AFO25 -> 0.3993709241 | K65: =Model!AFP25 -> 0.4042023554 | L65: =Model!AFQ25 -> 0.4098902779 | M65: =Model!AFR25 -> 0.4174486187 | N65: =Model!AFS25 -> 0.424907385 | O65: =Model!AFT25 -> 0.4317673531 | P65: =Model!AFU25 -> 0.4387903192 | Q65: =Model!AFV25 -> 0.4461477791 | R65: =Model!AFW25 -> 0.4538892618 | S65: =Model!AFX25 -> 0.4619502832 | T65: =Model!AFY25 -> 0.4704327286 | U65: =Model!AFZ25 -> 0.4789991931 | V65: =Model!AGA25 -> 0.4875886069 | W65: =Model!AGB25 -> 0.4961380263 | X65: =Model!AGC25 -> 0.5049621889 | Y65: =Model!AGD25 -> 0.5139779174 | Z65: =Model!AGE25 -> 0.5233988095 | AA65: =Model!AGF25 -> 0.5330489001 | AB65: =Model!AGG25 -> 0.5430619109 | AC65: =Model!AGH25 -> 0.5534432274 | AD65: =Model!AGI25 -> 0.5641982567 | AE65: =Model!AGJ25 -> 0.5742780508 | AF65: =Model!AGK25 -> 0.5847395372 | AG65: =Model!AGL25 -> 0.595587719 | AH65: =Model!AGM25 -> 0.6068276171 | AI65: =Model!AGN25 -> 0.6184642697 | AJ65: =Model!AGO25 -> 0.6296557932 | AK65: =Model!AGP25 -> 0.6412364604 | AL65: =Model!AGQ25 -> 0.6532103551 | AM65: =Model!AGR25 -> 0.665581575 | AN65: =Model!AGS25 -> 0.6783542309 | AO65: =Model!AGT25 -> 0.6908904704 | AP65: =Model!AGU25 -> 0.7038889037 | AQ65: =Model!AGV25 -> 0.7173555774 | AR65: =Model!AGW25 -> 0.731296564 | AS65: =Model!AGX25 -> 0.7457179623
C68: 3. Attainment Adding One Factor at a Time
B70: Use | C70: A. Baseline Attainment Rate | D70: 2007 | E70: 2008 | F70: 2009 | G70: 2010 | H70: 2011 | I70: 2012 | J70: 2013 | K70: 2014 | L70: 2015 | M70: 2016 | N70: 2017 | O70: 2018 | P70: 2019 | Q70: 2020 | R70: 2021 | S70: 2022 | T70: 2023 | U70: 2024 | V70: 2025 | W70: 2026 | X70: 2027 | Y70: 2028 | Z70: 2029 | AA70: 2030 | AB70: 2031 | AC70: 2032 | AD70: 2033 | AE70: 2034 | AF70: 2035 | AG70: 2036 | AH70: 2037 | AI70: 2038 | AJ70: 2039 | AK70: 2040 | AL70: 2041 | AM70: 2042 | AN70: 2043 | AO70: 2044 | AP70: 2045 | AQ70: 2046 | AR70: 2047 | AS70: 2048
B71: =IF(Summary!$J$6=C71,1,0) -> 0 | C71: 25-29 | D71: =D48 -> 0.3553603406 | E71: =E48 -> 0.3608658096 | F71: 0.378449473 | G71: 0.384455723 | H71: 0.394049046 | I71: 0.4021284087 | J71: 0.4043921282 | K71: 0.4099538805 | L71: 0.4184589366 | M71: 0.4243443317 | N71: 0.4315733545 | O71: 0.4363729318 | P71: =O71 -> 0.4363729318 | Q71: =P71 -> 0.4363729318 | R71: 0.4363729318 | S71: 0.4363729318 | T71: 0.4363729318 | U71: 0.4363729318 | V71: 0.4363729318 | W71: 0.4363729318 | X71: 0.4363729318 | Y71: 0.4363729318 | Z71: =Y71 -> 0.4363729318 | AA71: =Z71 -> 0.4363729318 | AB71: =AA71 -> 0.4363729318 | AC71: =AB71 -> 0.4363729318 | AD71: =AC71 -> 0.4363729318 | AE71: =AD71 -> 0.4363729318 | AF71: =AE71 -> 0.4363729318 | AG71: =AF71 -> 0.4363729318 | AH71: =AG71 -> 0.4363729318 | AI71: =AH71 -> 0.4363729318 | AJ71: =AI71 -> 0.4363729318 | AK71: =AJ71 -> 0.4363729318 | AL71: =AK71 -> 0.4363729318 | AM71: =AL71 -> 0.4363729318 | AN71: =AM71 -> 0.4363729318 | AO71: =AN71 -> 0.4363729318 | AP71: =AO71 -> 0.4363729318 | AQ71: =AP71 -> 0.4363729318 | AR71: =AQ71 -> 0.4363729318 | AS71: =AR71 -> 0.4363729318
B72: =IF(Summary!$J$6=C72,1,0) -> 0 | C72: 30-34 | D72: =D49 -> 0.3973245843 | E72: 0.3957382435 | F72: 0.4021673502 | G72: 0.4053463268 | H72: 0.4107381986 | I72: 0.41909426 | J72: 0.42610028 | K72: 0.436125783 | L72: 0.441822756 | M72: 0.4550651213 | N72: 0.4639491614 | O72: 0.4705107478 | P72: =O72 -> 0.4705107478 | Q72: 0.4705107478 | R72: 0.4705107478 | S72: 0.4705107478 | T72: 0.4705107478 | U72: 0.4705107478 | V72: 0.4705107478 | W72: 0.4705107478 | X72: 0.4705107478 | Y72: 0.4705107478 | Z72: 0.4705107478 | AA72: 0.4705107478 | AB72: 0.4705107478 | AC72: 0.4705107478 | AD72: 0.4705107478 | AE72: 0.4705107478 | AF72: 0.4705107478 | AG72: 0.4705107478 | AH72: 0.4705107478 | AI72: 0.4705107478 | AJ72: 0.4705107478 | AK72: 0.4705107478 | AL72: 0.4705107478 | AM72: 0.4705107478 | AN72: 0.4705107478 | AO72: 0.4705107478 | AP72: 0.4705107478 | AQ72: 0.4705107478 | AR72: 0.4705107478 | AS72: 0.4705107478
B73: =IF(Summary!$J$6=C73,1,0) -> 0 | C73: 35-39 | D73: 0.4041988278 | E73: 0.4064451573 | F73: 0.406704397 | G73: 0.406561411 | H73: 0.4106664999 | I73: 0.4198405329 | J73: 0.4231790952 | K73: 0.4297960116 | L73: 0.4387502185 | M73: 0.4465249307 | N73: 0.4578668336 | O73: 0.4675913766 | P73: 0.4675913766 | Q73: 0.4675913766 | R73: 0.4675913766 | S73: 0.4675913766 | T73: 0.4675913766 | U73: 0.4675913766 | V73: 0.4675913766 | W73: 0.4675913766 | X73: 0.4675913766 | Y73: 0.4675913766 | Z73: 0.4675913766 | AA73: 0.4675913766 | AB73: 0.4675913766 | AC73: 0.4675913766 | AD73: 0.4675913766 | AE73: 0.4675913766 | AF73: 0.4675913766 | AG73: 0.4675913766 | AH73: 0.4675913766 | AI73: 0.4675913766 | AJ73: 0.4675913766 | AK73: 0.4675913766 | AL73: 0.4675913766 | AM73: 0.4675913766 | AN73: 0.4675913766 | AO73: 0.4675913766 | AP73: 0.4675913766 | AQ73: 0.4675913766 | AR73: 0.4675913766 | AS73: 0.4675913766
B74: =IF(Summary!$J$6=C74,1,0) -> 0 | C74: 40-44 | D74: 0.3792931447 | E74: 0.3836407974 | F74: 0.3831123097 | G74: 0.3924762668 | H74: 0.4037925889 | I74: 0.4136998303 | J74: 0.4184539131 | K74: 0.4254258989 | L74: 0.4302016779 | M74: 0.4411718948 | N74: 0.4465399484 | O74: 0.4557316861 | P74: 0.4557316861 | Q74: 0.4557316861 | R74: 0.4557316861 | S74: 0.4557316861 | T74: 0.4557316861 | U74: 0.4557316861 | V74: 0.4557316861 | W74: 0.4557316861 | X74: 0.4557316861 | Y74: 0.4557316861 | Z74: 0.4557316861 | AA74: 0.4557316861 | AB74: 0.4557316861 | AC74: 0.4557316861 | AD74: 0.4557316861 | AE74: 0.4557316861 | AF74: 0.4557316861 | AG74: 0.4557316861 | AH74: 0.4557316861 | AI74: 0.4557316861 | AJ74: 0.4557316861 | AK74: 0.4557316861 | AL74: 0.4557316861 | AM74: 0.4557316861 | AN74: 0.4557316861 | AO74: 0.4557316861 | AP74: 0.4557316861 | AQ74: 0.4557316861 | AR74: 0.4557316861 | AS74: 0.4557316861
B75: =IF(Summary!$J$6=C75,1,0) -> 0 | C75: 45-49 | D75: 0.3651134451 | E75: 0.368401391 | F75: 0.3677365709 | G75: 0.3678415486 | H75: 0.3736631181 | I75: 0.3832541699 | J75: 0.3946159085 | K75: 0.4000488169 | L75: 0.4108250115 | M75: 0.423510742 | N75: 0.4361713483 | O75: 0.4449102258 | P75: 0.4449102258 | Q75: 0.4449102258 | R75: 0.4449102258 | S75: 0.4449102258 | T75: 0.4449102258 | U75: 0.4449102258 | V75: 0.4449102258 | W75: 0.4449102258 | X75: 0.4449102258 | Y75: 0.4449102258 | Z75: 0.4449102258 | AA75: 0.4449102258 | AB75: 0.4449102258 | AC75: 0.4449102258 | AD75: 0.4449102258 | AE75: 0.4449102258 | AF75: 0.4449102258 | AG75: 0.4449102258 | AH75: 0.4449102258 | AI75: 0.4449102258 | AJ75: 0.4449102258 | AK75: 0.4449102258 | AL75: 0.4449102258 | AM75: 0.4449102258 | AN75: 0.4449102258 | AO75: 0.4449102258 | AP75: 0.4449102258 | AQ75: 0.4449102258 | AR75: 0.4449102258 | AS75: 0.4449102258
B76: =IF(Summary!$J$6=C76,1,0) -> 0 | C76: 50-54 | D76: 0.3761980665 | E76: 0.3705018142 | F76: 0.3649344171 | G76: 0.3612271731 | H76: 0.3604414513 | I76: 0.3650962844 | J76: 0.3700214433 | K76: 0.3751139448 | L76: 0.3829562738 | M76: 0.3902637498 | N76: 0.3979291337 | O76: 0.4081572244 | P76: 0.4081572244 | Q76: 0.4081572244 | R76: 0.4081572244 | S76: 0.4081572244 | T76: 0.4081572244 | U76: 0.4081572244 | V76: 0.4081572244 | W76: 0.4081572244 | X76: 0.4081572244 | Y76: 0.4081572244 | Z76: 0.4081572244 | AA76: 0.4081572244 | AB76: 0.4081572244 | AC76: 0.4081572244 | AD76: 0.4081572244 | AE76: 0.4081572244 | AF76: 0.4081572244 | AG76: 0.4081572244 | AH76: 0.4081572244 | AI76: 0.4081572244 | AJ76: 0.4081572244 | AK76: 0.4081572244 | AL76: 0.4081572244 | AM76: 0.4081572244 | AN76: 0.4081572244 | AO76: 0.4081572244 | AP76: 0.4081572244 | AQ76: 0.4081572244 | AR76: 0.4081572244 | AS76: 0.4081572244
B77: =IF(Summary!$J$6=C77,1,0) -> 0 | C77: 55-59 | D77: 0.3876538799 | E77: 0.3859695086 | F77: 0.3807876314 | G77: 0.3798038459 | H77: 0.3744233954 | I77: 0.3738676415 | J77: 0.3711225597 | K77: 0.3701906425 | L77: 0.3700353042 | M77: 0.3735527604 | N77: 0.3771192849 | O77: 0.384585356 | P77: 0.384585356 | Q77: 0.384585356 | R77: 0.384585356 | S77: 0.384585356 | T77: 0.384585356 | U77: 0.384585356 | V77: 0.384585356 | W77: 0.384585356 | X77: 0.384585356 | Y77: 0.384585356 | Z77: 0.384585356 | AA77: 0.384585356 | AB77: 0.384585356 | AC77: 0.384585356 | AD77: 0.384585356 | AE77: 0.384585356 | AF77: 0.384585356 | AG77: 0.384585356 | AH77: 0.384585356 | AI77: 0.384585356 | AJ77: 0.384585356 | AK77: 0.384585356 | AL77: 0.384585356 | AM77: 0.384585356 | AN77: 0.384585356 | AO77: 0.384585356 | AP77: 0.384585356 | AQ77: 0.384585356 | AR77: 0.384585356 | AS77: 0.384585356
B78: =IF(Summary!$J$6=C78,1,0) -> 0 | C78: 60-64 | D78: 0.3467396312 | E78: 0.3582989049 | F78: 0.3660965019 | G78: 0.3737660624 | H78: 0.3786197917 | I78: 0.3848341598 | J78: 0.3889259937 | K78: 0.3881581955 | L78: 0.3867082151 | M78: 0.3852588669 | N78: 0.3872342459 | O78: 0.3845180257 | P78: 0.3845180257 | Q78: 0.3845180257 | R78: 0.3845180257 | S78: 0.3845180257 | T78: 0.3845180257 | U78: 0.3845180257 | V78: 0.3845180257 | W78: 0.3845180257 | X78: 0.3845180257 | Y78: 0.3845180257 | Z78: 0.3845180257 | AA78: 0.3845180257 | AB78: 0.3845180257 | AC78: 0.3845180257 | AD78: 0.3845180257 | AE78: 0.3845180257 | AF78: 0.3845180257 | AG78: 0.3845180257 | AH78: 0.3845180257 | AI78: 0.3845180257 | AJ78: 0.3845180257 | AK78: 0.3845180257 | AL78: 0.3845180257 | AM78: 0.3845180257 | AN78: 0.3845180257 | AO78: 0.3845180257 | AP78: 0.3845180257 | AQ78: 0.3845180257 | AR78: 0.3845180257 | AS78: 0.3845180257
B79: =IF(Summary!$J$6=C79,1,0) -> 0 | C79: 25-29 | D79: =D58 -> 0.3553603406 | E79: =E58 -> 0.3608658096 | F79: 0.378449473 | G79: 0.384455723 | H79: 0.394049046 | I79: 0.4021284087 | J79: 0.4043921282 | K79: 0.4099538805 | L79: 0.4184589366 | M79: 0.4243443317 | N79: 0.4315733545 | O79: 0.4363729318 | P79: 0.4363729318 | Q79: 0.4363729318 | R79: 0.4363729318 | S79: 0.4363729318 | T79: 0.4363729318 | U79: 0.4363729318 | V79: 0.4363729318 | W79: 0.4363729318 | X79: 0.4363729318 | Y79: 0.4363729318 | Z79: 0.4363729318 | AA79: 0.4363729318 | AB79: 0.4363729318 | AC79: 0.4363729318 | AD79: 0.4363729318 | AE79: 0.4363729318 | AF79: 0.4363729318 | AG79: 0.4363729318 | AH79: 0.4363729318 | AI79: 0.4363729318 | AJ79: 0.4363729318 | AK79: 0.4363729318 | AL79: 0.4363729318 | AM79: 0.4363729318 | AN79: 0.4363729318 | AO79: 0.4363729318 | AP79: 0.4363729318 | AQ79: 0.4363729318 | AR79: 0.4363729318 | AS79: 0.4363729318
B80: =IF(Summary!$J$6=C80,1,0) -> 0 | C80: 25-34 | D80: =D59 -> 0.3756373973 | E80: 0.3776183601 | F80: 0.3898399334 | G80: 0.3946654247 | H80: 0.402269236 | I80: 0.4105387224 | J80: 0.4151941204 | K80: 0.4229169575 | L80: 0.4299664288 | M80: 0.439374043 | N80: 0.4473334116 | O80: 0.4529728184 | P80: 0.4529728184 | Q80: 0.4529728184 | R80: 0.4529728184 | S80: 0.4529728184 | T80: 0.4529728184 | U80: 0.4529728184 | V80: 0.4529728184 | W80: 0.4529728184 | X80: 0.4529728184 | Y80: 0.4529728184 | Z80: 0.4529728184 | AA80: 0.4529728184 | AB80: 0.4529728184 | AC80: 0.4529728184 | AD80: 0.4529728184 | AE80: 0.4529728184 | AF80: 0.4529728184 | AG80: 0.4529728184 | AH80: 0.4529728184 | AI80: 0.4529728184 | AJ80: 0.4529728184 | AK80: 0.4529728184 | AL80: 0.4529728184 | AM80: 0.4529728184 | AN80: 0.4529728184 | AO80: 0.4529728184 | AP80: 0.4529728184 | AQ80: 0.4529728184 | AR80: 0.4529728184 | AS80: 0.4529728184
B81: =IF(Summary!$J$6=C81,1,0) -> 0 | C81: 25-39 | D81: 0.3855960058 | E81: 0.3875119289 | F81: 0.3954370538 | G81: 0.3986073058 | H81: 0.4049809396 | I81: 0.4135037348 | J81: 0.4177329513 | K81: 0.4250990731 | L81: 0.4327712649 | M81: 0.4416664732 | N81: 0.4507412711 | O81: 0.4577020732 | P81: 0.4577020732 | Q81: 0.4577020732 | R81: 0.4577020732 | S81: 0.4577020732 | T81: 0.4577020732 | U81: 0.4577020732 | V81: 0.4577020732 | W81: 0.4577020732 | X81: 0.4577020732 | Y81: 0.4577020732 | Z81: 0.4577020732 | AA81: 0.4577020732 | AB81: 0.4577020732 | AC81: 0.4577020732 | AD81: 0.4577020732 | AE81: 0.4577020732 | AF81: 0.4577020732 | AG81: 0.4577020732 | AH81: 0.4577020732 | AI81: 0.4577020732 | AJ81: 0.4577020732 | AK81: 0.4577020732 | AL81: 0.4577020732 | AM81: 0.4577020732 | AN81: 0.4577020732 | AO81: 0.4577020732 | AP81: 0.4577020732 | AQ81: 0.4577020732 | AR81: 0.4577020732 | AS81: 0.4577020732
B82: =IF(Summary!$J$6=C82,1,0) -> 0 | C82: 25-44 | D82: 0.3839166866 | E82: 0.3864992503 | F82: 0.39227613 | G82: 0.3970355519 | H82: 0.404675409 | I82: 0.4135540056 | J82: 0.4179145652 | K82: 0.4251797955 | L82: 0.4321520458 | M82: 0.4415507347 | N82: 0.4497730579 | O82: 0.4572481328 | P82: 0.4572481328 | Q82: 0.4572481328 | R82: 0.4572481328 | S82: 0.4572481328 | T82: 0.4572481328 | U82: 0.4572481328 | V82: 0.4572481328 | W82: 0.4572481328 | X82: 0.4572481328 | Y82: 0.4572481328 | Z82: 0.4572481328 | AA82: 0.4572481328 | AB82: 0.4572481328 | AC82: 0.4572481328 | AD82: 0.4572481328 | AE82: 0.4572481328 | AF82: 0.4572481328 | AG82: 0.4572481328 | AH82: 0.4572481328 | AI82: 0.4572481328 | AJ82: 0.4572481328 | AK82: 0.4572481328 | AL82: 0.4572481328 | AM82: 0.4572481328 | AN82: 0.4572481328 | AO82: 0.4572481328 | AP82: 0.4572481328 | AQ82: 0.4572481328 | AR82: 0.4572481328 | AS82: 0.4572481328
B83: =IF(Summary!$J$6=C83,1,0) -> 0 | C83: 25-49 | D83: 0.379870154 | E83: 0.3825829914 | F83: 0.3869850854 | G83: 0.3907322642 | H83: 0.3981089894 | I83: 0.4072711773 | J83: 0.4131986656 | K83: 0.4201901152 | L83: 0.4279486593 | M83: 0.4379857377 | N83: 0.4471156941 | O83: 0.4548718462 | P83: 0.4548718462 | Q83: 0.4548718462 | R83: 0.4548718462 | S83: 0.4548718462 | T83: 0.4548718462 | U83: 0.4548718462 | V83: 0.4548718462 | W83: 0.4548718462 | X83: 0.4548718462 | Y83: 0.4548718462 | Z83: 0.4548718462 | AA83: 0.4548718462 | AB83: 0.4548718462 | AC83: 0.4548718462 | AD83: 0.4548718462 | AE83: 0.4548718462 | AF83: 0.4548718462 | AG83: 0.4548718462 | AH83: 0.4548718462 | AI83: 0.4548718462 | AJ83: 0.4548718462 | AK83: 0.4548718462 | AL83: 0.4548718462 | AM83: 0.4548718462 | AN83: 0.4548718462 | AO83: 0.4548718462 | AP83: 0.4548718462 | AQ83: 0.4548718462 | AR83: 0.4548718462 | AS83: 0.4548718462
B84: =IF(Summary!$J$6=C84,1,0) -> 0 | C84: 25-54 | D84: 0.3792641709 | E84: 0.3805459365 | F84: 0.3832311532 | G84: 0.3855619622 | H84: 0.3914401035 | I84: 0.3998058223 | J84: 0.4055544816 | K84: 0.4122393158 | L84: 0.4201006515 | M84: 0.4298546187 | N84: 0.4389366893 | O84: 0.4472963261 | P84: 0.4472963261 | Q84: 0.4472963261 | R84: 0.4472963261 | S84: 0.4472963261 | T84: 0.4472963261 | U84: 0.4472963261 | V84: 0.4472963261 | W84: 0.4472963261 | X84: 0.4472963261 | Y84: 0.4472963261 | Z84: 0.4472963261 | AA84: 0.4472963261 | AB84: 0.4472963261 | AC84: 0.4472963261 | AD84: 0.4472963261 | AE84: 0.4472963261 | AF84: 0.4472963261 | AG84: 0.4472963261 | AH84: 0.4472963261 | AI84: 0.4472963261 | AJ84: 0.4472963261 | AK84: 0.4472963261 | AL84: 0.4472963261 | AM84: 0.4472963261 | AN84: 0.4472963261 | AO84: 0.4472963261 | AP84: 0.4472963261 | AQ84: 0.4472963261 | AR84: 0.4472963261 | AS84: 0.4472963261
B85: =IF(Summary!$J$6=C85,1,0) -> 0 | C85: 25-59 | D85: 0.380309474 | E85: 0.3812316325 | F85: 0.3829179105 | G85: 0.3847915214 | H85: 0.3891098313 | I85: 0.3961835739 | J85: 0.4006594125 | K85: 0.4062306108 | L85: 0.4128786857 | M85: 0.4216982621 | N85: 0.4299915818 | O85: 0.4382873089 | P85: 0.4382873089 | Q85: 0.4382873089 | R85: 0.4382873089 | S85: 0.4382873089 | T85: 0.4382873089 | U85: 0.4382873089 | V85: 0.4382873089 | W85: 0.4382873089 | X85: 0.4382873089 | Y85: 0.4382873089 | Z85: 0.4382873089 | AA85: 0.4382873089 | AB85: 0.4382873089 | AC85: 0.4382873089 | AD85: 0.4382873089 | AE85: 0.4382873089 | AF85: 0.4382873089 | AG85: 0.4382873089 | AH85: 0.4382873089 | AI85: 0.4382873089 | AJ85: 0.4382873089 | AK85: 0.4382873089 | AL85: 0.4382873089 | AM85: 0.4382873089 | AN85: 0.4382873089 | AO85: 0.4382873089 | AP85: 0.4382873089 | AQ85: 0.4382873089 | AR85: 0.4382873089 | AS85: 0.4382873089
B86: =IF(Summary!$J$6=C86,1,0) -> 1 | C86: 25-64 | D86: 0.3772455723 | E86: 0.3790622689 | F86: 0.3812587416 | G86: 0.3836410733 | H86: 0.3879738214 | I86: 0.394953944 | J86: 0.3993709241 | K86: 0.4042023554 | L86: 0.4098902779 | M86: 0.4174486187 | N86: 0.424907385 | O86: 0.4317673531 | P86: 0.4317673531 | Q86: 0.4317673531 | R86: 0.4317673531 | S86: 0.4317673531 | T86: 0.4317673531 | U86: 0.4317673531 | V86: 0.4317673531 | W86: 0.4317673531 | X86: 0.4317673531 | Y86: 0.4317673531 | Z86: 0.4317673531 | AA86: 0.4317673531 | AB86: 0.4317673531 | AC86: 0.4317673531 | AD86: 0.4317673531 | AE86: 0.4317673531 | AF86: 0.4317673531 | AG86: 0.4317673531 | AH86: 0.4317673531 | AI86: 0.4317673531 | AJ86: 0.4317673531 | AK86: 0.4317673531 | AL86: 0.4317673531 | AM86: 0.4317673531 | AN86: 0.4317673531 | AO86: 0.4317673531 | AP86: 0.4317673531 | AQ86: 0.4317673531 | AR86: 0.4317673531 | AS86: 0.4317673531
P88: Projected Attainment | AT88: Incremental Gain Over Prior Lever
B89: Use | C89: B. Adding Pure Aging Effect | P89: 2019 | Q89: 2020 | R89: 2021 | S89: 2022 | T89: 2023 | U89: 2024 | V89: 2025 | W89: 2026 | X89: 2027 | Y89: 2028 | Z89: 2029 | AA89: 2030 | AB89: 2031 | AC89: 2032 | AD89: 2033 | AE89: 2034 | AF89: 2035 | AG89: 2036 | AH89: 2037 | AI89: 2038 | AJ89: 2039 | AK89: 2040 | AL89: 2041 | AM89: 2042 | AN89: 2043 | AO89: 2044 | AP89: 2045 | AQ89: 2046 | AR89: 2047 | AS89: 2048 | AT89: 2019 | AU89: 2020 | AV89: 2021 | AW89: 2022 | AX89: 2023 | AY89: 2024 | AZ89: 2025 | BA89: 2026 | BB89: 2027 | BC89: 2028 | BD89: 2029 | BE89: 2030 | BF89: 2031 | BG89: 2032 | BH89: 2033 | BI89: 2034 | BJ89: 2035 | BK89: 2036 | BL89: 2037 | BM89: 2038 | BN89: 2039 | BO89: 2040 | BP89: 2041 | BQ89: 2042 | BR89: 2043 | BS89: 2044 | BT89: 2045 | BU89: 2046 | BV89: 2047 | BW89: 2048
B90: =IF(Summary!$J$6=C90,1,0) -> 0 | C90: 25-29 | P90: =Model!CQ8 -> 0.4363729318 | Q90: =Model!CR8 -> 0.4363729318 | R90: =Model!CS8 -> 0.4363729318 | S90: =Model!CT8 -> 0.4363729318 | T90: =Model!CU8 -> 0.4363729318 | U90: =Model!CV8 -> 0.4363729318 | V90: =Model!CW8 -> 0.4363729318 | W90: =Model!CX8 -> 0.4363729318 | X90: =Model!CY8 -> 0.4363729318 | Y90: =Model!CZ8 -> 0.4363729318 | Z90: =Model!DA8 -> 0.4363729318 | AA90: =Model!DB8 -> 0.4363729318 | AB90: =Model!DC8 -> 0.4363729318 | AC90: =Model!DD8 -> 0.4363729318 | AD90: =Model!DE8 -> 0.4363729318 | AE90: =Model!DF8 -> 0.4363729318 | AF90: =Model!DG8 -> 0.4363729318 | AG90: =Model!DH8 -> 0.4363729318 | AH90: =Model!DI8 -> 0.4363729318 | AI90: =Model!DJ8 -> 0.4363729318 | AJ90: =Model!DK8 -> 0.4363729318 | AK90: =Model!DL8 -> 0.4363729318 | AL90: =Model!DM8 -> 0.4363729318 | AM90: =Model!DN8 -> 0.4363729318 | AN90: =Model!DO8 -> 0.4363729318 | AO90: =Model!DP8 -> 0.4363729318 | AP90: =Model!DQ8 -> 0.4363729318 | AQ90: =Model!DR8 -> 0.4363729318 | AR90: =Model!DS8 -> 0.4363729318 | AS90: =Model!DT8 -> 0.4363729318 | AT90: =P90-P71 -> 0 | AU90: =Q90-Q71 -> 0 | AV90: =R90-R71 -> 0 | AW90: =S90-S71 -> 0 | AX90: =T90-T71 -> 0 | AY90: =U90-U71 -> 0 | AZ90: =V90-V71 -> 0 | BA90: =W90-W71 -> 0 | BB90: =X90-X71 -> 0 | BC90: =Y90-Y71 -> 0 | BD90: =Z90-Z71 -> 0 | BE90: 0 | BF90: 0 | BG90: 0 | BH90: 0 | BI90: 0 | BJ90: 0 | BK90: 0 | BL90: 0 | BM90: 0 | BN90: 0 | BO90: 0 | BP90: 0 | BQ90: 0 | BR90: 0 | BS90: 0 | BT90: 0 | BU90: 0 | BV90: 0 | BW90: 0
B91: =IF(Summary!$J$6=C91,1,0) -> 0 | C91: 30-34 | P91: =Model!CQ9 -> 0.4632071394 | Q91: =Model!CR9 -> 0.4561537873 | R91: =Model!CS9 -> 0.4493380457 | S91: =Model!CT9 -> 0.4427481066 | T91: =Model!CU9 -> 0.4363729318 | U91: =Model!CV9 -> 0.4363729318 | V91: =Model!CW9 -> 0.4363729318 | W91: =Model!CX9 -> 0.4363729318 | X91: =Model!CY9 -> 0.4363729318 | Y91: =Model!CZ9 -> 0.4363729318 | Z91: =Model!DA9 -> 0.4363729318 | AA91: =Model!DB9 -> 0.4363729318 | AB91: =Model!DC9 -> 0.4363729318 | AC91: =Model!DD9 -> 0.4363729318 | AD91: =Model!DE9 -> 0.4363729318 | AE91: =Model!DF9 -> 0.4363729318 | AF91: =Model!DG9 -> 0.4363729318 | AG91: =Model!DH9 -> 0.4363729318 | AH91: =Model!DI9 -> 0.4363729318 | AI91: =Model!DJ9 -> 0.4363729318 | AJ91: =Model!DK9 -> 0.4363729318 | AK91: =Model!DL9 -> 0.4363729318 | AL91: =Model!DM9 -> 0.4363729318 | AM91: =Model!DN9 -> 0.4363729318 | AN91: =Model!DO9 -> 0.4363729318 | AO91: =Model!DP9 -> 0.4363729318 | AP91: =Model!DQ9 -> 0.4363729318 | AQ91: =Model!DR9 -> 0.4363729318 | AR91: =Model!DS9 -> 0.4363729318 | AS91: =Model!DT9 -> 0.4363729318 | AT91: -0.007303608337 | AU91: -0.01435696042 | AV91: -0.02117270206 | AW91: -0.02776264113 | AX91: -0.03413781592 | AY91: -0.03413781592 | AZ91: -0.03413781592 | BA91: -0.03413781592 | BB91: -0.03413781592 | BC91: -0.03413781592 | BD91: =Z91-Z72 -> -0.03413781592 | BE91: -0.03413781592 | BF91: -0.03413781592 | BG91: -0.03413781592 | BH91: -0.03413781592 | BI91: -0.03413781592 | BJ91: -0.03413781592 | BK91: -0.03413781592 | BL91: -0.03413781592 | BM91: -0.03413781592 | BN91: -0.03413781592 | BO91: -0.03413781592 | BP91: -0.03413781592 | BQ91: -0.03413781592 | BR91: -0.03413781592 | BS91: -0.03413781592 | BT91: -0.03413781592 | BU91: -0.03413781592 | BV91: -0.03413781592 | BW91: -0.03413781592
B92: =IF(Summary!$J$6=C92,1,0) -> 0 | C92: 35-39 | P92: =Model!CQ10 -> 0.4681951287 | Q92: =Model!CR10 -> 0.4687886902 | R92: =Model!CS10 -> 0.469372317 | S92: =Model!CT10 -> 0.4699462565 | T92: =Model!CU10 -> 0.4705107478 | U92: =Model!CV10 -> 0.4632071394 | V92: =Model!CW10 -> 0.4561537873 | W92: =Model!CX10 -> 0.4493380457 | X92: =Model!CY10 -> 0.4427481066 | Y92: =Model!CZ10 -> 0.4363729318 | Z92: =Model!DA10 -> 0.4363729318 | AA92: =Model!DB10 -> 0.4363729318 | AB92: =Model!DC10 -> 0.4363729318 | AC92: =Model!DD10 -> 0.4363729318 | AD92: =Model!DE10 -> 0.4363729318 | AE92: =Model!DF10 -> 0.4363729318 | AF92: =Model!DG10 -> 0.4363729318 | AG92: =Model!DH10 -> 0.4363729318 | AH92: =Model!DI10 -> 0.4363729318 | AI92: =Model!DJ10 -> 0.4363729318 | AJ92: =Model!DK10 -> 0.4363729318 | AK92: =Model!DL10 -> 0.4363729318 | AL92: =Model!DM10 -> 0.4363729318 | AM92: =Model!DN10 -> 0.4363729318 | AN92: =Model!DO10 -> 0.4363729318 | AO92: =Model!DP10 -> 0.4363729318 | AP92: =Model!DQ10 -> 0.4363729318 | AQ92: =Model!DR10 -> 0.4363729318 | AR92: =Model!DS10 -> 0.4363729318 | AS92: =Model!DT10 -> 0.4363729318 | AT92: 0.0006037520823 | AU92: 0.001197313603 | AV92: 0.001780940409 | AW92: 0.002354879853 | AX92: 0.002919371144 | AY92: -0.004384237193 | AZ92: -0.01143758928 | BA92: -0.01825333091 | BB92: -0.02484326999 | BC92: -0.03121844477 | BD92: =Z92-Z73 -> -0.03121844477 | BE92: -0.03121844477 | BF92: -0.03121844477 | BG92: -0.03121844477 | BH92: -0.03121844477 | BI92: -0.03121844477 | BJ92: -0.03121844477 | BK92: -0.03121844477 | BL92: -0.03121844477 | BM92: -0.03121844477 | BN92: -0.03121844477 | BO92: -0.03121844477 | BP92: -0.03121844477 | BQ92: -0.03121844477 | BR92: -0.03121844477 | BS92: -0.03121844477 | BT92: -0.03121844477 | BU92: -0.03121844477 | BV92: -0.03121844477 | BW92: -0.03121844477
B93: =IF(Summary!$J$6=C93,1,0) -> 0 | C93: 40-44 | P93: =Model!CQ11 -> 0.4582730612 | Q93: =Model!CR11 -> 0.4607252586 | R93: =Model!CS11 -> 0.4630928913 | S93: =Model!CT11 -> 0.4653802594 | T93: =Model!CU11 -> 0.4675913766 | U93: =Model!CV11 -> 0.4681951287 | V93: =Model!CW11 -> 0.4687886902 | W93: =Model!CX11 -> 0.469372317 | X93: =Model!CY11 -> 0.4699462565 | Y93: =Model!CZ11 -> 0.4705107478 | Z93: =Model!DA11 -> 0.4632071394 | AA93: =Model!DB11 -> 0.4561537873 | AB93: =Model!DC11 -> 0.4493380457 | AC93: =Model!DD11 -> 0.4427481066 | AD93: =Model!DE11 -> 0.4363729318 | AE93: =Model!DF11 -> 0.4363729318 | AF93: =Model!DG11 -> 0.4363729318 | AG93: =Model!DH11 -> 0.4363729318 | AH93: =Model!DI11 -> 0.4363729318 | AI93: =Model!DJ11 -> 0.4363729318 | AJ93: =Model!DK11 -> 0.4363729318 | AK93: =Model!DL11 -> 0.4363729318 | AL93: =Model!DM11 -> 0.4363729318 | AM93: =Model!DN11 -> 0.4363729318 | AN93: =Model!DO11 -> 0.4363729318 | AO93: =Model!DP11 -> 0.4363729318 | AP93: =Model!DQ11 -> 0.4363729318 | AQ93: =Model!DR11 -> 0.4363729318 | AR93: =Model!DS11 -> 0.4363729318 | AS93: =Model!DT11 -> 0.4363729318 | AT93: 0.00254137509 | AU93: 0.004993572488 | AV93: 0.00736120517 | AW93: 0.009648573346 | AX93: 0.01185969053 | AY93: 0.01246344261 | AZ93: 0.01305700413 | BA93: 0.01364063093 | BB93: 0.01421457038 | BC93: 0.01477906167 | BD93: =Z93-Z74 -> 0.007475453332 | BE93: 0.0004221012452 | BF93: -0.006393640388 | BG93: -0.01298357946 | BH93: -0.01935875425 | BI93: -0.01935875425 | BJ93: -0.01935875425 | BK93: -0.01935875425 | BL93: -0.01935875425 | BM93: -0.01935875425 | BN93: -0.01935875425 | BO93: -0.01935875425 | BP93: -0.01935875425 | BQ93: -0.01935875425 | BR93: -0.01935875425 | BS93: -0.01935875425 | BT93: -0.01935875425 | BU93: -0.01935875425 | BV93: -0.01935875425 | BW93: -0.01935875425
B94: =IF(Summary!$J$6=C94,1,0) -> 0 | C94: 45-49 | P94: =Model!CQ12 -> 0.4469930847 | Q94: =Model!CR12 -> 0.4491155002 | R94: =Model!CS12 -> 0.4512786101 | S94: =Model!CT12 -> 0.4534835961 | T94: =Model!CU12 -> 0.4557316861 | U94: =Model!CV12 -> 0.4582730612 | V94: =Model!CW12 -> 0.4607252586 | W94: =Model!CX12 -> 0.4630928913 | X94: =Model!CY12 -> 0.4653802594 | Y94: =Model!CZ12 -> 0.4675913766 | Z94: =Model!DA12 -> 0.4681951287 | AA94: =Model!DB12 -> 0.4687886902 | AB94: =Model!DC12 -> 0.469372317 | AC94: =Model!DD12 -> 0.4699462565 | AD94: =Model!DE12 -> 0.4705107478 | AE94: =Model!DF12 -> 0.4632071394 | AF94: =Model!DG12 -> 0.4561537873 | AG94: =Model!DH12 -> 0.4493380457 | AH94: =Model!DI12 -> 0.4427481066 | AI94: =Model!DJ12 -> 0.4363729318 | AJ94: =Model!DK12 -> 0.4363729318 | AK94: =Model!DL12 -> 0.4363729318 | AL94: =Model!DM12 -> 0.4363729318 | AM94: =Model!DN12 -> 0.4363729318 | AN94: =Model!DO12 -> 0.4363729318 | AO94: =Model!DP12 -> 0.4363729318 | AP94: =Model!DQ12 -> 0.4363729318 | AQ94: =Model!DR12 -> 0.4363729318 | AR94: =Model!DS12 -> 0.4363729318 | AS94: =Model!DT12 -> 0.4363729318 | AT94: 0.002082858862 | AU94: 0.004205274414 | AV94: 0.006368384321 | AW94: 0.0085733703 | AX94: 0.01082146027 | AY94: 0.01336283536 | AZ94: 0.01581503275 | BA94: 0.01818266544 | BB94: 0.02047003361 | BC94: 0.02268115079 | BD94: =Z94-Z75 -> 0.02328490287 | BE94: 0.0238784644 | BF94: 0.0244620912 | BG94: 0.02503603065 | BH94: 0.02560052194 | BI94: 0.0182969136 | BJ94: 0.01124356151 | BK94: 0.004427819879 | BL94: -0.002162119198 | BM94: -0.008537293981 | BN94: -0.008537293981 | BO94: -0.008537293981 | BP94: -0.008537293981 | BQ94: -0.008537293981 | BR94: -0.008537293981 | BS94: -0.008537293981 | BT94: -0.008537293981 | BU94: -0.008537293981 | BV94: -0.008537293981 | BW94: -0.008537293981
B95: =IF(Summary!$J$6=C95,1,0) -> 0 | C95: 50-54 | P95: =Model!CQ13 -> 0.4153893932 | Q95: =Model!CR13 -> 0.4226800593 | R95: =Model!CS13 -> 0.4300299353 | S95: =Model!CT13 -> 0.4374397455 | T95: =Model!CU13 -> 0.4449102258 | U95: =Model!CV13 -> 0.4469930847 | V95: =Model!CW13 -> 0.4491155002 | W95: =Model!CX13 -> 0.4512786101 | X95: =Model!CY13 -> 0.4534835961 | Y95: =Model!CZ13 -> 0.4557316861 | Z95: =Model!DA13 -> 0.4582730612 | AA95: =Model!DB13 -> 0.4607252586 | AB95: =Model!DC13 -> 0.4630928913 | AC95: =Model!DD13 -> 0.4653802594 | AD95: =Model!DE13 -> 0.4675913766 | AE95: =Model!DF13 -> 0.4681951287 | AF95: =Model!DG13 -> 0.4687886902 | AG95: =Model!DH13 -> 0.469372317 | AH95: =Model!DI13 -> 0.4699462565 | AI95: =Model!DJ13 -> 0.4705107478 | AJ95: =Model!DK13 -> 0.4632071394 | AK95: =Model!DL13 -> 0.4561537873 | AL95: =Model!DM13 -> 0.4493380457 | AM95: =Model!DN13 -> 0.4427481066 | AN95: =Model!DO13 -> 0.4363729318 | AO95: =Model!DP13 -> 0.4363729318 | AP95: =Model!DQ13 -> 0.4363729318 | AQ95: =Model!DR13 -> 0.4363729318 | AR95: =Model!DS13 -> 0.4363729318 | AS95: =Model!DT13 -> 0.4363729318 | AT95: 0.007232168835 | AU95: 0.01452283495 | AV95: 0.02187271096 | AW95: 0.0292825211 | AX95: 0.03675300147 | AY95: 0.03883586033 | AZ95: 0.04095827588 | BA95: 0.04312138579 | BB95: 0.04532637177 | BC95: 0.04757446174 | BD95: =Z95-Z76 -> 0.05011583683 | BE95: 0.05256803422 | BF95: 0.05493566691 | BG95: 0.05722303508 | BH95: 0.05943415226 | BI95: 0.06003790434 | BJ95: 0.06063146587 | BK95: 0.06121509267 | BL95: 0.06178903212 | BM95: 0.06235352341 | BN95: 0.05504991507 | BO95: 0.04799656298 | BP95: 0.04118082135 | BQ95: 0.03459088227 | BR95: 0.02821570749 | BS95: 0.02821570749 | BT95: 0.02821570749 | BU95: 0.02821570749 | BV95: 0.02821570749 | BW95: 0.02821570749
B96: =IF(Summary!$J$6=C96,1,0) -> 0 | C96: 55-59 | P96: =Model!CQ14 -> 0.3890344093 | Q96: =Model!CR14 -> 0.3936104434 | R96: =Model!CS14 -> 0.3983189732 | S96: =Model!CT14 -> 0.4031658378 | T96: =Model!CU14 -> 0.4081572244 | U96: =Model!CV14 -> 0.4153893932 | V96: =Model!CW14 -> 0.4226800593 | W96: =Model!CX14 -> 0.4300299353 | X96: =Model!CY14 -> 0.4374397455 | Y96: =Model!CZ14 -> 0.4449102258 | Z96: =Model!DA14 -> 0.4469930847 | AA96: =Model!DB14 -> 0.4491155002 | AB96: =Model!DC14 -> 0.4512786101 | AC96: =Model!DD14 -> 0.4534835961 | AD96: =Model!DE14 -> 0.4557316861 | AE96: =Model!DF14 -> 0.4582730612 | AF96: =Model!DG14 -> 0.4607252586 | AG96: =Model!DH14 -> 0.4630928913 | AH96: =Model!DI14 -> 0.4653802594 | AI96: =Model!DJ14 -> 0.4675913766 | AJ96: =Model!DK14 -> 0.4681951287 | AK96: =Model!DL14 -> 0.4687886902 | AL96: =Model!DM14 -> 0.469372317 | AM96: =Model!DN14 -> 0.4699462565 | AN96: =Model!DO14 -> 0.4705107478 | AO96: =Model!DP14 -> 0.4632071394 | AP96: =Model!DQ14 -> 0.4561537873 | AQ96: =Model!DR14 -> 0.4493380457 | AR96: =Model!DS14 -> 0.4427481066 | AS96: =Model!DT14 -> 0.4363729318 | AT96: 0.004449053314 | AU96: 0.00902508741 | AV96: 0.01373361724 | AW96: 0.01858048182 | AX96: 0.02357186835 | AY96: 0.03080403719 | AZ96: 0.0380947033 | BA96: 0.04544457932 | BB96: 0.05285438946 | BC96: 0.06032486982 | BD96: =Z96-Z77 -> 0.06240772869 | BE96: 0.06453014424 | BF96: 0.06669325415 | BG96: 0.06889824012 | BH96: 0.07114633009 | BI96: 0.07368770518 | BJ96: 0.07613990258 | BK96: 0.07850753526 | BL96: 0.08079490344 | BM96: 0.08300602062 | BN96: 0.0836097727 | BO96: 0.08420333422 | BP96: 0.08478696103 | BQ96: 0.08536090047 | BR96: 0.08592539176 | BS96: 0.07862178342 | BT96: 0.07156843134 | BU96: 0.0647526897 | BV96: 0.05816275063 | BW96: 0.05178757584
B97: =IF(Summary!$J$6=C97,1,0) -> 0 | C97: 60-64 | P97: =Model!CQ15 -> 0.3845317312 | Q97: =Model!CR15 -> 0.3845453154 | R97: =Model!CS15 -> 0.3845587798 | S97: =Model!CT15 -> 0.3845721262 | T97: =Model!CU15 -> 0.384585356 | U97: =Model!CV15 -> 0.3890344093 | V97: =Model!CW15 -> 0.3936104434 | W97: =Model!CX15 -> 0.3983189732 | X97: =Model!CY15 -> 0.4031658378 | Y97: =Model!CZ15 -> 0.4081572244 | Z97: =Model!DA15 -> 0.4153893932 | AA97: =Model!DB15 -> 0.4226800593 | AB97: =Model!DC15 -> 0.4300299353 | AC97: =Model!DD15 -> 0.4374397455 | AD97: =Model!DE15 -> 0.4449102258 | AE97: =Model!DF15 -> 0.4469930847 | AF97: =Model!DG15 -> 0.4491155002 | AG97: =Model!DH15 -> 0.4512786101 | AH97: =Model!DI15 -> 0.4534835961 | AI97: =Model!DJ15 -> 0.4557316861 | AJ97: =Model!DK15 -> 0.4582730612 | AK97: =Model!DL15 -> 0.4607252586 | AL97: =Model!DM15 -> 0.4630928913 | AM97: =Model!DN15 -> 0.4653802594 | AN97: =Model!DO15 -> 0.4675913766 | AO97: =Model!DP15 -> 0.4681951287 | AP97: =Model!DQ15 -> 0.4687886902 | AQ97: =Model!DR15 -> 0.469372317 | AR97: =Model!DS15 -> 0.4699462565 | AS97: =Model!DT15 -> 0.4705107478 | AT97: 1.370548361e-05 | AU97: 2.728966743e-05 | AV97: 4.075415472e-05 | AW97: 5.410052059e-05 | AX97: 6.733031263e-05 | AY97: 0.004516383627 | AZ97: 0.009092417723 | BA97: 0.01380094755 | BB97: 0.01864781213 | BC97: 0.02363919867 | BD97: =Z97-Z78 -> 0.0308713675 | BE97: 0.03816203362 | BF97: 0.04551190963 | BG97: 0.05292171977 | BH97: 0.06039220014 | BI97: 0.062475059 | BJ97: 0.06459747455 | BK97: 0.06676058446 | BL97: 0.06896557044 | BM97: 0.0712136604 | BN97: 0.07375503549 | BO97: 0.07620723289 | BP97: 0.07857486557 | BQ97: 0.08086223375 | BR97: 0.08307335093 | BS97: 0.08367710301 | BT97: 0.08427066453 | BU97: 0.08485429134 | BV97: 0.08542823078 | BW97: 0.08599272207
B98: =IF(Summary!$J$6=C98,1,0) -> 0 | C98: 25-29 | P98: =Model!CQ18 -> 0.4363729318 | Q98: =Model!CR18 -> 0.4363729318 | R98: =Model!CS18 -> 0.4363729318 | S98: =Model!CT18 -> 0.4363729318 | T98: =Model!CU18 -> 0.4363729318 | U98: =Model!CV18 -> 0.4363729318 | V98: =Model!CW18 -> 0.4363729318 | W98: =Model!CX18 -> 0.4363729318 | X98: =Model!CY18 -> 0.4363729318 | Y98: =Model!CZ18 -> 0.4363729318 | Z98: =Model!DA18 -> 0.4363729318 | AA98: =Model!DB18 -> 0.4363729318 | AB98: =Model!DC18 -> 0.4363729318 | AC98: =Model!DD18 -> 0.4363729318 | AD98: =Model!DE18 -> 0.4363729318 | AE98: =Model!DF18 -> 0.4363729318 | AF98: =Model!DG18 -> 0.4363729318 | AG98: =Model!DH18 -> 0.4363729318 | AH98: =Model!DI18 -> 0.4363729318 | AI98: =Model!DJ18 -> 0.4363729318 | AJ98: =Model!DK18 -> 0.4363729318 | AK98: =Model!DL18 -> 0.4363729318 | AL98: =Model!DM18 -> 0.4363729318 | AM98: =Model!DN18 -> 0.4363729318 | AN98: =Model!DO18 -> 0.4363729318 | AO98: =Model!DP18 -> 0.4363729318 | AP98: =Model!DQ18 -> 0.4363729318 | AQ98: =Model!DR18 -> 0.4363729318 | AR98: =Model!DS18 -> 0.4363729318 | AS98: =Model!DT18 -> 0.4363729318 | AT98: 0 | AU98: 0 | AV98: 0 | AW98: 0 | AX98: 0 | AY98: 0 | AZ98: 0 | BA98: 0 | BB98: 0 | BC98: 0 | BD98: =Z98-Z79 -> 0 | BE98: 0 | BF98: 0 | BG98: 0 | BH98: 0 | BI98: 0 | BJ98: 0 | BK98: 0 | BL98: 0 | BM98: 0 | BN98: 0 | BO98: 0 | BP98: 0 | BQ98: 0 | BR98: 0 | BS98: 0 | BT98: 0 | BU98: 0 | BV98: 0 | BW98: 0
B99: =IF(Summary!$J$6=C99,1,0) -> 0 | C99: 25-34 | P99: =Model!CQ19 -> 0.4495985392 | Q99: =Model!CR19 -> 0.4462517427 | R99: =Model!CS19 -> 0.4429320944 | S99: =Model!CT19 -> 0.4396392653 | T99: =Model!CU19 -> 0.4363729318 | U99: =Model!CV19 -> 0.4363729318 | V99: =Model!CW19 -> 0.4363729318 | W99: =Model!CX19 -> 0.4363729318 | X99: =Model!CY19 -> 0.4363729318 | Y99: =Model!CZ19 -> 0.4363729318 | Z99: =Model!DA19 -> 0.4363729318 | AA99: =Model!DB19 -> 0.4363729318 | AB99: =Model!DC19 -> 0.4363729318 | AC99: =Model!DD19 -> 0.4363729318 | AD99: =Model!DE19 -> 0.4363729318 | AE99: =Model!DF19 -> 0.4363729318 | AF99: =Model!DG19 -> 0.4363729318 | AG99: =Model!DH19 -> 0.4363729318 | AH99: =Model!DI19 -> 0.4363729318 | AI99: =Model!DJ19 -> 0.4363729318 | AJ99: =Model!DK19 -> 0.4363729318 | AK99: =Model!DL19 -> 0.4363729318 | AL99: =Model!DM19 -> 0.4363729318 | AM99: =Model!DN19 -> 0.4363729318 | AN99: =Model!DO19 -> 0.4363729318 | AO99: =Model!DP19 -> 0.4363729318 | AP99: =Model!DQ19 -> 0.4363729318 | AQ99: =Model!DR19 -> 0.4363729318 | AR99: =Model!DS19 -> 0.4363729318 | AS99: =Model!DT19 -> 0.4363729318 | AT99: -0.003374279195 | AU99: -0.006721075743 | AV99: -0.01004072404 | AW99: -0.01333355309 | AX99: -0.01659988657 | AY99: -0.01659988657 | AZ99: -0.01659988657 | BA99: -0.01659988657 | BB99: -0.01659988657 | BC99: -0.01659988657 | BD99: =Z99-Z80 -> -0.01659988657 | BE99: -0.01659988657 | BF99: -0.01659988657 | BG99: -0.01659988657 | BH99: -0.01659988657 | BI99: -0.01659988657 | BJ99: -0.01659988657 | BK99: -0.01659988657 | BL99: -0.01659988657 | BM99: -0.01659988657 | BN99: -0.01659988657 | BO99: -0.01659988657 | BP99: -0.01659988657 | BQ99: -0.01659988657 | BR99: -0.01659988657 | BS99: -0.01659988657 | BT99: -0.01659988657 | BU99: -0.01659988657 | BV99: -0.01659988657 | BW99: -0.01659988657
B100: =IF(Summary!$J$6=C100,1,0) -> 0 | C100: 25-39 | P100: =Model!CQ20 -> 0.4556328543 | Q100: =Model!CR20 -> 0.4535863704 | R100: =Model!CS20 -> 0.4515622488 | S100: =Model!CT20 -> 0.4495601249 | T100: =Model!CU20 -> 0.4475796421 | U100: =Model!CV20 -> 0.4453109357 | V100: =Model!CW20 -> 0.4430560363 | W100: =Model!CX20 -> 0.4408148184 | X100: =Model!CY20 -> 0.4385871578 | Y100: =Model!CZ20 -> 0.4363729318 | Z100: =Model!DA20 -> 0.4363729318 | AA100: =Model!DB20 -> 0.4363729318 | AB100: =Model!DC20 -> 0.4363729318 | AC100: =Model!DD20 -> 0.4363729318 | AD100: =Model!DE20 -> 0.4363729318 | AE100: =Model!DF20 -> 0.4363729318 | AF100: =Model!DG20 -> 0.4363729318 | AG100: =Model!DH20 -> 0.4363729318 | AH100: =Model!DI20 -> 0.4363729318 | AI100: =Model!DJ20 -> 0.4363729318 | AJ100: =Model!DK20 -> 0.4363729318 | AK100: =Model!DL20 -> 0.4363729318 | AL100: =Model!DM20 -> 0.4363729318 | AM100: =Model!DN20 -> 0.4363729318 | AN100: =Model!DO20 -> 0.4363729318 | AO100: =Model!DP20 -> 0.4363729318 | AP100: =Model!DQ20 -> 0.4363729318 | AQ100: =Model!DR20 -> 0.4363729318 | AR100: =Model!DS20 -> 0.4363729318 | AS100: =Model!DT20 -> 0.4363729318 | AT100: -0.002069218868 | AU100: -0.004115702796 | AV100: -0.006139824428 | AW100: -0.008141948307 | AX100: -0.0101224311 | AY100: -0.01239113755 | AZ100: -0.0146460369 | BA100: -0.01688725481 | BB100: -0.01911491542 | BC100: -0.02132914137 | BD100: =Z100-Z81 -> -0.02132914137 | BE100: -0.02132914137 | BF100: -0.02132914137 | BG100: -0.02132914137 | BH100: -0.02132914137 | BI100: -0.02132914137 | BJ100: -0.02132914137 | BK100: -0.02132914137 | BL100: -0.02132914137 | BM100: -0.02132914137 | BN100: -0.02132914137 | BO100: -0.02132914137 | BP100: -0.02132914137 | BQ100: -0.02132914137 | BR100: -0.02132914137 | BS100: -0.02132914137 | BT100: -0.02132914137 | BU100: -0.02132914137 | BV100: -0.02132914137 | BW100: -0.02132914137
B101: =IF(Summary!$J$6=C101,1,0) -> 0 | C101: 25-44 | P101: =Model!CQ21 -> 0.4562469708 | Q101: =Model!CR21 -> 0.4552624743 | R101: =Model!CS21 -> 0.4542942308 | S101: =Model!CT21 -> 0.4533418409 | T101: =Model!CU21 -> 0.4524049186 | U101: =Model!CV21 -> 0.4508518507 | V101: =Model!CW21 -> 0.4493123098 | W101: =Model!CX21 -> 0.44778612 | X101: =Model!CY21 -> 0.4462731084 | Y101: =Model!CZ21 -> 0.444773105 | Z101: =Model!DA21 -> 0.4430768306 | AA101: =Model!DB21 -> 0.4413887348 | AB101: =Model!DC21 -> 0.4397087586 | AC101: =Model!DD21 -> 0.4380368436 | AD101: =Model!DE21 -> 0.4363729318 | AE101: =Model!DF21 -> 0.4363729318 | AF101: =Model!DG21 -> 0.4363729318 | AG101: =Model!DH21 -> 0.4363729318 | AH101: =Model!DI21 -> 0.4363729318 | AI101: =Model!DJ21 -> 0.4363729318 | AJ101: =Model!DK21 -> 0.4363729318 | AK101: =Model!DL21 -> 0.4363729318 | AL101: =Model!DM21 -> 0.4363729318 | AM101: =Model!DN21 -> 0.4363729318 | AN101: =Model!DO21 -> 0.4363729318 | AO101: =Model!DP21 -> 0.4363729318 | AP101: =Model!DQ21 -> 0.4363729318 | AQ101: =Model!DR21 -> 0.4363729318 | AR101: =Model!DS21 -> 0.4363729318 | AS101: =Model!DT21 -> 0.4363729318 | AT101: -0.001001162065 | AU101: -0.001985658525 | AV101: -0.002953902076 | AW101: -0.003906291898 | AX101: -0.004843214206 | AY101: -0.006396282188 | AZ101: -0.007935823094 | BA101: -0.009462012885 | BB101: -0.01097502449 | BC101: -0.01247502785 | BD101: =Z101-Z82 -> -0.01417130227 | BE101: -0.01585939807 | BF101: -0.01753937425 | BG101: -0.01921128927 | BH101: -0.020875201 | BI101: -0.020875201 | BJ101: -0.020875201 | BK101: -0.020875201 | BL101: -0.020875201 | BM101: -0.020875201 | BN101: -0.020875201 | BO101: -0.020875201 | BP101: -0.020875201 | BQ101: -0.020875201 | BR101: -0.020875201 | BS101: -0.020875201 | BT101: -0.020875201 | BU101: -0.020875201 | BV101: -0.020875201 | BW101: -0.020875201
B102: =IF(Summary!$J$6=C102,1,0) -> 0 | C102: 25-49 | P102: =Model!CQ22 -> 0.4544901297 | Q102: =Model!CR22 -> 0.4541122218 | R102: =Model!CS22 -> 0.4537380658 | S102: =Model!CT22 -> 0.453367606 | T102: =Model!CU22 -> 0.4530007881 | U102: =Model!CV22 -> 0.4521960352 | V102: =Model!CW22 -> 0.451402179 | W102: =Model!CX22 -> 0.4506189998 | X102: =Model!CY22 -> 0.4498462836 | Y102: =Model!CZ22 -> 0.4490838221 | Z102: =Model!DA22 -> 0.4478456883 | AA102: =Model!DB22 -> 0.4466163723 | AB102: =Model!DC22 -> 0.4453957803 | AC102: =Model!DD22 -> 0.4441838198 | AD102: =Model!DE22 -> 0.4429803996 | AE102: =Model!DF22 -> 0.4416483315 | AF102: =Model!DG22 -> 0.4403215824 | AG102: =Model!DH22 -> 0.4390001204 | AH102: =Model!DI22 -> 0.437683914 | AI102: =Model!DJ22 -> 0.4363729318 | AJ102: =Model!DK22 -> 0.4363729318 | AK102: =Model!DL22 -> 0.4363729318 | AL102: =Model!DM22 -> 0.4363729318 | AM102: =Model!DN22 -> 0.4363729318 | AN102: =Model!DO22 -> 0.4363729318 | AO102: =Model!DP22 -> 0.4363729318 | AP102: =Model!DQ22 -> 0.4363729318 | AQ102: =Model!DR22 -> 0.4363729318 | AR102: =Model!DS22 -> 0.4363729318 | AS102: =Model!DT22 -> 0.4363729318 | AT102: -0.0003817164879 | AU102: -0.0007596243852 | AV102: -0.001133780409 | AW102: -0.001504240157 | AX102: -0.001871058133 | AY102: -0.002675811049 | AZ102: -0.003469667185 | BA102: -0.004252846375 | BB102: -0.00502556258 | BC102: -0.00578802408 | BD102: =Z102-Z83 -> -0.007026157939 | BE102: -0.008255473919 | BF102: -0.009476065884 | BG102: -0.01068802637 | BH102: -0.01189144662 | BI102: -0.01322351466 | BJ102: -0.01455026379 | BK102: -0.01587172579 | BL102: -0.01718793222 | BM102: -0.01849891436 | BN102: -0.01849891436 | BO102: -0.01849891436 | BP102: -0.01849891436 | BQ102: -0.01849891436 | BR102: -0.01849891436 | BS102: -0.01849891436 | BT102: -0.01849891436 | BU102: -0.01849891436 | BV102: -0.01849891436 | BW102: -0.01849891436
B103: =IF(Summary!$J$6=C103,1,0) -> 0 | C103: 25-54 | P103: =Model!CQ23 -> 0.4481972343 | Q103: =Model!CR23 -> 0.4490917532 | R103: =Model!CS23 -> 0.4499799507 | S103: =Model!CT23 -> 0.4508618935 | T103: =Model!CU23 -> 0.4517376475 | U103: =Model!CV23 -> 0.4513947682 | V103: =Model!CW23 -> 0.4510548373 | W103: =Model!CX23 -> 0.450717817 | X103: =Model!CY23 -> 0.45038367 | Y103: =Model!CZ23 -> 0.4500523597 | Z103: =Model!DA23 -> 0.449383705 | AA103: =Model!DB23 -> 0.4487226043 | AB103: =Model!DC23 -> 0.4480689301 | AC103: =Model!DD23 -> 0.4474225581 | AD103: =Model!DE23 -> 0.4467833666 | AE103: =Model!DF23 -> 0.4457731791 | AF103: =Model!DG23 -> 0.4447690589 | AG103: =Model!DH23 -> 0.4437709515 | AH103: =Model!DI23 -> 0.4427788031 | AI103: =Model!DJ23 -> 0.4417925605 | AJ103: =Model!DK23 -> 0.4407010156 | AK103: =Model!DL23 -> 0.4396133004 | AL103: =Model!DM23 -> 0.4385293946 | AM103: =Model!DN23 -> 0.4374492784 | AN103: =Model!DO23 -> 0.4363729318 | AO103: =Model!DP23 -> 0.4363729318 | AP103: =Model!DQ23 -> 0.4363729318 | AQ103: =Model!DR23 -> 0.4363729318 | AR103: =Model!DS23 -> 0.4363729318 | AS103: =Model!DT23 -> 0.4363729318 | AT103: 0.0009009081876 | AU103: 0.001795427169 | AV103: 0.002683624672 | AW103: 0.00356556747 | AX103: 0.0044413214 | AY103: 0.004098442114 | AZ103: 0.003758511239 | BA103: 0.003421490908 | BB103: 0.003087343898 | BC103: 0.002756033621 | BD103: =Z103-Z84 -> 0.002087378972 | BE103: 0.001426278215 | BF103: 0.0007726040633 | BG103: 0.000126232074 | BH103: -0.0005129594318 | BI103: -0.00152314698 | BJ103: -0.002527267199 | BK103: -0.003525374587 | BL103: -0.00451752299 | BM103: -0.005503765616 | BN103: -0.006595310462 | BO103: -0.007683025698 | BP103: -0.008766931441 | BQ103: -0.00984704767 | BR103: -0.01092339422 | BS103: -0.01092339422 | BT103: -0.01092339422 | BU103: -0.01092339422 | BV103: -0.01092339422 | BW103: -0.01092339422
B104: =IF(Summary!$J$6=C104,1,0) -> 0 | C104: 25-59 | P104: =Model!CQ24 -> 0.4398247822 | Q104: =Model!CR24 -> 0.4413589875 | R104: =Model!CS24 -> 0.4428899352 | S104: =Model!CT24 -> 0.4444176356 | T104: =Model!CU24 -> 0.4459420992 | U104: =Model!CV24 -> 0.4466411357 | V104: =Model!CW24 -> 0.4473356901 | W104: =Model!CX24 -> 0.4480258055 | X104: =Model!CY24 -> 0.4487115243 | Y104: =Model!CZ24 -> 0.4493928883 | Z104: =Model!DA24 -> 0.4490811138 | AA104: =Model!DB24 -> 0.448771682 | AB104: =Model!DC24 -> 0.4484645664 | AC104: =Model!DD24 -> 0.4481597412 | AD104: =Model!DE24 -> 0.4478571808 | AE104: =Model!DF24 -> 0.4472931045 | AF104: =Model!DG24 -> 0.446734437 | AG104: =Model!DH24 -> 0.4461811006 | AH104: =Model!DI24 -> 0.4456330196 | AI104: =Model!DJ24 -> 0.4450901193 | AJ104: =Model!DK24 -> 0.4442361249 | AK104: =Model!DL24 -> 0.4433866035 | AL104: =Model!DM24 -> 0.4425415199 | AM104: =Model!DN24 -> 0.4417008395 | AN104: =Model!DO24 -> 0.4408645279 | AO104: =Model!DP24 -> 0.4399606768 | AP104: =Model!DQ24 -> 0.4390596045 | AQ104: =Model!DR24 -> 0.438161298 | AR104: =Model!DS24 -> 0.4372657446 | AS104: =Model!DT24 -> 0.4363729318 | AT104: 0.001537473298 | AU104: 0.003071678589 | AV104: 0.004602626283 | AW104: 0.006130326743 | AX104: 0.007654790291 | AY104: 0.008353826757 | AZ104: 0.009048381203 | BA104: 0.009738496596 | BB104: 0.01042421536 | BC104: 0.01110557937 | BD104: =Z104-Z85 -> 0.01079380493 | BE104: 0.01048437306 | BF104: 0.01017725748 | BG104: 0.009872432264 | BH104: 0.009569871891 | BI104: 0.009005795637 | BJ104: 0.00844712805 | BK104: 0.007893791709 | BL104: 0.007345710664 | BM104: 0.006802810401 | BN104: 0.005948816038 | BO104: 0.005099294585 | BP104: 0.004254210992 | BQ104: 0.003413530576 | BR104: 0.002577219013 | BS104: 0.001673367937 | BT104: 0.0007722955463 | BU104: -0.0001260109532 | BV104: -0.001021564277 | BW104: -0.001914377063
B105: =IF(Summary!$J$6=C105,1,0) -> 1 | C105: 25-64 | P105: =Model!CQ25 -> 0.4331000568 | Q105: =Model!CR25 -> 0.4344288346 | R105: =Model!CS25 -> 0.4357537037 | S105: =Model!CT25 -> 0.4370746814 | T105: =Model!CU25 -> 0.4383917848 | U105: =Model!CV25 -> 0.4396584734 | V105: =Model!CW25 -> 0.4409223257 | W105: =Model!CX25 -> 0.4421833509 | X105: =Model!CY25 -> 0.4434415587 | Y105: =Model!CZ25 -> 0.4446969585 | Z105: =Model!DA25 -> 0.4452707232 | AA105: =Model!DB25 -> 0.4458411822 | AB105: =Model!DC25 -> 0.4464083641 | AC105: =Model!DD25 -> 0.446972297 | AD105: =Model!DE25 -> 0.4475330087 | AE105: =Model!DF25 -> 0.4472605162 | AF105: =Model!DG25 -> 0.4469898012 | AG105: =Model!DH25 -> 0.4467208465 | AH105: =Model!DI25 -> 0.446453635 | AI105: =Model!DJ25 -> 0.4461881496 | AJ105: =Model!DK25 -> 0.445704614 | AK105: =Model!DL25 -> 0.4452251417 | AL105: =Model!DM25 -> 0.4447496815 | AM105: =Model!DN25 -> 0.4442781834 | AN105: =Model!DO25 -> 0.443810598 | AO105: =Model!DP25 -> 0.4430923849 | AP105: =Model!DQ25 -> 0.4423774863 | AQ105: =Model!DR25 -> 0.4416658792 | AR105: =Model!DS25 -> 0.4409575411 | AS105: =Model!DT25 -> 0.4402524494 | AT105: 0.001332703745 | AU105: 0.002661481513 | AV105: 0.003986350627 | AW105: 0.005307328308 | AX105: 0.006624431675 | AY105: 0.00789112037 | AZ105: 0.009154972596 | BA105: 0.01041599787 | BB105: 0.01167420566 | BC105: 0.01292960541 | BD105: =Z105-Z86 -> 0.01350337011 | BE105: 0.01407382916 | BF105: 0.01464101104 | BG105: 0.01520494391 | BH105: 0.01576565561 | BI105: 0.0154931631 | BJ105: 0.01522244816 | BK105: 0.01495349346 | BL105: 0.01468628188 | BM105: 0.01442079654 | BN105: 0.01393726096 | BO105: 0.01345778859 | BP105: 0.01298232842 | BQ105: 0.01251083032 | BR105: 0.01204324495 | BS105: 0.01132503183 | BT105: 0.0106101332 | BU105: 0.009898526154 | BV105: 0.009190188024 | BW105: 0.008485096334
P107: Attainment | AT107: Incremental Gain Over Prior Lever
B108: Use | C108: C. Adding Past Gains in Traditional Pathway Levers | P108: 2019 | Q108: 2020 | R108: 2021 | S108: 2022 | T108: 2023 | U108: 2024 | V108: 2025 | W108: 2026 | X108: 2027 | Y108: 2028 | Z108: 2029 | AA108: 2030 | AB108: 2031 | AC108: 2032 | AD108: 2033 | AE108: 2034 | AF108: 2035 | AG108: 2036 | AH108: 2037 | AI108: 2038 | AJ108: 2039 | AK108: 2040 | AL108: 2041 | AM108: 2042 | AN108: 2043 | AO108: 2044 | AP108: 2045 | AQ108: 2046 | AR108: 2047 | AS108: 2048 | AT108: 2019 | AU108: 2020 | AV108: 2021 | AW108: 2022 | AX108: 2023 | AY108: 2024 | AZ108: 2025 | BA108: 2026 | BB108: 2027 | BC108: 2028 | BD108: 2029 | BE108: 2030 | BF108: 2031 | BG108: 2032 | BH108: 2033 | BI108: 2034 | BJ108: 2035 | BK108: 2036 | BL108: 2037 | BM108: 2038 | BN108: 2039 | BO108: 2040 | BP108: 2041 | BQ108: 2042 | BR108: 2043 | BS108: 2044 | BT108: 2045 | BU108: 2046 | BV108: 2047 | BW108: 2048
B109: =IF(Summary!$J$6=C109,1,0) -> 0 | C109: 25-29 | P109: =Model!JC8 -> 0.4410731051 | Q109: =Model!JD8 -> 0.4485207152 | R109: =Model!JE8 -> 0.4591767284 | S109: =Model!JF8 -> 0.4707686244 | T109: =Model!JG8 -> 0.4840267973 | U109: =Model!JH8 -> 0.4928473494 | V109: =Model!JI8 -> 0.4999265393 | W109: =Model!JJ8 -> 0.5038806315 | X109: =Model!JK8 -> 0.5070915202 | Y109: =Model!JL8 -> 0.5088600439 | Z109: =Model!JM8 -> 0.5098542752 | AA109: =Model!JN8 -> 0.5098542431 | AB109: =Model!JO8 -> 0.5098542431 | AC109: =Model!JP8 -> 0.5098542753 | AD109: =Model!JQ8 -> 0.5098543396 | AE109: =Model!JR8 -> 0.5098542752 | AF109: =Model!JS8 -> 0.5098542431 | AG109: =Model!JT8 -> 0.5098542431 | AH109: =Model!JU8 -> 0.5098542753 | AI109: =Model!JV8 -> 0.5098543396 | AJ109: =Model!JW8 -> 0.5098542752 | AK109: =Model!JX8 -> 0.5098542431 | AL109: =Model!JY8 -> 0.5098542431 | AM109: =Model!JZ8 -> 0.5098542753 | AN109: =Model!KA8 -> 0.5098543396 | AO109: =Model!KB8 -> 0.5098542752 | AP109: =Model!KC8 -> 0.5098542431 | AQ109: =Model!KD8 -> 0.5098542431 | AR109: =Model!KE8 -> 0.5098542753 | AS109: =Model!KF8 -> 0.5098543396 | AT109: =P109-P90 -> 0.004700173231 | AU109: =Q109-Q90 -> 0.01214778339 | AV109: =R109-R90 -> 0.02280379659 | AW109: =S109-S90 -> 0.03439569255 | AX109: =T109-T90 -> 0.04765386546 | AY109: =U109-U90 -> 0.05647441758 | AZ109: =V109-V90 -> 0.06355360741 | BA109: =W109-W90 -> 0.06750769969 | BB109: =X109-X90 -> 0.07071858837 | BC109: =Y109-Y90 -> 0.07248711205 | BD109: =Z109-Z90 -> 0.07348134338 | BE109: 0.07348131124 | BF109: 0.07348131129 | BG109: 0.07348134347 | BH109: 0.07348140775 | BI109: 0.07348134338 | BJ109: 0.07348131124 | BK109: 0.07348131129 | BL109: 0.07348134347 | BM109: 0.07348140775 | BN109: 0.07348134338 | BO109: 0.07348131124 | BP109: 0.07348131129 | BQ109: 0.07348134347 | BR109: 0.07348140775 | BS109: 0.07348134338 | BT109: 0.07348131124 | BU109: 0.07348131129 | BV109: 0.07348134347 | BW109: 0.07348140775
B110: =IF(Summary!$J$6=C110,1,0) -> 0 | C110: 30-34 | P110: =Model!JC9 -> 0.4632071394 | Q110: =Model!JD9 -> 0.4561537873 | R110: =Model!JE9 -> 0.4493380457 | S110: =Model!JF9 -> 0.4427481066 | T110: =Model!JG9 -> 0.4363729318 | U110: =Model!JH9 -> 0.440934124 | V110: =Model!JI9 -> 0.4481615131 | W110: =Model!JJ9 -> 0.4585024349 | X110: =Model!JK9 -> 0.469751566 | Y110: =Model!JL9 -> 0.4826177033 | Z110: =Model!JM9 -> 0.4911774375 | AA110: =Model!JN9 -> 0.4980473002 | AB110: =Model!JO9 -> 0.5018844725 | AC110: =Model!JP9 -> 0.5050004173 | AD110: =Model!JQ9 -> 0.5067166469 | AE110: =Model!JR9 -> 0.5076814795 | AF110: =Model!JS9 -> 0.5076814483 | AG110: =Model!JT9 -> 0.5076814483 | AH110: =Model!JU9 -> 0.5076814795 | AI110: =Model!JV9 -> 0.5076815419 | AJ110: =Model!JW9 -> 0.5076814795 | AK110: =Model!JX9 -> 0.5076814483 | AL110: =Model!JY9 -> 0.5076814483 | AM110: =Model!JZ9 -> 0.5076814795 | AN110: =Model!KA9 -> 0.5076815419 | AO110: =Model!KB9 -> 0.5076814795 | AP110: =Model!KC9 -> 0.5076814483 | AQ110: =Model!KD9 -> 0.5076814483 | AR110: =Model!KE9 -> 0.5076814795 | AS110: =Model!KF9 -> 0.5076815419 | AT110: 0 | AU110: 0 | AV110: 0 | AW110: 0 | AX110: 0 | AY110: 0.004561192151 | AZ110: 0.01178858129 | BA110: 0.02212950309 | BB110: 0.03337863419 | BC110: 0.0462447715 | BD110: =Z110-Z91 -> 0.05480450561 | BE110: 0.06167436837 | BF110: 0.0655115407 | BG110: 0.06862748549 | BH110: 0.07034371507 | BI110: 0.07130854762 | BJ110: 0.07130851643 | BK110: 0.07130851647 | BL110: 0.0713085477 | BM110: 0.07130861009 | BN110: 0.07130854762 | BO110: 0.07130851643 | BP110: 0.07130851647 | BQ110: 0.0713085477 | BR110: 0.07130861009 | BS110: 0.07130854762 | BT110: 0.07130851643 | BU110: 0.07130851647 | BV110: 0.0713085477 | BW110: 0.07130861009
B111: =IF(Summary!$J$6=C111,1,0) -> 0 | C111: 35-39 | P111: =Model!JC10 -> 0.4681951287 | Q111: =Model!JD10 -> 0.4687886902 | R111: =Model!JE10 -> 0.469372317 | S111: =Model!JF10 -> 0.4699462565 | T111: =Model!JG10 -> 0.4705107478 | U111: =Model!JH10 -> 0.4632071394 | V111: =Model!JI10 -> 0.4561537873 | W111: =Model!JJ10 -> 0.4493380457 | X111: =Model!JK10 -> 0.4427481066 | Y111: =Model!JL10 -> 0.4363729318 | Z111: =Model!JM10 -> 0.4408199533 | AA111: =Model!JN10 -> 0.4478664345 | AB111: =Model!JO10 -> 0.4579485139 | AC111: =Model!JP10 -> 0.4689160694 | AD111: =Model!JQ10 -> 0.4814601559 | AE111: =Model!JR10 -> 0.4898056323 | AF111: =Model!JS10 -> 0.4965035364 | AG111: =Model!JT10 -> 0.5002446609 | AH111: =Model!JU10 -> 0.5032826108 | AI111: =Model!JV10 -> 0.5049558817 | AJ111: =Model!JW10 -> 0.5058965636 | AK111: =Model!JX10 -> 0.5058965332 | AL111: =Model!JY10 -> 0.5058965332 | AM111: =Model!JZ10 -> 0.5058965637 | AN111: =Model!KA10 -> 0.5058966245 | AO111: =Model!KB10 -> 0.5058965636 | AP111: =Model!KC10 -> 0.5058965332 | AQ111: =Model!KD10 -> 0.5058965332 | AR111: =Model!KE10 -> 0.5058965637 | AS111: =Model!KF10 -> 0.5058966245 | AT111: 0 | AU111: 0 | AV111: 0 | AW111: 0 | AX111: 0 | AY111: 0 | AZ111: 0 | BA111: 0 | BB111: 0 | BC111: 0 | BD111: =Z111-Z92 -> 0.004447021488 | BE111: 0.0114935027 | BF111: 0.0215755821 | BG111: 0.03254313753 | BH111: 0.04508722408 | BI111: 0.05343270048 | BJ111: 0.06013060452 | BK111: 0.06387172904 | BL111: 0.06690967898 | BM111: 0.06858294982 | BN111: 0.06952363176 | BO111: 0.06952360135 | BP111: 0.06952360139 | BQ111: 0.06952363184 | BR111: 0.06952369266 | BS111: 0.06952363176 | BT111: 0.06952360135 | BU111: 0.06952360139 | BV111: 0.06952363184 | BW111: 0.06952369266
B112: =IF(Summary!$J$6=C112,1,0) -> 0 | C112: 40-44 | P112: =Model!JC11 -> 0.4582730612 | Q112: =Model!JD11 -> 0.4607252586 | R112: =Model!JE11 -> 0.4630928913 | S112: =Model!JF11 -> 0.4653802594 | T112: =Model!JG11 -> 0.4675913766 | U112: =Model!JH11 -> 0.4681951287 | V112: =Model!JI11 -> 0.4687886902 | W112: =Model!JJ11 -> 0.469372317 | X112: =Model!JK11 -> 0.4699462565 | Y112: =Model!JL11 -> 0.4705107478 | Z112: =Model!JM11 -> 0.4632071394 | AA112: =Model!JN11 -> 0.4561537873 | AB112: =Model!JO11 -> 0.4493380457 | AC112: =Model!JP11 -> 0.4427481066 | AD112: =Model!JQ11 -> 0.4363729318 | AE112: =Model!JR11 -> 0.4407784238 | AF112: =Model!JS11 -> 0.4477590997 | AG112: =Model!JT11 -> 0.4577470252 | AH112: =Model!JU11 -> 0.4686121575 | AI112: =Model!JV11 -> 0.4810390981 | AJ112: =Model!JW11 -> 0.4893066383 | AK112: =Model!JX11 -> 0.4959419924 | AL112: =Model!JY11 -> 0.4996481795 | AM112: =Model!JZ11 -> 0.5026577589 | AN112: =Model!KA11 -> 0.5043154035 | AO112: =Model!KB11 -> 0.5052473006 | AP112: =Model!KC11 -> 0.5052472705 | AQ112: =Model!KD11 -> 0.5052472705 | AR112: =Model!KE11 -> 0.5052473007 | AS112: =Model!KF11 -> 0.505247361 | AT112: 0 | AU112: 0 | AV112: 0 | AW112: 0 | AX112: 0 | AY112: 0 | AZ112: 0 | BA112: 0 | BB112: 0 | BC112: 0 | BD112: =Z112-Z93 -> 0 | BE112: 0 | BF112: 0 | BG112: 0 | BH112: 0 | BI112: 0.004405491919 | BJ112: 0.01138616789 | BK112: 0.02137409339 | BL112: 0.03223922569 | BM112: 0.0446661663 | BN112: 0.05293370649 | BO112: 0.05956906056 | BP112: 0.0632752477 | BQ112: 0.06628482702 | BR112: 0.06794247162 | BS112: 0.06887436878 | BT112: 0.06887433866 | BU112: 0.0688743387 | BV112: 0.06887436886 | BW112: 0.06887442912
B113: =IF(Summary!$J$6=C113,1,0) -> 0 | C113: 45-49 | P113: =Model!JC12 -> 0.4469930847 | Q113: =Model!JD12 -> 0.4491155002 | R113: =Model!JE12 -> 0.4512786101 | S113: =Model!JF12 -> 0.4534835961 | T113: =Model!JG12 -> 0.4557316861 | U113: =Model!JH12 -> 0.4582730612 | V113: =Model!JI12 -> 0.4607252586 | W113: =Model!JJ12 -> 0.4630928913 | X113: =Model!JK12 -> 0.4653802594 | Y113: =Model!JL12 -> 0.4675913766 | Z113: =Model!JM12 -> 0.4681951287 | AA113: =Model!JN12 -> 0.4687886902 | AB113: =Model!JO12 -> 0.469372317 | AC113: =Model!JP12 -> 0.4699462565 | AD113: =Model!JQ12 -> 0.4705107478 | AE113: =Model!JR12 -> 0.4632071394 | AF113: =Model!JS12 -> 0.4561537873 | AG113: =Model!JT12 -> 0.4493380457 | AH113: =Model!JU12 -> 0.4427481066 | AI113: =Model!JV12 -> 0.4363729318 | AJ113: =Model!JW12 -> 0.4408356032 | AK113: =Model!JX12 -> 0.4479068824 | AL113: =Model!JY12 -> 0.4580244425 | AM113: =Model!JZ12 -> 0.4690305949 | AN113: =Model!KA12 -> 0.4816188264 | AO113: =Model!KB12 -> 0.4899936722 | AP113: =Model!KC12 -> 0.4967151474 | AQ113: =Model!KD12 -> 0.5004694377 | AR113: =Model!KE12 -> 0.5035180787 | AS113: =Model!KF12 -> 0.5051972381 | AT113: 0 | AU113: 0 | AV113: 0 | AW113: 0 | AX113: 0 | AY113: 0 | AZ113: 0 | BA113: 0 | BB113: 0 | BC113: 0 | BD113: =Z113-Z94 -> 0 | BE113: 0 | BF113: 0 | BG113: 0 | BH113: 0 | BI113: 0 | BJ113: 0 | BK113: 0 | BL113: 0 | BM113: 0 | BN113: 0.004462671403 | BO113: 0.01153395053 | BP113: 0.02165151068 | BQ113: 0.03265766302 | BR113: 0.0452458946 | BS113: 0.05362074033 | BT113: 0.06034221556 | BU113: 0.06409650582 | BV113: 0.06714514688 | BW113: 0.06882430628
B114: =IF(Summary!$J$6=C114,1,0) -> 0 | C114: 50-54 | P114: =Model!JC13 -> 0.4153893932 | Q114: =Model!JD13 -> 0.4226800593 | R114: =Model!JE13 -> 0.4300299353 | S114: =Model!JF13 -> 0.4374397455 | T114: =Model!JG13 -> 0.4449102258 | U114: =Model!JH13 -> 0.4469930847 | V114: =Model!JI13 -> 0.4491155002 | W114: =Model!JJ13 -> 0.4512786101 | X114: =Model!JK13 -> 0.4534835961 | Y114: =Model!JL13 -> 0.4557316861 | Z114: =Model!JM13 -> 0.4582730612 | AA114: =Model!JN13 -> 0.4607252586 | AB114: =Model!JO13 -> 0.4630928913 | AC114: =Model!JP13 -> 0.4653802594 | AD114: =Model!JQ13 -> 0.4675913766 | AE114: =Model!JR13 -> 0.4681951287 | AF114: =Model!JS13 -> 0.4687886902 | AG114: =Model!JT13 -> 0.469372317 | AH114: =Model!JU13 -> 0.4699462565 | AI114: =Model!JV13 -> 0.4705107478 | AJ114: =Model!JW13 -> 0.4632071394 | AK114: =Model!JX13 -> 0.4561537873 | AL114: =Model!JY13 -> 0.4493380457 | AM114: =Model!JZ13 -> 0.4427481066 | AN114: =Model!KA13 -> 0.4363729318 | AO114: =Model!KB13 -> 0.4409045227 | AP114: =Model!KC13 -> 0.4480850075 | AQ114: =Model!KD13 -> 0.4583588188 | AR114: =Model!KE13 -> 0.4695349452 | AS114: =Model!KF13 -> 0.4823175838 | AT114: 0 | AU114: 0 | AV114: 0 | AW114: 0 | AX114: 0 | AY114: 0 | AZ114: 0 | BA114: 0 | BB114: 0 | BC114: 0 | BD114: =Z114-Z95 -> 0 | BE114: 0 | BF114: 0 | BG114: 0 | BH114: 0 | BI114: 0 | BJ114: 0 | BK114: 0 | BL114: 0 | BM114: 0 | BN114: 0 | BO114: 0 | BP114: 0 | BQ114: 0 | BR114: 0 | BS114: 0.0045315909 | BT114: 0.01171207569 | BU114: 0.02198588691 | BV114: 0.03316201334 | BW114: 0.04594465192
B115: =IF(Summary!$J$6=C115,1,0) -> 0 | C115: 55-59 | P115: =Model!JC14 -> 0.3890344093 | Q115: =Model!JD14 -> 0.3936104434 | R115: =Model!JE14 -> 0.3983189732 | S115: =Model!JF14 -> 0.4031658378 | T115: =Model!JG14 -> 0.4081572244 | U115: =Model!JH14 -> 0.4153893932 | V115: =Model!JI14 -> 0.4226800593 | W115: =Model!JJ14 -> 0.4300299353 | X115: =Model!JK14 -> 0.4374397455 | Y115: =Model!JL14 -> 0.4449102258 | Z115: =Model!JM14 -> 0.4469930847 | AA115: =Model!JN14 -> 0.4491155002 | AB115: =Model!JO14 -> 0.4512786101 | AC115: =Model!JP14 -> 0.4534835961 | AD115: =Model!JQ14 -> 0.4557316861 | AE115: =Model!JR14 -> 0.4582730612 | AF115: =Model!JS14 -> 0.4607252586 | AG115: =Model!JT14 -> 0.4630928913 | AH115: =Model!JU14 -> 0.4653802594 | AI115: =Model!JV14 -> 0.4675913766 | AJ115: =Model!JW14 -> 0.4681951287 | AK115: =Model!JX14 -> 0.4687886902 | AL115: =Model!JY14 -> 0.469372317 | AM115: =Model!JZ14 -> 0.4699462565 | AN115: =Model!KA14 -> 0.4705107478 | AO115: =Model!KB14 -> 0.4632071394 | AP115: =Model!KC14 -> 0.4561537873 | AQ115: =Model!KD14 -> 0.4493380457 | AR115: =Model!KE14 -> 0.4427481066 | AS115: =Model!KF14 -> 0.4363729318 | AT115: 0 | AU115: 0 | AV115: 0 | AW115: 0 | AX115: 0 | AY115: 0 | AZ115: 0 | BA115: 0 | BB115: 0 | BC115: 0 | BD115: =Z115-Z96 -> 0 | BE115: 0 | BF115: 0 | BG115: 0 | BH115: 0 | BI115: 0 | BJ115: 0 | BK115: 0 | BL115: 0 | BM115: 0 | BN115: 0 | BO115: 0 | BP115: 0 | BQ115: 0 | BR115: 0 | BS115: 0 | BT115: 0 | BU115: 0 | BV115: 0 | BW115: 0
B116: =IF(Summary!$J$6=C116,1,0) -> 0 | C116: 60-64 | P116: =Model!JC15 -> 0.3845317312 | Q116: =Model!JD15 -> 0.3845453154 | R116: =Model!JE15 -> 0.3845587798 | S116: =Model!JF15 -> 0.3845721262 | T116: =Model!JG15 -> 0.384585356 | U116: =Model!JH15 -> 0.3890344093 | V116: =Model!JI15 -> 0.3936104434 | W116: =Model!JJ15 -> 0.3983189732 | X116: =Model!JK15 -> 0.4031658378 | Y116: =Model!JL15 -> 0.4081572244 | Z116: =Model!JM15 -> 0.4153893932 | AA116: =Model!JN15 -> 0.4226800593 | AB116: =Model!JO15 -> 0.4300299353 | AC116: =Model!JP15 -> 0.4374397455 | AD116: =Model!JQ15 -> 0.4449102258 | AE116: =Model!JR15 -> 0.4469930847 | AF116: =Model!JS15 -> 0.4491155002 | AG116: =Model!JT15 -> 0.4512786101 | AH116: =Model!JU15 -> 0.4534835961 | AI116: =Model!JV15 -> 0.4557316861 | AJ116: =Model!JW15 -> 0.4582730612 | AK116: =Model!JX15 -> 0.4607252586 | AL116: =Model!JY15 -> 0.4630928913 | AM116: =Model!JZ15 -> 0.4653802594 | AN116: =Model!KA15 -> 0.4675913766 | AO116: =Model!KB15 -> 0.4681951287 | AP116: =Model!KC15 -> 0.4687886902 | AQ116: =Model!KD15 -> 0.469372317 | AR116: =Model!KE15 -> 0.4699462565 | AS116: =Model!KF15 -> 0.4705107478 | AT116: 0 | AU116: 0 | AV116: 0 | AW116: 0 | AX116: 0 | AY116: 0 | AZ116: 0 | BA116: 0 | BB116: 0 | BC116: 0 | BD116: =Z116-Z97 -> 0 | BE116: 0 | BF116: 0 | BG116: 0 | BH116: 0 | BI116: 0 | BJ116: 0 | BK116: 0 | BL116: 0 | BM116: 0 | BN116: 0 | BO116: 0 | BP116: 0 | BQ116: 0 | BR116: 0 | BS116: 0 | BT116: 0 | BU116: 0 | BV116: 0 | BW116: 0
B117: =IF(Summary!$J$6=C117,1,0) -> 0 | C117: 25-29 | P117: =Model!JC18 -> 0.4410731051 | Q117: =Model!JD18 -> 0.4485207152 | R117: =Model!JE18 -> 0.4591767284 | S117: =Model!JF18 -> 0.4707686244 | T117: =Model!JG18 -> 0.4840267973 | U117: =Model!JH18 -> 0.4928473494 | V117: =Model!JI18 -> 0.4999265393 | W117: =Model!JJ18 -> 0.5038806315 | X117: =Model!JK18 -> 0.5070915202 | Y117: =Model!JL18 -> 0.5088600439 | Z117: =Model!JM18 -> 0.5098542752 | AA117: =Model!JN18 -> 0.5098542431 | AB117: =Model!JO18 -> 0.5098542431 | AC117: =Model!JP18 -> 0.5098542753 | AD117: =Model!JQ18 -> 0.5098543396 | AE117: =Model!JR18 -> 0.5098542752 | AF117: =Model!JS18 -> 0.5098542431 | AG117: =Model!JT18 -> 0.5098542431 | AH117: =Model!JU18 -> 0.5098542753 | AI117: =Model!JV18 -> 0.5098543396 | AJ117: =Model!JW18 -> 0.5098542752 | AK117: =Model!JX18 -> 0.5098542431 | AL117: =Model!JY18 -> 0.5098542431 | AM117: =Model!JZ18 -> 0.5098542753 | AN117: =Model!KA18 -> 0.5098543396 | AO117: =Model!KB18 -> 0.5098542752 | AP117: =Model!KC18 -> 0.5098542431 | AQ117: =Model!KD18 -> 0.5098542431 | AR117: =Model!KE18 -> 0.5098542753 | AS117: =Model!KF18 -> 0.5098543396 | AT117: 0.004700173231 | AU117: 0.01214778339 | AV117: 0.02280379659 | AW117: 0.03439569255 | AX117: 0.04765386546 | AY117: 0.05647441758 | AZ117: 0.06355360741 | BA117: 0.06750769969 | BB117: 0.07071858837 | BC117: 0.07248711205 | BD117: =Z117-Z98 -> 0.07348134338 | BE117: 0.07348131124 | BF117: 0.07348131129 | BG117: 0.07348134347 | BH117: 0.07348140775 | BI117: 0.07348134338 | BJ117: 0.07348131124 | BK117: 0.07348131129 | BL117: 0.07348134347 | BM117: 0.07348140775 | BN117: 0.07348134338 | BO117: 0.07348131124 | BP117: 0.07348131129 | BQ117: 0.07348134347 | BR117: 0.07348140775 | BS117: 0.07348134338 | BT117: 0.07348131124 | BU117: 0.07348131129 | BV117: 0.07348134347 | BW117: 0.07348140775
B118: =IF(Summary!$J$6=C118,1,0) -> 0 | C118: 25-34 | P118: =Model!JC19 -> 0.4519821676 | Q118: =Model!JD19 -> 0.4523327685 | R118: =Model!JE19 -> 0.4541992543 | S118: =Model!JF19 -> 0.4564122564 | T118: =Model!JG19 -> 0.4593066625 | U118: =Model!JH19 -> 0.4660444474 | V118: =Model!JI19 -> 0.4733275873 | W118: =Model!JJ19 -> 0.4806761311 | X118: =Model!JK19 -> 0.4880909022 | Y118: =Model!JL19 -> 0.495572738 | Z118: =Model!JM19 -> 0.5003963214 | AA118: =Model!JN19 -> 0.5038743877 | AB118: =Model!JO19 -> 0.5058172472 | AC118: =Model!JP19 -> 0.5073952742 | AD118: =Model!JQ19 -> 0.5082645446 | AE118: =Model!JR19 -> 0.5087533708 | AF118: =Model!JS19 -> 0.5087533391 | AG118: =Model!JT19 -> 0.5087533391 | AH118: =Model!JU19 -> 0.5087533708 | AI118: =Model!JV19 -> 0.5087534342 | AJ118: =Model!JW19 -> 0.5087533708 | AK118: =Model!JX19 -> 0.5087533391 | AL118: =Model!JY19 -> 0.5087533391 | AM118: =Model!JZ19 -> 0.5087533708 | AN118: =Model!KA19 -> 0.5087534342 | AO118: =Model!KB19 -> 0.5087533708 | AP118: =Model!KC19 -> 0.5087533391 | AQ118: =Model!KD19 -> 0.5087533391 | AR118: =Model!KE19 -> 0.5087533708 | AS118: =Model!KF19 -> 0.5087534342 | AT118: 0.002383628367 | AU118: 0.006081025853 | AV118: 0.01126715991 | AW118: 0.01677299102 | AX118: 0.02293373064 | AY118: 0.02967151557 | AZ118: 0.03695465547 | BA118: 0.04430319924 | BB118: 0.05171797036 | BC118: 0.05919980616 | BD118: =Z118-Z99 -> 0.06402338952 | BE118: 0.06750145585 | BF118: 0.06944431536 | BG118: 0.07102234235 | BH118: 0.07189161273 | BI118: 0.07238043892 | BJ118: 0.07238040726 | BK118: 0.0723804073 | BL118: 0.07238043901 | BM118: 0.07238050232 | BN118: 0.07238043892 | BO118: 0.07238040726 | BP118: 0.0723804073 | BQ118: 0.07238043901 | BR118: 0.07238050232 | BS118: 0.07238043892 | BT118: 0.07238040726 | BU118: 0.0723804073 | BV118: 0.07238043901 | BW118: 0.07238050232
B119: =IF(Summary!$J$6=C119,1,0) -> 0 | C119: 25-39 | P119: =Model!JC20 -> 0.457243031 | Q119: =Model!JD20 -> 0.4576883323 | R119: =Model!JE20 -> 0.4591517797 | S119: =Model!JF20 -> 0.4608425515 | T119: =Model!JG20 -> 0.4629847226 | U119: =Model!JH20 -> 0.4650993899 | V119: =Model!JI20 -> 0.4675252953 | W119: =Model!JJ20 -> 0.4699396098 | X119: =Model!JK20 -> 0.4723424407 | Y119: =Model!JL20 -> 0.4747338938 | Z119: =Model!JM20 -> 0.479555754 | AA119: =Model!JN20 -> 0.4844057278 | AB119: =Model!JO20 -> 0.4892840363 | AC119: =Model!JP20 -> 0.494190903 | AD119: =Model!JQ20 -> 0.4991265536 | AE119: =Model!JR20 -> 0.5022926405 | AF119: =Model!JS20 -> 0.5045756838 | AG119: =Model!JT20 -> 0.5058510228 | AH119: =Model!JU20 -> 0.5068869511 | AI119: =Model!JV20 -> 0.5074576153 | AJ119: =Model!JW20 -> 0.5077785574 | AK119: =Model!JX20 -> 0.5077785262 | AL119: =Model!JY20 -> 0.5077785263 | AM119: =Model!JZ20 -> 0.5077785575 | AN119: =Model!KA20 -> 0.50777862 | AO119: =Model!KB20 -> 0.5077785574 | AP119: =Model!KC20 -> 0.5077785262 | AQ119: =Model!KD20 -> 0.5077785263 | AR119: =Model!KE20 -> 0.5077785575 | AS119: =Model!KF20 -> 0.50777862 | AT119: 0.001610176615 | AU119: 0.004101961881 | AV119: 0.007589530902 | AW119: 0.01128242656 | AX119: 0.01540508043 | AY119: 0.01978845423 | AZ119: 0.02446925901 | BA119: 0.02912479144 | BB119: 0.0337552829 | BC119: 0.03836096198 | BD119: =Z119-Z100 -> 0.04318282215 | BE119: 0.04803279594 | BF119: 0.05291110447 | BG119: 0.05781797114 | BH119: 0.06275362173 | BI119: 0.06591970864 | BJ119: 0.06820275198 | BK119: 0.06947809095 | BL119: 0.07051401926 | BM119: 0.07108468341 | BN119: 0.0714056256 | BO119: 0.07140559437 | BP119: 0.07140559441 | BQ119: 0.07140562569 | BR119: 0.07140568815 | BS119: 0.0714056256 | BT119: 0.07140559437 | BU119: 0.07140559441 | BV119: 0.07140562569 | BW119: 0.07140568815
B120: =IF(Summary!$J$6=C120,1,0) -> 0 | C120: 25-44 | P120: =Model!JC21 -> 0.4574826177 | Q120: =Model!JD21 -> 0.4584013571 | R120: =Model!JE21 -> 0.4600855564 | S120: =Model!JF21 -> 0.4619272656 | T120: =Model!JG21 -> 0.4640954898 | U120: =Model!JH21 -> 0.4658489564 | V120: =Model!JI21 -> 0.4678324593 | W120: =Model!JJ21 -> 0.4698011254 | X120: =Model!JK21 -> 0.4717551485 | Y120: =Model!JL21 -> 0.473694719 | Z120: =Model!JM21 -> 0.4754714353 | AA120: =Model!JN21 -> 0.4772419241 | AB120: =Model!JO21 -> 0.4790062319 | AC120: =Model!JP21 -> 0.4807644049 | AD120: =Model!JQ21 -> 0.4825164884 | AE120: =Model!JR21 -> 0.4861252491 | AF120: =Model!JS21 -> 0.4897491843 | AG120: =Model!JT21 -> 0.4933883767 | AH120: =Model!JU21 -> 0.4970429095 | AI120: =Model!JV21 -> 0.5007128667 | AJ120: =Model!JW21 -> 0.5030616314 | AK120: =Model!JX21 -> 0.5047553659 | AL120: =Model!JY21 -> 0.5057015328 | AM120: =Model!JZ21 -> 0.5064701199 | AN120: =Model!KA21 -> 0.5068935368 | AO120: =Model!KB21 -> 0.5071316522 | AP120: =Model!KC21 -> 0.5071316213 | AQ120: =Model!KD21 -> 0.5071316213 | AR120: =Model!KE21 -> 0.5071316523 | AS120: =Model!KF21 -> 0.5071317142 | AT120: 0.001235646896 | AU120: 0.003138882734 | AV120: 0.005791325664 | AW120: 0.00858542462 | AX120: 0.01169057118 | AY120: 0.01499710578 | AZ120: 0.01852014953 | BA120: 0.02201500544 | BB120: 0.02548204016 | BC120: 0.02892161402 | BD120: =Z120-Z101 -> 0.03239460469 | BE120: 0.0358531893 | BF120: 0.03929747334 | BG120: 0.04272756128 | BH120: 0.04614355659 | BI120: 0.04975231723 | BJ120: 0.05337625241 | BK120: 0.05701544482 | BL120: 0.06066997769 | BM120: 0.06433993486 | BN120: 0.06668869952 | BO120: 0.0683824341 | BP120: 0.06932860099 | BQ120: 0.07009718803 | BR120: 0.07052060493 | BS120: 0.07075872036 | BT120: 0.07075868941 | BU120: 0.07075868945 | BV120: 0.07075872044 | BW120: 0.07075878234
B121: =IF(Summary!$J$6=C121,1,0) -> 0 | C121: 25-49 | P121: =Model!JC22 -> 0.4554911903 | Q121: =Model!JD22 -> 0.4566637411 | R121: =Model!JE22 -> 0.4584613087 | S121: =Model!JF22 -> 0.4603925635 | T121: =Model!JG22 -> 0.4625974185 | U121: =Model!JH22 -> 0.4644767543 | V121: =Model!JI22 -> 0.4665310322 | W121: =Model!JJ22 -> 0.4685596081 | X121: =Model!JK22 -> 0.4705629982 | Y121: =Model!JL22 -> 0.4725417052 | Z121: =Model!JM22 -> 0.4740899854 | AA121: =Model!JN22 -> 0.4756291316 | AB121: =Model!JO22 -> 0.4771592424 | AC121: =Model!JP22 -> 0.4786804147 | AD121: =Model!JQ22 -> 0.4801927445 | AE121: =Model!JR22 -> 0.4816197242 | AF121: =Model!JS22 -> 0.4830428776 | AG121: =Model!JT22 -> 0.4844622286 | AH121: =Model!JU22 -> 0.4858778012 | AI121: =Model!JV22 -> 0.4872896192 | AJ121: =Model!JW22 -> 0.4901774703 | AK121: =Model!JX22 -> 0.4930744609 | AL121: =Model!JY22 -> 0.495980627 | AM121: =Model!JZ22 -> 0.4988960044 | AN121: =Model!KA22 -> 0.5018206292 | AO121: =Model!KB22 -> 0.5036911115 | AP121: =Model!KC22 -> 0.5050399957 | AQ121: =Model!KD22 -> 0.5057935607 | AR121: =Model!KE22 -> 0.506405727 | AS121: =Model!KF22 -> 0.5067430146 | AT121: 0.001001060562 | AU121: 0.002551519313 | AV121: 0.004723242868 | AW121: 0.007024957493 | AX121: 0.009596630421 | AY121: 0.01228071915 | AZ121: 0.01512885322 | BA121: 0.01794060827 | BB121: 0.02071671459 | BC121: 0.02345788307 | BD121: =Z121-Z102 -> 0.0262442971 | BE121: 0.02901275931 | BF121: 0.03176346203 | BG121: 0.03449659491 | BH121: 0.03721234488 | BI121: 0.0399713927 | BJ121: 0.04272129517 | BK121: 0.04546210821 | BL121: 0.04819388727 | BM121: 0.05091668736 | BN121: 0.05380453843 | BO121: 0.05670152908 | BP121: 0.05960769512 | BQ121: 0.06252307251 | BR121: 0.06544769741 | BS121: 0.06731817969 | BT121: 0.06866706387 | BU121: 0.06942062882 | BV121: 0.07003279516 | BW121: 0.07037008278
B122: =IF(Summary!$J$6=C122,1,0) -> 0 | C122: 25-54 | P122: =Model!JC23 -> 0.4490371835 | Q122: =Model!JD23 -> 0.4512357339 | R122: =Model!JE23 -> 0.4539544846 | S122: =Model!JF23 -> 0.4567817105 | T122: =Model!JG23 -> 0.4598360021 | U122: =Model!JH23 -> 0.4617842268 | V122: =Model!JI23 -> 0.4638856494 | W122: =Model!JJ23 -> 0.4659707175 | X122: =Model!JK23 -> 0.4680396414 | Y122: =Model!JL23 -> 0.4700926276 | Z122: =Model!JM23 -> 0.4717570205 | AA122: =Model!JN23 -> 0.4734042207 | AB122: =Model!JO23 -> 0.4750345191 | AC122: =Model!JP23 -> 0.4766481997 | AD122: =Model!JQ23 -> 0.4782455407 | AE122: =Model!JR23 -> 0.4795338074 | AF122: =Model!JS23 -> 0.4808159157 | AG122: =Model!JT23 -> 0.482091922 | AH122: =Model!JU23 -> 0.4833618818 | AI122: =Model!JV23 -> 0.4846258503 | AJ122: =Model!JW23 -> 0.4858274312 | AK122: =Model!JX23 -> 0.4870263611 | AL122: =Model!JY23 -> 0.4882226549 | AM122: =Model!JZ23 -> 0.4894163276 | AN122: =Model!KA23 -> 0.4906073938 | AO122: =Model!KB23 -> 0.4930187282 | AP122: =Model!KC23 -> 0.4954360348 | AQ122: =Model!KD23 -> 0.4978593309 | AR122: =Model!KE23 -> 0.5002886342 | AS122: =Model!KF23 -> 0.502723962 | AT122: 0.0008399492887 | AU122: 0.002143980616 | AV122: 0.00397453389 | AW122: 0.00591981699 | AX122: 0.008098354633 | AY122: 0.01038945866 | AZ122: 0.01283081214 | BA122: 0.01525290057 | BB122: 0.0176559714 | BC122: 0.02004026787 | BD122: =Z122-Z103 -> 0.02237331545 | BE122: 0.02468161646 | BF122: 0.02696558893 | BG122: 0.02922564159 | BH122: 0.03146217407 | BI122: 0.03376062836 | BJ122: 0.03604685688 | BK122: 0.0383209705 | BL122: 0.04058307876 | BM122: 0.04283328987 | BN122: 0.04512641561 | BO122: 0.04741306073 | BP122: 0.04969326032 | BQ122: 0.05196704921 | BR122: 0.05423446199 | BS122: 0.0566457964 | BT122: 0.05906310296 | BU122: 0.06148639911 | BV122: 0.06391570231 | BW122: 0.06635103014
B123: =IF(Summary!$J$6=C123,1,0) -> 0 | C123: 25-59 | P123: =Model!JC24 -> 0.4405458657 | Q123: =Model!JD24 -> 0.4432041486 | R123: =Model!JE24 -> 0.4463189992 | S123: =Model!JF24 -> 0.4495376207 | T123: =Model!JG24 -> 0.4529634931 | U123: =Model!JH24 -> 0.4556589194 | V123: =Model!JI24 -> 0.4584847383 | W123: =Model!JJ24 -> 0.4612939217 | X123: =Model!JK24 -> 0.4640866297 | Y123: =Model!JL24 -> 0.4668630201 | Z123: =Model!JM24 -> 0.4686225415 | AA123: =Model!JN24 -> 0.4703702515 | AB123: =Model!JO24 -> 0.4721062836 | AC123: =Model!JP24 -> 0.4738307693 | AD123: =Model!JQ24 -> 0.4755438383 | AE123: =Model!JR24 -> 0.4769486031 | AF123: =Model!JS24 -> 0.4783412828 | AG123: =Model!JT24 -> 0.4797220514 | AH123: =Model!JU24 -> 0.4810910794 | AI123: =Model!JV24 -> 0.4824485342 | AJ123: =Model!JW24 -> 0.4835603235 | AK123: =Model!JX24 -> 0.4846676519 | AL123: =Model!JY24 -> 0.4857705554 | AM123: =Model!JZ24 -> 0.4868690693 | AN123: =Model!KA24 -> 0.4879632289 | AO123: =Model!KB24 -> 0.4890329061 | AP123: =Model!KC24 -> 0.4901006468 | AQ123: =Model!KD24 -> 0.4911664609 | AR123: =Model!KE24 -> 0.492230358 | AS123: =Model!KF24 -> 0.4932923479 | AT123: 0.0007210835119 | AU123: 0.001845161069 | AV123: 0.003429064012 | AW123: 0.00511998508 | AX123: 0.007021393882 | AY123: 0.009017783777 | AZ123: 0.01114904818 | BA123: 0.01326811624 | BB123: 0.01537510545 | BC123: 0.0174701318 | BD123: =Z123-Z104 -> 0.01954142769 | BE123: 0.02159856955 | BF123: 0.02364171721 | BG123: 0.02567102816 | BH123: 0.02768665754 | BI123: 0.02965549856 | BJ123: 0.03160684585 | BK123: 0.03354095075 | BL123: 0.03545805978 | BM123: 0.03735841485 | BN123: 0.03932419851 | BO123: 0.04128104841 | BP123: 0.04322903546 | BQ123: 0.04516822983 | BR123: 0.04709870095 | BS123: 0.04907222926 | BT123: 0.05104104239 | BU123: 0.05300516295 | BV123: 0.05496461341 | BW123: 0.05691941609
B124: =IF(Summary!$J$6=C124,1,0) -> 1 | C124: 25-64 | P124: =Model!JC25 -> 0.4337334424 | Q124: =Model!JD25 -> 0.4360489222 | R124: =Model!JE25 -> 0.4387632561 | S124: =Model!JF25 -> 0.441566452 | T124: =Model!JG25 -> 0.4445491541 | U124: =Model!JH25 -> 0.447583188 | V124: =Model!JI25 -> 0.4507404743 | W124: =Model!JJ25 -> 0.4538919559 | X124: =Model!JK25 -> 0.4570376532 | Y124: =Model!JL25 -> 0.4601775864 | Z124: =Model!JM25 -> 0.4626020983 | AA124: =Model!JN25 -> 0.4650138926 | AB124: =Model!JO25 -> 0.4674130797 | AC124: =Model!JP25 -> 0.4697997687 | AD124: =Model!JQ25 -> 0.4721740676 | AE124: =Model!JR25 -> 0.4736948139 | AF124: =Model!JS25 -> 0.475206876 | AG124: =Model!JT25 -> 0.4767103392 | AH124: =Model!JU25 -> 0.478205288 | AI124: =Model!JV25 -> 0.4796918058 | AJ124: =Model!JW25 -> 0.4809148695 | AK124: =Model!JX25 -> 0.4821288734 | AL124: =Model!JY25 -> 0.4833339322 | AM124: =Model!JZ25 -> 0.4845301584 | AN124: =Model!KA25 -> 0.4857176628 | AO124: =Model!KB25 -> 0.4867216221 | AP124: =Model!KC25 -> 0.4877221494 | AQ124: =Model!KD25 -> 0.4887192692 | AR124: =Model!KE25 -> 0.4897130056 | AS124: =Model!KF25 -> 0.4907033827 | AT124: 0.0006333855371 | AU124: 0.001620087634 | AV124: 0.003009552442 | AW124: 0.004491770589 | AX124: 0.006157369345 | AY124: 0.007924714581 | AZ124: 0.009818148586 | BA124: 0.01170860495 | BB124: 0.01359609448 | BC124: 0.01548062794 | BD124: =Z124-Z105 -> 0.01733137514 | BE124: 0.01917271037 | BF124: 0.02100471556 | BG124: 0.0228274717 | BH124: 0.02464105887 | BI124: 0.02643429775 | BJ124: 0.02821707473 | BK124: 0.02998949267 | BL124: 0.03175165309 | BM124: 0.03350365619 | BN124: 0.03521025545 | BO124: 0.03690373178 | BP124: 0.03858425072 | BQ124: 0.04025197503 | BR124: 0.04190706477 | BS124: 0.04362923724 | BT124: 0.04534466317 | BU124: 0.04705338992 | BV124: 0.04875546446 | BW124: 0.05045093331
P126: Attainment | AT126: Incremental Gain Over Prior Lever
B127: Use | C127: D. Adding Historical Gains for Adult Cohorts as they age | P127: 2019 | Q127: 2020 | R127: 2021 | S127: 2022 | T127: 2023 | U127: 2024 | V127: 2025 | W127: 2026 | X127: 2027 | Y127: 2028 | Z127: 2029 | AA127: 2030 | AB127: 2031 | AC127: 2032 | AD127: 2033 | AE127: 2034 | AF127: 2035 | AG127: 2036 | AH127: 2037 | AI127: 2038 | AJ127: 2039 | AK127: 2040 | AL127: 2041 | AM127: 2042 | AN127: 2043 | AO127: 2044 | AP127: 2045 | AQ127: 2046 | AR127: 2047 | AS127: 2048 | AT127: 2019 | AU127: 2020 | AV127: 2021 | AW127: 2022 | AX127: 2023 | AY127: 2024 | AZ127: 2025 | BA127: 2026 | BB127: 2027 | BC127: 2028 | BD127: 2029 | BE127: 2030 | BF127: 2031 | BG127: 2032 | BH127: 2033 | BI127: 2034 | BJ127: 2035 | BK127: 2036 | BL127: 2037 | BM127: 2038 | BN127: 2039 | BO127: 2040 | BP127: 2041 | BQ127: 2042 | BR127: 2043 | BS127: 2044 | BT127: 2045 | BU127: 2046 | BV127: 2047 | BW127: 2048
B128: =IF(Summary!$J$6=C128,1,0) -> 0 | C128: 25-29 | P128: =Model!KT8 -> 0.4410731051 | Q128: =Model!KU8 -> 0.4485207152 | R128: =Model!KV8 -> 0.4591767284 | S128: =Model!KW8 -> 0.4707686244 | T128: =Model!KX8 -> 0.4840267973 | U128: =Model!KY8 -> 0.4928473494 | V128: =Model!KZ8 -> 0.4999265393 | W128: =Model!LA8 -> 0.5038806315 | X128: =Model!LB8 -> 0.5070915202 | Y128: =Model!LC8 -> 0.5088600439 | Z128: =Model!LD8 -> 0.5098542752 | AA128: =Model!LE8 -> 0.5098542431 | AB128: =Model!LF8 -> 0.5098542431 | AC128: =Model!LG8 -> 0.5098542753 | AD128: =Model!LH8 -> 0.5098543396 | AE128: =Model!LI8 -> 0.5098542752 | AF128: =Model!LJ8 -> 0.5098542431 | AG128: =Model!LK8 -> 0.5098542431 | AH128: =Model!LL8 -> 0.5098542753 | AI128: =Model!LM8 -> 0.5098543396 | AJ128: =Model!LN8 -> 0.5098542752 | AK128: =Model!LO8 -> 0.5098542431 | AL128: =Model!LP8 -> 0.5098542431 | AM128: =Model!LQ8 -> 0.5098542753 | AN128: =Model!LR8 -> 0.5098543396 | AO128: =Model!LS8 -> 0.5098542752 | AP128: =Model!LT8 -> 0.5098542431 | AQ128: =Model!LU8 -> 0.5098542431 | AR128: =Model!LV8 -> 0.5098542753 | AS128: =Model!LW8 -> 0.5098543396 | AT128: =P128-P109 -> 0 | AU128: =Q128-Q109 -> 0 | AV128: =R128-R109 -> 0 | AW128: =S128-S109 -> 0 | AX128: =T128-T109 -> 0 | AY128: =U128-U109 -> 0 | AZ128: =V128-V109 -> 0 | BA128: =W128-W109 -> 0 | BB128: =X128-X109 -> 0 | BC128: =Y128-Y109 -> 0 | BD128: =Z128-Z109 -> 0 | BE128: 0 | BF128: 0 | BG128: 0 | BH128: 0 | BI128: 0 | BJ128: 0 | BK128: 0 | BL128: 0 | BM128: 0 | BN128: 0 | BO128: 0 | BP128: 0 | BQ128: 0 | BR128: 0 | BS128: 0 | BT128: 0 | BU128: 0 | BV128: 0 | BW128: 0
B129: =IF(Summary!$J$6=C129,1,0) -> 0 | C129: 30-34 | P129: =Model!KT9 -> 0.4766824848 | Q129: =Model!KU9 -> 0.4826427489 | R129: =Model!KV9 -> 0.4884022261 | S129: =Model!KW9 -> 0.4939708943 | T129: =Model!KX9 -> 0.4993580811 | U129: =Model!KY9 -> 0.5040582543 | V129: =Model!KZ9 -> 0.5088426263 | W129: =Model!LA9 -> 0.5137134799 | X129: =Model!LB9 -> 0.5186731814 | Y129: =Model!LC9 -> 0.5237241842 | Z129: =Model!LD9 -> 0.5325666143 | AA129: =Model!LE9 -> 0.5413924457 | AB129: =Model!LF9 -> 0.5502017252 | AC129: =Model!LG9 -> 0.5589944993 | AD129: =Model!LH9 -> 0.5677708143 | AE129: =Model!LI9 -> 0.5687677439 | AF129: =Model!LJ9 -> 0.5697633539 | AG129: =Model!LK9 -> 0.570757647 | AH129: =Model!LL9 -> 0.5717506257 | AI129: =Model!LM9 -> 0.5727422928 | AJ129: =Model!LN9 -> 0.5727422928 | AK129: =Model!LO9 -> 0.5727422928 | AL129: =Model!LP9 -> 0.5727422928 | AM129: =Model!LQ9 -> 0.5727422928 | AN129: =Model!LR9 -> 0.5727422928 | AO129: =Model!LS9 -> 0.5727422928 | AP129: =Model!LT9 -> 0.5727422928 | AQ129: =Model!LU9 -> 0.5727422928 | AR129: =Model!LV9 -> 0.5727422928 | AS129: =Model!LW9 -> 0.5727422928 | AT129: 0.01347534541 | AU129: 0.0264889616 | AV129: 0.03906418038 | AW129: 0.05122278763 | AX129: 0.06298514923 | AY129: 0.06312413031 | AZ129: 0.06068111313 | BA129: 0.05521104497 | BB129: 0.04892161541 | BC129: 0.04110648089 | BD129: =Z129-Z110 -> 0.0413891768 | BE129: 0.04334514545 | BF129: 0.04831725262 | BG129: 0.05399408194 | BH129: 0.06105416742 | BI129: 0.06108626441 | BJ129: 0.06208190561 | BK129: 0.06307619865 | BL129: 0.0640691462 | BM129: 0.06506075089 | BN129: 0.06506081335 | BO129: 0.06506084454 | BP129: 0.0650608445 | BQ129: 0.06506081327 | BR129: 0.06506075089 | BS129: 0.06506081335 | BT129: 0.06506084454 | BU129: 0.0650608445 | BV129: 0.06506081327 | BW129: 0.06506075089
B130: =IF(Summary!$J$6=C130,1,0) -> 0 | C130: 35-39 | P130: =Model!KT10 -> 0.476195216 | Q130: =Model!KU10 -> 0.4846538336 | R130: =Model!KV10 -> 0.4929708754 | S130: =Model!KW10 -> 0.5011498663 | T130: =Model!KX10 -> 0.5091942152 | U130: =Model!KY10 -> 0.5153659523 | V130: =Model!KZ10 -> 0.5213262164 | W130: =Model!LA10 -> 0.5270856935 | X130: =Model!LB10 -> 0.5326543617 | Y130: =Model!LC10 -> 0.5380415485 | Z130: =Model!LD10 -> 0.5427417217 | AA130: =Model!LE10 -> 0.5475260937 | AB130: =Model!LF10 -> 0.5523969473 | AC130: =Model!LG10 -> 0.5573566489 | AD130: =Model!LH10 -> 0.5624076517 | AE130: =Model!LI10 -> 0.5712500817 | AF130: =Model!LJ10 -> 0.5800759131 | AG130: =Model!LK10 -> 0.5888851926 | AH130: =Model!LL10 -> 0.5976779667 | AI130: =Model!LM10 -> 0.6064542818 | AJ130: =Model!LN10 -> 0.6074512113 | AK130: =Model!LO10 -> 0.6084468213 | AL130: =Model!LP10 -> 0.6094411144 | AM130: =Model!LQ10 -> 0.6104340932 | AN130: =Model!LR10 -> 0.6114257602 | AO130: =Model!LS10 -> 0.6114257602 | AP130: =Model!LT10 -> 0.6114257602 | AQ130: =Model!LU10 -> 0.6114257602 | AR130: =Model!LV10 -> 0.6114257602 | AS130: =Model!LW10 -> 0.6114257602 | AT130: 0.008000087301 | AU130: 0.01586514338 | AV130: 0.02359855836 | AW130: 0.03120360982 | AX130: 0.03868346743 | AY130: 0.05215881284 | AZ130: 0.06517242903 | BA130: 0.07774764781 | BB130: 0.08990625506 | BC130: 0.1016686167 | BD130: =Z130-Z111 -> 0.1019217684 | BE130: 0.09965965915 | BF130: 0.09444843338 | BG130: 0.0884405795 | BH130: 0.08094749575 | BI130: 0.08144444936 | BJ130: 0.08357237674 | BK130: 0.08864053171 | BL130: 0.09439535588 | BM130: 0.1014984001 | BN130: 0.1015546477 | BO130: 0.1025502881 | BP130: 0.1035445812 | BQ130: 0.1045375295 | BR130: 0.1055291357 | BS130: 0.1055291966 | BT130: 0.105529227 | BU130: 0.105529227 | BV130: 0.1055291966 | BW130: 0.1055291357
B131: =IF(Summary!$J$6=C131,1,0) -> 0 | C131: 40-44 | P131: =Model!KT11 -> 0.4646843365 | Q131: =Model!KU11 -> 0.4733228355 | R131: =Model!KV11 -> 0.4816634333 | S131: =Model!KW11 -> 0.4897212788 | T131: =Model!KX11 -> 0.4975105104 | U131: =Model!KY11 -> 0.5061143497 | V131: =Model!KZ11 -> 0.5145729673 | W131: =Model!LA11 -> 0.5228900091 | X131: =Model!LB11 -> 0.531069 | Y131: =Model!LC11 -> 0.5391133489 | Z131: =Model!LD11 -> 0.545285086 | AA131: =Model!LE11 -> 0.5512453501 | AB131: =Model!LF11 -> 0.5570048273 | AC131: =Model!LG11 -> 0.5625734954 | AD131: =Model!LH11 -> 0.5679606822 | AE131: =Model!LI11 -> 0.5726608555 | AF131: =Model!LJ11 -> 0.5774452274 | AG131: =Model!LK11 -> 0.5823160811 | AH131: =Model!LL11 -> 0.5872757826 | AI131: =Model!LM11 -> 0.5923267854 | AJ131: =Model!LN11 -> 0.6011692154 | AK131: =Model!LO11 -> 0.6099950468 | AL131: =Model!LP11 -> 0.6188043263 | AM131: =Model!LQ11 -> 0.6275971004 | AN131: =Model!LR11 -> 0.6363734155 | AO131: =Model!LS11 -> 0.637370345 | AP131: =Model!LT11 -> 0.6383659551 | AQ131: =Model!LU11 -> 0.6393602481 | AR131: =Model!LV11 -> 0.6403532269 | AS131: =Model!LW11 -> 0.641344894 | AT131: 0.006411275323 | AU131: 0.01259757687 | AV131: 0.01857054208 | AW131: 0.02434101933 | AX131: 0.02991913374 | AY131: 0.03791922104 | AZ131: 0.04578427712 | BA131: 0.0535176921 | BB131: 0.06112274356 | BC131: 0.06860260117 | BD131: =Z131-Z112 -> 0.08207794658 | BE131: 0.09509156277 | BF131: 0.1076667816 | BG131: 0.1198253888 | BH131: 0.1315877504 | BI131: 0.1318824317 | BJ131: 0.1296861277 | BK131: 0.1245690558 | BL131: 0.1186636251 | BM131: 0.1112876873 | BN131: 0.1118625771 | BO131: 0.1140530544 | BP131: 0.1191561468 | BQ131: 0.1249393416 | BR131: 0.132058012 | BS131: 0.1321230444 | BT131: 0.1331186846 | BU131: 0.1341129776 | BV131: 0.1351059262 | BW131: 0.136097533
B132: =IF(Summary!$J$6=C132,1,0) -> 0 | C132: 45-49 | P132: =Model!KT12 -> 0.451397293 | Q132: =Model!KU12 -> 0.4580075595 | R132: =Model!KV12 -> 0.4647445687 | S132: =Model!KW12 -> 0.471612001 | T132: =Model!KX12 -> 0.4786136807 | U132: =Model!KY12 -> 0.4875663311 | V132: =Model!KZ12 -> 0.49620483 | W132: =Model!LA12 -> 0.5045454279 | X132: =Model!LB12 -> 0.5126032734 | Y132: =Model!LC12 -> 0.5203925049 | Z132: =Model!LD12 -> 0.5289963443 | AA132: =Model!LE12 -> 0.5374549619 | AB132: =Model!LF12 -> 0.5457720037 | AC132: =Model!LG12 -> 0.5539509946 | AD132: =Model!LH12 -> 0.5619953435 | AE132: =Model!LI12 -> 0.5681670806 | AF132: =Model!LJ12 -> 0.5741273447 | AG132: =Model!LK12 -> 0.5798868218 | AH132: =Model!LL12 -> 0.58545549 | AI132: =Model!LM12 -> 0.5908426768 | AJ132: =Model!LN12 -> 0.5955428501 | AK132: =Model!LO12 -> 0.600327222 | AL132: =Model!LP12 -> 0.6051980757 | AM132: =Model!LQ12 -> 0.6101577772 | AN132: =Model!LR12 -> 0.61520878 | AO132: =Model!LS12 -> 0.62405121 | AP132: =Model!LT12 -> 0.6328770414 | AQ132: =Model!LU12 -> 0.6416863209 | AR132: =Model!LV12 -> 0.650479095 | AS132: =Model!LW12 -> 0.6592554101 | AT132: 0.004404208307 | AU132: 0.008892059297 | AV132: 0.01346595857 | AW132: 0.01812840485 | AX132: 0.02288199459 | AY132: 0.02929326991 | AZ132: 0.03547957146 | BA132: 0.04145253667 | BB132: 0.04722301392 | BC132: 0.05280112833 | BD132: =Z132-Z113 -> 0.06080121563 | BE132: 0.06866627171 | BF132: 0.07639968669 | BG132: 0.08400473815 | BH132: 0.09148459576 | BI132: 0.1049599412 | BJ132: 0.1179735574 | BK132: 0.1305487761 | BL132: 0.1427073834 | BM132: 0.154469745 | BN132: 0.1547072468 | BO132: 0.1524203397 | BP132: 0.1471736331 | BQ132: 0.1411271823 | BR132: 0.1335899536 | BS132: 0.1340575378 | BT132: 0.136161894 | BU132: 0.1412168833 | BV132: 0.1469610163 | BW132: 0.154058172
B133: =IF(Summary!$J$6=C133,1,0) -> 0 | C133: 50-54 | P133: =Model!KT13 -> 0.4183290485 | Q133: =Model!KU13 -> 0.4285831473 | R133: =Model!KV13 -> 0.438920523 | S133: =Model!KW13 -> 0.4493421942 | T133: =Model!KX13 -> 0.4598491963 | U133: =Model!KY13 -> 0.4663362634 | V133: =Model!KZ13 -> 0.47294653 | W133: =Model!LA13 -> 0.4796835392 | X133: =Model!LB13 -> 0.4865509714 | Y133: =Model!LC13 -> 0.4935526511 | Z133: =Model!LD13 -> 0.5025053015 | AA133: =Model!LE13 -> 0.5111438005 | AB133: =Model!LF13 -> 0.5194843984 | AC133: =Model!LG13 -> 0.5275422438 | AD133: =Model!LH13 -> 0.5353314754 | AE133: =Model!LI13 -> 0.5439353148 | AF133: =Model!LJ13 -> 0.5523939324 | AG133: =Model!LK13 -> 0.5607109742 | AH133: =Model!LL13 -> 0.5688899651 | AI133: =Model!LM13 -> 0.576934314 | AJ133: =Model!LN13 -> 0.583106051 | AK133: =Model!LO13 -> 0.5890663151 | AL133: =Model!LP13 -> 0.5948257923 | AM133: =Model!LQ13 -> 0.6003944605 | AN133: =Model!LR13 -> 0.6057816473 | AO133: =Model!LS13 -> 0.6104818205 | AP133: =Model!LT13 -> 0.6152661925 | AQ133: =Model!LU13 -> 0.6201370461 | AR133: =Model!LV13 -> 0.6250967476 | AS133: =Model!LW13 -> 0.6301477504 | AT133: 0.002939655326 | AU133: 0.005903088007 | AV133: 0.008890587698 | AW133: 0.01190244878 | AX133: 0.01493897045 | AY133: 0.01934317876 | AZ133: 0.02383102975 | BA133: 0.02840492902 | BB133: 0.0330673753 | BC133: 0.03782096504 | BD133: =Z133-Z114 -> 0.04423224036 | BE133: 0.05041854191 | BF133: 0.05639150712 | BG133: 0.06216198437 | BH133: 0.06774009878 | BI133: 0.07574018608 | BJ133: 0.08360524216 | BK133: 0.09133865714 | BL133: 0.0989437086 | BM133: 0.1064235662 | BN133: 0.1198989116 | BO133: 0.1329125278 | BP133: 0.1454877466 | BQ133: 0.1576463538 | BR133: 0.1694087154 | BS133: 0.1695772978 | BT133: 0.1671811849 | BU133: 0.1617782274 | BV133: 0.1555618025 | BW133: 0.1478301667
B134: =IF(Summary!$J$6=C134,1,0) -> 0 | C134: 55-59 | P134: =Model!KT14 -> 0.3915320123 | Q134: =Model!KU14 -> 0.3986769337 | R134: =Model!KV14 -> 0.4060287311 | S134: =Model!KW14 -> 0.4135965214 | T134: =Model!KX14 -> 0.4213899651 | U134: =Model!KY14 -> 0.4315617893 | V134: =Model!KZ14 -> 0.4418158881 | W134: =Model!LA14 -> 0.4521532638 | X134: =Model!LB14 -> 0.462574935 | Y134: =Model!LC14 -> 0.4730819371 | Z134: =Model!LD14 -> 0.4795690042 | AA134: =Model!LE14 -> 0.4861792708 | AB134: =Model!LF14 -> 0.4929162799 | AC134: =Model!LG14 -> 0.4997837122 | AD134: =Model!LH14 -> 0.5067853919 | AE134: =Model!LI14 -> 0.5157380423 | AF134: =Model!LJ14 -> 0.5243765413 | AG134: =Model!LK14 -> 0.5327171392 | AH134: =Model!LL14 -> 0.5407749846 | AI134: =Model!LM14 -> 0.5485642162 | AJ134: =Model!LN14 -> 0.5571680556 | AK134: =Model!LO14 -> 0.5656266732 | AL134: =Model!LP14 -> 0.5739437149 | AM134: =Model!LQ14 -> 0.5821227059 | AN134: =Model!LR14 -> 0.5901670548 | AO134: =Model!LS14 -> 0.5963387918 | AP134: =Model!LT14 -> 0.6022990559 | AQ134: =Model!LU14 -> 0.6080585331 | AR134: =Model!LV14 -> 0.6136272012 | AS134: =Model!LW14 -> 0.6190143881 | AT134: 0.002497603005 | AU134: 0.005066490293 | AV134: 0.007709757843 | AW134: 0.01043068355 | AX134: 0.01323274078 | AY134: 0.01617239611 | AZ134: 0.01913582879 | BA134: 0.02212332848 | BB134: 0.02513518956 | BC134: 0.02817171123 | BD134: =Z134-Z115 -> 0.03257591954 | BE134: 0.03706377053 | BF134: 0.0416376698 | BG134: 0.04630011608 | BH134: 0.05105370582 | BI134: 0.05746498114 | BJ134: 0.06365128269 | BK134: 0.0696242479 | BL134: 0.07539472515 | BM134: 0.08097283956 | BN134: 0.08897292686 | BO134: 0.09683798294 | BP134: 0.1045713979 | BQ134: 0.1121764494 | BR134: 0.119656307 | BS134: 0.1331316524 | BT134: 0.1461452686 | BU134: 0.1587204874 | BV134: 0.1708790946 | BW134: 0.1826414562
B135: =IF(Summary!$J$6=C135,1,0) -> 0 | C135: 60-64 | P135: =Model!KT15 -> 0.3870827986 | Q135: =Model!KU15 -> 0.389624872 | R135: =Model!KV15 -> 0.3921445461 | S135: =Model!KW15 -> 0.3946421155 | T135: =Model!KX15 -> 0.39711787 | U135: =Model!KY15 -> 0.4040645263 | V135: =Model!KZ15 -> 0.4112094477 | W135: =Model!LA15 -> 0.4185612451 | X135: =Model!LB15 -> 0.4261290353 | Y135: =Model!LC15 -> 0.4339224791 | Z135: =Model!LD15 -> 0.4440943033 | AA135: =Model!LE15 -> 0.4543484021 | AB135: =Model!LF15 -> 0.4646857778 | AC135: =Model!LG15 -> 0.475107449 | AD135: =Model!LH15 -> 0.485614451 | AE135: =Model!LI15 -> 0.4921015182 | AF135: =Model!LJ15 -> 0.4987117847 | AG135: =Model!LK15 -> 0.5054487939 | AH135: =Model!LL15 -> 0.5123162262 | AI135: =Model!LM15 -> 0.5193179059 | AJ135: =Model!LN15 -> 0.5282705563 | AK135: =Model!LO15 -> 0.5369090552 | AL135: =Model!LP15 -> 0.5452496531 | AM135: =Model!LQ15 -> 0.5533074986 | AN135: =Model!LR15 -> 0.5610967301 | AO135: =Model!LS15 -> 0.5697005695 | AP135: =Model!LT15 -> 0.5781591871 | AQ135: =Model!LU15 -> 0.5864762289 | AR135: =Model!LV15 -> 0.5946552198 | AS135: =Model!LW15 -> 0.6026995687 | AT135: 0.002551067387 | AU135: 0.005079556665 | AV135: 0.007585766252 | AW135: 0.01006998933 | AX135: 0.01253251397 | AY135: 0.01503011697 | AZ135: 0.01759900426 | BA135: 0.02024227181 | BB135: 0.02296319752 | BC135: 0.02576525475 | BD135: =Z135-Z116 -> 0.02870491007 | BE135: 0.03166834275 | BF135: 0.03465584245 | BG135: 0.03766770353 | BH135: 0.0407042252 | BI135: 0.04510843351 | BJ135: 0.0495962845 | BK135: 0.05417018376 | BL135: 0.05883263005 | BM135: 0.06358621979 | BN135: 0.06999749511 | BO135: 0.07618379666 | BP135: 0.08215676187 | BQ135: 0.08792723912 | BR135: 0.09350535353 | BS135: 0.1015054408 | BT135: 0.1093704969 | BU135: 0.1171039119 | BV135: 0.1247089633 | BW135: 0.132188821
B136: =IF(Summary!$J$6=C136,1,0) -> 0 | C136: 25-29 | P136: =Model!KT18 -> 0.4410731051 | Q136: =Model!KU18 -> 0.4485207152 | R136: =Model!KV18 -> 0.4591767284 | S136: =Model!KW18 -> 0.4707686244 | T136: =Model!KX18 -> 0.4840267973 | U136: =Model!KY18 -> 0.4928473494 | V136: =Model!KZ18 -> 0.4999265393 | W136: =Model!LA18 -> 0.5038806315 | X136: =Model!LB18 -> 0.5070915202 | Y136: =Model!LC18 -> 0.5088600439 | Z136: =Model!LD18 -> 0.5098542752 | AA136: =Model!LE18 -> 0.5098542431 | AB136: =Model!LF18 -> 0.5098542431 | AC136: =Model!LG18 -> 0.5098542753 | AD136: =Model!LH18 -> 0.5098543396 | AE136: =Model!LI18 -> 0.5098542752 | AF136: =Model!LJ18 -> 0.5098542431 | AG136: =Model!LK18 -> 0.5098542431 | AH136: =Model!LL18 -> 0.5098542753 | AI136: =Model!LM18 -> 0.5098543396 | AJ136: =Model!LN18 -> 0.5098542752 | AK136: =Model!LO18 -> 0.5098542431 | AL136: =Model!LP18 -> 0.5098542431 | AM136: =Model!LQ18 -> 0.5098542753 | AN136: =Model!LR18 -> 0.5098543396 | AO136: =Model!LS18 -> 0.5098542752 | AP136: =Model!LT18 -> 0.5098542431 | AQ136: =Model!LU18 -> 0.5098542431 | AR136: =Model!LV18 -> 0.5098542753 | AS136: =Model!LW18 -> 0.5098543396 | AT136: 0 | AU136: 0 | AV136: 0 | AW136: 0 | AX136: 0 | AY136: 0 | AZ136: 0 | BA136: 0 | BB136: 0 | BC136: 0 | BD136: =Z136-Z117 -> 0 | BE136: 0 | BF136: 0 | BG136: 0 | BH136: 0 | BI136: 0 | BJ136: 0 | BK136: 0 | BL136: 0 | BM136: 0 | BN136: 0 | BO136: 0 | BP136: 0 | BQ136: 0 | BR136: 0 | BS136: 0 | BT136: 0 | BU136: 0 | BV136: 0 | BW136: 0
B137: =IF(Summary!$J$6=C137,1,0) -> 0 | C137: 25-34 | P137: =Model!KT19 -> 0.4586236765 | Q137: =Model!KU19 -> 0.4655616929 | R137: =Model!KV19 -> 0.4739621589 | S137: =Model!KW19 -> 0.4826563535 | T137: =Model!KX19 -> 0.4919798017 | U137: =Model!KY19 -> 0.498635562 | V137: =Model!KZ19 -> 0.5045079833 | W137: =Model!LA19 -> 0.5089087365 | X137: =Model!LB19 -> 0.5129849051 | Y137: =Model!LC19 -> 0.5163862163 | Z137: =Model!LD19 -> 0.5213558076 | AA137: =Model!LE19 -> 0.5258273779 | AB137: =Model!LF19 -> 0.5302917976 | AC137: =Model!LG19 -> 0.5347490839 | AD137: =Model!LH19 -> 0.5391992539 | AE137: =Model!LI19 -> 0.5397043429 | AF137: =Model!LJ19 -> 0.5402087792 | AG137: =Model!LK19 -> 0.5407125641 | AH137: =Model!LL19 -> 0.541215699 | AI137: =Model!LM19 -> 0.541718185 | AJ137: =Model!LN19 -> 0.5417181533 | AK137: =Model!LO19 -> 0.5417181374 | AL137: =Model!LP19 -> 0.5417181374 | AM137: =Model!LQ19 -> 0.5417181533 | AN137: =Model!LR19 -> 0.541718185 | AO137: =Model!LS19 -> 0.5417181533 | AP137: =Model!LT19 -> 0.5417181374 | AQ137: =Model!LU19 -> 0.5417181374 | AR137: =Model!LV19 -> 0.5417181533 | AS137: =Model!LW19 -> 0.541718185 | AT137: 0.006641508871 | AU137: 0.01322892434 | AV137: 0.01976290459 | AW137: 0.02624409718 | AX137: 0.03267313923 | AY137: 0.03259111461 | AZ137: 0.03118039597 | BA137: 0.02823260538 | BB137: 0.02489400287 | BC137: 0.02081347831 | BD137: =Z137-Z118 -> 0.02095948626 | BE137: 0.02195299025 | BF137: 0.02447455045 | BG137: 0.02735380973 | BH137: 0.03093470933 | BI137: 0.03095097212 | BJ137: 0.03145544008 | BK137: 0.03195922496 | BL137: 0.0324623281 | BM137: 0.03296475085 | BN137: 0.0329647825 | BO137: 0.0329647983 | BP137: 0.03296479828 | BQ137: 0.03296478246 | BR137: 0.03296475085 | BS137: 0.0329647825 | BT137: 0.0329647983 | BU137: 0.03296479828 | BV137: 0.03296478246 | BW137: 0.03296475085
B138: =IF(Summary!$J$6=C138,1,0) -> 0 | C138: 25-39 | P138: =Model!KT20 -> 0.4643253782 | Q138: =Model!KU20 -> 0.4717752116 | R138: =Model!KV20 -> 0.4801666512 | S138: =Model!KW20 -> 0.4887101232 | T138: =Model!KX20 -> 0.4976309232 | U138: =Model!KY20 -> 0.5042081615 | V138: =Model!KZ20 -> 0.5101901444 | W138: =Model!LA20 -> 0.515136216 | X138: =Model!LB20 -> 0.5198165015 | Y138: =Model!LC20 -> 0.5240090807 | Z138: =Model!LD20 -> 0.528836871 | AA138: =Model!LE20 -> 0.533369966 | AB138: =Model!LF20 -> 0.5379266164 | AC138: =Model!LG20 -> 0.5425070062 | AD138: =Model!LH20 -> 0.5471113213 | AE138: =Model!LI20 -> 0.5504606931 | AF138: =Model!LJ20 -> 0.5538050097 | AG138: =Model!LK20 -> 0.5571442828 | AH138: =Model!LL20 -> 0.5604785236 | AI138: =Model!LM20 -> 0.5638077437 | AJ138: =Model!LN20 -> 0.5641478998 | AK138: =Model!LO20 -> 0.5644876161 | AL138: =Model!LP20 -> 0.5648268935 | AM138: =Model!LQ20 -> 0.5651657329 | AN138: =Model!LR20 -> 0.5655041352 | AO138: =Model!LS20 -> 0.5655041143 | AP138: =Model!LT20 -> 0.5655041038 | AQ138: =Model!LU20 -> 0.5655041038 | AR138: =Model!LV20 -> 0.5655041143 | AS138: =Model!LW20 -> 0.5655041352 | AT138: 0.00708234725 | AU138: 0.01408687927 | AV138: 0.02101487152 | AW138: 0.02786757172 | AX138: 0.03464620063 | AY138: 0.03910877163 | AZ138: 0.04266484911 | BA138: 0.04519660615 | BB138: 0.04747406081 | BC138: 0.04927518687 | BD138: =Z138-Z119 -> 0.04928111699 | BE138: 0.0489642382 | BF138: 0.04864258007 | BG138: 0.0483161032 | BH138: 0.04798476775 | BI138: 0.0481680526 | BJ138: 0.04922932592 | BK138: 0.05129325999 | BL138: 0.05359157251 | BM138: 0.05635012841 | BN138: 0.05636934234 | BO138: 0.0567090899 | BP138: 0.05704836729 | BQ138: 0.05738717541 | BR138: 0.05772551519 | BS138: 0.05772555682 | BT138: 0.05772557761 | BU138: 0.05772557758 | BV138: 0.05772555676 | BW138: 0.05772551519
B139: =IF(Summary!$J$6=C139,1,0) -> 0 | C139: 25-44 | P139: =Model!KT21 -> 0.4644088725 | Q139: =Model!KU21 -> 0.4721385705 | R139: =Model!KV21 -> 0.4805212873 | S139: =Model!KW21 -> 0.4889518344 | T139: =Model!KX21 -> 0.497601889 | U139: =Model!KY21 -> 0.504669704 | V139: =Model!KZ21 -> 0.511255722 | W139: =Model!LA21 -> 0.5170290299 | X139: =Model!LB21 -> 0.5225744299 | Y139: =Model!LC21 -> 0.5277257352 | Z139: =Model!LD21 -> 0.5329460726 | AA139: =Model!LE21 -> 0.5379026013 | AB139: =Model!LF21 -> 0.5428352972 | AC139: =Model!LG21 -> 0.5477443319 | AD139: =Model!LH21 -> 0.5526298752 | AE139: =Model!LI21 -> 0.556295421 | AF139: =Model!LJ21 -> 0.5599740127 | AG139: =Model!LK21 -> 0.5636657203 | AH139: =Model!LL21 -> 0.5673706139 | AI139: =Model!LM21 -> 0.5710887642 | AJ139: =Model!LN21 -> 0.5736015363 | AK139: =Model!LO21 -> 0.5761106351 | AL139: =Model!LP21 -> 0.5786160685 | AM139: =Model!LQ21 -> 0.5811178446 | AN139: =Model!LR21 -> 0.5836159715 | AO139: =Model!LS21 -> 0.583870738 | AP139: =Model!LT21 -> 0.5841251751 | AQ139: =Model!LU21 -> 0.5843792834 | AR139: =Model!LV21 -> 0.5846330636 | AS139: =Model!LW21 -> 0.5848865164 | AT139: 0.00692625482 | AU139: 0.0137372134 | AV139: 0.02043573085 | AW139: 0.02702456879 | AX139: 0.03350639913 | AY139: 0.03882074755 | AZ139: 0.04342326271 | BA139: 0.04722790449 | BB139: 0.05081928135 | BC139: 0.05403101621 | BD139: =Z139-Z120 -> 0.05747463729 | BE139: 0.06066067722 | BF139: 0.0638290653 | BG139: 0.06697992705 | BH139: 0.07011338677 | BI139: 0.07017017188 | BJ139: 0.07022482848 | BK139: 0.07027734364 | BL139: 0.07032770435 | BM139: 0.07037589749 | BN139: 0.07053990496 | BO139: 0.07135526911 | BP139: 0.07291453563 | BQ139: 0.07464772472 | BR139: 0.07672243469 | BS139: 0.0767390858 | BT139: 0.07699355385 | BU139: 0.07724766214 | BV139: 0.07750141136 | BW139: 0.07775480221
B140: =IF(Summary!$J$6=C140,1,0) -> 0 | C140: 25-49 | P140: =Model!KT22 -> 0.4619386371 | Q140: =Model!KU22 -> 0.4694943051 | R140: =Model!KV22 -> 0.4776116181 | S140: =Model!KW22 -> 0.4858001859 | T140: =Model!KX22 -> 0.4942008418 | U140: =Model!KY22 -> 0.5015718147 | V140: =Model!KZ22 -> 0.5084996949 | W140: =Model!LA22 -> 0.5147186442 | X140: =Model!LB22 -> 0.5207097516 | Y140: =Model!LC22 -> 0.526340377 | Z140: =Model!LD22 -> 0.5321961933 | AA140: =Model!LE22 -> 0.5378171962 | AB140: =Model!LF22 -> 0.5433983151 | AC140: =Model!LG22 -> 0.5489399731 | AD140: =Model!LH22 -> 0.5544425872 | AE140: =Model!LI22 -> 0.5586292983 | AF140: =Model!LJ22 -> 0.5627992981 | AG140: =Model!LK22 -> 0.5669526866 | AH140: =Model!LL22 -> 0.5710895628 | AI140: =Model!LM22 -> 0.5752100251 | AJ140: =Model!LN22 -> 0.5781445777 | AK140: =Model!LO22 -> 0.5810865224 | AL140: =Model!LP22 -> 0.5840358872 | AM140: =Model!LQ22 -> 0.5869927002 | AN140: =Model!LR22 -> 0.5899569896 | AO140: =Model!LS22 -> 0.5919371815 | AP140: =Model!LT22 -> 0.5939145386 | AQ140: =Model!LU22 -> 0.5958890669 | AR140: =Model!LV22 -> 0.5978607725 | AS140: =Model!LW22 -> 0.5998296614 | AT140: 0.006447446799 | AU140: 0.01283056395 | AV140: 0.01915030946 | AW140: 0.0254076224 | AX140: 0.03160342336 | AY140: 0.03709506039 | AZ140: 0.04196866264 | BA140: 0.04615903615 | BB140: 0.05014675336 | BC140: 0.05379867176 | BD140: =Z140-Z121 -> 0.05810620789 | BE140: 0.06218806459 | BF140: 0.06623907276 | BG140: 0.07025955836 | BH140: 0.07424984278 | BI140: 0.07700957408 | BJ140: 0.07975642056 | BK140: 0.08249045799 | BL140: 0.08521176158 | BM140: 0.0879204059 | BN140: 0.08796710744 | BO140: 0.08801206151 | BP140: 0.08805526028 | BQ140: 0.08809669586 | BR140: 0.08813636034 | BS140: 0.08824606999 | BT140: 0.08887454288 | BU140: 0.09009550622 | BV140: 0.09145504546 | BW140: 0.0930866468
B141: =IF(Summary!$J$6=C141,1,0) -> 0 | C141: 25-54 | P141: =Model!KT23 -> 0.4549200843 | Q141: =Model!KU23 -> 0.4629598141 | R141: =Model!KV23 -> 0.4714784653 | S141: =Model!KW23 -> 0.4800647486 | T141: =Model!KX23 -> 0.4888376845 | U141: =Model!KY23 -> 0.4961454545 | V141: =Model!KZ23 -> 0.5030992437 | W141: =Model!LA23 -> 0.509469986 | X141: =Model!LB23 -> 0.5156630414 | Y141: =Model!LC23 -> 0.5215634826 | Z141: =Model!LD23 -> 0.5278168458 | AA141: =Model!LE23 -> 0.5338352831 | AB141: =Model!LF23 -> 0.5397861164 | AC141: =Model!LG23 -> 0.5456704785 | AD141: =Model!LH23 -> 0.551489477 | AE141: =Model!LI23 -> 0.5563461437 | AF141: =Model!LJ23 -> 0.5611736458 | AG141: =Model!LK23 -> 0.5659722453 | AH141: =Model!LL23 -> 0.570742201 | AI141: =Model!LM23 -> 0.5754837686 | AJ141: =Model!LN23 -> 0.5789448127 | AK141: =Model!LO23 -> 0.5823937191 | AL141: =Model!LP23 -> 0.5858305517 | AM141: =Model!LQ23 -> 0.5892553736 | AN141: =Model!LR23 -> 0.5926682479 | AO141: =Model!LS23 -> 0.5950893753 | AP141: =Model!LT23 -> 0.5975149335 | AQ141: =Model!LU23 -> 0.5999449346 | AR141: =Model!LV23 -> 0.6023793908 | AS141: =Model!LW23 -> 0.6048183143 | AT141: 0.005882900783 | AU141: 0.01172408026 | AV141: 0.01752398069 | AW141: 0.0232830381 | AX141: 0.02900168241 | AY141: 0.03436122763 | AZ141: 0.03921359424 | BA141: 0.04349926845 | BB141: 0.04762340006 | BC141: 0.051470855 | BD141: =Z141-Z122 -> 0.05605982526 | BE141: 0.06043106232 | BF141: 0.0647515973 | BG141: 0.06902227872 | BH141: 0.07324393627 | BI141: 0.07681233628 | BJ141: 0.08035773009 | BK141: 0.08388032334 | BL141: 0.08738031915 | BM141: 0.09085791828 | BN141: 0.09311738149 | BO141: 0.09536735804 | BP141: 0.09760789673 | BQ141: 0.09983904602 | BR141: 0.102060854 | BS141: 0.1020706471 | BT141: 0.1020788987 | BU141: 0.1020856036 | BV141: 0.1020907566 | BW141: 0.1020943523
B142: =IF(Summary!$J$6=C142,1,0) -> 0 | C142: 25-59 | P142: =Model!KT24 -> 0.4459496947 | Q142: =Model!KU24 -> 0.4540003202 | R142: =Model!KV24 -> 0.462496064 | S142: =Model!KW24 -> 0.4710841654 | T142: =Model!KX24 -> 0.4798681407 | U142: =Model!KY24 -> 0.487618755 | V142: =Model!KZ24 -> 0.4950666938 | W142: =Model!LA24 -> 0.5020116451 | X142: =Model!LB24 -> 0.5088049167 | Y142: =Model!LC24 -> 0.5153457928 | Z142: =Model!LD24 -> 0.5217099068 | AA142: =Model!LE24 -> 0.5278824427 | AB142: =Model!LF24 -> 0.5340087783 | AC142: =Model!LG24 -> 0.5400894302 | AD142: =Model!LH24 -> 0.5461249077 | AE142: =Model!LI24 -> 0.5514083942 | AF142: =Model!LJ24 -> 0.5566412243 | AG142: =Model!LK24 -> 0.5618241232 | AH142: =Model!LL24 -> 0.5669578022 | AI142: =Model!LM24 -> 0.5720429592 | AJ142: =Model!LN24 -> 0.5761448236 | AK142: =Model!LO24 -> 0.5802252084 | AL142: =Model!LP24 -> 0.5842842819 | AM142: =Model!LQ24 -> 0.5883222108 | AN142: =Model!LR24 -> 0.5923391598 | AO142: =Model!LS24 -> 0.5952564228 | AP142: =Model!LT24 -> 0.5981647219 | AQ142: =Model!LU24 -> 0.6010640983 | AR142: =Model!LV24 -> 0.6039545929 | AS142: =Model!LW24 -> 0.6068362466 | AT142: 0.005403828944 | AU142: 0.01079617168 | AV142: 0.01617706478 | AW142: 0.02154654468 | AX142: 0.02690464765 | AY142: 0.03195983558 | AZ142: 0.0365819555 | BA142: 0.04071772336 | BB142: 0.04471828697 | BC142: 0.0484827727 | BD142: =Z142-Z123 -> 0.05308736527 | BE142: 0.05751219123 | BF142: 0.06190249468 | BG142: 0.06625866088 | BH142: 0.07058106937 | BI142: 0.07445979108 | BJ142: 0.07829994151 | BK142: 0.08210207186 | BL142: 0.08586672288 | BM142: 0.08959442507 | BN142: 0.09258450014 | BO142: 0.09555755648 | BP142: 0.09851372656 | BQ142: 0.1014531415 | BR142: 0.1043759309 | BS142: 0.1062235167 | BT142: 0.1080640751 | BU142: 0.1098976373 | BV142: 0.1117242349 | BW142: 0.1135438987
B143: =IF(Summary!$J$6=C143,1,0) -> 1 | C143: 25-64 | P143: =Model!KT25 -> 0.4387903192 | Q143: =Model!KU25 -> 0.4461477791 | R143: =Model!KV25 -> 0.4538892618 | S143: =Model!KW25 -> 0.4617048405 | T143: =Model!KX25 -> 0.4696852247 | U143: =Model!KY25 -> 0.4774909281 | V143: =Model!KZ25 -> 0.4850563707 | W143: =Model!LA25 -> 0.4922030303 | X143: =Model!LB25 -> 0.4992387189 | Y143: =Model!LC25 -> 0.5060732814 | Z143: =Model!LD25 -> 0.5129319114 | AA143: =Model!LE25 -> 0.519623413 | AB143: =Model!LF25 -> 0.5262764776 | AC143: =Model!LG25 -> 0.5328914352 | AD143: =Model!LH25 -> 0.5394686125 | AE143: =Model!LI25 -> 0.5449664402 | AF143: =Model!LJ25 -> 0.5504284076 | AG143: =Model!LK25 -> 0.5558548643 | AH143: =Model!LL25 -> 0.5612461557 | AI143: =Model!LM25 -> 0.5666026225 | AJ143: =Model!LN25 -> 0.5711364059 | AK143: =Model!LO25 -> 0.5756320954 | AL143: =Model!LP25 -> 0.5800901692 | AM143: =Model!LQ25 -> 0.5845110973 | AN143: =Model!LR25 -> 0.5888953423 | AO143: =Model!LS25 -> 0.5924218195 | AP143: =Model!LT25 -> 0.5959320263 | AQ143: =Model!LU25 -> 0.599426075 | AR143: =Model!LV25 -> 0.6029040771 | AS143: =Model!LW25 -> 0.6063661429 | AT143: 0.005056876882 | AU143: 0.01009885685 | AV143: 0.01512600562 | AW143: 0.02013838854 | AX143: 0.02513607059 | AY143: 0.02990774004 | AZ143: 0.03431589639 | BA143: 0.03831107442 | BB143: 0.04220106569 | BC143: 0.04589569493 | BD143: =Z143-Z124 -> 0.05032981304 | BE143: 0.05460952043 | BF143: 0.05886339789 | BG143: 0.06309166652 | BH143: 0.06729454493 | BI143: 0.07127162627 | BJ143: 0.07522153159 | BK143: 0.07914452512 | BL143: 0.08304086768 | BM143: 0.08691081672 | BN143: 0.09022153646 | BO143: 0.093503222 | BP143: 0.09675623696 | BQ143: 0.09998093893 | BR143: 0.1031776795 | BS143: 0.1057001973 | BT143: 0.1082098768 | BU143: 0.1107068059 | BV143: 0.1131910716 | BW143: 0.1156627602
P145: Attainment | AT145: Incremental Gain Over Prior Lever
B146: Use | C146: E. Adding incremental gains assumed for adult cohorts as they age | P146: 2019 | Q146: 2020 | R146: 2021 | S146: 2022 | T146: 2023 | U146: 2024 | V146: 2025 | W146: 2026 | X146: 2027 | Y146: 2028 | Z146: 2029 | AA146: 2030 | AB146: 2031 | AC146: 2032 | AD146: 2033 | AE146: 2034 | AF146: 2035 | AG146: 2036 | AH146: 2037 | AI146: 2038 | AJ146: 2039 | AK146: 2040 | AL146: 2041 | AM146: 2042 | AN146: 2043 | AO146: 2044 | AP146: 2045 | AQ146: 2046 | AR146: 2047 | AS146: 2048 | AT146: 2019 | AU146: 2020 | AV146: 2021 | AW146: 2022 | AX146: 2023 | AY146: 2024 | AZ146: 2025 | BA146: 2026 | BB146: 2027 | BC146: 2028 | BD146: 2029 | BE146: 2030 | BF146: 2031 | BG146: 2032 | BH146: 2033 | BI146: 2034 | BJ146: 2035 | BK146: 2036 | BL146: 2037 | BM146: 2038 | BN146: 2039 | BO146: 2040 | BP146: 2041 | BQ146: 2042 | BR146: 2043 | BS146: 2044 | BT146: 2045 | BU146: 2046 | BV146: 2047 | BW146: 2048
B147: =IF(Summary!$J$6=C147,1,0) -> 0 | C147: 25-29 | P147: =Model!OA8 -> 0.4410731051 | Q147: =Model!OB8 -> 0.4485207152 | R147: =Model!OC8 -> 0.4591767284 | S147: =Model!OD8 -> 0.4707686244 | T147: =Model!OE8 -> 0.4840267973 | U147: =Model!OF8 -> 0.4928473494 | V147: =Model!OG8 -> 0.4999265393 | W147: =Model!OH8 -> 0.5038806315 | X147: =Model!OI8 -> 0.5070915202 | Y147: =Model!OJ8 -> 0.5088600439 | Z147: =Model!OK8 -> 0.5098542752 | AA147: =Model!OL8 -> 0.5098542431 | AB147: =Model!OM8 -> 0.5098542431 | AC147: =Model!ON8 -> 0.5098542753 | AD147: =Model!OO8 -> 0.5098543396 | AE147: =Model!OP8 -> 0.5098542752 | AF147: =Model!OQ8 -> 0.5098542431 | AG147: =Model!OR8 -> 0.5098542431 | AH147: =Model!OS8 -> 0.5098542753 | AI147: =Model!OT8 -> 0.5098543396 | AJ147: =Model!OU8 -> 0.5098542752 | AK147: =Model!OV8 -> 0.5098542431 | AL147: =Model!OW8 -> 0.5098542431 | AM147: =Model!OX8 -> 0.5098542753 | AN147: =Model!OY8 -> 0.5098543396 | AO147: =Model!OZ8 -> 0.5098542752 | AP147: =Model!PA8 -> 0.5098542431 | AQ147: =Model!PB8 -> 0.5098542431 | AR147: =Model!PC8 -> 0.5098542753 | AS147: =Model!PD8 -> 0.5098543396 | AT147: =P147-P128 -> 0 | AU147: =Q147-Q128 -> 0 | AV147: =R147-R128 -> 0 | AW147: =S147-S128 -> 0 | AX147: =T147-T128 -> 0 | AY147: =U147-U128 -> 0 | AZ147: =V147-V128 -> 0 | BA147: =W147-W128 -> 0 | BB147: =X147-X128 -> 0 | BC147: =Y147-Y128 -> 0 | BD147: =Z147-Z128 -> 0 | BE147: 0 | BF147: 0 | BG147: 0 | BH147: 0 | BI147: 0 | BJ147: 0 | BK147: 0 | BL147: 0 | BM147: 0 | BN147: 0 | BO147: 0 | BP147: 0 | BQ147: 0 | BR147: 0 | BS147: 0 | BT147: 0 | BU147: 0 | BV147: 0 | BW147: 0
B148: =IF(Summary!$J$6=C148,1,0) -> 0 | C148: 30-34 | P148: =Model!OA9 -> 0.4766824848 | Q148: =Model!OB9 -> 0.4826427489 | R148: =Model!OC9 -> 0.4884022261 | S148: =Model!OD9 -> 0.4939708943 | T148: =Model!OE9 -> 0.4993580811 | U148: =Model!OF9 -> 0.5040582543 | V148: =Model!OG9 -> 0.5088426263 | W148: =Model!OH9 -> 0.5137134799 | X148: =Model!OI9 -> 0.5186731814 | Y148: =Model!OJ9 -> 0.5237241842 | Z148: =Model!OK9 -> 0.5325666143 | AA148: =Model!OL9 -> 0.5413924457 | AB148: =Model!OM9 -> 0.5502017252 | AC148: =Model!ON9 -> 0.5589944993 | AD148: =Model!OO9 -> 0.5677708143 | AE148: =Model!OP9 -> 0.5687677439 | AF148: =Model!OQ9 -> 0.5697633539 | AG148: =Model!OR9 -> 0.570757647 | AH148: =Model!OS9 -> 0.5717506257 | AI148: =Model!OT9 -> 0.5727422928 | AJ148: =Model!OU9 -> 0.5727422928 | AK148: =Model!OV9 -> 0.5727422928 | AL148: =Model!OW9 -> 0.5727422928 | AM148: =Model!OX9 -> 0.5727422928 | AN148: =Model!OY9 -> 0.5727422928 | AO148: =Model!OZ9 -> 0.5727422928 | AP148: =Model!PA9 -> 0.5727422928 | AQ148: =Model!PB9 -> 0.5727422928 | AR148: =Model!PC9 -> 0.5727422928 | AS148: =Model!PD9 -> 0.5727422928 | AT148: 0 | AU148: 0 | AV148: 0 | AW148: 0 | AX148: 0 | AY148: 0 | AZ148: 0 | BA148: 0 | BB148: 0 | BC148: 0 | BD148: =Z148-Z129 -> 0 | BE148: 0 | BF148: 0 | BG148: 0 | BH148: 0 | BI148: 0 | BJ148: 0 | BK148: 0 | BL148: 0 | BM148: 0 | BN148: 0 | BO148: 0 | BP148: 0 | BQ148: 0 | BR148: 0 | BS148: 0 | BT148: 0 | BU148: 0 | BV148: 0 | BW148: 0
B149: =IF(Summary!$J$6=C149,1,0) -> 0 | C149: 35-39 | P149: =Model!OA10 -> 0.476195216 | Q149: =Model!OB10 -> 0.4846538336 | R149: =Model!OC10 -> 0.4929708754 | S149: =Model!OD10 -> 0.5011498663 | T149: =Model!OE10 -> 0.5091942152 | U149: =Model!OF10 -> 0.5153659523 | V149: =Model!OG10 -> 0.5213262164 | W149: =Model!OH10 -> 0.5270856935 | X149: =Model!OI10 -> 0.5326543617 | Y149: =Model!OJ10 -> 0.5380415485 | Z149: =Model!OK10 -> 0.5427417217 | AA149: =Model!OL10 -> 0.5475260937 | AB149: =Model!OM10 -> 0.5523969473 | AC149: =Model!ON10 -> 0.5573566489 | AD149: =Model!OO10 -> 0.5624076517 | AE149: =Model!OP10 -> 0.5712500817 | AF149: =Model!OQ10 -> 0.5800759131 | AG149: =Model!OR10 -> 0.5888851926 | AH149: =Model!OS10 -> 0.5976779667 | AI149: =Model!OT10 -> 0.6064542818 | AJ149: =Model!OU10 -> 0.6074512113 | AK149: =Model!OV10 -> 0.6084468213 | AL149: =Model!OW10 -> 0.6094411144 | AM149: =Model!OX10 -> 0.6104340932 | AN149: =Model!OY10 -> 0.6114257602 | AO149: =Model!OZ10 -> 0.6114257602 | AP149: =Model!PA10 -> 0.6114257602 | AQ149: =Model!PB10 -> 0.6114257602 | AR149: =Model!PC10 -> 0.6114257602 | AS149: =Model!PD10 -> 0.6114257602 | AT149: 0 | AU149: 0 | AV149: 0 | AW149: 0 | AX149: 0 | AY149: 0 | AZ149: 0 | BA149: 0 | BB149: 0 | BC149: 0 | BD149: =Z149-Z130 -> 0 | BE149: 0 | BF149: 0 | BG149: 0 | BH149: 0 | BI149: 0 | BJ149: 0 | BK149: 0 | BL149: 0 | BM149: 0 | BN149: 0 | BO149: 0 | BP149: 0 | BQ149: 0 | BR149: 0 | BS149: 0 | BT149: 0 | BU149: 0 | BV149: 0 | BW149: 0
B150: =IF(Summary!$J$6=C150,1,0) -> 0 | C150: 40-44 | P150: =Model!OA11 -> 0.4646843365 | Q150: =Model!OB11 -> 0.4733228355 | R150: =Model!OC11 -> 0.4816634333 | S150: =Model!OD11 -> 0.4897212788 | T150: =Model!OE11 -> 0.4975105104 | U150: =Model!OF11 -> 0.5061143497 | V150: =Model!OG11 -> 0.5145729673 | W150: =Model!OH11 -> 0.5228900091 | X150: =Model!OI11 -> 0.531069 | Y150: =Model!OJ11 -> 0.5391133489 | Z150: =Model!OK11 -> 0.545285086 | AA150: =Model!OL11 -> 0.5512453501 | AB150: =Model!OM11 -> 0.5570048273 | AC150: =Model!ON11 -> 0.5625734954 | AD150: =Model!OO11 -> 0.5679606822 | AE150: =Model!OP11 -> 0.5726608555 | AF150: =Model!OQ11 -> 0.5774452274 | AG150: =Model!OR11 -> 0.5823160811 | AH150: =Model!OS11 -> 0.5872757826 | AI150: =Model!OT11 -> 0.5923267854 | AJ150: =Model!OU11 -> 0.6011692154 | AK150: =Model!OV11 -> 0.6099950468 | AL150: =Model!OW11 -> 0.6188043263 | AM150: =Model!OX11 -> 0.6275971004 | AN150: =Model!OY11 -> 0.6363734155 | AO150: =Model!OZ11 -> 0.637370345 | AP150: =Model!PA11 -> 0.6383659551 | AQ150: =Model!PB11 -> 0.6393602481 | AR150: =Model!PC11 -> 0.6403532269 | AS150: =Model!PD11 -> 0.641344894 | AT150: 0 | AU150: 0 | AV150: 0 | AW150: 0 | AX150: 0 | AY150: 0 | AZ150: 0 | BA150: 0 | BB150: 0 | BC150: 0 | BD150: =Z150-Z131 -> 0 | BE150: 0 | BF150: 0 | BG150: 0 | BH150: 0 | BI150: 0 | BJ150: 0 | BK150: 0 | BL150: 0 | BM150: 0 | BN150: 0 | BO150: 0 | BP150: 0 | BQ150: 0 | BR150: 0 | BS150: 0 | BT150: 0 | BU150: 0 | BV150: 0 | BW150: 0
B151: =IF(Summary!$J$6=C151,1,0) -> 0 | C151: 45-49 | P151: =Model!OA12 -> 0.451397293 | Q151: =Model!OB12 -> 0.4580075595 | R151: =Model!OC12 -> 0.4647445687 | S151: =Model!OD12 -> 0.471612001 | T151: =Model!OE12 -> 0.4786136807 | U151: =Model!OF12 -> 0.4875663311 | V151: =Model!OG12 -> 0.49620483 | W151: =Model!OH12 -> 0.5045454279 | X151: =Model!OI12 -> 0.5126032734 | Y151: =Model!OJ12 -> 0.5203925049 | Z151: =Model!OK12 -> 0.5289963443 | AA151: =Model!OL12 -> 0.5374549619 | AB151: =Model!OM12 -> 0.5457720037 | AC151: =Model!ON12 -> 0.5539509946 | AD151: =Model!OO12 -> 0.5619953435 | AE151: =Model!OP12 -> 0.5681670806 | AF151: =Model!OQ12 -> 0.5741273447 | AG151: =Model!OR12 -> 0.5798868218 | AH151: =Model!OS12 -> 0.58545549 | AI151: =Model!OT12 -> 0.5908426768 | AJ151: =Model!OU12 -> 0.5955428501 | AK151: =Model!OV12 -> 0.600327222 | AL151: =Model!OW12 -> 0.6051980757 | AM151: =Model!OX12 -> 0.6101577772 | AN151: =Model!OY12 -> 0.61520878 | AO151: =Model!OZ12 -> 0.62405121 | AP151: =Model!PA12 -> 0.6328770414 | AQ151: =Model!PB12 -> 0.6416863209 | AR151: =Model!PC12 -> 0.650479095 | AS151: =Model!PD12 -> 0.6592554101 | AT151: 0 | AU151: 0 | AV151: 0 | AW151: 0 | AX151: 0 | AY151: 0 | AZ151: 0 | BA151: 0 | BB151: 0 | BC151: 0 | BD151: =Z151-Z132 -> 0 | BE151: 0 | BF151: 0 | BG151: 0 | BH151: 0 | BI151: 0 | BJ151: 0 | BK151: 0 | BL151: 0 | BM151: 0 | BN151: 0 | BO151: 0 | BP151: 0 | BQ151: 0 | BR151: 0 | BS151: 0 | BT151: 0 | BU151: 0 | BV151: 0 | BW151: 0
B152: =IF(Summary!$J$6=C152,1,0) -> 0 | C152: 50-54 | P152: =Model!OA13 -> 0.4183290485 | Q152: =Model!OB13 -> 0.4285831473 | R152: =Model!OC13 -> 0.438920523 | S152: =Model!OD13 -> 0.4493421942 | T152: =Model!OE13 -> 0.4598491963 | U152: =Model!OF13 -> 0.4663362634 | V152: =Model!OG13 -> 0.47294653 | W152: =Model!OH13 -> 0.4796835392 | X152: =Model!OI13 -> 0.4865509714 | Y152: =Model!OJ13 -> 0.4935526511 | Z152: =Model!OK13 -> 0.5025053015 | AA152: =Model!OL13 -> 0.5111438005 | AB152: =Model!OM13 -> 0.5194843984 | AC152: =Model!ON13 -> 0.5275422438 | AD152: =Model!OO13 -> 0.5353314754 | AE152: =Model!OP13 -> 0.5439353148 | AF152: =Model!OQ13 -> 0.5523939324 | AG152: =Model!OR13 -> 0.5607109742 | AH152: =Model!OS13 -> 0.5688899651 | AI152: =Model!OT13 -> 0.576934314 | AJ152: =Model!OU13 -> 0.583106051 | AK152: =Model!OV13 -> 0.5890663151 | AL152: =Model!OW13 -> 0.5948257923 | AM152: =Model!OX13 -> 0.6003944605 | AN152: =Model!OY13 -> 0.6057816473 | AO152: =Model!OZ13 -> 0.6104818205 | AP152: =Model!PA13 -> 0.6152661925 | AQ152: =Model!PB13 -> 0.6201370461 | AR152: =Model!PC13 -> 0.6250967476 | AS152: =Model!PD13 -> 0.6301477504 | AT152: 0 | AU152: 0 | AV152: 0 | AW152: 0 | AX152: 0 | AY152: 0 | AZ152: 0 | BA152: 0 | BB152: 0 | BC152: 0 | BD152: =Z152-Z133 -> 0 | BE152: 0 | BF152: 0 | BG152: 0 | BH152: 0 | BI152: 0 | BJ152: 0 | BK152: 0 | BL152: 0 | BM152: 0 | BN152: 0 | BO152: 0 | BP152: 0 | BQ152: 0 | BR152: 0 | BS152: 0 | BT152: 0 | BU152: 0 | BV152: 0 | BW152: 0
B153: =IF(Summary!$J$6=C153,1,0) -> 0 | C153: 55-59 | P153: =Model!OA14 -> 0.3915320123 | Q153: =Model!OB14 -> 0.3986769337 | R153: =Model!OC14 -> 0.4060287311 | S153: =Model!OD14 -> 0.4135965214 | T153: =Model!OE14 -> 0.4213899651 | U153: =Model!OF14 -> 0.4315617893 | V153: =Model!OG14 -> 0.4418158881 | W153: =Model!OH14 -> 0.4521532638 | X153: =Model!OI14 -> 0.462574935 | Y153: =Model!OJ14 -> 0.4730819371 | Z153: =Model!OK14 -> 0.4795690042 | AA153: =Model!OL14 -> 0.4861792708 | AB153: =Model!OM14 -> 0.4929162799 | AC153: =Model!ON14 -> 0.4997837122 | AD153: =Model!OO14 -> 0.5067853919 | AE153: =Model!OP14 -> 0.5157380423 | AF153: =Model!OQ14 -> 0.5243765413 | AG153: =Model!OR14 -> 0.5327171392 | AH153: =Model!OS14 -> 0.5407749846 | AI153: =Model!OT14 -> 0.5485642162 | AJ153: =Model!OU14 -> 0.5571680556 | AK153: =Model!OV14 -> 0.5656266732 | AL153: =Model!OW14 -> 0.5739437149 | AM153: =Model!OX14 -> 0.5821227059 | AN153: =Model!OY14 -> 0.5901670548 | AO153: =Model!OZ14 -> 0.5963387918 | AP153: =Model!PA14 -> 0.6022990559 | AQ153: =Model!PB14 -> 0.6080585331 | AR153: =Model!PC14 -> 0.6136272012 | AS153: =Model!PD14 -> 0.6190143881 | AT153: 0 | AU153: 0 | AV153: 0 | AW153: 0 | AX153: 0 | AY153: 0 | AZ153: 0 | BA153: 0 | BB153: 0 | BC153: 0 | BD153: =Z153-Z134 -> 0 | BE153: 0 | BF153: 0 | BG153: 0 | BH153: 0 | BI153: 0 | BJ153: 0 | BK153: 0 | BL153: 0 | BM153: 0 | BN153: 0 | BO153: 0 | BP153: 0 | BQ153: 0 | BR153: 0 | BS153: 0 | BT153: 0 | BU153: 0 | BV153: 0 | BW153: 0
B154: =IF(Summary!$J$6=C154,1,0) -> 0 | C154: 60-64 | P154: =Model!OA15 -> 0.3870827986 | Q154: =Model!OB15 -> 0.389624872 | R154: =Model!OC15 -> 0.3921445461 | S154: =Model!OD15 -> 0.3946421155 | T154: =Model!OE15 -> 0.39711787 | U154: =Model!OF15 -> 0.4040645263 | V154: =Model!OG15 -> 0.4112094477 | W154: =Model!OH15 -> 0.4185612451 | X154: =Model!OI15 -> 0.4261290353 | Y154: =Model!OJ15 -> 0.4339224791 | Z154: =Model!OK15 -> 0.4440943033 | AA154: =Model!OL15 -> 0.4543484021 | AB154: =Model!OM15 -> 0.4646857778 | AC154: =Model!ON15 -> 0.475107449 | AD154: =Model!OO15 -> 0.485614451 | AE154: =Model!OP15 -> 0.4921015182 | AF154: =Model!OQ15 -> 0.4987117847 | AG154: =Model!OR15 -> 0.5054487939 | AH154: =Model!OS15 -> 0.5123162262 | AI154: =Model!OT15 -> 0.5193179059 | AJ154: =Model!OU15 -> 0.5282705563 | AK154: =Model!OV15 -> 0.5369090552 | AL154: =Model!OW15 -> 0.5452496531 | AM154: =Model!OX15 -> 0.5533074986 | AN154: =Model!OY15 -> 0.5610967301 | AO154: =Model!OZ15 -> 0.5697005695 | AP154: =Model!PA15 -> 0.5781591871 | AQ154: =Model!PB15 -> 0.5864762289 | AR154: =Model!PC15 -> 0.5946552198 | AS154: =Model!PD15 -> 0.6026995687 | AT154: 0 | AU154: 0 | AV154: 0 | AW154: 0 | AX154: 0 | AY154: 0 | AZ154: 0 | BA154: 0 | BB154: 0 | BC154: 0 | BD154: =Z154-Z135 -> 0 | BE154: 0 | BF154: 0 | BG154: 0 | BH154: 0 | BI154: 0 | BJ154: 0 | BK154: 0 | BL154: 0 | BM154: 0 | BN154: 0 | BO154: 0 | BP154: 0 | BQ154: 0 | BR154: 0 | BS154: 0 | BT154: 0 | BU154: 0 | BV154: 0 | BW154: 0
B155: =IF(Summary!$J$6=C155,1,0) -> 0 | C155: 25-29 | P155: =Model!OA18 -> 0.4410731051 | Q155: =Model!OB18 -> 0.4485207152 | R155: =Model!OC18 -> 0.4591767284 | S155: =Model!OD18 -> 0.4707686244 | T155: =Model!OE18 -> 0.4840267973 | U155: =Model!OF18 -> 0.4928473494 | V155: =Model!OG18 -> 0.4999265393 | W155: =Model!OH18 -> 0.5038806315 | X155: =Model!OI18 -> 0.5070915202 | Y155: =Model!OJ18 -> 0.5088600439 | Z155: =Model!OK18 -> 0.5098542752 | AA155: =Model!OL18 -> 0.5098542431 | AB155: =Model!OM18 -> 0.5098542431 | AC155: =Model!ON18 -> 0.5098542753 | AD155: =Model!OO18 -> 0.5098543396 | AE155: =Model!OP18 -> 0.5098542752 | AF155: =Model!OQ18 -> 0.5098542431 | AG155: =Model!OR18 -> 0.5098542431 | AH155: =Model!OS18 -> 0.5098542753 | AI155: =Model!OT18 -> 0.5098543396 | AJ155: =Model!OU18 -> 0.5098542752 | AK155: =Model!OV18 -> 0.5098542431 | AL155: =Model!OW18 -> 0.5098542431 | AM155: =Model!OX18 -> 0.5098542753 | AN155: =Model!OY18 -> 0.5098543396 | AO155: =Model!OZ18 -> 0.5098542752 | AP155: =Model!PA18 -> 0.5098542431 | AQ155: =Model!PB18 -> 0.5098542431 | AR155: =Model!PC18 -> 0.5098542753 | AS155: =Model!PD18 -> 0.5098543396 | AT155: 0 | AU155: 0 | AV155: 0 | AW155: 0 | AX155: 0 | AY155: 0 | AZ155: 0 | BA155: 0 | BB155: 0 | BC155: 0 | BD155: =Z155-Z136 -> 0 | BE155: 0 | BF155: 0 | BG155: 0 | BH155: 0 | BI155: 0 | BJ155: 0 | BK155: 0 | BL155: 0 | BM155: 0 | BN155: 0 | BO155: 0 | BP155: 0 | BQ155: 0 | BR155: 0 | BS155: 0 | BT155: 0 | BU155: 0 | BV155: 0 | BW155: 0
B156: =IF(Summary!$J$6=C156,1,0) -> 0 | C156: 25-34 | P156: =Model!OA19 -> 0.4586236765 | Q156: =Model!OB19 -> 0.4655616929 | R156: =Model!OC19 -> 0.4739621589 | S156: =Model!OD19 -> 0.4826563535 | T156: =Model!OE19 -> 0.4919798017 | U156: =Model!OF19 -> 0.498635562 | V156: =Model!OG19 -> 0.5045079833 | W156: =Model!OH19 -> 0.5089087365 | X156: =Model!OI19 -> 0.5129849051 | Y156: =Model!OJ19 -> 0.5163862163 | Z156: =Model!OK19 -> 0.5213558076 | AA156: =Model!OL19 -> 0.5258273779 | AB156: =Model!OM19 -> 0.5302917976 | AC156: =Model!ON19 -> 0.5347490839 | AD156: =Model!OO19 -> 0.5391992539 | AE156: =Model!OP19 -> 0.5397043429 | AF156: =Model!OQ19 -> 0.5402087792 | AG156: =Model!OR19 -> 0.5407125641 | AH156: =Model!OS19 -> 0.541215699 | AI156: =Model!OT19 -> 0.541718185 | AJ156: =Model!OU19 -> 0.5417181533 | AK156: =Model!OV19 -> 0.5417181374 | AL156: =Model!OW19 -> 0.5417181374 | AM156: =Model!OX19 -> 0.5417181533 | AN156: =Model!OY19 -> 0.541718185 | AO156: =Model!OZ19 -> 0.5417181533 | AP156: =Model!PA19 -> 0.5417181374 | AQ156: =Model!PB19 -> 0.5417181374 | AR156: =Model!PC19 -> 0.5417181533 | AS156: =Model!PD19 -> 0.541718185 | AT156: 0 | AU156: 0 | AV156: 0 | AW156: 0 | AX156: 0 | AY156: 0 | AZ156: 0 | BA156: 0 | BB156: 0 | BC156: 0 | BD156: =Z156-Z137 -> 0 | BE156: 0 | BF156: 0 | BG156: 0 | BH156: 0 | BI156: 0 | BJ156: 0 | BK156: 0 | BL156: 0 | BM156: 0 | BN156: 0 | BO156: 0 | BP156: 0 | BQ156: 0 | BR156: 0 | BS156: 0 | BT156: 0 | BU156: 0 | BV156: 0 | BW156: 0
B157: =IF(Summary!$J$6=C157,1,0) -> 0 | C157: 25-39 | P157: =Model!OA20 -> 0.4643253782 | Q157: =Model!OB20 -> 0.4717752116 | R157: =Model!OC20 -> 0.4801666512 | S157: =Model!OD20 -> 0.4887101232 | T157: =Model!OE20 -> 0.4976309232 | U157: =Model!OF20 -> 0.5042081615 | V157: =Model!OG20 -> 0.5101901444 | W157: =Model!OH20 -> 0.515136216 | X157: =Model!OI20 -> 0.5198165015 | Y157: =Model!OJ20 -> 0.5240090807 | Z157: =Model!OK20 -> 0.528836871 | AA157: =Model!OL20 -> 0.533369966 | AB157: =Model!OM20 -> 0.5379266164 | AC157: =Model!ON20 -> 0.5425070062 | AD157: =Model!OO20 -> 0.5471113213 | AE157: =Model!OP20 -> 0.5504606931 | AF157: =Model!OQ20 -> 0.5538050097 | AG157: =Model!OR20 -> 0.5571442828 | AH157: =Model!OS20 -> 0.5604785236 | AI157: =Model!OT20 -> 0.5638077437 | AJ157: =Model!OU20 -> 0.5641478998 | AK157: =Model!OV20 -> 0.5644876161 | AL157: =Model!OW20 -> 0.5648268935 | AM157: =Model!OX20 -> 0.5651657329 | AN157: =Model!OY20 -> 0.5655041352 | AO157: =Model!OZ20 -> 0.5655041143 | AP157: =Model!PA20 -> 0.5655041038 | AQ157: =Model!PB20 -> 0.5655041038 | AR157: =Model!PC20 -> 0.5655041143 | AS157: =Model!PD20 -> 0.5655041352 | AT157: 0 | AU157: 0 | AV157: 0 | AW157: 0 | AX157: 0 | AY157: 0 | AZ157: 0 | BA157: 0 | BB157: 0 | BC157: 0 | BD157: =Z157-Z138 -> 0 | BE157: 0 | BF157: 0 | BG157: 0 | BH157: 0 | BI157: 0 | BJ157: 0 | BK157: 0 | BL157: 0 | BM157: 0 | BN157: 0 | BO157: 0 | BP157: 0 | BQ157: 0 | BR157: 0 | BS157: 0 | BT157: 0 | BU157: 0 | BV157: 0 | BW157: 0
B158: =IF(Summary!$J$6=C158,1,0) -> 0 | C158: 25-44 | P158: =Model!OA21 -> 0.4644088725 | Q158: =Model!OB21 -> 0.4721385705 | R158: =Model!OC21 -> 0.4805212873 | S158: =Model!OD21 -> 0.4889518344 | T158: =Model!OE21 -> 0.497601889 | U158: =Model!OF21 -> 0.504669704 | V158: =Model!OG21 -> 0.511255722 | W158: =Model!OH21 -> 0.5170290299 | X158: =Model!OI21 -> 0.5225744299 | Y158: =Model!OJ21 -> 0.5277257352 | Z158: =Model!OK21 -> 0.5329460726 | AA158: =Model!OL21 -> 0.5379026013 | AB158: =Model!OM21 -> 0.5428352972 | AC158: =Model!ON21 -> 0.5477443319 | AD158: =Model!OO21 -> 0.5526298752 | AE158: =Model!OP21 -> 0.556295421 | AF158: =Model!OQ21 -> 0.5599740127 | AG158: =Model!OR21 -> 0.5636657203 | AH158: =Model!OS21 -> 0.5673706139 | AI158: =Model!OT21 -> 0.5710887642 | AJ158: =Model!OU21 -> 0.5736015363 | AK158: =Model!OV21 -> 0.5761106351 | AL158: =Model!OW21 -> 0.5786160685 | AM158: =Model!OX21 -> 0.5811178446 | AN158: =Model!OY21 -> 0.5836159715 | AO158: =Model!OZ21 -> 0.583870738 | AP158: =Model!PA21 -> 0.5841251751 | AQ158: =Model!PB21 -> 0.5843792834 | AR158: =Model!PC21 -> 0.5846330636 | AS158: =Model!PD21 -> 0.5848865164 | AT158: 0 | AU158: 0 | AV158: 0 | AW158: 0 | AX158: 0 | AY158: 0 | AZ158: 0 | BA158: 0 | BB158: 0 | BC158: 0 | BD158: =Z158-Z139 -> 0 | BE158: 0 | BF158: 0 | BG158: 0 | BH158: 0 | BI158: 0 | BJ158: 0 | BK158: 0 | BL158: 0 | BM158: 0 | BN158: 0 | BO158: 0 | BP158: 0 | BQ158: 0 | BR158: 0 | BS158: 0 | BT158: 0 | BU158: 0 | BV158: 0 | BW158: 0
B159: =IF(Summary!$J$6=C159,1,0) -> 0 | C159: 25-49 | P159: =Model!OA22 -> 0.4619386371 | Q159: =Model!OB22 -> 0.4694943051 | R159: =Model!OC22 -> 0.4776116181 | S159: =Model!OD22 -> 0.4858001859 | T159: =Model!OE22 -> 0.4942008418 | U159: =Model!OF22 -> 0.5015718147 | V159: =Model!OG22 -> 0.5084996949 | W159: =Model!OH22 -> 0.5147186442 | X159: =Model!OI22 -> 0.5207097516 | Y159: =Model!OJ22 -> 0.526340377 | Z159: =Model!OK22 -> 0.5321961933 | AA159: =Model!OL22 -> 0.5378171962 | AB159: =Model!OM22 -> 0.5433983151 | AC159: =Model!ON22 -> 0.5489399731 | AD159: =Model!OO22 -> 0.5544425872 | AE159: =Model!OP22 -> 0.5586292983 | AF159: =Model!OQ22 -> 0.5627992981 | AG159: =Model!OR22 -> 0.5669526866 | AH159: =Model!OS22 -> 0.5710895628 | AI159: =Model!OT22 -> 0.5752100251 | AJ159: =Model!OU22 -> 0.5781445777 | AK159: =Model!OV22 -> 0.5810865224 | AL159: =Model!OW22 -> 0.5840358872 | AM159: =Model!OX22 -> 0.5869927002 | AN159: =Model!OY22 -> 0.5899569896 | AO159: =Model!OZ22 -> 0.5919371815 | AP159: =Model!PA22 -> 0.5939145386 | AQ159: =Model!PB22 -> 0.5958890669 | AR159: =Model!PC22 -> 0.5978607725 | AS159: =Model!PD22 -> 0.5998296614 | AT159: 0 | AU159: 0 | AV159: 0 | AW159: 0 | AX159: 0 | AY159: 0 | AZ159: 0 | BA159: 0 | BB159: 0 | BC159: 0 | BD159: =Z159-Z140 -> 0 | BE159: 0 | BF159: 0 | BG159: 0 | BH159: 0 | BI159: 0 | BJ159: 0 | BK159: 0 | BL159: 0 | BM159: 0 | BN159: 0 | BO159: 0 | BP159: 0 | BQ159: 0 | BR159: 0 | BS159: 0 | BT159: 0 | BU159: 0 | BV159: 0 | BW159: 0
B160: =IF(Summary!$J$6=C160,1,0) -> 0 | C160: 25-54 | P160: =Model!OA23 -> 0.4549200843 | Q160: =Model!OB23 -> 0.4629598141 | R160: =Model!OC23 -> 0.4714784653 | S160: =Model!OD23 -> 0.4800647486 | T160: =Model!OE23 -> 0.4888376845 | U160: =Model!OF23 -> 0.4961454545 | V160: =Model!OG23 -> 0.5030992437 | W160: =Model!OH23 -> 0.509469986 | X160: =Model!OI23 -> 0.5156630414 | Y160: =Model!OJ23 -> 0.5215634826 | Z160: =Model!OK23 -> 0.5278168458 | AA160: =Model!OL23 -> 0.5338352831 | AB160: =Model!OM23 -> 0.5397861164 | AC160: =Model!ON23 -> 0.5456704785 | AD160: =Model!OO23 -> 0.551489477 | AE160: =Model!OP23 -> 0.5563461437 | AF160: =Model!OQ23 -> 0.5611736458 | AG160: =Model!OR23 -> 0.5659722453 | AH160: =Model!OS23 -> 0.570742201 | AI160: =Model!OT23 -> 0.5754837686 | AJ160: =Model!OU23 -> 0.5789448127 | AK160: =Model!OV23 -> 0.5823937191 | AL160: =Model!OW23 -> 0.5858305517 | AM160: =Model!OX23 -> 0.5892553736 | AN160: =Model!OY23 -> 0.5926682479 | AO160: =Model!OZ23 -> 0.5950893753 | AP160: =Model!PA23 -> 0.5975149335 | AQ160: =Model!PB23 -> 0.5999449346 | AR160: =Model!PC23 -> 0.6023793908 | AS160: =Model!PD23 -> 0.6048183143 | AT160: 0 | AU160: 0 | AV160: 0 | AW160: 0 | AX160: 0 | AY160: 0 | AZ160: 0 | BA160: 0 | BB160: 0 | BC160: 0 | BD160: =Z160-Z141 -> 0 | BE160: 0 | BF160: 0 | BG160: 0 | BH160: 0 | BI160: 0 | BJ160: 0 | BK160: 0 | BL160: 0 | BM160: 0 | BN160: 0 | BO160: 0 | BP160: 0 | BQ160: 0 | BR160: 0 | BS160: 0 | BT160: 0 | BU160: 0 | BV160: 0 | BW160: 0
B161: =IF(Summary!$J$6=C161,1,0) -> 0 | C161: 25-59 | P161: =Model!OA24 -> 0.4459496947 | Q161: =Model!OB24 -> 0.4540003202 | R161: =Model!OC24 -> 0.462496064 | S161: =Model!OD24 -> 0.4710841654 | T161: =Model!OE24 -> 0.4798681407 | U161: =Model!OF24 -> 0.487618755 | V161: =Model!OG24 -> 0.4950666938 | W161: =Model!OH24 -> 0.5020116451 | X161: =Model!OI24 -> 0.5088049167 | Y161: =Model!OJ24 -> 0.5153457928 | Z161: =Model!OK24 -> 0.5217099068 | AA161: =Model!OL24 -> 0.5278824427 | AB161: =Model!OM24 -> 0.5340087783 | AC161: =Model!ON24 -> 0.5400894302 | AD161: =Model!OO24 -> 0.5461249077 | AE161: =Model!OP24 -> 0.5514083942 | AF161: =Model!OQ24 -> 0.5566412243 | AG161: =Model!OR24 -> 0.5618241232 | AH161: =Model!OS24 -> 0.5669578022 | AI161: =Model!OT24 -> 0.5720429592 | AJ161: =Model!OU24 -> 0.5761448236 | AK161: =Model!OV24 -> 0.5802252084 | AL161: =Model!OW24 -> 0.5842842819 | AM161: =Model!OX24 -> 0.5883222108 | AN161: =Model!OY24 -> 0.5923391598 | AO161: =Model!OZ24 -> 0.5952564228 | AP161: =Model!PA24 -> 0.5981647219 | AQ161: =Model!PB24 -> 0.6010640983 | AR161: =Model!PC24 -> 0.6039545929 | AS161: =Model!PD24 -> 0.6068362466 | AT161: 0 | AU161: 0 | AV161: 0 | AW161: 0 | AX161: 0 | AY161: 0 | AZ161: 0 | BA161: 0 | BB161: 0 | BC161: 0 | BD161: =Z161-Z142 -> 0 | BE161: 0 | BF161: 0 | BG161: 0 | BH161: 0 | BI161: 0 | BJ161: 0 | BK161: 0 | BL161: 0 | BM161: 0 | BN161: 0 | BO161: 0 | BP161: 0 | BQ161: 0 | BR161: 0 | BS161: 0 | BT161: 0 | BU161: 0 | BV161: 0 | BW161: 0
B162: =IF(Summary!$J$6=C162,1,0) -> 1 | C162: 25-64 | P162: =Model!OA25 -> 0.4387903192 | Q162: =Model!OB25 -> 0.4461477791 | R162: =Model!OC25 -> 0.4538892618 | S162: =Model!OD25 -> 0.4617048405 | T162: =Model!OE25 -> 0.4696852247 | U162: =Model!OF25 -> 0.4774909281 | V162: =Model!OG25 -> 0.4850563707 | W162: =Model!OH25 -> 0.4922030303 | X162: =Model!OI25 -> 0.4992387189 | Y162: =Model!OJ25 -> 0.5060732814 | Z162: =Model!OK25 -> 0.5129319114 | AA162: =Model!OL25 -> 0.519623413 | AB162: =Model!OM25 -> 0.5262764776 | AC162: =Model!ON25 -> 0.5328914352 | AD162: =Model!OO25 -> 0.5394686125 | AE162: =Model!OP25 -> 0.5449664402 | AF162: =Model!OQ25 -> 0.5504284076 | AG162: =Model!OR25 -> 0.5558548643 | AH162: =Model!OS25 -> 0.5612461557 | AI162: =Model!OT25 -> 0.5666026225 | AJ162: =Model!OU25 -> 0.5711364059 | AK162: =Model!OV25 -> 0.5756320954 | AL162: =Model!OW25 -> 0.5800901692 | AM162: =Model!OX25 -> 0.5845110973 | AN162: =Model!OY25 -> 0.5888953423 | AO162: =Model!OZ25 -> 0.5924218195 | AP162: =Model!PA25 -> 0.5959320263 | AQ162: =Model!PB25 -> 0.599426075 | AR162: =Model!PC25 -> 0.6029040771 | AS162: =Model!PD25 -> 0.6063661429 | AT162: 0 | AU162: 0 | AV162: 0 | AW162: 0 | AX162: 0 | AY162: 0 | AZ162: 0 | BA162: 0 | BB162: 0 | BC162: 0 | BD162: =Z162-Z143 -> 0 | BE162: 0 | BF162: 0 | BG162: 0 | BH162: 0 | BI162: 0 | BJ162: 0 | BK162: 0 | BL162: 0 | BM162: 0 | BN162: 0 | BO162: 0 | BP162: 0 | BQ162: 0 | BR162: 0 | BS162: 0 | BT162: 0 | BU162: 0 | BV162: 0 | BW162: 0
P164: Attainment | AT164: Incremental Gain Over Prior Lever
B165: Use | C165: F. Adding incremental gains based on assumed increases in HS graduation rate | P165: 2019 | Q165: 2020 | R165: 2021 | S165: 2022 | T165: 2023 | U165: 2024 | V165: 2025 | W165: 2026 | X165: 2027 | Y165: 2028 | Z165: 2029 | AA165: 2030 | AB165: 2031 | AC165: 2032 | AD165: 2033 | AE165: 2034 | AF165: 2035 | AG165: 2036 | AH165: 2037 | AI165: 2038 | AJ165: 2039 | AK165: 2040 | AL165: 2041 | AM165: 2042 | AN165: 2043 | AO165: 2044 | AP165: 2045 | AQ165: 2046 | AR165: 2047 | AS165: 2048 | AT165: 2019 | AU165: 2020 | AV165: 2021 | AW165: 2022 | AX165: 2023 | AY165: 2024 | AZ165: 2025 | BA165: 2026 | BB165: 2027 | BC165: 2028 | BD165: 2029 | BE165: 2030 | BF165: 2031 | BG165: 2032 | BH165: 2033 | BI165: 2034 | BJ165: 2035 | BK165: 2036 | BL165: 2037 | BM165: 2038 | BN165: 2039 | BO165: 2040 | BP165: 2041 | BQ165: 2042 | BR165: 2043 | BS165: 2044 | BT165: 2045 | BU165: 2046 | BV165: 2047 | BW165: 2048
B166: =IF(Summary!$J$6=C166,1,0) -> 0 | C166: 25-29 | P166: =Model!UM8 -> 0.4410731051 | Q166: =Model!UN8 -> 0.4485207152 | R166: =Model!UO8 -> 0.4591767284 | S166: =Model!UP8 -> 0.4707686244 | T166: =Model!UQ8 -> 0.4840267973 | U166: =Model!UR8 -> 0.4928473494 | V166: =Model!US8 -> 0.4999265393 | W166: =Model!UT8 -> 0.5043485972 | X166: =Model!UU8 -> 0.5084947208 | Y166: =Model!UV8 -> 0.5116650554 | Z166: =Model!UW8 -> 0.51452826 | AA166: =Model!UX8 -> 0.516863672 | AB166: =Model!UY8 -> 0.5191991183 | AC166: =Model!UZ8 -> 0.5215346019 | AD166: =Model!VA8 -> 0.5238701257 | AE166: =Model!VB8 -> 0.5262054964 | AF166: =Model!VC8 -> 0.5285409033 | AG166: =Model!VD8 -> 0.5308763496 | AH166: =Model!VE8 -> 0.5332118383 | AI166: =Model!VF8 -> 0.5355473723 | AJ166: =Model!VG8 -> 0.5378827327 | AK166: =Model!VH8 -> 0.5402181346 | AL166: =Model!VI8 -> 0.5425535809 | AM166: =Model!VJ8 -> 0.5448890747 | AN166: =Model!VK8 -> 0.547224619 | AO166: =Model!VL8 -> 0.5495599691 | AP166: =Model!VM8 -> 0.5518953659 | AQ166: =Model!VN8 -> 0.5542308122 | AR166: =Model!VO8 -> 0.5565663111 | AS166: =Model!VP8 -> 0.5589018656 | AT166: =P166-P147 -> 0 | AU166: =Q166-Q147 -> 0 | AV166: =R166-R147 -> 0 | AW166: =S166-S147 -> 0 | AX166: =T166-T147 -> 0 | AY166: =U166-U147 -> 0 | AZ166: =V166-V147 -> 0 | BA166: =W166-W147 -> 0.0004679656374 | BB166: =X166-X147 -> 0.001403200537 | BC166: =Y166-Y147 -> 0.002805011543 | BD166: =Z166-Z147 -> 0.004673984741 | BE166: 0.007009428952 | BF166: 0.009344875213 | BG166: 0.01168032659 | BH166: 0.01401578613 | BI166: 0.01635122113 | BJ166: 0.01868666023 | BK166: 0.0210221065 | BL166: 0.02335756298 | BM166: 0.02569303274 | BN166: 0.02802845751 | BO166: 0.03036389151 | BP166: 0.03269933778 | BQ166: 0.03503479938 | BR166: 0.03737027935 | BS166: 0.0397056939 | BT166: 0.04204112278 | BU166: 0.04437656907 | BV166: 0.04671203578 | BW166: 0.04904752597
B167: =IF(Summary!$J$6=C167,1,0) -> 0 | C167: 30-34 | P167: =Model!UM9 -> 0.4766824848 | Q167: =Model!UN9 -> 0.4826427489 | R167: =Model!UO9 -> 0.4884022261 | S167: =Model!UP9 -> 0.4939708943 | T167: =Model!UQ9 -> 0.4993580811 | U167: =Model!UR9 -> 0.5040582543 | V167: =Model!US9 -> 0.5088426263 | W167: =Model!UT9 -> 0.5137134799 | X167: =Model!UU9 -> 0.5186731814 | Y167: =Model!UV9 -> 0.5237241842 | Z167: =Model!UW9 -> 0.5325666143 | AA167: =Model!UX9 -> 0.5413924457 | AB167: =Model!UY9 -> 0.5506558534 | AC167: =Model!UZ9 -> 0.5603562081 | AD167: =Model!VA9 -> 0.5704928835 | AE167: =Model!VB9 -> 0.5733035219 | AF167: =Model!VC9 -> 0.5765655186 | AG167: =Model!VD9 -> 0.5798262003 | AH167: =Model!VE9 -> 0.5830855726 | AI167: =Model!VF9 -> 0.5863436412 | AJ167: =Model!VG9 -> 0.5886100189 | AK167: =Model!VH9 -> 0.5908764006 | AL167: =Model!VI9 -> 0.5931427892 | AM167: =Model!VJ9 -> 0.5954091878 | AN167: =Model!VK9 -> 0.5976755992 | AO167: =Model!VL9 -> 0.599941967 | AP167: =Model!VM9 -> 0.6022083437 | AQ167: =Model!VN9 -> 0.6044747323 | AR167: =Model!VO9 -> 0.6067411359 | AS167: =Model!VP9 -> 0.6090075572 | AT167: 0 | AU167: 0 | AV167: 0 | AW167: 0 | AX167: 0 | AY167: 0 | AZ167: 0 | BA167: 0 | BB167: 0 | BC167: 0 | BD167: =Z167-Z148 -> 0 | BE167: 0 | BF167: 0.0004541281964 | BG167: 0.001361708805 | BH167: 0.002722069168 | BI167: 0.004535778037 | BJ167: 0.006802164675 | BK167: 0.009068553301 | BL167: 0.01133494689 | BM167: 0.0136013484 | BN167: 0.0158677261 | BO167: 0.01813410778 | BP167: 0.02040049641 | BQ167: 0.02266689496 | BR167: 0.02493330639 | BS167: 0.02719967416 | BT167: 0.02946605089 | BU167: 0.03173243953 | BV167: 0.03399884304 | BW167: 0.03626526438
B168: =IF(Summary!$J$6=C168,1,0) -> 0 | C168: 35-39 | P168: =Model!UM10 -> 0.476195216 | Q168: =Model!UN10 -> 0.4846538336 | R168: =Model!UO10 -> 0.4929708754 | S168: =Model!UP10 -> 0.5011498663 | T168: =Model!UQ10 -> 0.5091942152 | U168: =Model!UR10 -> 0.5153659523 | V168: =Model!US10 -> 0.5213262164 | W168: =Model!UT10 -> 0.5270856935 | X168: =Model!UU10 -> 0.5326543617 | Y168: =Model!UV10 -> 0.5380415485 | Z168: =Model!UW10 -> 0.5427417217 | AA168: =Model!UX10 -> 0.5475260937 | AB168: =Model!UY10 -> 0.5523969473 | AC168: =Model!UZ10 -> 0.5573566489 | AD168: =Model!VA10 -> 0.5624076517 | AE168: =Model!VB10 -> 0.5712500817 | AF168: =Model!VC10 -> 0.5800759131 | AG168: =Model!VD10 -> 0.5893279536 | AH168: =Model!VE10 -> 0.5990055907 | AI168: =Model!VF10 -> 0.6091082151 | AJ168: =Model!VG10 -> 0.6118734548 | AK168: =Model!VH10 -> 0.6150787218 | AL168: =Model!VI10 -> 0.6182826738 | AM168: =Model!VJ10 -> 0.6214853163 | AN168: =Model!VK10 -> 0.6246866549 | AO168: =Model!VL10 -> 0.6268963032 | AP168: =Model!VM10 -> 0.6291059553 | AQ168: =Model!VN10 -> 0.6313156142 | AR168: =Model!VO10 -> 0.6335252828 | AS168: =Model!VP10 -> 0.635734964 | AT168: 0 | AU168: 0 | AV168: 0 | AW168: 0 | AX168: 0 | AY168: 0 | AZ168: 0 | BA168: 0 | BB168: 0 | BC168: 0 | BD168: =Z168-Z149 -> 0 | BE168: 0 | BF168: 0 | BG168: 0 | BH168: 0 | BI168: 0 | BJ168: 0 | BK168: 0.000442760967 | BL168: 0.001327624032 | BM168: 0.002653933375 | BN168: 0.004422243511 | BO168: 0.006631900492 | BP168: 0.008841559412 | BQ168: 0.01105122317 | BR168: 0.01326089465 | BS168: 0.01547054292 | BT168: 0.01768019507 | BU168: 0.01988985399 | BV168: 0.02209952259 | BW168: 0.02430920374
B169: =IF(Summary!$J$6=C169,1,0) -> 0 | C169: 40-44 | P169: =Model!UM11 -> 0.4646843365 | Q169: =Model!UN11 -> 0.4733228355 | R169: =Model!UO11 -> 0.4816634333 | S169: =Model!UP11 -> 0.4897212788 | T169: =Model!UQ11 -> 0.4975105104 | U169: =Model!UR11 -> 0.5061143497 | V169: =Model!US11 -> 0.5145729673 | W169: =Model!UT11 -> 0.5228900091 | X169: =Model!UU11 -> 0.531069 | Y169: =Model!UV11 -> 0.5391133489 | Z169: =Model!UW11 -> 0.545285086 | AA169: =Model!UX11 -> 0.5512453501 | AB169: =Model!UY11 -> 0.5570048273 | AC169: =Model!UZ11 -> 0.5625734954 | AD169: =Model!VA11 -> 0.5679606822 | AE169: =Model!VB11 -> 0.5726608555 | AF169: =Model!VC11 -> 0.5774452274 | AG169: =Model!VD11 -> 0.5823160811 | AH169: =Model!VE11 -> 0.5872757826 | AI169: =Model!VF11 -> 0.5923267854 | AJ169: =Model!VG11 -> 0.6011692154 | AK169: =Model!VH11 -> 0.6099950468 | AL169: =Model!VI11 -> 0.6192429525 | AM169: =Model!VJ11 -> 0.6289123261 | AN169: =Model!VK11 -> 0.6390025645 | AO169: =Model!VL11 -> 0.6417512904 | AP169: =Model!VM11 -> 0.644935922 | AQ169: =Model!VN11 -> 0.6481192385 | AR169: =Model!VO11 -> 0.6513012456 | AS169: =Model!VP11 -> 0.6544819486 | AT169: 0 | AU169: 0 | AV169: 0 | AW169: 0 | AX169: 0 | AY169: 0 | AZ169: 0 | BA169: 0 | BB169: 0 | BC169: 0 | BD169: =Z169-Z150 -> 0 | BE169: 0 | BF169: 0 | BG169: 0 | BH169: 0 | BI169: 0 | BJ169: 0 | BK169: 0 | BL169: 0 | BM169: 0 | BN169: 0 | BO169: 0 | BP169: 0.0004386261383 | BQ169: 0.001315225699 | BR169: 0.002629148986 | BS169: 0.004380945338 | BT169: 0.006569966911 | BU169: 0.008758990405 | BV169: 0.01094801869 | BW169: 0.01313705463
B170: =IF(Summary!$J$6=C170,1,0) -> 0 | C170: 45-49 | P170: =Model!UM12 -> 0.451397293 | Q170: =Model!UN12 -> 0.4580075595 | R170: =Model!UO12 -> 0.4647445687 | S170: =Model!UP12 -> 0.471612001 | T170: =Model!UQ12 -> 0.4786136807 | U170: =Model!UR12 -> 0.4875663311 | V170: =Model!US12 -> 0.49620483 | W170: =Model!UT12 -> 0.5045454279 | X170: =Model!UU12 -> 0.5126032734 | Y170: =Model!UV12 -> 0.5203925049 | Z170: =Model!UW12 -> 0.5289963443 | AA170: =Model!UX12 -> 0.5374549619 | AB170: =Model!UY12 -> 0.5457720037 | AC170: =Model!UZ12 -> 0.5539509946 | AD170: =Model!VA12 -> 0.5619953435 | AE170: =Model!VB12 -> 0.5681670806 | AF170: =Model!VC12 -> 0.5741273447 | AG170: =Model!VD12 -> 0.5798868218 | AH170: =Model!VE12 -> 0.58545549 | AI170: =Model!VF12 -> 0.5908426768 | AJ170: =Model!VG12 -> 0.5955428501 | AK170: =Model!VH12 -> 0.600327222 | AL170: =Model!VI12 -> 0.6051980757 | AM170: =Model!VJ12 -> 0.6101577772 | AN170: =Model!VK12 -> 0.61520878 | AO170: =Model!VL12 -> 0.62405121 | AP170: =Model!VM12 -> 0.6328770414 | AQ170: =Model!VN12 -> 0.6421306401 | AR170: =Model!VO12 -> 0.6518113912 | AS170: =Model!VP12 -> 0.6619186832 | AT170: 0 | AU170: 0 | AV170: 0 | AW170: 0 | AX170: 0 | AY170: 0 | AZ170: 0 | BA170: 0 | BB170: 0 | BC170: 0 | BD170: =Z170-Z151 -> 0 | BE170: 0 | BF170: 0 | BG170: 0 | BH170: 0 | BI170: 0 | BJ170: 0 | BK170: 0 | BL170: 0 | BM170: 0 | BN170: 0 | BO170: 0 | BP170: 0 | BQ170: 0 | BR170: 0 | BS170: 0 | BT170: 0 | BU170: 0.0004443191271 | BV170: 0.001332296194 | BW170: 0.002663273072
B171: =IF(Summary!$J$6=C171,1,0) -> 0 | C171: 50-54 | P171: =Model!UM13 -> 0.4183290485 | Q171: =Model!UN13 -> 0.4285831473 | R171: =Model!UO13 -> 0.438920523 | S171: =Model!UP13 -> 0.4493421942 | T171: =Model!UQ13 -> 0.4598491963 | U171: =Model!UR13 -> 0.4663362634 | V171: =Model!US13 -> 0.47294653 | W171: =Model!UT13 -> 0.4796835392 | X171: =Model!UU13 -> 0.4865509714 | Y171: =Model!UV13 -> 0.4935526511 | Z171: =Model!UW13 -> 0.5025053015 | AA171: =Model!UX13 -> 0.5111438005 | AB171: =Model!UY13 -> 0.5194843984 | AC171: =Model!UZ13 -> 0.5275422438 | AD171: =Model!VA13 -> 0.5353314754 | AE171: =Model!VB13 -> 0.5439353148 | AF171: =Model!VC13 -> 0.5523939324 | AG171: =Model!VD13 -> 0.5607109742 | AH171: =Model!VE13 -> 0.5688899651 | AI171: =Model!VF13 -> 0.576934314 | AJ171: =Model!VG13 -> 0.583106051 | AK171: =Model!VH13 -> 0.5890663151 | AL171: =Model!VI13 -> 0.5948257923 | AM171: =Model!VJ13 -> 0.6003944605 | AN171: =Model!VK13 -> 0.6057816473 | AO171: =Model!VL13 -> 0.6104818205 | AP171: =Model!VM13 -> 0.6152661925 | AQ171: =Model!VN13 -> 0.6201370461 | AR171: =Model!VO13 -> 0.6250967476 | AS171: =Model!VP13 -> 0.6301477504 | AT171: 0 | AU171: 0 | AV171: 0 | AW171: 0 | AX171: 0 | AY171: 0 | AZ171: 0 | BA171: 0 | BB171: 0 | BC171: 0 | BD171: =Z171-Z152 -> 0 | BE171: 0 | BF171: 0 | BG171: 0 | BH171: 0 | BI171: 0 | BJ171: 0 | BK171: 0 | BL171: 0 | BM171: 0 | BN171: 0 | BO171: 0 | BP171: 0 | BQ171: 0 | BR171: 0 | BS171: 0 | BT171: 0 | BU171: 0 | BV171: 0 | BW171: 0
B172: =IF(Summary!$J$6=C172,1,0) -> 0 | C172: 55-59 | P172: =Model!UM14 -> 0.3915320123 | Q172: =Model!UN14 -> 0.3986769337 | R172: =Model!UO14 -> 0.4060287311 | S172: =Model!UP14 -> 0.4135965214 | T172: =Model!UQ14 -> 0.4213899651 | U172: =Model!UR14 -> 0.4315617893 | V172: =Model!US14 -> 0.4418158881 | W172: =Model!UT14 -> 0.4521532638 | X172: =Model!UU14 -> 0.462574935 | Y172: =Model!UV14 -> 0.4730819371 | Z172: =Model!UW14 -> 0.4795690042 | AA172: =Model!UX14 -> 0.4861792708 | AB172: =Model!UY14 -> 0.4929162799 | AC172: =Model!UZ14 -> 0.4997837122 | AD172: =Model!VA14 -> 0.5067853919 | AE172: =Model!VB14 -> 0.5157380423 | AF172: =Model!VC14 -> 0.5243765413 | AG172: =Model!VD14 -> 0.5327171392 | AH172: =Model!VE14 -> 0.5407749846 | AI172: =Model!VF14 -> 0.5485642162 | AJ172: =Model!VG14 -> 0.5571680556 | AK172: =Model!VH14 -> 0.5656266732 | AL172: =Model!VI14 -> 0.5739437149 | AM172: =Model!VJ14 -> 0.5821227059 | AN172: =Model!VK14 -> 0.5901670548 | AO172: =Model!VL14 -> 0.5963387918 | AP172: =Model!VM14 -> 0.6022990559 | AQ172: =Model!VN14 -> 0.6080585331 | AR172: =Model!VO14 -> 0.6136272012 | AS172: =Model!VP14 -> 0.6190143881 | AT172: 0 | AU172: 0 | AV172: 0 | AW172: 0 | AX172: 0 | AY172: 0 | AZ172: 0 | BA172: 0 | BB172: 0 | BC172: 0 | BD172: =Z172-Z153 -> 0 | BE172: 0 | BF172: 0 | BG172: 0 | BH172: 0 | BI172: 0 | BJ172: 0 | BK172: 0 | BL172: 0 | BM172: 0 | BN172: 0 | BO172: 0 | BP172: 0 | BQ172: 0 | BR172: 0 | BS172: 0 | BT172: 0 | BU172: 0 | BV172: 0 | BW172: 0
B173: =IF(Summary!$J$6=C173,1,0) -> 0 | C173: 60-64 | P173: =Model!UM15 -> 0.3870827986 | Q173: =Model!UN15 -> 0.389624872 | R173: =Model!UO15 -> 0.3921445461 | S173: =Model!UP15 -> 0.3946421155 | T173: =Model!UQ15 -> 0.39711787 | U173: =Model!UR15 -> 0.4040645263 | V173: =Model!US15 -> 0.4112094477 | W173: =Model!UT15 -> 0.4185612451 | X173: =Model!UU15 -> 0.4261290353 | Y173: =Model!UV15 -> 0.4339224791 | Z173: =Model!UW15 -> 0.4440943033 | AA173: =Model!UX15 -> 0.4543484021 | AB173: =Model!UY15 -> 0.4646857778 | AC173: =Model!UZ15 -> 0.475107449 | AD173: =Model!VA15 -> 0.485614451 | AE173: =Model!VB15 -> 0.4921015182 | AF173: =Model!VC15 -> 0.4987117847 | AG173: =Model!VD15 -> 0.5054487939 | AH173: =Model!VE15 -> 0.5123162262 | AI173: =Model!VF15 -> 0.5193179059 | AJ173: =Model!VG15 -> 0.5282705563 | AK173: =Model!VH15 -> 0.5369090552 | AL173: =Model!VI15 -> 0.5452496531 | AM173: =Model!VJ15 -> 0.5533074986 | AN173: =Model!VK15 -> 0.5610967301 | AO173: =Model!VL15 -> 0.5697005695 | AP173: =Model!VM15 -> 0.5781591871 | AQ173: =Model!VN15 -> 0.5864762289 | AR173: =Model!VO15 -> 0.5946552198 | AS173: =Model!VP15 -> 0.6026995687 | AT173: 0 | AU173: 0 | AV173: 0 | AW173: 0 | AX173: 0 | AY173: 0 | AZ173: 0 | BA173: 0 | BB173: 0 | BC173: 0 | BD173: =Z173-Z154 -> 0 | BE173: 0 | BF173: 0 | BG173: 0 | BH173: 0 | BI173: 0 | BJ173: 0 | BK173: 0 | BL173: 0 | BM173: 0 | BN173: 0 | BO173: 0 | BP173: 0 | BQ173: 0 | BR173: 0 | BS173: 0 | BT173: 0 | BU173: 0 | BV173: 0 | BW173: 0
B174: =IF(Summary!$J$6=C174,1,0) -> 0 | C174: 25-29 | P174: =Model!UM18 -> 0.4410731051 | Q174: =Model!UN18 -> 0.4485207152 | R174: =Model!UO18 -> 0.4591767284 | S174: =Model!UP18 -> 0.4707686244 | T174: =Model!UQ18 -> 0.4840267973 | U174: =Model!UR18 -> 0.4928473494 | V174: =Model!US18 -> 0.4999265393 | W174: =Model!UT18 -> 0.5043485972 | X174: =Model!UU18 -> 0.5084947208 | Y174: =Model!UV18 -> 0.5116650554 | Z174: =Model!UW18 -> 0.51452826 | AA174: =Model!UX18 -> 0.516863672 | AB174: =Model!UY18 -> 0.5191991183 | AC174: =Model!UZ18 -> 0.5215346019 | AD174: =Model!VA18 -> 0.5238701257 | AE174: =Model!VB18 -> 0.5262054964 | AF174: =Model!VC18 -> 0.5285409033 | AG174: =Model!VD18 -> 0.5308763496 | AH174: =Model!VE18 -> 0.5332118383 | AI174: =Model!VF18 -> 0.5355473723 | AJ174: =Model!VG18 -> 0.5378827327 | AK174: =Model!VH18 -> 0.5402181346 | AL174: =Model!VI18 -> 0.5425535809 | AM174: =Model!VJ18 -> 0.5448890747 | AN174: =Model!VK18 -> 0.547224619 | AO174: =Model!VL18 -> 0.5495599691 | AP174: =Model!VM18 -> 0.5518953659 | AQ174: =Model!VN18 -> 0.5542308122 | AR174: =Model!VO18 -> 0.5565663111 | AS174: =Model!VP18 -> 0.5589018656 | AT174: 0 | AU174: 0 | AV174: 0 | AW174: 0 | AX174: 0 | AY174: 0 | AZ174: 0 | BA174: 0.0004679656374 | BB174: 0.001403200537 | BC174: 0.002805011543 | BD174: =Z174-Z155 -> 0.004673984741 | BE174: 0.007009428952 | BF174: 0.009344875213 | BG174: 0.01168032659 | BH174: 0.01401578613 | BI174: 0.01635122113 | BJ174: 0.01868666023 | BK174: 0.0210221065 | BL174: 0.02335756298 | BM174: 0.02569303274 | BN174: 0.02802845751 | BO174: 0.03036389151 | BP174: 0.03269933778 | BQ174: 0.03503479938 | BR174: 0.03737027935 | BS174: 0.0397056939 | BT174: 0.04204112278 | BU174: 0.04437656907 | BV174: 0.04671203578 | BW174: 0.04904752597
B175: =IF(Summary!$J$6=C175,1,0) -> 0 | C175: 25-34 | P175: =Model!UM19 -> 0.4586236765 | Q175: =Model!UN19 -> 0.4655616929 | R175: =Model!UO19 -> 0.4739621589 | S175: =Model!UP19 -> 0.4826563535 | T175: =Model!UQ19 -> 0.4919798017 | U175: =Model!UR19 -> 0.498635562 | V175: =Model!US19 -> 0.5045079833 | W175: =Model!UT19 -> 0.5091374042 | X175: =Model!UU19 -> 0.5136740802 | Y175: =Model!UV19 -> 0.5177709641 | Z175: =Model!UW19 -> 0.5236628857 | AA175: =Model!UX19 -> 0.5292867455 | AB175: =Model!UY19 -> 0.5351331669 | AC175: =Model!UZ19 -> 0.5412019208 | AD175: =Model!VA19 -> 0.5474927795 | AE175: =Model!VB19 -> 0.5500689572 | AF175: =Model!VC19 -> 0.5528738453 | AG175: =Model!VD19 -> 0.5556780866 | AH175: =Model!VE19 -> 0.5584816854 | AI175: =Model!VF19 -> 0.561284646 | AJ175: =Model!VG19 -> 0.5635850545 | AK175: =Model!VH19 -> 0.5658854854 | AL175: =Model!VI19 -> 0.5681859418 | AM175: =Model!VJ19 -> 0.5704864267 | AN175: =Model!VK19 -> 0.572786943 | AO175: =Model!VL19 -> 0.5750873414 | AP175: =Model!VM19 -> 0.5773877673 | AQ175: =Model!VN19 -> 0.5796882237 | AR175: =Model!VO19 -> 0.5819887136 | AS175: =Model!VP19 -> 0.58428924 | AT175: 0 | AU175: 0 | AV175: 0 | AW175: 0 | AX175: 0 | AY175: 0 | AZ175: 0 | BA175: 0.0002286677001 | BB175: 0.0006891750921 | BC175: 0.001384747739 | BD175: =Z175-Z156 -> 0.002307078063 | BE175: 0.003459367606 | BF175: 0.004841369228 | BG175: 0.006452836882 | BH175: 0.008293525613 | BI175: 0.01036461427 | BJ175: 0.01266506611 | BK175: 0.0149655225 | BL175: 0.01726598644 | BM175: 0.01956646094 | BN175: 0.02186690119 | BO175: 0.024167348 | BP175: 0.02646780439 | BQ175: 0.02876827337 | BR175: 0.03106875794 | BS175: 0.03336918811 | BT175: 0.03566962989 | BU175: 0.03797008629 | BV175: 0.04027056031 | BW175: 0.04257105494
B176: =IF(Summary!$J$6=C176,1,0) -> 0 | C176: 25-39 | P176: =Model!UM20 -> 0.4643253782 | Q176: =Model!UN20 -> 0.4717752116 | R176: =Model!UO20 -> 0.4801666512 | S176: =Model!UP20 -> 0.4887101232 | T176: =Model!UQ20 -> 0.4976309232 | U176: =Model!UR20 -> 0.5042081615 | V176: =Model!US20 -> 0.5101901444 | W176: =Model!UT20 -> 0.5152865415 | X176: =Model!UU20 -> 0.5202663123 | Y176: =Model!UV20 -> 0.5249063852 | Z176: =Model!UW20 -> 0.5303369039 | AA176: =Model!UX20 -> 0.5356268392 | AB176: =Model!UY20 -> 0.5410958424 | AC176: =Model!UZ20 -> 0.5467455132 | AD176: =Model!VA20 -> 0.552577468 | AE176: =Model!VB20 -> 0.5572912192 | AF176: =Model!VC20 -> 0.5621507997 | AG176: =Model!VD20 -> 0.5671560807 | AH176: =Model!VE20 -> 0.5723069339 | AI176: =Model!VF20 -> 0.5776032316 | AJ176: =Model!VG20 -> 0.580062252 | AK176: =Model!VH20 -> 0.5826714354 | AL176: =Model!VI20 -> 0.5852801868 | AM176: =Model!VJ20 -> 0.5878885102 | AN176: =Model!VK20 -> 0.5904964094 | AO176: =Model!VL20 -> 0.5927658416 | AP176: =Model!VM20 -> 0.5950352932 | AQ176: =Model!VN20 -> 0.5973047673 | AR176: =Model!VO20 -> 0.5995742667 | AS176: =Model!VP20 -> 0.6018437944 | AT176: 0 | AU176: 0 | AV176: 0 | AW176: 0 | AX176: 0 | AY176: 0 | AZ176: 0 | BA176: 0.0001503254661 | BB176: 0.0004498107725 | BC176: 0.0008973045492 | BD176: =Z176-Z157 -> 0.001500032965 | BE176: 0.002256873181 | BF176: 0.003169225994 | BG176: 0.004238506988 | BH176: 0.00546614673 | BI176: 0.006830526148 | BJ176: 0.008345790005 | BK176: 0.01001179796 | BL176: 0.01182841029 | BM176: 0.01379548789 | BN176: 0.01591435217 | BO176: 0.01818381925 | BP176: 0.0204532933 | BQ176: 0.02272277729 | BR176: 0.02499227418 | BS176: 0.02726172732 | BT176: 0.02953118943 | BU176: 0.03180066348 | BV176: 0.03407015244 | BW176: 0.03633965926
B177: =IF(Summary!$J$6=C177,1,0) -> 0 | C177: 25-44 | P177: =Model!UM21 -> 0.4644088725 | Q177: =Model!UN21 -> 0.4721385705 | R177: =Model!UO21 -> 0.4805212873 | S177: =Model!UP21 -> 0.4889518344 | T177: =Model!UQ21 -> 0.497601889 | U177: =Model!UR21 -> 0.504669704 | V177: =Model!US21 -> 0.511255722 | W177: =Model!UT21 -> 0.5171426587 | X177: =Model!UU21 -> 0.5229139944 | Y177: =Model!UV21 -> 0.5284022432 | Z177: =Model!UW21 -> 0.5340713574 | AA177: =Model!UX21 -> 0.5395872024 | AB177: =Model!UY21 -> 0.5451891051 | AC177: =Model!UZ21 -> 0.5508765945 | AD177: =Model!VA21 -> 0.5566492042 | AE177: =Model!VB21 -> 0.5613307232 | AF177: =Model!VC21 -> 0.5661419377 | AG177: =Model!VD21 -> 0.5710836903 | AH177: =Model!VE21 -> 0.5761568298 | AI177: =Model!VF21 -> 0.5813622112 | AJ177: =Model!VG21 -> 0.585452054 | AK177: =Model!VH21 -> 0.5896501386 | AL177: =Model!VI21 -> 0.5939563778 | AM177: =Model!VJ21 -> 0.5983706848 | AN177: =Model!VK21 -> 0.602892973 | AO177: =Model!VL21 -> 0.6052848967 | AP177: =Model!VM21 -> 0.607788238 | AQ177: =Model!VN21 -> 0.6102912599 | AR177: =Model!VO21 -> 0.612793966 | AS177: =Model!VP21 -> 0.6152963599 | AT177: 0 | AU177: 0 | AV177: 0 | AW177: 0 | AX177: 0 | AY177: 0 | AZ177: 0 | BA177: 0.0001136288293 | BB177: 0.0003395645121 | BC177: 0.0006765079522 | BD177: =Z177-Z158 -> 0.001125284835 | BE177: 0.00168460111 | BF177: 0.002353807868 | BG177: 0.003132262573 | BH177: 0.004019328989 | BI177: 0.005035302284 | BJ177: 0.006167924969 | BK177: 0.007417969972 | BL177: 0.008786215886 | BM177: 0.01027344703 | BN177: 0.01185051763 | BO177: 0.01353950354 | BP177: 0.01534030937 | BQ177: 0.01725284019 | BR177: 0.01927700149 | BS177: 0.02141415873 | BT177: 0.02366306291 | BU177: 0.02591197647 | BV177: 0.02816090235 | BW177: 0.03040984349
B178: =IF(Summary!$J$6=C178,1,0) -> 0 | C178: 25-49 | P178: =Model!UM22 -> 0.4619386371 | Q178: =Model!UN22 -> 0.4694943051 | R178: =Model!UO22 -> 0.4776116181 | S178: =Model!UP22 -> 0.4858001859 | T178: =Model!UQ22 -> 0.4942008418 | U178: =Model!UR22 -> 0.5015718147 | V178: =Model!US22 -> 0.5084996949 | W178: =Model!UT22 -> 0.5148112434 | X178: =Model!UU22 -> 0.5209858151 | Y178: =Model!UV22 -> 0.5268890823 | Z178: =Model!UW22 -> 0.5331078361 | AA178: =Model!UX22 -> 0.5391803922 | AB178: =Model!UY22 -> 0.5453008569 | AC178: =Model!UZ22 -> 0.5514688418 | AD178: =Model!VA22 -> 0.5576839641 | AE178: =Model!VB22 -> 0.5626746987 | AF178: =Model!VC22 -> 0.5677359831 | AG178: =Model!VD22 -> 0.5728675147 | AH178: =Model!VE22 -> 0.5780689934 | AI178: =Model!VF22 -> 0.5833401218 | AJ178: =Model!VG22 -> 0.5875413958 | AK178: =Model!VH22 -> 0.5918440053 | AL178: =Model!VI22 -> 0.5962484532 | AM178: =Model!VJ22 -> 0.6007552449 | AN178: =Model!VK22 -> 0.6053648885 | AO178: =Model!VL22 -> 0.609052334 | AP178: =Model!VM22 -> 0.6128260639 | AQ178: =Model!VN22 -> 0.6166860133 | AR178: =Model!VO22 -> 0.620632117 | AS178: =Model!VP22 -> 0.6246643107 | AT178: 0 | AU178: 0 | AV178: 0 | AW178: 0 | AX178: 0 | AY178: 0 | AZ178: 0 | BA178: 9.259912835e-05 | BB178: 0.0002760634956 | BC178: 0.0005487053533 | BD178: =Z178-Z159 -> 0.0009116428437 | BE178: 0.001363196064 | BF178: 0.00190254183 | BG178: 0.002528868718 | BH178: 0.003241376859 | BI178: 0.004045400419 | BJ178: 0.004936684973 | BK178: 0.005914828072 | BL178: 0.006979430586 | BM178: 0.008130096673 | BN178: 0.009396818068 | BO178: 0.01075748289 | BP178: 0.01221256599 | BQ178: 0.01376254472 | BR178: 0.01540789895 | BS178: 0.01711515244 | BT178: 0.01891152535 | BU178: 0.02079694639 | BV178: 0.02277134458 | BW178: 0.02483464927
B179: =IF(Summary!$J$6=C179,1,0) -> 0 | C179: 25-54 | P179: =Model!UM23 -> 0.4549200843 | Q179: =Model!UN23 -> 0.4629598141 | R179: =Model!UO23 -> 0.4714784653 | S179: =Model!UP23 -> 0.4800647486 | T179: =Model!UQ23 -> 0.4888376845 | U179: =Model!UR23 -> 0.4961454545 | V179: =Model!US23 -> 0.5030992437 | W179: =Model!UT23 -> 0.5095487127 | X179: =Model!UU23 -> 0.5158983186 | Y179: =Model!UV23 -> 0.5220322462 | Z179: =Model!UW23 -> 0.5285940231 | AA179: =Model!UX23 -> 0.5349949757 | AB179: =Model!UY23 -> 0.5414012791 | AC179: =Model!UZ23 -> 0.5478129453 | AD179: =Model!VA23 -> 0.5542299859 | AE179: =Model!VB23 -> 0.5597629689 | AF179: =Model!VC23 -> 0.5653390621 | AG179: =Model!VD23 -> 0.5709579787 | AH179: =Model!VE23 -> 0.5766194356 | AI179: =Model!VF23 -> 0.5823231528 | AJ179: =Model!VG23 -> 0.5868260199 | AK179: =Model!VH23 -> 0.5913889826 | AL179: =Model!VI23 -> 0.5960118247 | AM179: =Model!VJ23 -> 0.6006943322 | AN179: =Model!VK23 -> 0.6054362923 | AO179: =Model!VL23 -> 0.6092953162 | AP179: =Model!VM23 -> 0.6132375274 | AQ179: =Model!VN23 -> 0.6172632545 | AR179: =Model!VO23 -> 0.6213728271 | AS179: =Model!VP23 -> 0.6255665766 | AT179: 0 | AU179: 0 | AV179: 0 | AW179: 0 | AX179: 0 | AY179: 0 | AZ179: 0 | BA179: 7.872672299e-05 | BB179: 0.0002352771315 | BC179: 0.0004687636232 | BD179: =Z179-Z160 -> 0.0007771773366 | BE179: 0.001159692605 | BF179: 0.001615162757 | BG179: 0.002142466843 | BH179: 0.002740508917 | BI179: 0.003416825157 | BJ179: 0.00416541624 | BK179: 0.004985733417 | BL179: 0.005877234588 | BM179: 0.006839384208 | BN179: 0.007881207235 | BO179: 0.00899526341 | BP179: 0.01018127307 | BQ179: 0.01143895861 | BR179: 0.01276804445 | BS179: 0.01420594093 | BT179: 0.01572259395 | BU179: 0.01731831989 | BV179: 0.01899343638 | BW179: 0.02074826229
B180: =IF(Summary!$J$6=C180,1,0) -> 0 | C180: 25-59 | P180: =Model!UM24 -> 0.4459496947 | Q180: =Model!UN24 -> 0.4540003202 | R180: =Model!UO24 -> 0.462496064 | S180: =Model!UP24 -> 0.4710841654 | T180: =Model!UQ24 -> 0.4798681407 | U180: =Model!UR24 -> 0.487618755 | V180: =Model!US24 -> 0.4950666938 | W180: =Model!UT24 -> 0.5020801275 | X180: =Model!UU24 -> 0.5090097998 | Y180: =Model!UV24 -> 0.5157544381 | Z180: =Model!UW24 -> 0.5223887134 | AA180: =Model!UX24 -> 0.528897275 | AB180: =Model!UY24 -> 0.5354248505 | AC180: =Model!UZ24 -> 0.5419713162 | AD180: =Model!VA24 -> 0.5485365507 | AE180: =Model!VB24 -> 0.5544097499 | AF180: =Model!VC24 -> 0.5602935724 | AG180: =Model!VD24 -> 0.5661879542 | AH180: =Model!VE24 -> 0.5720928324 | AI180: =Model!VF24 -> 0.5780081455 | AJ180: =Model!VG24 -> 0.5830126892 | AK180: =Model!VH24 -> 0.588057099 | AL180: =Model!VI24 -> 0.5931411493 | AM180: =Model!VJ24 -> 0.598264617 | AN180: =Model!VK24 -> 0.6034272813 | AO180: =Model!VL24 -> 0.6075630234 | AP180: =Model!VM24 -> 0.6117518439 | AQ180: =Model!VN24 -> 0.6159935848 | AR180: =Model!VO24 -> 0.6202880892 | AS180: =Model!VP24 -> 0.6246352012 | AT180: 0 | AU180: 0 | AV180: 0 | AW180: 0 | AX180: 0 | AY180: 0 | AZ180: 0 | BA180: 6.848240484e-05 | BB180: 0.0002048831313 | BC180: 0.0004086453501 | BD180: =Z180-Z161 -> 0.0006788066239 | BE180: 0.001014832291 | BF180: 0.001416072212 | BG180: 0.001881886031 | BH180: 0.002411643 | BI180: 0.003001355675 | BJ180: 0.003652348093 | BK180: 0.004363830998 | BL180: 0.005135030208 | BM180: 0.005965186267 | BN180: 0.006867865608 | BO180: 0.007831890592 | BP180: 0.008856867345 | BQ180: 0.009942406185 | BR180: 0.01108812156 | BS180: 0.01230660057 | BT180: 0.01358712198 | BU180: 0.01492948654 | BV180: 0.01633349631 | BW180: 0.01779895462
B181: =IF(Summary!$J$6=C181,1,0) -> 1 | C181: 25-64 | P181: =Model!UM25 -> 0.4387903192 | Q181: =Model!UN25 -> 0.4461477791 | R181: =Model!UO25 -> 0.4538892618 | S181: =Model!UP25 -> 0.4617048405 | T181: =Model!UQ25 -> 0.4696852247 | U181: =Model!UR25 -> 0.4774909281 | V181: =Model!US25 -> 0.4850563707 | W181: =Model!UT25 -> 0.4922634634 | X181: =Model!UU25 -> 0.4994198956 | Y181: =Model!UV25 -> 0.5064353901 | Z181: =Model!UW25 -> 0.5135339478 | AA181: =Model!UX25 -> 0.5205242637 | AB181: =Model!UY25 -> 0.5275346008 | AC181: =Model!UZ25 -> 0.5345648664 | AD181: =Model!VA25 -> 0.541614969 | AE181: =Model!VB25 -> 0.5476417865 | AF181: =Model!VC25 -> 0.5536890486 | AG181: =Model!VD25 -> 0.5597566344 | AH181: =Model!VE25 -> 0.5658444247 | AI181: =Model!VF25 -> 0.5719523021 | AJ181: =Model!VG25 -> 0.5772857824 | AK181: =Model!VH25 -> 0.5826335162 | AL181: =Model!VI25 -> 0.587995402 | AM181: =Model!VJ25 -> 0.5933713402 | AN181: =Model!VK25 -> 0.5987612329 | AO181: =Model!VL25 -> 0.6033633969 | AP181: =Model!VM25 -> 0.6080027725 | AQ181: =Model!VN25 -> 0.6126791793 | AR181: =Model!VO25 -> 0.6173924388 | AS181: =Model!VP25 -> 0.6221423742 | AT181: 0 | AU181: 0 | AV181: 0 | AW181: 0 | AX181: 0 | AY181: 0 | AZ181: 0 | BA181: 6.043310216e-05 | BB181: 0.0001811766703 | BC181: 0.0003621086949 | BD181: =Z181-Z162 -> 0.000602036475 | BE181: 0.000900850658 | BF181: 0.001258123247 | BG181: 0.001673431226 | BH181: 0.002146356492 | BI181: 0.002675346341 | BJ181: 0.003260641051 | BK181: 0.003901770069 | BL181: 0.004598269019 | BM181: 0.005349679601 | BN181: 0.006149376507 | BO181: 0.00700142077 | BP181: 0.007905232828 | BQ181: 0.008860242852 | BR181: 0.009865890548 | BS181: 0.01094157742 | BT181: 0.01207074622 | BU181: 0.01325310427 | BV181: 0.01448836168 | BW181: 0.01577623128
P183: Attainment | AT183: Incremental Gain Over Prior Lever
B184: Use | C184: G. Adding incremental gains based on assumed increases in college going rate | P184: 2019 | Q184: 2020 | R184: 2021 | S184: 2022 | T184: 2023 | U184: 2024 | V184: 2025 | W184: 2026 | X184: 2027 | Y184: 2028 | Z184: 2029 | AA184: 2030 | AB184: 2031 | AC184: 2032 | AD184: 2033 | AE184: 2034 | AF184: 2035 | AG184: 2036 | AH184: 2037 | AI184: 2038 | AJ184: 2039 | AK184: 2040 | AL184: 2041 | AM184: 2042 | AN184: 2043 | AO184: 2044 | AP184: 2045 | AQ184: 2046 | AR184: 2047 | AS184: 2048 | AT184: 2019 | AU184: 2020 | AV184: 2021 | AW184: 2022 | AX184: 2023 | AY184: 2024 | AZ184: 2025 | BA184: 2026 | BB184: 2027 | BC184: 2028 | BD184: 2029 | BE184: 2030 | BF184: 2031 | BG184: 2032 | BH184: 2033 | BI184: 2034 | BJ184: 2035 | BK184: 2036 | BL184: 2037 | BM184: 2038 | BN184: 2039 | BO184: 2040 | BP184: 2041 | BQ184: 2042 | BR184: 2043 | BS184: 2044 | BT184: 2045 | BU184: 2046 | BV184: 2047 | BW184: 2048
B185: =IF(Summary!$J$6=C185,1,0) -> 0 | C185: 25-29 | P185: =Model!ZI8 -> 0.4410731051 | Q185: =Model!ZJ8 -> 0.4485207152 | R185: =Model!ZK8 -> 0.4591767284 | S185: =Model!ZL8 -> 0.4707686244 | T185: =Model!ZM8 -> 0.4840267973 | U185: =Model!ZN8 -> 0.4928473494 | V185: =Model!ZO8 -> 0.4999265393 | W185: =Model!ZP8 -> 0.5047087793 | X185: =Model!ZQ8 -> 0.5095801384 | Y185: =Model!ZR8 -> 0.513845626 | Z185: =Model!ZS8 -> 0.518179755 | AA185: =Model!ZT8 -> 0.5223667245 | AB185: =Model!ZU8 -> 0.5265807224 | AC185: =Model!ZV8 -> 0.5308217543 | AD185: =Model!ZW8 -> 0.5350898256 | AE185: =Model!ZX8 -> 0.5393847166 | AF185: =Model!ZY8 -> 0.5437066398 | AG185: =Model!ZZ8 -> 0.5480556007 | AH185: =Model!AAA8 -> 0.552431605 | AI185: =Model!AAB8 -> 0.5568346584 | AJ185: =Model!AAC8 -> 0.5612644934 | AK185: =Model!AAD8 -> 0.56572137 | AL185: =Model!AAE8 -> 0.5702052939 | AM185: =Model!AAF8 -> 0.5747162709 | AN185: =Model!AAG8 -> 0.5792543069 | AO185: =Model!AAH8 -> 0.5838190854 | AP185: =Model!AAI8 -> 0.5884109151 | AQ185: =Model!AAJ8 -> 0.593029802 | AR185: =Model!AAK8 -> 0.597675752 | AS185: =Model!AAL8 -> 0.6023487712 | AT185: =P185-P166 -> 0 | AU185: =Q185-Q166 -> 0 | AV185: =R185-R166 -> 0 | AW185: =S185-S166 -> 0 | AX185: =T185-T166 -> 0 | AY185: =U185-U166 -> 0 | AZ185: =V185-V166 -> 0 | BA185: =W185-W166 -> 0.0003601821574 | BB185: =X185-X166 -> 0.001085417646 | BC185: =Y185-Y166 -> 0.002180570599 | BD185: =Z185-Z166 -> 0.003651495047 | BE185: 0.005503052473 | BF185: 0.007381604095 | BG185: 0.009287152377 | BH185: 0.01121969985 | BI185: 0.01317922028 | BJ185: 0.01516573651 | BK185: 0.01717925111 | BL185: 0.01921976672 | BM185: 0.02128728603 | BN185: 0.02338176068 | BO185: 0.02550323542 | BP185: 0.02765171301 | BQ185: 0.02982719623 | BR185: 0.03202968798 | BS185: 0.03425911625 | BT185: 0.03651554921 | BU185: 0.03879898977 | BV185: 0.04110944092 | BW185: 0.04344690568
B186: =IF(Summary!$J$6=C186,1,0) -> 0 | C186: 30-34 | P186: =Model!ZI9 -> 0.4766824848 | Q186: =Model!ZJ9 -> 0.4826427489 | R186: =Model!ZK9 -> 0.4884022261 | S186: =Model!ZL9 -> 0.4939708943 | T186: =Model!ZM9 -> 0.4993580811 | U186: =Model!ZN9 -> 0.5040582543 | V186: =Model!ZO9 -> 0.5088426263 | W186: =Model!ZP9 -> 0.5137134799 | X186: =Model!ZQ9 -> 0.5186731814 | Y186: =Model!ZR9 -> 0.5237241842 | Z186: =Model!ZS9 -> 0.5325666143 | AA186: =Model!ZT9 -> 0.5413924457 | AB186: =Model!ZU9 -> 0.5510053852 | AC186: =Model!ZV9 -> 0.5614095306 | AD186: =Model!ZW9 -> 0.572608976 | AE186: =Model!ZX9 -> 0.5768470446 | AF186: =Model!ZY9 -> 0.5819058493 | AG186: =Model!ZZ9 -> 0.5869895351 | AH186: =Model!AAA9 -> 0.5920981099 | AI186: =Model!AAB9 -> 0.5972315818 | AJ186: =Model!AAC9 -> 0.6013995382 | AK186: =Model!AAD9 -> 0.6055936961 | AL186: =Model!AAE9 -> 0.609814061 | AM186: =Model!AAF9 -> 0.6140606384 | AN186: =Model!AAG9 -> 0.618333434 | AO186: =Model!AAH9 -> 0.6226323441 | AP186: =Model!AAI9 -> 0.626957465 | AQ186: =Model!AAJ9 -> 0.6313088021 | AR186: =Model!AAK9 -> 0.6356863612 | AS186: =Model!AAL9 -> 0.640090148 | AT186: 0 | AU186: 0 | AV186: 0 | AW186: 0 | AX186: 0 | AY186: 0 | AZ186: 0 | BA186: 0 | BB186: 0 | BC186: 0 | BD186: =Z186-Z167 -> 0 | BE186: 0 | BF186: 0.0003495318042 | BG186: 0.001053322548 | BH186: 0.002116092538 | BI186: 0.003543522702 | BJ186: 0.005340330773 | BK186: 0.00716333484 | BL186: 0.009012537292 | BM186: 0.01088794058 | BN186: 0.01278951927 | BO186: 0.0147172955 | BP186: 0.01667127178 | BQ186: 0.01865145066 | BR186: 0.02065783476 | BS186: 0.02269037715 | BT186: 0.02474912126 | BU186: 0.02683406975 | BV186: 0.02894522535 | BW186: 0.03108259083
B187: =IF(Summary!$J$6=C187,1,0) -> 0 | C187: 35-39 | P187: =Model!ZI10 -> 0.476195216 | Q187: =Model!ZJ10 -> 0.4846538336 | R187: =Model!ZK10 -> 0.4929708754 | S187: =Model!ZL10 -> 0.5011498663 | T187: =Model!ZM10 -> 0.5091942152 | U187: =Model!ZN10 -> 0.5153659523 | V187: =Model!ZO10 -> 0.5213262164 | W187: =Model!ZP10 -> 0.5270856935 | X187: =Model!ZQ10 -> 0.5326543617 | Y187: =Model!ZR10 -> 0.5380415485 | Z187: =Model!ZS10 -> 0.5427417217 | AA187: =Model!ZT10 -> 0.5475260937 | AB187: =Model!ZU10 -> 0.5523969473 | AC187: =Model!ZV10 -> 0.5573566489 | AD187: =Model!ZW10 -> 0.5624076517 | AE187: =Model!ZX10 -> 0.5712500817 | AF187: =Model!ZY10 -> 0.5800759131 | AG187: =Model!ZZ10 -> 0.5896687363 | AH187: =Model!AAA10 -> 0.6000325477 | AI187: =Model!AAB10 -> 0.61117134 | AJ187: =Model!AAC10 -> 0.61532828 | AK187: =Model!AAD10 -> 0.6202853794 | AL187: =Model!AAE10 -> 0.6252667041 | AM187: =Model!AAF10 -> 0.6302722619 | AN187: =Model!AAG10 -> 0.6353020607 | AO187: =Model!AAH10 -> 0.6393656895 | AP187: =Model!AAI10 -> 0.6434548639 | AQ187: =Model!AAJ10 -> 0.6475695894 | AR187: =Model!AAK10 -> 0.6517098712 | AS187: =Model!AAL10 -> 0.6558757149 | AT187: 0 | AU187: 0 | AV187: 0 | AW187: 0 | AX187: 0 | AY187: 0 | AZ187: 0 | BA187: 0 | BB187: 0 | BC187: 0 | BD187: =Z187-Z168 -> 0 | BE187: 0 | BF187: 0 | BG187: 0 | BH187: 0 | BI187: 0 | BJ187: 0 | BK187: 0.0003407827147 | BL187: 0.001026956956 | BM187: 0.002063124875 | BN187: 0.003454825202 | BO187: 0.005206657582 | BP187: 0.006984030249 | BQ187: 0.008786945532 | BR187: 0.01061540583 | BS187: 0.01246938631 | BT187: 0.01434890861 | BU187: 0.01625397514 | BV187: 0.01818458839 | BW187: 0.02014075093
B188: =IF(Summary!$J$6=C188,1,0) -> 0 | C188: 40-44 | P188: =Model!ZI11 -> 0.4646843365 | Q188: =Model!ZJ11 -> 0.4733228355 | R188: =Model!ZK11 -> 0.4816634333 | S188: =Model!ZL11 -> 0.4897212788 | T188: =Model!ZM11 -> 0.4975105104 | U188: =Model!ZN11 -> 0.5061143497 | V188: =Model!ZO11 -> 0.5145729673 | W188: =Model!ZP11 -> 0.5228900091 | X188: =Model!ZQ11 -> 0.531069 | Y188: =Model!ZR11 -> 0.5391133489 | Z188: =Model!ZS11 -> 0.545285086 | AA188: =Model!ZT11 -> 0.5512453501 | AB188: =Model!ZU11 -> 0.5570048273 | AC188: =Model!ZV11 -> 0.5625734954 | AD188: =Model!ZW11 -> 0.5679606822 | AE188: =Model!ZX11 -> 0.5726608555 | AF188: =Model!ZY11 -> 0.5774452274 | AG188: =Model!ZZ11 -> 0.5823160811 | AH188: =Model!AAA11 -> 0.5872757826 | AI188: =Model!AAB11 -> 0.5923267854 | AJ188: =Model!AAC11 -> 0.6011692154 | AK188: =Model!AAD11 -> 0.6099950468 | AL188: =Model!AAE11 -> 0.6195805527 | AM188: =Model!AAF11 -> 0.6299296926 | AN188: =Model!AAG11 -> 0.6410464224 | AO188: =Model!AAH11 -> 0.6451738519 | AP188: =Model!AAI11 -> 0.6500939559 | AQ188: =Model!AAJ11 -> 0.6550380468 | AR188: =Model!AAK11 -> 0.6600061322 | AS188: =Model!AAL11 -> 0.66499822 | AT188: 0 | AU188: 0 | AV188: 0 | AW188: 0 | AX188: 0 | AY188: 0 | AZ188: 0 | BA188: 0 | BB188: 0 | BC188: 0 | BD188: =Z188-Z169 -> 0 | BE188: 0 | BF188: 0 | BG188: 0 | BH188: 0 | BI188: 0 | BJ188: 0 | BK188: 0 | BL188: 0 | BM188: 0 | BN188: 0 | BO188: 0 | BP188: 0.0003376002342 | BQ188: 0.001017366474 | BR188: 0.002043857893 | BS188: 0.003422561495 | BT188: 0.005158033971 | BU188: 0.00691880822 | BV188: 0.00870488655 | BW188: 0.01051627133
B189: =IF(Summary!$J$6=C189,1,0) -> 0 | C189: 45-49 | P189: =Model!ZI12 -> 0.451397293 | Q189: =Model!ZJ12 -> 0.4580075595 | R189: =Model!ZK12 -> 0.4647445687 | S189: =Model!ZL12 -> 0.471612001 | T189: =Model!ZM12 -> 0.4786136807 | U189: =Model!ZN12 -> 0.4875663311 | V189: =Model!ZO12 -> 0.49620483 | W189: =Model!ZP12 -> 0.5045454279 | X189: =Model!ZQ12 -> 0.5126032734 | Y189: =Model!ZR12 -> 0.5203925049 | Z189: =Model!ZS12 -> 0.5289963443 | AA189: =Model!ZT12 -> 0.5374549619 | AB189: =Model!ZU12 -> 0.5457720037 | AC189: =Model!ZV12 -> 0.5539509946 | AD189: =Model!ZW12 -> 0.5619953435 | AE189: =Model!ZX12 -> 0.5681670806 | AF189: =Model!ZY12 -> 0.5741273447 | AG189: =Model!ZZ12 -> 0.5798868218 | AH189: =Model!AAA12 -> 0.58545549 | AI189: =Model!AAB12 -> 0.5908426768 | AJ189: =Model!AAC12 -> 0.5955428501 | AK189: =Model!AAD12 -> 0.600327222 | AL189: =Model!AAE12 -> 0.6051980757 | AM189: =Model!AAF12 -> 0.6101577772 | AN189: =Model!AAG12 -> 0.61520878 | AO189: =Model!AAH12 -> 0.62405121 | AP189: =Model!AAI12 -> 0.6328770414 | AQ189: =Model!AAJ12 -> 0.642472622 | AR189: =Model!AAK12 -> 0.6528419622 | AS189: =Model!AAL12 -> 0.6639890686 | AT189: 0 | AU189: 0 | AV189: 0 | AW189: 0 | AX189: 0 | AY189: 0 | AZ189: 0 | BA189: 0 | BB189: 0 | BC189: 0 | BD189: =Z189-Z170 -> 0 | BE189: 0 | BF189: 0 | BG189: 0 | BH189: 0 | BI189: 0 | BJ189: 0 | BK189: 0 | BL189: 0 | BM189: 0 | BN189: 0 | BO189: 0 | BP189: 0 | BQ189: 0 | BR189: 0 | BS189: 0 | BT189: 0 | BU189: 0.000341981994 | BV189: 0.001030571013 | BW189: 0.002070385404
B190: =IF(Summary!$J$6=C190,1,0) -> 0 | C190: 50-54 | P190: =Model!ZI13 -> 0.4183290485 | Q190: =Model!ZJ13 -> 0.4285831473 | R190: =Model!ZK13 -> 0.438920523 | S190: =Model!ZL13 -> 0.4493421942 | T190: =Model!ZM13 -> 0.4598491963 | U190: =Model!ZN13 -> 0.4663362634 | V190: =Model!ZO13 -> 0.47294653 | W190: =Model!ZP13 -> 0.4796835392 | X190: =Model!ZQ13 -> 0.4865509714 | Y190: =Model!ZR13 -> 0.4935526511 | Z190: =Model!ZS13 -> 0.5025053015 | AA190: =Model!ZT13 -> 0.5111438005 | AB190: =Model!ZU13 -> 0.5194843984 | AC190: =Model!ZV13 -> 0.5275422438 | AD190: =Model!ZW13 -> 0.5353314754 | AE190: =Model!ZX13 -> 0.5439353148 | AF190: =Model!ZY13 -> 0.5523939324 | AG190: =Model!ZZ13 -> 0.5607109742 | AH190: =Model!AAA13 -> 0.5688899651 | AI190: =Model!AAB13 -> 0.576934314 | AJ190: =Model!AAC13 -> 0.583106051 | AK190: =Model!AAD13 -> 0.5890663151 | AL190: =Model!AAE13 -> 0.5948257923 | AM190: =Model!AAF13 -> 0.6003944605 | AN190: =Model!AAG13 -> 0.6057816473 | AO190: =Model!AAH13 -> 0.6104818205 | AP190: =Model!AAI13 -> 0.6152661925 | AQ190: =Model!AAJ13 -> 0.6201370461 | AR190: =Model!AAK13 -> 0.6250967476 | AS190: =Model!AAL13 -> 0.6301477504 | AT190: 0 | AU190: 0 | AV190: 0 | AW190: 0 | AX190: 0 | AY190: 0 | AZ190: 0 | BA190: 0 | BB190: 0 | BC190: 0 | BD190: =Z190-Z171 -> 0 | BE190: 0 | BF190: 0 | BG190: 0 | BH190: 0 | BI190: 0 | BJ190: 0 | BK190: 0 | BL190: 0 | BM190: 0 | BN190: 0 | BO190: 0 | BP190: 0 | BQ190: 0 | BR190: 0 | BS190: 0 | BT190: 0 | BU190: 0 | BV190: 0 | BW190: 0
B191: =IF(Summary!$J$6=C191,1,0) -> 0 | C191: 55-59 | P191: =Model!ZI14 -> 0.3915320123 | Q191: =Model!ZJ14 -> 0.3986769337 | R191: =Model!ZK14 -> 0.4060287311 | S191: =Model!ZL14 -> 0.4135965214 | T191: =Model!ZM14 -> 0.4213899651 | U191: =Model!ZN14 -> 0.4315617893 | V191: =Model!ZO14 -> 0.4418158881 | W191: =Model!ZP14 -> 0.4521532638 | X191: =Model!ZQ14 -> 0.462574935 | Y191: =Model!ZR14 -> 0.4730819371 | Z191: =Model!ZS14 -> 0.4795690042 | AA191: =Model!ZT14 -> 0.4861792708 | AB191: =Model!ZU14 -> 0.4929162799 | AC191: =Model!ZV14 -> 0.4997837122 | AD191: =Model!ZW14 -> 0.5067853919 | AE191: =Model!ZX14 -> 0.5157380423 | AF191: =Model!ZY14 -> 0.5243765413 | AG191: =Model!ZZ14 -> 0.5327171392 | AH191: =Model!AAA14 -> 0.5407749846 | AI191: =Model!AAB14 -> 0.5485642162 | AJ191: =Model!AAC14 -> 0.5571680556 | AK191: =Model!AAD14 -> 0.5656266732 | AL191: =Model!AAE14 -> 0.5739437149 | AM191: =Model!AAF14 -> 0.5821227059 | AN191: =Model!AAG14 -> 0.5901670548 | AO191: =Model!AAH14 -> 0.5963387918 | AP191: =Model!AAI14 -> 0.6022990559 | AQ191: =Model!AAJ14 -> 0.6080585331 | AR191: =Model!AAK14 -> 0.6136272012 | AS191: =Model!AAL14 -> 0.6190143881 | AT191: 0 | AU191: 0 | AV191: 0 | AW191: 0 | AX191: 0 | AY191: 0 | AZ191: 0 | BA191: 0 | BB191: 0 | BC191: 0 | BD191: =Z191-Z172 -> 0 | BE191: 0 | BF191: 0 | BG191: 0 | BH191: 0 | BI191: 0 | BJ191: 0 | BK191: 0 | BL191: 0 | BM191: 0 | BN191: 0 | BO191: 0 | BP191: 0 | BQ191: 0 | BR191: 0 | BS191: 0 | BT191: 0 | BU191: 0 | BV191: 0 | BW191: 0
B192: =IF(Summary!$J$6=C192,1,0) -> 0 | C192: 60-64 | P192: =Model!ZI15 -> 0.3870827986 | Q192: =Model!ZJ15 -> 0.389624872 | R192: =Model!ZK15 -> 0.3921445461 | S192: =Model!ZL15 -> 0.3946421155 | T192: =Model!ZM15 -> 0.39711787 | U192: =Model!ZN15 -> 0.4040645263 | V192: =Model!ZO15 -> 0.4112094477 | W192: =Model!ZP15 -> 0.4185612451 | X192: =Model!ZQ15 -> 0.4261290353 | Y192: =Model!ZR15 -> 0.4339224791 | Z192: =Model!ZS15 -> 0.4440943033 | AA192: =Model!ZT15 -> 0.4543484021 | AB192: =Model!ZU15 -> 0.4646857778 | AC192: =Model!ZV15 -> 0.475107449 | AD192: =Model!ZW15 -> 0.485614451 | AE192: =Model!ZX15 -> 0.4921015182 | AF192: =Model!ZY15 -> 0.4987117847 | AG192: =Model!ZZ15 -> 0.5054487939 | AH192: =Model!AAA15 -> 0.5123162262 | AI192: =Model!AAB15 -> 0.5193179059 | AJ192: =Model!AAC15 -> 0.5282705563 | AK192: =Model!AAD15 -> 0.5369090552 | AL192: =Model!AAE15 -> 0.5452496531 | AM192: =Model!AAF15 -> 0.5533074986 | AN192: =Model!AAG15 -> 0.5610967301 | AO192: =Model!AAH15 -> 0.5697005695 | AP192: =Model!AAI15 -> 0.5781591871 | AQ192: =Model!AAJ15 -> 0.5864762289 | AR192: =Model!AAK15 -> 0.5946552198 | AS192: =Model!AAL15 -> 0.6026995687 | AT192: 0 | AU192: 0 | AV192: 0 | AW192: 0 | AX192: 0 | AY192: 0 | AZ192: 0 | BA192: 0 | BB192: 0 | BC192: 0 | BD192: =Z192-Z173 -> 0 | BE192: 0 | BF192: 0 | BG192: 0 | BH192: 0 | BI192: 0 | BJ192: 0 | BK192: 0 | BL192: 0 | BM192: 0 | BN192: 0 | BO192: 0 | BP192: 0 | BQ192: 0 | BR192: 0 | BS192: 0 | BT192: 0 | BU192: 0 | BV192: 0 | BW192: 0
B193: =IF(Summary!$J$6=C193,1,0) -> 0 | C193: 25-29 | P193: =Model!ZI18 -> 0.4410731051 | Q193: =Model!ZJ18 -> 0.4485207152 | R193: =Model!ZK18 -> 0.4591767284 | S193: =Model!ZL18 -> 0.4707686244 | T193: =Model!ZM18 -> 0.4840267973 | U193: =Model!ZN18 -> 0.4928473494 | V193: =Model!ZO18 -> 0.4999265393 | W193: =Model!ZP18 -> 0.5047087793 | X193: =Model!ZQ18 -> 0.5095801384 | Y193: =Model!ZR18 -> 0.513845626 | Z193: =Model!ZS18 -> 0.518179755 | AA193: =Model!ZT18 -> 0.5223667245 | AB193: =Model!ZU18 -> 0.5265807224 | AC193: =Model!ZV18 -> 0.5308217543 | AD193: =Model!ZW18 -> 0.5350898256 | AE193: =Model!ZX18 -> 0.5393847166 | AF193: =Model!ZY18 -> 0.5437066398 | AG193: =Model!ZZ18 -> 0.5480556007 | AH193: =Model!AAA18 -> 0.552431605 | AI193: =Model!AAB18 -> 0.5568346584 | AJ193: =Model!AAC18 -> 0.5612644934 | AK193: =Model!AAD18 -> 0.56572137 | AL193: =Model!AAE18 -> 0.5702052939 | AM193: =Model!AAF18 -> 0.5747162709 | AN193: =Model!AAG18 -> 0.5792543069 | AO193: =Model!AAH18 -> 0.5838190854 | AP193: =Model!AAI18 -> 0.5884109151 | AQ193: =Model!AAJ18 -> 0.593029802 | AR193: =Model!AAK18 -> 0.597675752 | AS193: =Model!AAL18 -> 0.6023487712 | AT193: 0 | AU193: 0 | AV193: 0 | AW193: 0 | AX193: 0 | AY193: 0 | AZ193: 0 | BA193: 0.0003601821574 | BB193: 0.001085417646 | BC193: 0.002180570599 | BD193: =Z193-Z174 -> 0.003651495047 | BE193: 0.005503052473 | BF193: 0.007381604095 | BG193: 0.009287152377 | BH193: 0.01121969985 | BI193: 0.01317922028 | BJ193: 0.01516573651 | BK193: 0.01717925111 | BL193: 0.01921976672 | BM193: 0.02128728603 | BN193: 0.02338176068 | BO193: 0.02550323542 | BP193: 0.02765171301 | BQ193: 0.02982719623 | BR193: 0.03202968798 | BS193: 0.03425911625 | BT193: 0.03651554921 | BU193: 0.03879898977 | BV193: 0.04110944092 | BW193: 0.04344690568
B194: =IF(Summary!$J$6=C194,1,0) -> 0 | C194: 25-34 | P194: =Model!ZI19 -> 0.4586236765 | Q194: =Model!ZJ19 -> 0.4655616929 | R194: =Model!ZK19 -> 0.4739621589 | S194: =Model!ZL19 -> 0.4826563535 | T194: =Model!ZM19 -> 0.4919798017 | U194: =Model!ZN19 -> 0.498635562 | V194: =Model!ZO19 -> 0.5045079833 | W194: =Model!ZP19 -> 0.5093134043 | X194: =Model!ZQ19 -> 0.5142071777 | Y194: =Model!ZR19 -> 0.5188474445 | Z194: =Model!ZS19 -> 0.525465263 | AA194: =Model!ZT19 -> 0.5320026703 | AB194: =Model!ZU19 -> 0.5389527554 | AC194: =Model!ZV19 -> 0.5463177528 | AD194: =Model!ZW19 -> 0.5540998959 | AE194: =Model!ZX19 -> 0.5583659963 | AF194: =Model!ZY19 -> 0.56306128 | AG194: =Model!ZZ19 -> 0.5677825087 | AH194: =Model!AAA19 -> 0.5725296892 | AI194: =Model!AAB19 -> 0.5773028285 | AJ194: =Model!AAC19 -> 0.5815999758 | AK194: =Model!AAD19 -> 0.585923739 | AL194: =Model!AAE19 -> 0.5902741238 | AM194: =Model!AAF19 -> 0.5946511357 | AN194: =Model!AAG19 -> 0.5990547806 | AO194: =Model!AAH19 -> 0.6034848499 | AP194: =Model!AAI19 -> 0.6079415445 | AQ194: =Model!AAJ19 -> 0.6124248702 | AR194: =Model!AAK19 -> 0.6169348329 | AS194: =Model!AAL19 -> 0.6214714384 | AT194: 0 | AU194: 0 | AV194: 0 | AW194: 0 | AX194: 0 | AY194: 0 | AZ194: 0 | BA194: 0.0001760001568 | BB194: 0.0005330975768 | BC194: 0.001076480493 | BD194: =Z194-Z175 -> 0.001802377326 | BE194: 0.002715924734 | BF194: 0.003819588486 | BG194: 0.005115831996 | BH194: 0.006607116335 | BI194: 0.008297039154 | BJ194: 0.01018743473 | BK194: 0.01210442213 | BL194: 0.01404800386 | BM194: 0.01601818251 | BN194: 0.01801492131 | BO194: 0.02003825358 | BP194: 0.02208818193 | BQ194: 0.02416470904 | BR194: 0.02626783766 | BS194: 0.02839750849 | BT194: 0.03055377716 | BU194: 0.03273664647 | BV194: 0.03494611925 | BW194: 0.03718219842
B195: =IF(Summary!$J$6=C195,1,0) -> 0 | C195: 25-39 | P195: =Model!ZI20 -> 0.4643253782 | Q195: =Model!ZJ20 -> 0.4717752116 | R195: =Model!ZK20 -> 0.4801666512 | S195: =Model!ZL20 -> 0.4887101232 | T195: =Model!ZM20 -> 0.4976309232 | U195: =Model!ZN20 -> 0.5042081615 | V195: =Model!ZO20 -> 0.5101901444 | W195: =Model!ZP20 -> 0.5154022434 | X195: =Model!ZQ20 -> 0.5206142544 | Y195: =Model!ZR20 -> 0.5256039353 | Z195: =Model!ZS20 -> 0.5315087869 | AA195: =Model!ZT20 -> 0.5373986941 | AB195: =Model!ZU20 -> 0.5435961968 | AC195: =Model!ZV20 -> 0.5501058166 | AD195: =Model!ZW20 -> 0.556932126 | AE195: =Model!ZX20 -> 0.5627591644 | AF195: =Model!ZY20 -> 0.5688639262 | AG195: =Model!ZZ20 -> 0.5752479169 | AH195: =Model!AAA20 -> 0.5819126411 | AI195: =Model!AAB20 -> 0.588859603 | AJ195: =Model!AAC20 -> 0.5931089081 | AK195: =Model!AAD20 -> 0.5976487813 | AL195: =Model!AAE20 -> 0.6022144583 | AM195: =Model!AAF20 -> 0.6068059457 | AN195: =Model!AAG20 -> 0.6114232498 | AO195: =Model!AAH20 -> 0.6157282805 | AP195: =Model!AAI20 -> 0.6200595681 | AQ195: =Model!AAJ20 -> 0.6244171183 | AR195: =Model!AAK20 -> 0.6288009368 | AS195: =Model!AAL20 -> 0.6332110292 | AT195: 0 | AU195: 0 | AV195: 0 | AW195: 0 | AX195: 0 | AY195: 0 | AZ195: 0 | BA195: 0.0001157019798 | BB195: 0.0003479421059 | BC195: 0.0006975500416 | BD195: =Z195-Z176 -> 0.001171882932 | BE195: 0.001771854972 | BF195: 0.002500354454 | BG195: 0.003360303392 | BH195: 0.004354657963 | BI195: 0.005467945207 | BJ195: 0.0067131265 | BK195: 0.008091836152 | BL195: 0.009605707199 | BM195: 0.01125637141 | BN195: 0.01304665611 | BO195: 0.01497734589 | BP195: 0.0169342715 | BQ195: 0.01891743548 | BR195: 0.02092684047 | BS195: 0.02296243893 | BT195: 0.02502427489 | BU195: 0.02711235101 | BV195: 0.02922667002 | BW195: 0.0313672347
B196: =IF(Summary!$J$6=C196,1,0) -> 0 | C196: 25-44 | P196: =Model!ZI21 -> 0.4644088725 | Q196: =Model!ZJ21 -> 0.4721385705 | R196: =Model!ZK21 -> 0.4805212873 | S196: =Model!ZL21 -> 0.4889518344 | T196: =Model!ZM21 -> 0.497601889 | U196: =Model!ZN21 -> 0.504669704 | V196: =Model!ZO21 -> 0.511255722 | W196: =Model!ZP21 -> 0.5172301162 | X196: =Model!ZQ21 -> 0.5231766577 | Y196: =Model!ZR21 -> 0.5289281495 | Z196: =Model!ZS21 -> 0.5349504728 | AA196: =Model!ZT21 -> 0.5409097707 | AB196: =Model!ZU21 -> 0.5470461371 | AC196: =Model!ZV21 -> 0.5533598634 | AD196: =Model!ZW21 -> 0.559851241 | AE196: =Model!ZX21 -> 0.5653615631 | AF196: =Model!ZY21 -> 0.5711032488 | AG196: =Model!ZZ21 -> 0.5770791167 | AH196: =Model!AAA21 -> 0.5832920081 | AI196: =Model!AAB21 -> 0.5897447879 | AJ196: =Model!AAC21 -> 0.5951671606 | AK196: =Model!AAD21 -> 0.6008021317 | AL196: =Model!AAE21 -> 0.606650833 | AM196: =Model!AAF21 -> 0.6127143954 | AN196: =Model!AAG21 -> 0.6189939497 | AO196: =Model!AAH21 -> 0.6232535914 | AP196: =Model!AAI21 -> 0.627735361 | AQ196: =Model!AAJ21 -> 0.6322428115 | AR196: =Model!AAK21 -> 0.6367759492 | AS196: =Model!AAL21 -> 0.6413347803 | AT196: 0 | AU196: 0 | AV196: 0 | AW196: 0 | AX196: 0 | AY196: 0 | AZ196: 0 | BA196: 8.745744048e-05 | BB196: 0.0002626633212 | BC196: 0.0005259063387 | BD196: =Z196-Z177 -> 0.0008791154079 | BE196: 0.001322568268 | BF196: 0.001857031969 | BG196: 0.002483268892 | BH196: 0.003202036801 | BI196: 0.00403083985 | BJ196: 0.004961311097 | BK196: 0.005995426381 | BL196: 0.007135178367 | BM196: 0.008382576699 | BN196: 0.009715106627 | BO196: 0.01115199315 | BP196: 0.01269445513 | BQ196: 0.01434371059 | BR196: 0.01610097675 | BS196: 0.01796869468 | BT196: 0.01994712296 | BU196: 0.02195155159 | BV196: 0.02398198317 | BW196: 0.0260384204
B197: =IF(Summary!$J$6=C197,1,0) -> 0 | C197: 25-49 | P197: =Model!ZI22 -> 0.4619386371 | Q197: =Model!ZJ22 -> 0.4694943051 | R197: =Model!ZK22 -> 0.4776116181 | S197: =Model!ZL22 -> 0.4858001859 | T197: =Model!ZM22 -> 0.4942008418 | U197: =Model!ZN22 -> 0.5015718147 | V197: =Model!ZO22 -> 0.5084996949 | W197: =Model!ZP22 -> 0.5148825148 | X197: =Model!ZQ22 -> 0.5211993585 | Y197: =Model!ZR22 -> 0.527315637 | Z197: =Model!ZS22 -> 0.5338200462 | AA197: =Model!ZT22 -> 0.5402506277 | AB197: =Model!ZU22 -> 0.5468018635 | AC197: =Model!ZV22 -> 0.5534737379 | AD197: =Model!ZW22 -> 0.5602662379 | AE197: =Model!ZX22 -> 0.5659131063 | AF197: =Model!ZY22 -> 0.5717069182 | AG197: =Model!ZZ22 -> 0.5776480566 | AH197: =Model!AAA22 -> 0.5837369036 | AI197: =Model!AAB22 -> 0.5899738406 | AJ197: =Model!AAC22 -> 0.5952449487 | AK197: =Model!AAD22 -> 0.60070455 | AL197: =Model!AAE22 -> 0.6063546295 | AM197: =Model!AAF22 -> 0.6121971847 | AN197: =Model!AAG22 -> 0.6182342252 | AO197: =Model!AAH22 -> 0.6234137176 | AP197: =Model!AAI22 -> 0.6287678092 | AQ197: =Model!AAJ22 -> 0.6342974091 | AR197: =Model!AAK22 -> 0.640003426 | AS197: =Model!AAL22 -> 0.6458867683 | AT197: 0 | AU197: 0 | AV197: 0 | AW197: 0 | AX197: 0 | AY197: 0 | AZ197: 0 | BA197: 7.127137371e-05 | BB197: 0.0002135433829 | BC197: 0.0004265546657 | BD197: =Z197-Z178 -> 0.0007122101404 | BE197: 0.001070235468 | BF197: 0.001501006539 | BG197: 0.002004896101 | BH197: 0.002582273811 | BI197: 0.003238407606 | BJ197: 0.00397093513 | BK197: 0.0047805419 | BL197: 0.005667910142 | BM197: 0.006633718825 | BN197: 0.007703552899 | BO197: 0.008860544645 | BP197: 0.0101061763 | BQ197: 0.01144193978 | BR197: 0.0128693367 | BS197: 0.01436138363 | BT197: 0.01594174528 | BU197: 0.01761139587 | BV197: 0.01937130899 | BW197: 0.02122245763
B198: =IF(Summary!$J$6=C198,1,0) -> 0 | C198: 25-54 | P198: =Model!ZI23 -> 0.4549200843 | Q198: =Model!ZJ23 -> 0.4629598141 | R198: =Model!ZK23 -> 0.4714784653 | S198: =Model!ZL23 -> 0.4800647486 | T198: =Model!ZM23 -> 0.4888376845 | U198: =Model!ZN23 -> 0.4961454545 | V198: =Model!ZO23 -> 0.5030992437 | W198: =Model!ZP23 -> 0.5096093068 | X198: =Model!ZQ23 -> 0.5160803125 | Y198: =Model!ZR23 -> 0.5223966554 | Z198: =Model!ZS23 -> 0.5292011836 | AA198: =Model!ZT23 -> 0.535905442 | AB198: =Model!ZU23 -> 0.5426755585 | AC198: =Model!ZV23 -> 0.5495115006 | AD198: =Model!ZW23 -> 0.5564132385 | AE198: =Model!ZX23 -> 0.562498192 | AF198: =Model!ZY23 -> 0.5686896096 | AG198: =Model!ZZ23 -> 0.5749875984 | AH198: =Model!AAA23 -> 0.5813922658 | AI198: =Model!AAB23 -> 0.5879037201 | AJ198: =Model!AAC23 -> 0.5932870684 | AK198: =Model!AAD23 -> 0.5987980516 | AL198: =Model!AAE23 -> 0.6044370599 | AM198: =Model!AAF23 -> 0.610204483 | AN198: =Model!AAG23 -> 0.6161007096 | AO198: =Model!AAH23 -> 0.6212155704 | AP198: =Model!AAI23 -> 0.6264911166 | AQ198: =Model!AAJ23 -> 0.6319288588 | AR198: =Model!AAK23 -> 0.637530315 | AS198: =Model!AAL23 -> 0.6432970109 | AT198: 0 | AU198: 0 | AV198: 0 | AW198: 0 | AX198: 0 | AY198: 0 | AZ198: 0 | BA198: 6.05941092e-05 | BB198: 0.0001819939085 | BC198: 0.0003644092579 | BD198: =Z198-Z179 -> 0.0006071605605 | BE198: 0.0009104663589 | BF198: 0.001274279399 | BG198: 0.001698555322 | BH198: 0.002183252585 | BI198: 0.002735223076 | BJ198: 0.003350547537 | BK198: 0.004029619662 | BL198: 0.004772830264 | BM198: 0.005580567317 | BN198: 0.006461048454 | BO198: 0.007409069 | BP198: 0.008425235179 | BQ198: 0.009510150791 | BR198: 0.01066441723 | BS198: 0.01192025418 | BT198: 0.01325358919 | BU198: 0.01466560435 | BV198: 0.01615748791 | BW198: 0.0177304343
B199: =IF(Summary!$J$6=C199,1,0) -> 0 | C199: 25-59 | P199: =Model!ZI24 -> 0.4459496947 | Q199: =Model!ZJ24 -> 0.4540003202 | R199: =Model!ZK24 -> 0.462496064 | S199: =Model!ZL24 -> 0.4710841654 | T199: =Model!ZM24 -> 0.4798681407 | U199: =Model!ZN24 -> 0.487618755 | V199: =Model!ZO24 -> 0.4950666938 | W199: =Model!ZP24 -> 0.5021328368 | X199: =Model!ZQ24 -> 0.5091682831 | Y199: =Model!ZR24 -> 0.5160721124 | Z199: =Model!ZS24 -> 0.522919023 | AA199: =Model!ZT24 -> 0.5296940126 | AB199: =Model!ZU24 -> 0.5365420578 | AC199: =Model!ZV24 -> 0.5434632822 | AD199: =Model!ZW24 -> 0.5504578091 | AE199: =Model!ZX24 -> 0.556812383 | AF199: =Model!ZY24 -> 0.5632314219 | AG199: =Model!ZZ24 -> 0.5697149336 | AH199: =Model!AAA24 -> 0.5762629276 | AI199: =Model!AAB24 -> 0.5828754146 | AJ199: =Model!AAC24 -> 0.5886429957 | AK199: =Model!AAD24 -> 0.5945079404 | AL199: =Model!AAE24 -> 0.6004704086 | AM199: =Model!AAF24 -> 0.6065305602 | AN199: =Model!AAG24 -> 0.6126885551 | AO199: =Model!AAH24 -> 0.6178895345 | AP199: =Model!AAI24 -> 0.6232053059 | AQ199: =Model!AAJ24 -> 0.6286362629 | AR199: =Model!AAK24 -> 0.6341827981 | AS199: =Model!AAL24 -> 0.6398453037 | AT199: 0 | AU199: 0 | AV199: 0 | AW199: 0 | AX199: 0 | AY199: 0 | AZ199: 0 | BA199: 5.270929819e-05 | BB199: 0.000158483239 | BC199: 0.0003176742849 | BD199: =Z199-Z180 -> 0.00053030961 | BE199: 0.000796737564 | BF199: 0.001117207315 | BG199: 0.001491965929 | BH199: 0.001921258413 | BI199: 0.002402633124 | BJ199: 0.002937849474 | BK199: 0.003526979428 | BL199: 0.004170095173 | BM199: 0.004867269115 | BN199: 0.005630306518 | BO199: 0.00645084142 | BP199: 0.0073292593 | BQ199: 0.008265943193 | BR199: 0.009261273728 | BS199: 0.01032651111 | BT199: 0.01145346204 | BU199: 0.01264267805 | BV199: 0.01389470888 | BW199: 0.01521010247
B200: =IF(Summary!$J$6=C200,1,0) -> 1 | C200: 25-64 | P200: =Model!ZI25 -> 0.4387903192 | Q200: =Model!ZJ25 -> 0.4461477791 | R200: =Model!ZK25 -> 0.4538892618 | S200: =Model!ZL25 -> 0.4617048405 | T200: =Model!ZM25 -> 0.4696852247 | U200: =Model!ZN25 -> 0.4774909281 | V200: =Model!ZO25 -> 0.4850563707 | W200: =Model!ZP25 -> 0.4923099774 | X200: =Model!ZQ25 -> 0.4995600412 | Y200: =Model!ZR25 -> 0.5067168875 | Z200: =Model!ZS25 -> 0.5140042817 | AA200: =Model!ZT25 -> 0.5212315151 | AB200: =Model!ZU25 -> 0.5285271946 | AC200: =Model!ZV25 -> 0.5358915687 | AD200: =Model!ZW25 -> 0.5433248844 | AE200: =Model!ZX25 -> 0.549783444 | AF200: =Model!ZY25 -> 0.5563118196 | AG200: =Model!ZZ25 -> 0.5629101623 | AH200: =Model!AAA25 -> 0.5695786227 | AI200: =Model!AAB25 -> 0.5763173511 | AJ200: =Model!AAC25 -> 0.5823270684 | AK200: =Model!AAD25 -> 0.5884003301 | AL200: =Model!AAE25 -> 0.5945371621 | AM200: =Model!AAF25 -> 0.6007375917 | AN200: =Model!AAG25 -> 0.6070016469 | AO200: =Model!AAH25 -> 0.6125445124 | AP200: =Model!AAI25 -> 0.6181779835 | AQ200: =Model!AAJ25 -> 0.6239022532 | AR200: =Model!AAK25 -> 0.6297175139 | AS200: =Model!AAL25 -> 0.6356239578 | AT200: 0 | AU200: 0 | AV200: 0 | AW200: 0 | AX200: 0 | AY200: 0 | AZ200: 0 | BA200: 4.651393901e-05 | BB200: 0.0001401455813 | BC200: 0.0002814974419 | BD200: =Z200-Z181 -> 0.0004703338433 | BE200: 0.0007072514002 | BF200: 0.0009925937974 | BG200: 0.001326702219 | BH200: 0.001709915385 | BI200: 0.002141657448 | BJ200: 0.002622770982 | BK200: 0.003153527891 | BL200: 0.003734197982 | BM200: 0.004365048991 | BN200: 0.005041285984 | BO200: 0.005766813846 | BP200: 0.006541760079 | BQ200: 0.007366251461 | BR200: 0.008240414069 | BS200: 0.00918111547 | BT200: 0.01017521104 | BU200: 0.01122307388 | BV200: 0.01232507505 | BW200: 0.01348158358
P202: Attainment | AT202: Incremental Gain Over Prior Lever
B203: Use | C203: H. Adding incremental gains based on assumed increases in college graduation rate | P203: 2019 | Q203: 2020 | R203: 2021 | S203: 2022 | T203: 2023 | U203: 2024 | V203: 2025 | W203: 2026 | X203: 2027 | Y203: 2028 | Z203: 2029 | AA203: 2030 | AB203: 2031 | AC203: 2032 | AD203: 2033 | AE203: 2034 | AF203: 2035 | AG203: 2036 | AH203: 2037 | AI203: 2038 | AJ203: 2039 | AK203: 2040 | AL203: 2041 | AM203: 2042 | AN203: 2043 | AO203: 2044 | AP203: 2045 | AQ203: 2046 | AR203: 2047 | AS203: 2048 | AT203: 2019 | AU203: 2020 | AV203: 2021 | AW203: 2022 | AX203: 2023 | AY203: 2024 | AZ203: 2025 | BA203: 2026 | BB203: 2027 | BC203: 2028 | BD203: 2029 | BE203: 2030 | BF203: 2031 | BG203: 2032 | BH203: 2033 | BI203: 2034 | BJ203: 2035 | BK203: 2036 | BL203: 2037 | BM203: 2038 | BN203: 2039 | BO203: 2040 | BP203: 2041 | BQ203: 2042 | BR203: 2043 | BS203: 2044 | BT203: 2045 | BU203: 2046 | BV203: 2047 | BW203: 2048
B204: =IF(Summary!$J$6=C204,1,0) -> 0 | C204: 25-29 | P204: =Model!AFU8 -> 0.4410731051 | Q204: =Model!AFV8 -> 0.4485207152 | R204: =Model!AFW8 -> 0.4591767284 | S204: =Model!AFX8 -> 0.4726480995 | T204: =Model!AFY8 -> 0.4898119709 | U204: =Model!AFZ8 -> 0.5045224185 | V204: =Model!AGA8 -> 0.5195314445 | W204: =Model!AGB8 -> 0.5343513977 | X204: =Model!AGC8 -> 0.5495297255 | Y204: =Model!AGD8 -> 0.5643338213 | Z204: =Model!AGE8 -> 0.5794916778 | AA204: =Model!AGF8 -> 0.594792635 | AB204: =Model!AGG8 -> 0.6103962428 | AC204: =Model!AGH8 -> 0.6263051198 | AD204: =Model!AGI8 -> 0.6425218851 | AE204: =Model!AGJ8 -> 0.6590486718 | AF204: =Model!AGK8 -> 0.6758885146 | AG204: =Model!AGL8 -> 0.6930440331 | AH204: =Model!AGM8 -> 0.7105178478 | AI204: =Model!AGN8 -> 0.7283125799 | AJ204: =Model!AGO8 -> 0.7464301732 | AK204: =Model!AGP8 -> 0.7648738492 | AL204: =Model!AGQ8 -> 0.7836462293 | AM204: =Model!AGR8 -> 0.8027499361 | AN204: =Model!AGS8 -> 0.8221875929 | AO204: =Model!AGT8 -> 0.8419609369 | AP204: =Model!AGU8 -> 0.8620733934 | AQ204: =Model!AGV8 -> 0.882527586 | AR204: =Model!AGW8 -> 0.9033261396 | AS204: =Model!AGX8 -> 0.9244716795 | AT204: =P204-P185 -> 0 | AU204: =Q204-Q185 -> 0 | AV204: =R204-R185 -> 0 | AW204: =S204-S185 -> 0.001879475056 | AX204: =T204-T185 -> 0.005785173624 | AY204: =U204-U185 -> 0.0116750691 | AZ204: =V204-V185 -> 0.01960490522 | BA204: =W204-W185 -> 0.02964261836 | BB204: =X204-X185 -> 0.03994958714 | BC204: =Y204-Y185 -> 0.05048819525 | BD204: =Z204-Z185 -> 0.06131192281 | BE204: 0.07242591045 | BF204: 0.08381552038 | BG204: 0.09548336554 | BH204: 0.1074320596 | BI204: 0.1196639552 | BJ204: 0.1321818748 | BK204: 0.1449884324 | BL204: 0.1580862428 | BM204: 0.1714779215 | BN204: 0.1851656798 | BO204: 0.1991524791 | BP204: 0.2134409354 | BQ204: 0.2280336652 | BR204: 0.242933286 | BS204: 0.2581418516 | BT204: 0.2736624783 | BU204: 0.289497784 | BV204: 0.3056503875 | BW204: 0.3221229082
B205: =IF(Summary!$J$6=C205,1,0) -> 0 | C205: 30-34 | P205: =Model!AFU9 -> 0.4766824848 | Q205: =Model!AFV9 -> 0.4826427489 | R205: =Model!AFW9 -> 0.4884022261 | S205: =Model!AFX9 -> 0.4939708943 | T205: =Model!AFY9 -> 0.4993580811 | U205: =Model!AFZ9 -> 0.5040582543 | V205: =Model!AGA9 -> 0.5088426263 | W205: =Model!AGB9 -> 0.5137134799 | X205: =Model!AGC9 -> 0.5204970816 | Y205: =Model!AGD9 -> 0.529338294 | Z205: =Model!AGE9 -> 0.5438964591 | AA205: =Model!AGF9 -> 0.5604176465 | AB205: =Model!AGG9 -> 0.5797714905 | AC205: =Model!AGH9 -> 0.6001778343 | AD205: =Model!AGI9 -> 0.621604268 | AE205: =Model!AGJ9 -> 0.6363460136 | AF205: =Model!AGK9 -> 0.6521901725 | AG205: =Model!AGL9 -> 0.6683266848 | AH205: =Model!AGM9 -> 0.6847580941 | AI205: =Model!AGN9 -> 0.7014869449 | AJ205: =Model!AGO9 -> 0.7175251077 | AK205: =Model!AGP9 -> 0.7338670384 | AL205: =Model!AGQ9 -> 0.7505152793 | AM205: =Model!AGR9 -> 0.7674723733 | AN205: =Model!AGS9 -> 0.7847408643 | AO205: =Model!AGT9 -> 0.8023227946 | AP205: =Model!AGU9 -> 0.8202211342 | AQ205: =Model!AGV9 -> 0.8384384271 | AR205: =Model!AGW9 -> 0.8569772185 | AS205: =Model!AGX9 -> 0.875840054 | AT205: 0 | AU205: 0 | AV205: 0 | AW205: 0 | AX205: 0 | AY205: 0 | AZ205: 0 | BA205: 0 | BB205: 0.001823900195 | BC205: 0.005614109785 | BD205: =Z205-Z186 -> 0.01132984486 | BE205: 0.01902520086 | BF205: 0.02876610532 | BG205: 0.03876830371 | BH205: 0.04899529199 | BI205: 0.05949896894 | BJ205: 0.07028432316 | BK205: 0.08133714969 | BL205: 0.09265998422 | BM205: 0.1042553631 | BN205: 0.1161255695 | BO205: 0.1282733423 | BP205: 0.1407012183 | BQ205: 0.1534117349 | BR205: 0.1664074303 | BS205: 0.1796904505 | BT205: 0.1932636692 | BU205: 0.207129625 | BV205: 0.2212908573 | BW205: 0.235749906
B206: =IF(Summary!$J$6=C206,1,0) -> 0 | C206: 35-39 | P206: =Model!AFU10 -> 0.476195216 | Q206: =Model!AFV10 -> 0.4846538336 | R206: =Model!AFW10 -> 0.4929708754 | S206: =Model!AFX10 -> 0.5011498663 | T206: =Model!AFY10 -> 0.5091942152 | U206: =Model!AFZ10 -> 0.5153659523 | V206: =Model!AGA10 -> 0.5213262164 | W206: =Model!AGB10 -> 0.5270856935 | X206: =Model!AGC10 -> 0.5326543617 | Y206: =Model!AGD10 -> 0.5380415485 | Z206: =Model!AGE10 -> 0.5427417217 | AA206: =Model!AGF10 -> 0.5475260937 | AB206: =Model!AGG10 -> 0.5523969473 | AC206: =Model!AGH10 -> 0.5591348952 | AD206: =Model!AGI10 -> 0.5678812353 | AE206: =Model!AGJ10 -> 0.5822963305 | AF206: =Model!AGK10 -> 0.5986248964 | AG206: =Model!AGL10 -> 0.6177148006 | AH206: =Model!AGM10 -> 0.6378304466 | AI206: =Model!AGN10 -> 0.6589402366 | AJ206: =Model!AGO10 -> 0.6733379373 | AK206: =Model!AGP10 -> 0.6888104239 | AL206: =Model!AGQ10 -> 0.7045679131 | AM206: =Model!AGR10 -> 0.7206128849 | AN206: =Model!AGS10 -> 0.7369478201 | AO206: =Model!AGT10 -> 0.7525845335 | AP206: =Model!AGU10 -> 0.7685174113 | AQ206: =Model!AGV10 -> 0.784748932 | AR206: =Model!AGW10 -> 0.801281575 | AS206: =Model!AGX10 -> 0.8181178205 | AT206: 0 | AU206: 0 | AV206: 0 | AW206: 0 | AX206: 0 | AY206: 0 | AZ206: 0 | BA206: 0 | BB206: 0 | BC206: 0 | BD206: =Z206-Z187 -> 0 | BE206: 0 | BF206: 0 | BG206: 0.001778246364 | BH206: 0.005473583664 | BI206: 0.01104624885 | BJ206: 0.0185489833 | BK206: 0.02804606433 | BL206: 0.03779789886 | BM206: 0.04776889661 | BN206: 0.05800965726 | BO206: 0.06852504454 | BP206: 0.07930120908 | BQ206: 0.09034062307 | BR206: 0.1016457594 | BS206: 0.113218844 | BT206: 0.1250625473 | BU206: 0.1371793426 | BV206: 0.1495717038 | BW206: 0.1622421055
B207: =IF(Summary!$J$6=C207,1,0) -> 0 | C207: 40-44 | P207: =Model!AFU11 -> 0.4646843365 | Q207: =Model!AFV11 -> 0.4733228355 | R207: =Model!AFW11 -> 0.4816634333 | S207: =Model!AFX11 -> 0.4897212788 | T207: =Model!AFY11 -> 0.4975105104 | U207: =Model!AFZ11 -> 0.5061143497 | V207: =Model!AGA11 -> 0.5145729673 | W207: =Model!AGB11 -> 0.5228900091 | X207: =Model!AGC11 -> 0.531069 | Y207: =Model!AGD11 -> 0.5391133489 | Z207: =Model!AGE11 -> 0.545285086 | AA207: =Model!AGF11 -> 0.5512453501 | AB207: =Model!AGG11 -> 0.5570048273 | AC207: =Model!AGH11 -> 0.5625734954 | AD207: =Model!AGI11 -> 0.5679606822 | AE207: =Model!AGJ11 -> 0.5726608555 | AF207: =Model!AGK11 -> 0.5774452274 | AG207: =Model!AGL11 -> 0.5823160811 | AH207: =Model!AGM11 -> 0.5890374224 | AI207: =Model!AGN11 -> 0.5977492527 | AJ207: =Model!AGO11 -> 0.6121123063 | AK207: =Model!AGP11 -> 0.628370806 | AL207: =Model!AGQ11 -> 0.6473647022 | AM207: =Model!AGR11 -> 0.6673746068 | AN207: =Model!AGS11 -> 0.6883692178 | AO207: =Model!AGT11 -> 0.7026417721 | AP207: =Model!AGU11 -> 0.717979063 | AQ207: =Model!AGV11 -> 0.7335986826 | AR207: =Model!AGW11 -> 0.7495030878 | AS207: =Model!AGX11 -> 0.7656947362 | AT207: 0 | AU207: 0 | AV207: 0 | AW207: 0 | AX207: 0 | AY207: 0 | AZ207: 0 | BA207: 0 | BB207: 0 | BC207: 0 | BD207: =Z207-Z188 -> 0 | BE207: 0 | BF207: 0 | BG207: 0 | BH207: 0 | BI207: 0 | BJ207: 0 | BK207: 0 | BL207: 0.001761639787 | BM207: 0.0054224673 | BN207: 0.01094309083 | BO207: 0.0183757592 | BP207: 0.02778414948 | BQ207: 0.03744491419 | BR207: 0.0473227954 | BS207: 0.05746792027 | BT207: 0.06788510711 | BU207: 0.07856063586 | BV207: 0.08949695566 | BW207: 0.1006965163
B208: =IF(Summary!$J$6=C208,1,0) -> 0 | C208: 45-49 | P208: =Model!AFU12 -> 0.451397293 | Q208: =Model!AFV12 -> 0.4580075595 | R208: =Model!AFW12 -> 0.4647445687 | S208: =Model!AFX12 -> 0.471612001 | T208: =Model!AFY12 -> 0.4786136807 | U208: =Model!AFZ12 -> 0.4875663311 | V208: =Model!AGA12 -> 0.49620483 | W208: =Model!AGB12 -> 0.5045454279 | X208: =Model!AGC12 -> 0.5126032734 | Y208: =Model!AGD12 -> 0.5203925049 | Z208: =Model!AGE12 -> 0.5289963443 | AA208: =Model!AGF12 -> 0.5374549619 | AB208: =Model!AGG12 -> 0.5457720037 | AC208: =Model!AGH12 -> 0.5539509946 | AD208: =Model!AGI12 -> 0.5619953435 | AE208: =Model!AGJ12 -> 0.5681670806 | AF208: =Model!AGK12 -> 0.5741273447 | AG208: =Model!AGL12 -> 0.5798868218 | AH208: =Model!AGM12 -> 0.58545549 | AI208: =Model!AGN12 -> 0.5908426768 | AJ208: =Model!AGO12 -> 0.5955428501 | AK208: =Model!AGP12 -> 0.600327222 | AL208: =Model!AGQ12 -> 0.6051980757 | AM208: =Model!AGR12 -> 0.6119422815 | AN208: =Model!AGS12 -> 0.6207016262 | AO208: =Model!AGT12 -> 0.6351363327 | AP208: =Model!AGU12 -> 0.6514913021 | AQ208: =Model!AGV12 -> 0.6706173858 | AR208: =Model!AGW12 -> 0.6907728791 | AS208: =Model!AGX12 -> 0.711926073 | AT208: 0 | AU208: 0 | AV208: 0 | AW208: 0 | AX208: 0 | AY208: 0 | AZ208: 0 | BA208: 0 | BB208: 0 | BC208: 0 | BD208: =Z208-Z189 -> 0 | BE208: 0 | BF208: 0 | BG208: 0 | BH208: 0 | BI208: 0 | BJ208: 0 | BK208: 0 | BL208: 0 | BM208: 0 | BN208: 0 | BO208: 0 | BP208: 0 | BQ208: 0.001784504352 | BR208: 0.005492846247 | BS208: 0.0110851227 | BT208: 0.0186142607 | BU208: 0.02814476377 | BV208: 0.03793091687 | BW208: 0.04793700445
B209: =IF(Summary!$J$6=C209,1,0) -> 0 | C209: 50-54 | P209: =Model!AFU13 -> 0.4183290485 | Q209: =Model!AFV13 -> 0.4285831473 | R209: =Model!AFW13 -> 0.438920523 | S209: =Model!AFX13 -> 0.4493421942 | T209: =Model!AFY13 -> 0.4598491963 | U209: =Model!AFZ13 -> 0.4663362634 | V209: =Model!AGA13 -> 0.47294653 | W209: =Model!AGB13 -> 0.4796835392 | X209: =Model!AGC13 -> 0.4865509714 | Y209: =Model!AGD13 -> 0.4935526511 | Z209: =Model!AGE13 -> 0.5025053015 | AA209: =Model!AGF13 -> 0.5111438005 | AB209: =Model!AGG13 -> 0.5194843984 | AC209: =Model!AGH13 -> 0.5275422438 | AD209: =Model!AGI13 -> 0.5353314754 | AE209: =Model!AGJ13 -> 0.5439353148 | AF209: =Model!AGK13 -> 0.5523939324 | AG209: =Model!AGL13 -> 0.5607109742 | AH209: =Model!AGM13 -> 0.5688899651 | AI209: =Model!AGN13 -> 0.576934314 | AJ209: =Model!AGO13 -> 0.583106051 | AK209: =Model!AGP13 -> 0.5890663151 | AL209: =Model!AGQ13 -> 0.5948257923 | AM209: =Model!AGR13 -> 0.6003944605 | AN209: =Model!AGS13 -> 0.6057816473 | AO209: =Model!AGT13 -> 0.6104818205 | AP209: =Model!AGU13 -> 0.6152661925 | AQ209: =Model!AGV13 -> 0.6201370461 | AR209: =Model!AGW13 -> 0.6269088111 | AS209: =Model!AGX13 -> 0.6357254257 | AT209: 0 | AU209: 0 | AV209: 0 | AW209: 0 | AX209: 0 | AY209: 0 | AZ209: 0 | BA209: 0 | BB209: 0 | BC209: 0 | BD209: =Z209-Z190 -> 0 | BE209: 0 | BF209: 0 | BG209: 0 | BH209: 0 | BI209: 0 | BJ209: 0 | BK209: 0 | BL209: 0 | BM209: 0 | BN209: 0 | BO209: 0 | BP209: 0 | BQ209: 0 | BR209: 0 | BS209: 0 | BT209: 0 | BU209: 0 | BV209: 0.001812063437 | BW209: 0.005577675303
B210: =IF(Summary!$J$6=C210,1,0) -> 0 | C210: 55-59 | P210: =Model!AFU14 -> 0.3915320123 | Q210: =Model!AFV14 -> 0.3986769337 | R210: =Model!AFW14 -> 0.4060287311 | S210: =Model!AFX14 -> 0.4135965214 | T210: =Model!AFY14 -> 0.4213899651 | U210: =Model!AFZ14 -> 0.4315617893 | V210: =Model!AGA14 -> 0.4418158881 | W210: =Model!AGB14 -> 0.4521532638 | X210: =Model!AGC14 -> 0.462574935 | Y210: =Model!AGD14 -> 0.4730819371 | Z210: =Model!AGE14 -> 0.4795690042 | AA210: =Model!AGF14 -> 0.4861792708 | AB210: =Model!AGG14 -> 0.4929162799 | AC210: =Model!AGH14 -> 0.4997837122 | AD210: =Model!AGI14 -> 0.5067853919 | AE210: =Model!AGJ14 -> 0.5157380423 | AF210: =Model!AGK14 -> 0.5243765413 | AG210: =Model!AGL14 -> 0.5327171392 | AH210: =Model!AGM14 -> 0.5407749846 | AI210: =Model!AGN14 -> 0.5485642162 | AJ210: =Model!AGO14 -> 0.5571680556 | AK210: =Model!AGP14 -> 0.5656266732 | AL210: =Model!AGQ14 -> 0.5739437149 | AM210: =Model!AGR14 -> 0.5821227059 | AN210: =Model!AGS14 -> 0.5901670548 | AO210: =Model!AGT14 -> 0.5963387918 | AP210: =Model!AGU14 -> 0.6022990559 | AQ210: =Model!AGV14 -> 0.6080585331 | AR210: =Model!AGW14 -> 0.6136272012 | AS210: =Model!AGX14 -> 0.6190143881 | AT210: 0 | AU210: 0 | AV210: 0 | AW210: 0 | AX210: 0 | AY210: 0 | AZ210: 0 | BA210: 0 | BB210: 0 | BC210: 0 | BD210: =Z210-Z191 -> 0 | BE210: 0 | BF210: 0 | BG210: 0 | BH210: 0 | BI210: 0 | BJ210: 0 | BK210: 0 | BL210: 0 | BM210: 0 | BN210: 0 | BO210: 0 | BP210: 0 | BQ210: 0 | BR210: 0 | BS210: 0 | BT210: 0 | BU210: 0 | BV210: 0 | BW210: 0
B211: =IF(Summary!$J$6=C211,1,0) -> 0 | C211: 60-64 | P211: =Model!AFU15 -> 0.3870827986 | Q211: =Model!AFV15 -> 0.389624872 | R211: =Model!AFW15 -> 0.3921445461 | S211: =Model!AFX15 -> 0.3946421155 | T211: =Model!AFY15 -> 0.39711787 | U211: =Model!AFZ15 -> 0.4040645263 | V211: =Model!AGA15 -> 0.4112094477 | W211: =Model!AGB15 -> 0.4185612451 | X211: =Model!AGC15 -> 0.4261290353 | Y211: =Model!AGD15 -> 0.4339224791 | Z211: =Model!AGE15 -> 0.4440943033 | AA211: =Model!AGF15 -> 0.4543484021 | AB211: =Model!AGG15 -> 0.4646857778 | AC211: =Model!AGH15 -> 0.475107449 | AD211: =Model!AGI15 -> 0.485614451 | AE211: =Model!AGJ15 -> 0.4921015182 | AF211: =Model!AGK15 -> 0.4987117847 | AG211: =Model!AGL15 -> 0.5054487939 | AH211: =Model!AGM15 -> 0.5123162262 | AI211: =Model!AGN15 -> 0.5193179059 | AJ211: =Model!AGO15 -> 0.5282705563 | AK211: =Model!AGP15 -> 0.5369090552 | AL211: =Model!AGQ15 -> 0.5452496531 | AM211: =Model!AGR15 -> 0.5533074986 | AN211: =Model!AGS15 -> 0.5610967301 | AO211: =Model!AGT15 -> 0.5697005695 | AP211: =Model!AGU15 -> 0.5781591871 | AQ211: =Model!AGV15 -> 0.5864762289 | AR211: =Model!AGW15 -> 0.5946552198 | AS211: =Model!AGX15 -> 0.6026995687 | AT211: 0 | AU211: 0 | AV211: 0 | AW211: 0 | AX211: 0 | AY211: 0 | AZ211: 0 | BA211: 0 | BB211: 0 | BC211: 0 | BD211: =Z211-Z192 -> 0 | BE211: 0 | BF211: 0 | BG211: 0 | BH211: 0 | BI211: 0 | BJ211: 0 | BK211: 0 | BL211: 0 | BM211: 0 | BN211: 0 | BO211: 0 | BP211: 0 | BQ211: 0 | BR211: 0 | BS211: 0 | BT211: 0 | BU211: 0 | BV211: 0 | BW211: 0
B212: =IF(Summary!$J$6=C212,1,0) -> 0 | C212: 25-29 | P212: =Model!AFU18 -> 0.4410731051 | Q212: =Model!AFV18 -> 0.4485207152 | R212: =Model!AFW18 -> 0.4591767284 | S212: =Model!AFX18 -> 0.4726480995 | T212: =Model!AFY18 -> 0.4898119709 | U212: =Model!AFZ18 -> 0.5045224185 | V212: =Model!AGA18 -> 0.5195314445 | W212: =Model!AGB18 -> 0.5343513977 | X212: =Model!AGC18 -> 0.5495297255 | Y212: =Model!AGD18 -> 0.5643338213 | Z212: =Model!AGE18 -> 0.5794916778 | AA212: =Model!AGF18 -> 0.594792635 | AB212: =Model!AGG18 -> 0.6103962428 | AC212: =Model!AGH18 -> 0.6263051198 | AD212: =Model!AGI18 -> 0.6425218851 | AE212: =Model!AGJ18 -> 0.6590486718 | AF212: =Model!AGK18 -> 0.6758885146 | AG212: =Model!AGL18 -> 0.6930440331 | AH212: =Model!AGM18 -> 0.7105178478 | AI212: =Model!AGN18 -> 0.7283125799 | AJ212: =Model!AGO18 -> 0.7464301732 | AK212: =Model!AGP18 -> 0.7648738492 | AL212: =Model!AGQ18 -> 0.7836462293 | AM212: =Model!AGR18 -> 0.8027499361 | AN212: =Model!AGS18 -> 0.8221875929 | AO212: =Model!AGT18 -> 0.8419609369 | AP212: =Model!AGU18 -> 0.8620733934 | AQ212: =Model!AGV18 -> 0.882527586 | AR212: =Model!AGW18 -> 0.9033261396 | AS212: =Model!AGX18 -> 0.9244716795 | AT212: 0 | AU212: 0 | AV212: 0 | AW212: 0.001879475056 | AX212: 0.005785173624 | AY212: 0.0116750691 | AZ212: 0.01960490522 | BA212: 0.02964261836 | BB212: 0.03994958714 | BC212: 0.05048819525 | BD212: =Z212-Z193 -> 0.06131192281 | BE212: 0.07242591045 | BF212: 0.08381552038 | BG212: 0.09548336554 | BH212: 0.1074320596 | BI212: 0.1196639552 | BJ212: 0.1321818748 | BK212: 0.1449884324 | BL212: 0.1580862428 | BM212: 0.1714779215 | BN212: 0.1851656798 | BO212: 0.1991524791 | BP212: 0.2134409354 | BQ212: 0.2280336652 | BR212: 0.242933286 | BS212: 0.2581418516 | BT212: 0.2736624783 | BU212: 0.289497784 | BV212: 0.3056503875 | BW212: 0.3221229082
B213: =IF(Summary!$J$6=C213,1,0) -> 0 | C213: 25-34 | P213: =Model!AFU19 -> 0.4586236765 | Q213: =Model!AFV19 -> 0.4655616929 | R213: =Model!AFW19 -> 0.4739621589 | S213: =Model!AFX19 -> 0.4835728758 | T213: =Model!AFY19 -> 0.4947639539 | U213: =Model!AFZ19 -> 0.5042827696 | V213: =Model!AGA19 -> 0.5140390999 | W213: =Model!AGB19 -> 0.5237980349 | X213: =Model!AGC19 -> 0.5347563229 | Y213: =Model!AGD19 -> 0.5466145072 | Z213: =Model!AGE19 -> 0.5614662529 | AA213: =Model!AGF19 -> 0.5773827549 | AB213: =Model!AGG19 -> 0.5948836256 | AC213: =Model!AGH19 -> 0.6130688397 | AD213: =Model!AGI19 -> 0.631923421 | AE213: =Model!AGJ19 -> 0.6475457693 | AF213: =Model!AGK19 -> 0.6638811225 | AG213: =Model!AGL19 -> 0.6805203346 | AH213: =Model!AGM19 -> 0.697465987 | AI213: =Model!AGN19 -> 0.7147206621 | AJ213: =Model!AGO19 -> 0.731784657 | AK213: =Model!AGP19 -> 0.7491634281 | AL213: =Model!AGQ19 -> 0.7668595569 | AM213: =Model!AGR19 -> 0.7848756255 | AN213: =Model!AGS19 -> 0.8032142171 | AO213: =Model!AGT19 -> 0.8218772234 | AP213: =Model!AGU19 -> 0.8408678389 | AQ213: =Model!AGV19 -> 0.8601886471 | AR213: =Model!AGW19 -> 0.8798422324 | AS213: =Model!AGX19 -> 0.8998311797 | AT213: 0 | AU213: 0 | AV213: 0 | AW213: 0.0009165222708 | AX213: 0.002784152184 | AY213: 0.005647207597 | AZ213: 0.009531116586 | BA213: 0.01448463055 | BB213: 0.02054914518 | BC213: 0.02776706261 | BD213: =Z213-Z194 -> 0.03600098993 | BE213: 0.04538008457 | BF213: 0.05593087022 | BG213: 0.06675108685 | BH213: 0.07782352513 | BI213: 0.08917977302 | BJ213: 0.1008198425 | BK213: 0.1127378259 | BL213: 0.1249362978 | BM213: 0.1374178337 | BN213: 0.1501846812 | BO213: 0.1632396891 | BP213: 0.1765854331 | BQ213: 0.1902244898 | BR213: 0.2041594365 | BS213: 0.2183923735 | BT213: 0.2329262944 | BU213: 0.2477637769 | BV213: 0.2629073995 | BW213: 0.2783597413
B214: =IF(Summary!$J$6=C214,1,0) -> 0 | C214: 25-39 | P214: =Model!AFU20 -> 0.4643253782 | Q214: =Model!AFV20 -> 0.4717752116 | R214: =Model!AFW20 -> 0.4801666512 | S214: =Model!AFX20 -> 0.4893266259 | T214: =Model!AFY20 -> 0.4995010981 | U214: =Model!AFZ20 -> 0.5079743833 | V214: =Model!AGA20 -> 0.5165011047 | W214: =Model!AGB20 -> 0.5249243965 | X214: =Model!AGC20 -> 0.5340262697 | Y214: =Model!AGD20 -> 0.5435967515 | Z214: =Model!AGE20 -> 0.554916175 | AA214: =Model!AGF20 -> 0.567004422 | AB214: =Model!AGG20 -> 0.5802093035 | AC214: =Model!AGH20 -> 0.5945610813 | AD214: =Model!AGI20 -> 0.6100905441 | AE214: =Model!AGJ20 -> 0.6252972553 | AF214: =Model!AGK20 -> 0.6416262321 | AG214: =Model!AGL20 -> 0.6590973212 | AH214: =Model!AGM20 -> 0.6771205598 | AI214: =Model!AGN20 -> 0.6956870002 | AJ214: =Model!AGO20 -> 0.7118411895 | AK214: =Model!AGP20 -> 0.7285694891 | AL214: =Model!AGQ20 -> 0.7456041061 | AM214: =Model!AGR20 -> 0.7629475877 | AN214: =Model!AGS20 -> 0.7806024821 | AO214: =Model!AGT20 -> 0.7982328424 | AP214: =Model!AGU20 -> 0.8161800821 | AQ214: =Model!AGV20 -> 0.8344467489 | AR214: =Model!AGW20 -> 0.8530353915 | AS214: =Model!AGX20 -> 0.8719485589 | AT214: 0 | AU214: 0 | AV214: 0 | AW214: 0.000616502757 | AX214: 0.001870174941 | AY214: 0.003766221809 | AZ214: 0.006310960214 | BA214: 0.009522153053 | BB214: 0.01341201528 | BC214: 0.01799281623 | BD214: =Z214-Z195 -> 0.02340738812 | BE214: 0.02960572783 | BF214: 0.03661310663 | BG214: 0.04445526478 | BH214: 0.05315841813 | BI214: 0.06253809082 | BJ214: 0.07276230588 | BK214: 0.0838494043 | BL214: 0.09520791869 | BM214: 0.1068273972 | BN214: 0.1187322814 | BO214: 0.1309207079 | BP214: 0.1433896478 | BQ214: 0.156141642 | BR214: 0.1691792323 | BS214: 0.1825045618 | BT214: 0.1961205139 | BU214: 0.2100296306 | BV214: 0.2242344547 | BW214: 0.2387375297
B215: =IF(Summary!$J$6=C215,1,0) -> 0 | C215: 25-44 | P215: =Model!AFU21 -> 0.4644088725 | Q215: =Model!AFV21 -> 0.4721385705 | R215: =Model!AFW21 -> 0.4805212873 | S215: =Model!AFX21 -> 0.4894209655 | T215: =Model!AFY21 -> 0.4990211229 | U215: =Model!AFZ21 -> 0.5075240162 | V215: =Model!AGA21 -> 0.5160323246 | W215: =Model!AGB21 -> 0.5244277729 | X215: =Model!AGC21 -> 0.5333014584 | Y215: =Model!AGD21 -> 0.5424935363 | Z215: =Model!AGE21 -> 0.5525100728 | AA215: =Model!AGF21 -> 0.5630084169 | AB215: =Model!AGG21 -> 0.5742389654 | AC215: =Model!AGH21 -> 0.586212366 | AD215: =Model!AGI21 -> 0.5989393192 | AE215: =Model!AGJ21 -> 0.6114631642 | AF215: =Model!AGK21 -> 0.6248779595 | AG215: =Model!AGL21 -> 0.6392050571 | AH215: =Model!AGM21 -> 0.6544661184 | AI215: =Model!AGN21 -> 0.6706831184 | AJ215: =Model!AGO21 -> 0.6863747629 | AK215: =Model!AGP21 -> 0.7029778182 | AL215: =Model!AGQ21 -> 0.7205076861 | AM215: =Model!AGR21 -> 0.7385273175 | AN215: =Model!AGS21 -> 0.7570307205 | AO215: =Model!AGT21 -> 0.773802937 | AP215: =Model!AGU21 -> 0.7910831604 | AQ215: =Model!AGV21 -> 0.8086733298 | AR215: =Model!AGW21 -> 0.8265759703 | AS215: =Model!AGX21 -> 0.8447936078 | AT215: 0 | AU215: 0 | AV215: 0 | AW215: 0.0004691311679 | AX215: 0.001419233957 | AY215: 0.002854312228 | AZ215: 0.004776602627 | BA215: 0.007197656735 | BB215: 0.0101248007 | BC215: 0.01356538677 | BD215: =Z215-Z196 -> 0.01755960003 | BE215: 0.02209864621 | BF215: 0.02719282835 | BG215: 0.03285250264 | BH215: 0.03908807823 | BI215: 0.04610160107 | BJ215: 0.05377471072 | BK215: 0.06212594041 | BL215: 0.0711741103 | BM215: 0.08093833044 | BN215: 0.09120760236 | BO215: 0.1021756865 | BP215: 0.1138568531 | BQ215: 0.1258129222 | BR215: 0.1380367708 | BS215: 0.1505493455 | BT215: 0.1633477994 | BU215: 0.1764305183 | BV215: 0.1898000211 | BW215: 0.2034588275
B216: =IF(Summary!$J$6=C216,1,0) -> 0 | C216: 25-49 | P216: =Model!AFU22 -> 0.4619386371 | Q216: =Model!AFV22 -> 0.4694943051 | R216: =Model!AFW22 -> 0.4776116181 | S216: =Model!AFX22 -> 0.4861840489 | T216: =Model!AFY22 -> 0.4953658716 | U216: =Model!AFZ22 -> 0.5039091328 | V216: =Model!AGA22 -> 0.5124016353 | W216: =Model!AGB22 -> 0.520748075 | X216: =Model!AGC22 -> 0.5294307483 | Y216: =Model!AGD22 -> 0.5383183167 | Z216: =Model!AGE22 -> 0.5480458522 | AA216: =Model!AGF22 -> 0.5581330732 | AB216: =Model!AGG22 -> 0.5687813522 | AC216: =Model!AGH22 -> 0.5799975891 | AD216: =Model!AGI22 -> 0.5917887116 | AE216: =Model!AGJ22 -> 0.6029514857 | AF216: =Model!AGK22 -> 0.6147471316 | AG216: =Model!AGL22 -> 0.627185094 | AH216: =Model!AGM22 -> 0.6402748681 | AI216: =Model!AGN22 -> 0.6540259985 | AJ216: =Model!AGO22 -> 0.667567633 | AK216: =Model!AGP22 -> 0.681885754 | AL216: =Model!AGQ22 -> 0.6969971518 | AM216: =Model!AGR22 -> 0.712918828 | AN216: =Model!AGS22 -> 0.7296679979 | AO216: =Model!AGT22 -> 0.7459648784 | AP216: =Model!AGU22 -> 0.7630531475 | AQ216: =Model!AGV22 -> 0.7809456006 | AR216: =Model!AGW22 -> 0.7992946944 | AS216: =Model!AGX22 -> 0.8180961709 | AT216: 0 | AU216: 0 | AV216: 0 | AW216: 0.0003838629606 | AX216: 0.001165029797 | AY216: 0.002337318103 | AZ216: 0.003901940419 | BA216: 0.005865560211 | BB216: 0.008231389839 | BC216: 0.01100267974 | BD216: =Z216-Z197 -> 0.01422580595 | BE216: 0.0178824455 | BF216: 0.02197948869 | BG216: 0.02652385115 | BH216: 0.03152247367 | BI216: 0.03703837938 | BJ216: 0.04304021331 | BK216: 0.04953703745 | BL216: 0.05653796455 | BM216: 0.0640521579 | BN216: 0.07232268431 | BO216: 0.08118120406 | BP216: 0.09064252221 | BQ216: 0.1007216433 | BR216: 0.1114337726 | BS216: 0.1225511608 | BT216: 0.1342853383 | BU216: 0.1466481914 | BV216: 0.1592912684 | BW216: 0.1722094026
B217: =IF(Summary!$J$6=C217,1,0) -> 0 | C217: 25-54 | P217: =Model!AFU23 -> 0.4549200843 | Q217: =Model!AFV23 -> 0.4629598141 | R217: =Model!AFW23 -> 0.4714784653 | S217: =Model!AFX23 -> 0.4803882237 | T217: =Model!AFY23 -> 0.4898208238 | U217: =Model!AFZ23 -> 0.4981228199 | V217: =Model!AGA23 -> 0.5064084875 | W217: =Model!AGB23 -> 0.5145961392 | X217: =Model!AGC23 -> 0.5230955746 | Y217: =Model!AGD23 -> 0.5317963378 | Z217: =Model!AGE23 -> 0.5413287115 | AA217: =Model!AGF23 -> 0.5511183232 | AB217: =Model!AGG23 -> 0.5613350439 | AC217: =Model!AGH23 -> 0.5719826045 | AD217: =Model!AGI23 -> 0.5830647585 | AE217: =Model!AGJ23 -> 0.5937815393 | AF217: =Model!AGK23 -> 0.6050055594 | AG217: =Model!AGL23 -> 0.6167434128 | AH217: =Model!AGM23 -> 0.62900172 | AI217: =Model!AGN23 -> 0.6417871283 | AJ217: =Model!AGO23 -> 0.653944842 | AK217: =Model!AGP23 -> 0.6666806893 | AL217: =Model!AGQ23 -> 0.6800031834 | AM217: =Model!AGR23 -> 0.6939208837 | AN217: =Model!AGS23 -> 0.7084423953 | AO217: =Model!AGT23 -> 0.7229356432 | AP217: =Model!AGU23 -> 0.7381327642 | AQ217: =Model!AGV23 -> 0.7540477624 | AR217: =Model!AGW23 -> 0.7706948004 | AS217: =Model!AGX23 -> 0.7880881998 | AT217: 0 | AU217: 0 | AV217: 0 | AW217: 0.00032347505 | AX217: 0.0009831392935 | AY217: 0.001977365455 | AZ217: 0.003309243852 | BA217: 0.004986832404 | BB217: 0.007015262141 | BC217: 0.009399682343 | BD217: =Z217-Z198 -> 0.01212752785 | BE217: 0.01521288122 | BF217: 0.01865948543 | BG217: 0.02247110387 | BH217: 0.02665152 | BI217: 0.03128334734 | BJ217: 0.03631594977 | BK217: 0.04175581437 | BL217: 0.0476094542 | BM217: 0.05388340814 | BN217: 0.06065777359 | BO217: 0.06788263774 | BP217: 0.07556612352 | BQ217: 0.0837164007 | BR217: 0.09234168572 | BS217: 0.1017200728 | BT217: 0.1116416475 | BU217: 0.1221189036 | BV217: 0.1331644853 | BW217: 0.1447911889
B218: =IF(Summary!$J$6=C218,1,0) -> 0 | C218: 25-59 | P218: =Model!AFU24 -> 0.4459496947 | Q218: =Model!AFV24 -> 0.4540003202 | R218: =Model!AFW24 -> 0.462496064 | S218: =Model!AFX24 -> 0.4713639354 | T218: =Model!AFY24 -> 0.4807205371 | U218: =Model!AFZ24 -> 0.4893350575 | V218: =Model!AGA24 -> 0.4979421875 | W218: =Model!AGB24 -> 0.5064707574 | X218: =Model!AGC24 -> 0.5152772868 | Y218: =Model!AGD24 -> 0.5242662988 | Z218: =Model!AGE24 -> 0.533511517 | AA218: =Model!AGF24 -> 0.543006612 | AB218: =Model!AGG24 -> 0.5529015105 | AC218: =Model!AGH24 -> 0.5632013036 | AD218: =Model!AGI24 -> 0.5739110996 | AE218: =Model!AGJ24 -> 0.584291826 | AF218: =Model!AGK24 -> 0.5950742156 | AG218: =Model!AGL24 -> 0.6062622782 | AH218: =Model!AGM24 -> 0.6178600396 | AI218: =Model!AGN24 -> 0.6298715412 | AJ218: =Model!AGO24 -> 0.6415015775 | AK218: =Model!AGP24 -> 0.6536112004 | AL218: =Model!AGQ24 -> 0.6662066998 | AM218: =Model!AGR24 -> 0.6792943919 | AN218: =Model!AGS24 -> 0.692880619 | AO218: =Model!AGT24 -> 0.7060095902 | AP218: =Model!AGU24 -> 0.7196835771 | AQ218: =Model!AGV24 -> 0.7339104776 | AR218: =Model!AGW24 -> 0.7486982331 | AS218: =Model!AGX24 -> 0.7640548286 | AT218: 0 | AU218: 0 | AV218: 0 | AW218: 0.0002797700389 | AX218: 0.0008523963859 | AY218: 0.001716302524 | AZ218: 0.002875493674 | BA218: 0.004337920628 | BB218: 0.006109003733 | BC218: 0.008194186349 | BD218: =Z218-Z199 -> 0.01059249395 | BE218: 0.01331259942 | BF218: 0.01635945274 | BG218: 0.01973802144 | BH218: 0.02345329046 | BI218: 0.02747944298 | BJ218: 0.03184279367 | BK218: 0.03654734456 | BL218: 0.04159711202 | BM218: 0.04699612662 | BN218: 0.05285858177 | BO218: 0.05910325998 | BP218: 0.06573629125 | BQ218: 0.07276383179 | BR218: 0.0801920639 | BS218: 0.08812005564 | BT218: 0.09647827118 | BU218: 0.1052742148 | BV218: 0.1145154351 | BW218: 0.1242095249
B219: =IF(Summary!$J$6=C219,1,0) -> 1 | C219: 25-64 | P219: =Model!AFU25 -> 0.4387903192 | Q219: =Model!AFV25 -> 0.4461477791 | R219: =Model!AFW25 -> 0.4538892618 | S219: =Model!AFX25 -> 0.4619502832 | T219: =Model!AFY25 -> 0.4704327286 | U219: =Model!AFZ25 -> 0.4789991931 | V219: =Model!AGA25 -> 0.4875886069 | W219: =Model!AGB25 -> 0.4961380263 | X219: =Model!AGC25 -> 0.5049621889 | Y219: =Model!AGD25 -> 0.5139779174 | Z219: =Model!AGE25 -> 0.5233988095 | AA219: =Model!AGF25 -> 0.5330489001 | AB219: =Model!AGG25 -> 0.5430619109 | AC219: =Model!AGH25 -> 0.5534432274 | AD219: =Model!AGI25 -> 0.5641982567 | AE219: =Model!AGJ25 -> 0.5742780508 | AF219: =Model!AGK25 -> 0.5847395372 | AG219: =Model!AGL25 -> 0.595587719 | AH219: =Model!AGM25 -> 0.6068276171 | AI219: =Model!AGN25 -> 0.6184642697 | AJ219: =Model!AGO25 -> 0.6296557932 | AK219: =Model!AGP25 -> 0.6412364604 | AL219: =Model!AGQ25 -> 0.6532103551 | AM219: =Model!AGR25 -> 0.665581575 | AN219: =Model!AGS25 -> 0.6783542309 | AO219: =Model!AGT25 -> 0.6908904704 | AP219: =Model!AGU25 -> 0.7038889037 | AQ219: =Model!AGV25 -> 0.7173555774 | AR219: =Model!AGW25 -> 0.731296564 | AS219: =Model!AGX25 -> 0.7457179623 | AT219: 0 | AU219: 0 | AV219: 0 | AW219: 0.0002454426747 | AX219: 0.0007475039094 | AY219: 0.001508264999 | AZ219: 0.002532236267 | BA219: 0.003828048986 | BB219: 0.005402147791 | BC219: 0.007261029947 | BD219: =Z219-Z200 -> 0.009394527833 | BE219: 0.01181738505 | BF219: 0.01453471626 | BG219: 0.01755165874 | BH219: 0.02087337232 | BI219: 0.02449460683 | BJ219: 0.02842771761 | BK219: 0.03267755676 | BL219: 0.0372489944 | BM219: 0.04214691858 | BN219: 0.04732872474 | BO219: 0.05283613032 | BP219: 0.05867319305 | BQ219: 0.06484398329 | BR219: 0.07135258399 | BS219: 0.07834595802 | BT219: 0.08571092016 | BU219: 0.09345332417 | BV219: 0.1015790502 | BW219: 0.1100940046
C222: Lookup col: | D222: 3 | E222: 4 | F222: 5 | G222: 6 | H222: 7 | I222: 8 | J222: 9 | K222: 10 | L222: 11 | M222: 12 | N222: 13 | O222: 14 | P222: 15 | Q222: 16 | R222: 17 | S222: 18 | T222: 19 | U222: 20 | V222: 21 | W222: 22 | X222: 23 | Y222: 24 | Z222: 25 | AA222: 26 | AB222: 27 | AC222: 28 | AD222: 29 | AE222: 30 | AF222: 31 | AG222: 32 | AH222: 33 | AI222: 34 | AJ222: 35 | AK222: 36 | AL222: 37 | AM222: 38 | AN222: 39 | AO222: 40 | AP222: 41 | AQ222: 42 | AR222: 43 | AS222: 44
C224: Projections for Specified Age Group | D224: =Summary!J6 -> 25-64
P225: Attainment | AT225: Incremental Gain Over Prior Lever
D226: 2007 | E226: 2008 | F226: 2009 | G226: 2010 | H226: 2011 | I226: 2012 | J226: 2013 | K226: 2014 | L226: 2015 | M226: 2016 | N226: 2017 | O226: 2018 | P226: 2019 | Q226: 2020 | R226: 2021 | S226: 2022 | T226: 2023 | U226: 2024 | V226: 2025 | W226: 2026 | X226: 2027 | Y226: 2028 | Z226: 2029 | AA226: 2030 | AB226: 2031 | AC226: 2032 | AD226: 2033 | AE226: 2034 | AF226: 2035 | AG226: 2036 | AH226: 2037 | AI226: 2038 | AJ226: 2039 | AK226: 2040 | AL226: 2041 | AM226: 2042 | AN226: 2043 | AO226: 2044 | AP226: 2045 | AQ226: 2046 | AR226: 2047 | AS226: 2048 | AT226: 2019 | AU226: 2020 | AV226: 2021 | AW226: 2022 | AX226: 2023 | AY226: 2024 | AZ226: 2025 | BA226: 2026 | BB226: 2027 | BC226: 2028 | BD226: 2029 | BE226: 2030 | BF226: 2031 | BG226: 2032 | BH226: 2033 | BI226: 2034 | BJ226: 2035 | BK226: 2036 | BL226: 2037 | BM226: 2038 | BN226: 2039 | BO226: 2040 | BP226: 2041 | BQ226: 2042 | BR226: 2043 | BS226: 2044 | BT226: 2045 | BU226: 2046 | BV226: 2047 | BW226: 2048
... 83 more rows

Sheet Impact of Higher Rates (hidden)
B2: State: | C2: ='Summary (Detail)'!C3 -> United States
B3: Abbrev: | C3: =VLOOKUP(C2,'Lookup Lists'!$C$4:$D$55,2,0) -> US
B5: A. HISTORICAL RATES
B6: note: numbers highlighted in grey are currently unavailable
B8: Historical Rates | C8: 2007 | D8: 2008 | E8: 2009 | F8: 2010 | G8: 2011 | H8: 2012 | I8: 2013 | J8: 2014 | K8: 2015 | L8: 2016 | M8: 2017 | N8: 2018 | O8: 5yr Avg Gain | P8: Notes
B9: High School Graduation Rate: | C9: =D9 -> 0.79 | D9: =E9 -> 0.79 | E9: =F9 -> 0.79 | F9: =G9 -> 0.79 | G9: =VLOOKUP($C$2,'HS Grad Rate Summary'!$B$6:$P$57,9,0)/100 -> 0.79 | H9: =VLOOKUP($C$2,'HS Grad Rate Summary'!$B$6:$P$57,10,0)/100 -> 0.8 | I9: =VLOOKUP($C$2,'HS Grad Rate Summary'!$B$6:$P$57,11,0)/100 -> 0.814 | J9: =VLOOKUP($C$2,'HS Grad Rate Summary'!$B$6:$P$57,12,0)/100 -> 0.823 | K9: =VLOOKUP($C$2,'HS Grad Rate Summary'!$B$6:$P$57,13,0)/100 -> 0.832 | L9: =VLOOKUP($C$2,'HS Grad Rate Summary'!$B$6:$P$57,14,0)/100 -> 0.841 | M9: =VLOOKUP($C$2,'HS Grad Rate Summary'!$B$6:$P$57,15,0)/100 -> 0.846 | N9: =M9 -> 0.846 | O9: =(N9-I9)/5 -> 0.0064 | P9: Adjusted Cohort Graduation Rate. Only calculated starting in 2010-11.
B10: College Going Rate: | C10: =VLOOKUP($C$2,'NSC Access Metric'!$B$7:$AL$58,26,0)/100 -> 0.747 | D10: =VLOOKUP($C$2,'NSC Access Metric'!$B$7:$AL$58,27,0)/100 -> 0.774 | E10: =VLOOKUP($C$2,'NSC Access Metric'!$B$7:$AL$58,28,0)/100 -> 0.794 | F10: =VLOOKUP($C$2,'NSC Access Metric'!$B$7:$AL$58,29,0)/100 -> 0.805 | G10: =VLOOKUP($C$2,'NSC Access Metric'!$B$7:$AL$58,30,0)/100 -> 0.798 | H10: =VLOOKUP($C$2,'NSC Access Metric'!$B$7:$AL$58,31,0)/100 -> 0.777 | I10: =VLOOKUP($C$2,'NSC Access Metric'!$B$7:$AL$58,32,0)/100 -> 0.773 | J10: =VLOOKUP($C$2,'NSC Access Metric'!$B$7:$AL$58,33,0)/100 -> 0.774 | K10: =VLOOKUP($C$2,'NSC Access Metric'!$B$7:$AL$58,34,0)/100 -> 0.774 | L10: =VLOOKUP($C$2,'NSC Access Metric'!$B$7:$AL$58,35,0)/100 -> 0.781 | M10: =VLOOKUP($C$2,'NSC Access Metric'!$B$7:$AL$58,36,0)/100 -> 0.785 | N10: =VLOOKUP($C$2,'NSC Access Metric'!$B$7:$AL$58,37,0)/100 -> 0.796 | O10: =(N10-I10)/5 -> 0.0046 | P10: NSC metric. Going to college within two years of graduating high school.
B11: College Graduation Rate (Grad Survey, Full-time only) | C11: =D11 -> 0.407 | D11: 0.407 | E11: =VLOOKUP($C$2,'College Grad Rate'!$A$7:$AE$58,22,0)/100 -> 0.407 | F11: =VLOOKUP($C$2,'College Grad Rate'!$A$7:$AE$58,23,0)/100 -> 0.405 | G11: =VLOOKUP($C$2,'College Grad Rate'!$A$7:$AE$58,24,0)/100 -> 0.402 | H11: =VLOOKUP($C$2,'College Grad Rate'!$A$7:$AE$58,25,0)/100 -> 0.397 | I11: =VLOOKUP($C$2,'College Grad Rate'!$A$7:$AE$58,26,0)/100 -> 0.403 | J11: =VLOOKUP($C$2,'College Grad Rate'!$A$7:$AE$58,27,0)/100 -> 0.418 | K11: =VLOOKUP($C$2,'College Grad Rate'!$A$7:$AE$58,28,0)/100 -> 0.431 | L11: =VLOOKUP($C$2,'College Grad Rate'!$A$7:$AE$58,29,0)/100 -> 0.444 | M11: =VLOOKUP($C$2,'College Grad Rate'!$A$7:$AE$58,30,0)/100 -> 0.461 | N11: =VLOOKUP($C$2,'College Grad Rate'!$A$7:$AE$58,31,0)/100 -> 0.48 | O11: 0.0154 | P11: Public. First-time, full-time only. Completion within 150% of normal time.
B12: % Cert (Lumina): | C12: =$K$12 -> 0.049 | D12: 0.049 | E12: 0.049 | F12: 0.049 | G12: 0.049 | H12: 0.049 | I12: 0.049 | J12: =VLOOKUP($C$2,'Certificate 2014-17'!$A$9:$E$59,2,0)/100 -> 0.049 | K12: =VLOOKUP($C$2,'Certificate 2014-17'!$A$9:$E$59,3,0)/100 -> 0.049 | L12: =VLOOKUP($C$2,'Certificate 2014-17'!$A$9:$E$59,4,0)/100 -> 0.0524 | M12: =VLOOKUP($C$2,'Certificate 2014-17'!$A$9:$E$59,5,0)/100 -> 0.0524 | N12: =M12 -> 0.0524 | O12: 0 | P12: From Lumina. Assume gain of 0%
B15: B. ATTAINMENT PROJECTIONS BASED ON PAST INCREASES IN LEVERS (NOTE: ASSUME CONTINUE INTO FUTURE)
B17: Impact of Higher HS Graduation Rate | C17: 2007 | D17: 2008 | E17: 2009 | F17: 2010 | G17: 2011 | H17: 2012 | I17: 2013 | J17: 2014 | K17: 2015 | L17: 2016 | M17: 2017 | N17: 2018 | O17: 2019 | P17: 2020 | Q17: 2021 | R17: 2022 | S17: 2023 | T17: 2024 | U17: 2025 | V17: 2026 | W17: 2027 | X17: 2028 | Y17: 2029 | Z17: 2030 | AA17: 2031 | AB17: 2032 | AC17: 2033 | AD17: 2034 | AE17: 2035 | AF17: 2036 | AG17: 2037 | AH17: 2038 | AI17: 2039 | AJ17: 2040 | AK17: 2041 | AL17: 2042 | AM17: 2043 | AN17: 2044 | AO17: 2045 | AP17: 2046 | AQ17: 2047 | AR17: 2048
B18: HS Grad Rate, 2007-2011 Average (cohort who are 25-29 in 2018) | C18: =AVERAGE($C$9:$G$9) -> 0.79 | D18: =AVERAGE($C$9:$G$9) -> 0.79 | E18: 0.79 | F18: 0.79 | G18: 0.79 | H18: 0.79 | I18: 0.79 | J18: 0.79 | K18: 0.79 | L18: 0.79 | M18: 0.79 | N18: 0.79 | O18: 0.79 | P18: 0.79 | Q18: 0.79 | R18: 0.79 | S18: 0.79 | T18: 0.79 | U18: 0.79 | V18: 0.79 | W18: 0.79 | X18: 0.79 | Y18: 0.79 | Z18: 0.79 | AA18: 0.79 | AB18: 0.79 | AC18: 0.79 | AD18: 0.79 | AE18: 0.79 | AF18: 0.79 | AG18: 0.79 | AH18: 0.79 | AI18: 0.79 | AJ18: 0.79 | AK18: 0.79 | AL18: 0.79 | AM18: 0.79 | AN18: 0.79 | AO18: 0.79 | AP18: 0.79 | AQ18: 0.79 | AR18: 0.79
B19: High School Graduation Rate (if flat post-2018) | C19: =C9 -> 0.79 | D19: 0.79 | E19: 0.79 | F19: 0.79 | G19: 0.79 | H19: 0.8 | I19: 0.814 | J19: 0.823 | K19: 0.832 | L19: 0.841 | M19: 0.846 | N19: 0.846 | O19: =$N$19 -> 0.846 | P19: 0.846 | Q19: 0.846 | R19: 0.846 | S19: 0.846 | T19: 0.846 | U19: 0.846 | V19: 0.846 | W19: 0.846 | X19: 0.846 | Y19: 0.846 | Z19: 0.846 | AA19: 0.846 | AB19: 0.846 | AC19: 0.846 | AD19: 0.846 | AE19: 0.846 | AF19: 0.846 | AG19: 0.846 | AH19: 0.846 | AI19: 0.846 | AJ19: 0.846 | AK19: 0.846 | AL19: 0.846 | AM19: 0.846 | AN19: 0.846 | AO19: 0.846 | AP19: 0.846 | AQ19: 0.846 | AR19: 0.846
B20: Higher HS Grad Rate over 2007-2011 average | C20: =C19-C18 -> 0 | D20: =D19-D18 -> 0 | E20: 0 | F20: 0 | G20: 0 | H20: 0.01 | I20: 0.024 | J20: 0.033 | K20: 0.042 | L20: 0.051 | M20: 0.056 | N20: 0.056 | O20: 0.056 | P20: 0.056 | Q20: 0.056 | R20: 0.056 | S20: 0.056 | T20: 0.056 | U20: 0.056 | V20: 0.056 | W20: 0.056 | X20: 0.056 | Y20: =Y19-Y18 -> 0.056 | Z20: 0.056 | AA20: 0.056 | AB20: 0.056 | AC20: 0.056 | AD20: 0.056 | AE20: 0.056 | AF20: 0.056 | AG20: 0.056 | AH20: 0.056 | AI20: 0.056 | AJ20: 0.056 | AK20: 0.056 | AL20: 0.056 | AM20: 0.056 | AN20: 0.056 | AO20: 0.056 | AP20: 0.056 | AQ20: 0.056 | AR20: 0.056
B21: HS Graduation Rate | C21: =SUM(C18,C20) -> 0.79 | D21: =SUM(D18,D20) -> 0.79 | E21: 0.79 | F21: 0.79 | G21: 0.79 | H21: 0.8 | I21: 0.814 | J21: 0.823 | K21: 0.832 | L21: 0.841 | M21: 0.846 | N21: 0.846 | O21: 0.846 | P21: 0.846 | Q21: 0.846 | R21: 0.846 | S21: 0.846 | T21: 0.846 | U21: 0.846 | V21: 0.846 | W21: 0.846 | X21: 0.846 | Y21: =SUM(Y18,Y20) -> 0.846 | Z21: 0.846 | AA21: 0.846 | AB21: 0.846 | AC21: 0.846 | AD21: 0.846 | AE21: 0.846 | AF21: 0.846 | AG21: 0.846 | AH21: 0.846 | AI21: 0.846 | AJ21: 0.846 | AK21: 0.846 | AL21: 0.846 | AM21: 0.846 | AN21: 0.846 | AO21: 0.846 | AP21: 0.846 | AQ21: 0.846 | AR21: 0.846
B22: Number of 17 Year Olds (actually avg. of 15-19 year olds) | C22: =Model!AO33 -> 4374008.2 | D22: =Model!AP33 -> 4386996.8 | E22: =Model!AQ33 -> 4331043 | F22: =Model!AR33 -> 4399321.2 | G22: =Model!AS33 -> 4351453.2 | H22: =Model!AT33 -> 4275164.4 | I22: =Model!AU33 -> 4250685.2 | J22: =Model!AV33 -> 4246497.2 | K22: =Model!AW33 -> 4253147.2 | L22: =Model!AX33 -> 4274180.6 | M22: =Model!AY33 -> 4276752.4 | N22: =Model!AZ33 -> 4264769.4 | O22: =Model!BA33 -> 4267591.835 | P22: =Model!BB33 -> 4270416.138 | Q22: =Model!BC33 -> 4273242.31 | R22: =Model!BD33 -> 4276070.352 | S22: =Model!BE33 -> 4278900.267 | T22: =Model!BF33 -> 4281732.053 | U22: =Model!BG33 -> 4284565.714 | V22: =Model!BH33 -> 4287401.251 | W22: =Model!BI33 -> 4290238.664 | X22: =Model!BJ33 -> 4293077.954 | Y22: =Model!BK33 -> 4295919.124 | Z22: =Model!BL33 -> 4298762.174 | AA22: =Model!BM33 -> 4301607.105 | AB22: =Model!BN33 -> 4304453.92 | AC22: =Model!BO33 -> 4307302.618 | AD22: =Model!BP33 -> 4310153.202 | AE22: =Model!BQ33 -> 4313005.672 | AF22: =Model!BR33 -> 4315860.03 | AG22: =Model!BS33 -> 4318716.277 | AH22: =Model!BT33 -> 4321574.414 | AI22: =Model!BU33 -> 4324434.443 | AJ22: =Model!BV33 -> 4327296.364 | AK22: =Model!BW33 -> 4330160.18 | AL22: =Model!BX33 -> 4333025.891 | AM22: =Model!BY33 -> 4335893.498 | AN22: =Model!BZ33 -> 4338763.003 | AO22: =Model!CA33 -> 4341634.407 | AP22: =Model!CB33 -> 4344507.712 | AQ22: =Model!CC33 -> 4347382.918 | AR22: =Model!CD33 -> 4350260.027
B23: Incremental HS Grads (Age 18) | C23: NA | D23: NA | E23: NA | F23: NA | G23: NA | H23: =H22*H20 -> 42751.644 | I23: =I22*I20 -> 102016.4448 | J23: 140134.4076 | K23: 178632.1824 | L23: 217983.2106 | M23: 239498.1344 | N23: 238827.0864 | O23: 238985.1428 | P23: 239143.3037 | Q23: 239301.5694 | R23: 239459.9397 | S23: 239618.4149 | T23: 239776.995 | U23: 239935.68 | V23: 240094.47 | W23: 240253.3652 | X23: 240412.3654 | Y23: =Y22*Y20 -> 240571.4709 | Z23: 240730.6817 | AA23: 240889.9979 | AB23: 241049.4195 | AC23: 241208.9466 | AD23: 241368.5793 | AE23: 241528.3176 | AF23: 241688.1617 | AG23: 241848.1115 | AH23: 242008.1672 | AI23: 242168.3288 | AJ23: 242328.5964 | AK23: 242488.9701 | AL23: 242649.4499 | AM23: 242810.0359 | AN23: 242970.7282 | AO23: 243131.5268 | AP23: 243292.4319 | AQ23: 243453.4434 | AR23: 243614.5615
B24: College Going Rate (if fixed post 2018) | C24: =C10 -> 0.747 | D24: 0.774 | E24: 0.794 | F24: 0.805 | G24: 0.798 | H24: 0.777 | I24: 0.773 | J24: 0.774 | K24: 0.774 | L24: 0.781 | M24: 0.785 | N24: 0.796 | O24: =$N$24 -> 0.796 | P24: =$N$24 -> 0.796 | Q24: 0.796 | R24: 0.796 | S24: 0.796 | T24: 0.796 | U24: 0.796 | V24: 0.796 | W24: 0.796 | X24: 0.796 | Y24: 0.796 | Z24: 0.796 | AA24: 0.796 | AB24: 0.796 | AC24: 0.796 | AD24: 0.796 | AE24: 0.796 | AF24: 0.796 | AG24: 0.796 | AH24: 0.796 | AI24: 0.796 | AJ24: 0.796 | AK24: 0.796 | AL24: 0.796 | AM24: 0.796 | AN24: 0.796 | AO24: 0.796 | AP24: 0.796 | AQ24: 0.796 | AR24: 0.796
B25: Incremental Students Going to College (Age 18) | C25: NA | D25: NA | E25: NA | F25: NA | G25: NA | H25: =H23*H24 -> 33218.02739 | I25: 78858.71183 | J25: 108464.0315 | K25: =K23*K24 -> 138261.3092 | L25: 170244.8875 | M25: 188006.0355 | N25: 190106.3608 | O25: =O23*O24 -> 190232.1736 | P25: 190358.0698 | Q25: 190484.0492 | R25: 190610.112 | S25: 190736.2583 | T25: 190862.488 | U25: 190988.8013 | V25: 191115.1981 | W25: 191241.6787 | X25: 191368.2429 | Y25: =Y23*Y24 -> 191494.8909 | Z25: 191621.6227 | AA25: 191748.4383 | AB25: 191875.3379 | AC25: 192002.3215 | AD25: 192129.3891 | AE25: 192256.5408 | AF25: 192383.7767 | AG25: 192511.0968 | AH25: 192638.5011 | AI25: 192765.9897 | AJ25: 192893.5627 | AK25: 193021.2202 | AL25: 193148.9621 | AM25: 193276.7886 | AN25: 193404.6996 | AO25: 193532.6953 | AP25: 193660.7758 | AQ25: 193788.9409 | AR25: 193917.191
B26: College Graduation Rate (if fixed post 2018) | C26: =C11 -> 0.407 | D26: =D11 -> 0.407 | E26: 0.407 | F26: 0.405 | G26: 0.402 | H26: 0.397 | I26: 0.403 | J26: 0.418 | K26: 0.431 | L26: 0.444 | M26: 0.461 | N26: 0.48 | O26: =$N$26 -> 0.48 | P26: =$N$26 -> 0.48 | Q26: 0.48 | R26: 0.48 | S26: 0.48 | T26: 0.48 | U26: 0.48 | V26: 0.48 | W26: 0.48 | X26: 0.48 | Y26: 0.48 | Z26: 0.48 | AA26: 0.48 | AB26: 0.48 | AC26: 0.48 | AD26: 0.48 | AE26: 0.48 | AF26: 0.48 | AG26: 0.48 | AH26: 0.48 | AI26: 0.48 | AJ26: 0.48 | AK26: 0.48 | AL26: 0.48 | AM26: 0.48 | AN26: 0.48 | AO26: 0.48 | AP26: 0.48 | AQ26: 0.48 | AR26: 0.48
B27: Incremental Students Graduating from College (Age 22) | C27: NA | D27: NA | E27: NA | F27: NA | G27: NA | H27: NA | I27: NA | J27: NA | K27: NA | L27: =L26*H25 -> 14748.80416 | M27: 36353.86615 | N27: =N26*J25 -> 52062.73511 | O27: =O26*K25 -> 66365.42841 | P27: 81717.54599 | Q27: 90242.89704 | R27: 91251.05317 | S27: 91311.44335 | T27: 91371.87349 | U27: 91432.34362 | V27: 91492.85378 | W27: 91553.40397 | X27: 91613.99425 | Y27: =Y26*U25 -> 91674.62462 | Z27: =Z26*V25 -> 91735.29511 | AA27: =AA26*W25 -> 91796.00576 | AB27: =AB26*X25 -> 91856.75659 | AC27: =AC26*Y25 -> 91917.54762 | AD27: =AD26*Z25 -> 91978.37888 | AE27: =AE26*AA25 -> 92039.2504 | AF27: =AF26*AB25 -> 92100.16221 | AG27: =AG26*AC25 -> 92161.11432 | AH27: =AH26*AD25 -> 92222.10678 | AI27: =AI26*AE25 -> 92283.1396 | AJ27: =AJ26*AF25 -> 92344.21281 | AK27: =AK26*AG25 -> 92405.32644 | AL27: =AL26*AH25 -> 92466.48052 | AM27: =AM26*AI25 -> 92527.67507 | AN27: =AN26*AJ25 -> 92588.91011 | AO27: =AO26*AK25 -> 92650.18568 | AP27: =AP26*AL25 -> 92711.50181 | AQ27: =AQ26*AM25 -> 92772.85851 | AR27: =AR26*AN25 -> 92834.25582
B28: Incremental Attainment at Age 25 | C28: NA | D28: NA | E28: NA | F28: NA | G28: NA | H28: NA | I28: NA | J28: NA | K28: NA | L28: NA | M28: NA | N28: NA | O28: =L27 -> 14748.80416 | P28: =M27 -> 36353.86615 | Q28: 52062.73511 | R28: 66365.42841 | S28: 81717.54599 | T28: 90242.89704 | U28: 91251.05317 | V28: 91311.44335 | W28: 91371.87349 | X28: 91432.34362 | Y28: =V27 -> 91492.85378 | Z28: =W27 -> 91553.40397 | AA28: =X27 -> 91613.99425 | AB28: =Y27 -> 91674.62462 | AC28: =Z27 -> 91735.29511 | AD28: =AA27 -> 91796.00576 | AE28: =AB27 -> 91856.75659 | AF28: =AC27 -> 91917.54762 | AG28: =AD27 -> 91978.37888 | AH28: =AE27 -> 92039.2504 | AI28: =AF27 -> 92100.16221 | AJ28: =AG27 -> 92161.11432 | AK28: =AH27 -> 92222.10678 | AL28: =AI27 -> 92283.1396 | AM28: =AJ27 -> 92344.21281 | AN28: =AK27 -> 92405.32644 | AO28: =AL27 -> 92466.48052 | AP28: =AM27 -> 92527.67507 | AQ28: =AN27 -> 92588.91011 | AR28: =AO27 -> 92650.18568
B30: Impact of Higher College Going Rate | C30: 2007 | D30: 2008 | E30: 2009 | F30: 2010 | G30: 2011 | H30: 2012 | I30: 2013 | J30: 2014 | K30: 2015 | L30: 2016 | M30: 2017 | N30: 2018 | O30: 2019 | P30: 2020 | Q30: 2021 | R30: 2022 | S30: 2023 | T30: 2024 | U30: 2025 | V30: 2026 | W30: 2027 | X30: 2028 | Y30: 2029 | Z30: 2030 | AA30: 2031 | AB30: 2032 | AC30: 2033 | AD30: 2034 | AE30: 2035 | AF30: 2036 | AG30: 2037 | AH30: 2038 | AI30: 2039 | AJ30: 2040 | AK30: 2041 | AL30: 2042 | AM30: 2043 | AN30: 2044 | AO30: 2045 | AP30: 2046 | AQ30: 2047 | AR30: 2048
B31: Number of 17 Year Olds | C31: =C22 -> 4374008.2 | D31: 4386996.8 | E31: 4331043 | F31: 4399321.2 | G31: 4351453.2 | H31: 4275164.4 | I31: 4250685.2 | J31: =J22 -> 4246497.2 | K31: 4253147.2 | L31: 4274180.6 | M31: 4276752.4 | N31: 4264769.4 | O31: 4267591.835 | P31: 4270416.138 | Q31: 4273242.31 | R31: 4276070.352 | S31: 4278900.267 | T31: 4281732.053 | U31: 4284565.714 | V31: 4287401.251 | W31: 4290238.664 | X31: 4293077.954 | Y31: =Y22 -> 4295919.124 | Z31: 4298762.174 | AA31: 4301607.105 | AB31: 4304453.92 | AC31: 4307302.618 | AD31: 4310153.202 | AE31: 4313005.672 | AF31: 4315860.03 | AG31: 4318716.277 | AH31: 4321574.414 | AI31: 4324434.443 | AJ31: 4327296.364 | AK31: 4330160.18 | AL31: 4333025.891 | AM31: 4335893.498 | AN31: 4338763.003 | AO31: 4341634.407 | AP31: 4344507.712 | AQ31: 4347382.918 | AR31: 4350260.027
B32: HS Grad Rate | C32: =C21 -> 0.79 | D32: 0.79 | E32: 0.79 | F32: 0.79 | G32: 0.79 | H32: 0.8 | I32: 0.814 | J32: =J21 -> 0.823 | K32: 0.832 | L32: 0.841 | M32: 0.846 | N32: 0.846 | O32: 0.846 | P32: 0.846 | Q32: 0.846 | R32: 0.846 | S32: 0.846 | T32: 0.846 | U32: 0.846 | V32: 0.846 | W32: 0.846 | X32: 0.846 | Y32: =Y21 -> 0.846 | Z32: 0.846 | AA32: 0.846 | AB32: 0.846 | AC32: 0.846 | AD32: 0.846 | AE32: 0.846 | AF32: 0.846 | AG32: 0.846 | AH32: 0.846 | AI32: 0.846 | AJ32: 0.846 | AK32: 0.846 | AL32: 0.846 | AM32: 0.846 | AN32: 0.846 | AO32: 0.846 | AP32: 0.846 | AQ32: 0.846 | AR32: 0.846
B33: HS Grads | C33: =C31*C32 -> 3455466.478 | D33: 3465727.472 | E33: 3421523.97 | F33: 3475463.748 | G33: 3437648.028 | H33: 3420131.52 | I33: 3460057.753 | J33: =J31*J32 -> 3494867.196 | K33: 3538618.47 | L33: 3594585.885 | M33: 3618132.53 | N33: 3607994.912 | O33: =O31*O32 -> 3610382.692 | P33: 3612772.053 | Q33: 3615162.994 | R33: 3617555.518 | S33: 3619949.625 | T33: 3622345.317 | U33: 3624742.594 | V33: 3627141.458 | W33: 3629541.909 | X33: 3631943.949 | Y33: =Y31*Y32 -> 3634347.579 | Z33: 3636752.799 | AA33: 3639159.611 | AB33: 3641568.016 | AC33: 3643978.015 | AD33: 3646389.609 | AE33: 3648802.798 | AF33: 3651217.585 | AG33: 3653633.97 | AH33: 3656051.954 | AI33: 3658471.539 | AJ33: 3660892.724 | AK33: 3663315.512 | AL33: 3665739.903 | AM33: 3668165.899 | AN33: 3670593.501 | AO33: 3673022.709 | AP33: 3675453.524 | AQ33: 3677885.949 | AR33: 3680319.983
B34: College Going Rate, 2007-2011 Avg. (cohort who are 25-29 in 2018) | C34: =AVERAGE($C$10:$G$10) -> 0.7836 | D34: =AVERAGE($C$10:$G$10) -> 0.7836 | E34: 0.7836 | F34: 0.7836 | G34: 0.7836 | H34: 0.7836 | I34: 0.7836 | J34: 0.7836 | K34: 0.7836 | L34: 0.7836 | M34: 0.7836 | N34: 0.7836 | O34: 0.7836 | P34: 0.7836 | Q34: 0.7836 | R34: 0.7836 | S34: 0.7836 | T34: 0.7836 | U34: 0.7836 | V34: 0.7836 | W34: 0.7836 | X34: 0.7836 | Y34: 0.7836 | Z34: 0.7836 | AA34: 0.7836 | AB34: 0.7836 | AC34: 0.7836 | AD34: 0.7836 | AE34: 0.7836 | AF34: 0.7836 | AG34: 0.7836 | AH34: 0.7836 | AI34: 0.7836 | AJ34: 0.7836 | AK34: 0.7836 | AL34: 0.7836 | AM34: 0.7836 | AN34: 0.7836 | AO34: 0.7836 | AP34: 0.7836 | AQ34: 0.7836 | AR34: 0.7836
B35: College Going Rate (if flat post-2018) | C35: =C10 -> 0.747 | D35: 0.774 | E35: 0.794 | F35: 0.805 | G35: 0.798 | H35: 0.777 | I35: 0.773 | J35: 0.774 | K35: 0.774 | L35: 0.781 | M35: 0.785 | N35: 0.796 | O35: =N35 -> 0.796 | P35: =O35 -> 0.796 | Q35: 0.796 | R35: 0.796 | S35: 0.796 | T35: 0.796 | U35: 0.796 | V35: 0.796 | W35: 0.796 | X35: 0.796 | Y35: =X35 -> 0.796 | Z35: =Y35 -> 0.796 | AA35: =Z35 -> 0.796 | AB35: =AA35 -> 0.796 | AC35: =AB35 -> 0.796 | AD35: =AC35 -> 0.796 | AE35: =AD35 -> 0.796 | AF35: =AE35 -> 0.796 | AG35: =AF35 -> 0.796 | AH35: =AG35 -> 0.796 | AI35: =AH35 -> 0.796 | AJ35: =AI35 -> 0.796 | AK35: =AJ35 -> 0.796 | AL35: =AK35 -> 0.796 | AM35: =AL35 -> 0.796 | AN35: =AM35 -> 0.796 | AO35: =AN35 -> 0.796 | AP35: =AO35 -> 0.796 | AQ35: =AP35 -> 0.796 | AR35: =AQ35 -> 0.796
B36: Higher College Going Rate over 2007-2011 Average | C36: =C35-C34 -> -0.0366 | D36: =D35-D34 -> -0.0096 | E36: 0.0104 | F36: 0.0214 | G36: 0.0144 | H36: -0.0066 | I36: -0.0106 | J36: -0.0096 | K36: =K35-K34 -> -0.0096 | L36: =L35-L34 -> -0.0026 | M36: =M35-M34 -> 0.0014 | N36: =N35-N34 -> 0.0124 | O36: =O35-O34 -> 0.0124 | P36: =P35-P34 -> 0.0124 | Q36: 0.0124 | R36: =R35-R34 -> 0.0124 | S36: =S35-S34 -> 0.0124 | T36: =T35-T34 -> 0.0124 | U36: =U35-U34 -> 0.0124 | V36: =V35-V34 -> 0.0124 | W36: =W35-W34 -> 0.0124 | X36: 0.0124 | Y36: =Y35-Y34 -> 0.0124 | Z36: 0.0124 | AA36: 0.0124 | AB36: 0.0124 | AC36: 0.0124 | AD36: 0.0124 | AE36: 0.0124 | AF36: 0.0124 | AG36: 0.0124 | AH36: 0.0124 | AI36: 0.0124 | AJ36: 0.0124 | AK36: 0.0124 | AL36: 0.0124 | AM36: 0.0124 | AN36: 0.0124 | AO36: 0.0124 | AP36: 0.0124 | AQ36: 0.0124 | AR36: 0.0124
B37: Incremental Students Going to College (Age 18) | C37: NA | D37: NA | E37: NA | F37: NA | G37: NA | H37: =H33*H36 -> -22572.86803 | I37: =I33*I36 -> -36676.61218 | J37: -33550.72508 | K37: -33970.73732 | L37: -9345.9233 | M37: 5065.385543 | N37: 44739.13691 | O37: 44768.74539 | P37: 44798.37345 | Q37: 44828.02113 | R37: 44857.68843 | S37: 44887.37536 | T37: 44917.08193 | U37: 44946.80817 | V37: 44976.55408 | W37: 45006.31968 | X37: 45036.10497 | Y37: =Y33*Y36 -> 45065.90998 | Z37: 45095.73471 | AA37: 45125.57918 | AB37: 45155.4434 | AC37: 45185.32739 | AD37: 45215.23115 | AE37: 45245.1547 | AF37: 45275.09806 | AG37: 45305.06123 | AH37: 45335.04423 | AI37: 45365.04708 | AJ37: 45395.06978 | AK37: 45425.11235 | AL37: 45455.1748 | AM37: 45485.25715 | AN37: 45515.35941 | AO37: 45545.48159 | AP37: 45575.6237 | AQ37: 45605.78576 | AR37: 45635.96778
B38: College Graduation Rate (if fixed post 2018) | C38: =C11 -> 0.407 | D38: =D11 -> 0.407 | E38: 0.407 | F38: 0.405 | G38: 0.402 | H38: 0.397 | I38: 0.403 | J38: 0.418 | K38: 0.431 | L38: 0.444 | M38: 0.461 | N38: 0.48 | O38: =O26 -> 0.48 | P38: 0.48 | Q38: 0.48 | R38: 0.48 | S38: 0.48 | T38: 0.48 | U38: 0.48 | V38: 0.48 | W38: 0.48 | X38: 0.48 | Y38: =Y26 -> 0.48 | Z38: 0.48 | AA38: 0.48 | AB38: 0.48 | AC38: 0.48 | AD38: 0.48 | AE38: 0.48 | AF38: 0.48 | AG38: 0.48 | AH38: 0.48 | AI38: 0.48 | AJ38: 0.48 | AK38: 0.48 | AL38: 0.48 | AM38: 0.48 | AN38: 0.48 | AO38: 0.48 | AP38: 0.48 | AQ38: 0.48 | AR38: 0.48
B39: Incremental Students Graduating from College (Age 22) | C39: NA | D39: NA | E39: NA | F39: NA | G39: NA | H39: NA | I39: NA | J39: NA | K39: NA | L39: =L38*H37 -> -10022.35341 | M39: =M38*I37 -> -16907.91821 | N39: =N38*J37 -> -16104.34804 | O39: =O38*K37 -> -16305.95391 | P39: =P38*L37 -> -4486.043184 | Q39: =Q38*M37 -> 2431.38506 | R39: =R38*N37 -> 21474.78572 | S39: =S38*O37 -> 21488.99779 | T39: =T38*P37 -> 21503.21926 | U39: =U38*Q37 -> 21517.45014 | V39: =V38*R37 -> 21531.69044 | W39: =W38*S37 -> 21545.94017 | X39: =X38*T37 -> 21560.19933 | Y39: =Y38*U37 -> 21574.46792 | Z39: =Z38*V37 -> 21588.74596 | AA39: =AA38*W37 -> 21603.03344 | AB39: =AB38*X37 -> 21617.33039 | AC39: =AC38*Y37 -> 21631.63679 | AD39: =AD38*Z37 -> 21645.95266 | AE39: =AE38*AA37 -> 21660.27801 | AF39: =AF38*AB37 -> 21674.61283 | AG39: =AG38*AC37 -> 21688.95714 | AH39: =AH38*AD37 -> 21703.31095 | AI39: =AI38*AE37 -> 21717.67426 | AJ39: =AJ38*AF37 -> 21732.04707 | AK39: =AK38*AG37 -> 21746.42939 | AL39: =AL38*AH37 -> 21760.82123 | AM39: =AM38*AI37 -> 21775.2226 | AN39: =AN38*AJ37 -> 21789.63349 | AO39: =AO38*AK37 -> 21804.05393 | AP39: =AP38*AL37 -> 21818.48391 | AQ39: =AQ38*AM37 -> 21832.92343 | AR39: =AR38*AN37 -> 21847.37252
B40: Incremental Attainment at Age 25 | C40: NA | D40: NA | E40: NA | F40: NA | G40: NA | H40: NA | I40: NA | J40: NA | K40: NA | L40: NA | M40: NA | N40: NA | O40: =L39 -> -10022.35341 | P40: =M39 -> -16907.91821 | Q40: =N39 -> -16104.34804 | R40: =O39 -> -16305.95391 | S40: =P39 -> -4486.043184 | T40: =Q39 -> 2431.38506 | U40: =R39 -> 21474.78572 | V40: =S39 -> 21488.99779 | W40: =T39 -> 21503.21926 | X40: =U39 -> 21517.45014 | Y40: =V39 -> 21531.69044 | Z40: =W39 -> 21545.94017 | AA40: =X39 -> 21560.19933 | AB40: =Y39 -> 21574.46792 | AC40: =Z39 -> 21588.74596 | AD40: =AA39 -> 21603.03344 | AE40: =AB39 -> 21617.33039 | AF40: =AC39 -> 21631.63679 | AG40: =AD39 -> 21645.95266 | AH40: =AE39 -> 21660.27801 | AI40: =AF39 -> 21674.61283 | AJ40: =AG39 -> 21688.95714 | AK40: =AH39 -> 21703.31095 | AL40: =AI39 -> 21717.67426 | AM40: =AJ39 -> 21732.04707 | AN40: =AK39 -> 21746.42939 | AO40: =AL39 -> 21760.82123 | AP40: =AM39 -> 21775.2226 | AQ40: =AN39 -> 21789.63349 | AR40: =AO39 -> 21804.05393
B42: Impact of Higher College Graduation Rate | C42: 2007 | D42: 2008 | E42: 2009 | F42: 2010 | G42: 2011 | H42: 2012 | I42: 2013 | J42: 2014 | K42: 2015 | L42: 2016 | M42: 2017 | N42: 2018 | O42: 2019 | P42: 2020 | Q42: 2021 | R42: 2022 | S42: 2023 | T42: 2024 | U42: 2025 | V42: 2026 | W42: 2027 | X42: 2028 | Y42: 2029 | Z42: 2030 | AA42: 2031 | AB42: 2032 | AC42: 2033 | AD42: 2034 | AE42: 2035 | AF42: 2036 | AG42: 2037 | AH42: 2038 | AI42: 2039 | AJ42: 2040 | AK42: 2041 | AL42: 2042 | AM42: 2043 | AN42: 2044 | AO42: 2045 | AP42: 2046 | AQ42: 2047 | AR42: 2048
